Workbook

Sheet CAPA (hidden)

Sheet DADOS (hidden)
B2: DATA | D2: 2023-03-27
B4: CLIENTE | E4: 1
B6: REVISÃO | D6: R01
B8: PROJETO | D8: REFORMA DA COBERTURA DA PEM CORONEL BRITO FILHO
B10: BDI TIPO 1 | D10: 0.2652
B12: BDI TIPO 2 | D12: 0.2025
B14: BANCOS DE DADOS | D14: SINAPI: 02/2023 Minas Gerais SETOP: 01/2023 Minas Gerais SICRO : 10/2022 Minas Gerais SUDECAP: 12/2022 Minas Gerais
B16: RESPONSÁVEL | D16: FLÁVIA CRISTINA BARBOSA
B18: CREA | D18: CREA - MG 187.842/D
B20: TIPO | D20: PROJETO EXECUTIVO

Sheet CLIENTES (hidden)
B1: PREFEITURA MUNICIPAL DE POUSO ALEGRE
B2: PREFEITURA MUNICIPAL DE CACHOEIRA DE MINAS
B3: PREFEITURA MUNICIPAL DE ITAJUBÁ
B4: PREFEITURA MUNICIPAL DE SANTA RITA DO SAPUCAÍ
B5: RYZA
B6: FAPEPE
B7: PREFEITURA MUNICIPAL DE DELFIM MOREIRA
B8: PREFEITURA MUNICIPAL DE PIRANGUINHO

Sheet ORC
A3: 1000 | D3: A | E3: ADMINISTRAÇÃO DE OBRA | M3: =SUMIF(A:A,D3,M:M) -> 0 | N3: =SUMIF(A:A,D3,N:N) -> 0
D4: A.B | M4: =IFERROR(SUMIFS(M:M,A:A,LEFT(D4,SEARCH(".",D4)-1),B:B,RIGHT(D4,LEN(D4)-SEARCH(".",D4))),"") -> 0 | N4: =IFERROR(SUMIFS(N:N,A:A,LEFT(D4,SEARCH(".",D4)-1),B:B,RIGHT(D4,LEN(D4)-SEARCH(".",D4))),"") -> 0
D5: A.B.C | M5: =IFERROR(SUMIFS(M:M,A:A,LEFT(D5,SEARCH(".",D5)-1),B:B,LEFT(RIGHT(D5,LEN(D5)-SEARCH(".",D5)),SEARCH(".",RIGHT(D5,LEN(D5)-SEARCH(".",D5)))-1),C:C,RIGHT(D5,LEN(D5)-SEARCH(".",D5,SEARCH(".",D5)+1))),"") -> 0 | N5: =IFERROR(SUMIFS(N:N,A:A,LEFT(D5,SEARCH(".",D5)-1),B:B,LEFT(RIGHT(D5,LEN(D5)-SEARCH(".",D5)),SEARCH(".",RIGHT(D5,LEN(D5)-SEARCH(".",D5)))-1),C:C,RIGHT(D5,LEN(D5)-SEARCH(".",D5,SEARCH(".",D5)+1))),"") -> 0
A6: =IFERROR(LEFT(D6,SEARCH(".",D6)-1),"") -> a | B6: =IFERROR(LEFT(RIGHT(D6,LEN(D6)-SEARCH(".",D6)),SEARCH(".",RIGHT(D6,LEN(D6)-SEARCH(".",D6)))-1),"") -> a/a | C6: =IFERROR(IF(LEN(D6)-LEN(SUBSTITUTE(D6,".",""))<>3,"",MID(D6,SEARCH(".",D6,SEARCH(".",D6)+1)+1,LEN(D6)-SEARCH(".",D6,SEARCH(".",D6)+1)-(LEN(D6)-(SEARCH(".",D6,SEARCH(".",D6,SEARCH(".",D6)+1)+1)-1)))),"") ->  | D6: a.a/a.a.a/a.a.a.a | E6: =IF($G6="SINAPI",VLOOKUP($F6,DADOS_SINAPI,2,0),IF(G6="SETOP",VLOOKUP($F6,DADOS_SETOP,2,0),IF(G6="CPU",VLOOKUP($F6,DADOS_COMPOSICAO,2,0),IF(G6="SICRO",VLOOKUP($F6,DADOS_SICRO,2,0),IF(G6="SUDECAP",VLOOKUP(F6,DADOS_SUDECAP,2,0),IF(G6="COTAÇÃO",VLOOKUP($F6,DADOS_COTACAO,2,0),"")))))) ->  | H6: =IF(G6="SINAPI",VLOOKUP($F6,DADOS_SINAPI,3,0),IF(G6="SETOP",VLOOKUP($F6,DADOS_SETOP,3,0),IF(G6="CPU",VLOOKUP($F6,DADOS_COMPOSICAO,10,0),IF(G6="SICRO",VLOOKUP($F6,DADOS_SICRO,3,0),IF(G6="SUDECAP",VLOOKUP(F6,DADOS_SUDECAP,3,0),IF(G6="COTAÇÃO",VLOOKUP($F6,DADOS_COTACAO,9,0),"")))))) ->  | J6: =TRUNC(IF(G6="SINAPI",VLOOKUP($F6,DADOS_SINAPI,4,0),IF(G6="SETOP",VLOOKUP($F6,DADOS_SETOP,4,0),IF(G6="CPU",VLOOKUP($F6,DADOS_COMPOSICAO,13,0),IF(G6="SICRO",VLOOKUP($F6,DADOS_SICRO,4,0),IF(G6="SUDECAP",VLOOKUP(F6,DADOS_SUDECAP,4,0),IF(G6="COTAÇÃO",VLOOKUP(F6,DADOS_COTACAO,12,0),"")))))),2) ->  | K6: BDI 1 | L6: =TRUNC(J6*(1+$N$17),2) ->  | M6: =IFERROR(TRUNC(I6*J6,2),"") ->  | N6: =IFERROR(TRUNC(L6*I6,2),"") -> 
A7: =IFERROR(LEFT(D7,SEARCH(".",D7)-1),"") -> a | B7: =IFERROR(LEFT(RIGHT(D7,LEN(D7)-SEARCH(".",D7)),SEARCH(".",RIGHT(D7,LEN(D7)-SEARCH(".",D7)))-1),"") -> a/a | C7: =IFERROR(IF(LEN(D7)-LEN(SUBSTITUTE(D7,".",""))<>3,"",MID(D7,SEARCH(".",D7,SEARCH(".",D7)+1)+1,LEN(D7)-SEARCH(".",D7,SEARCH(".",D7)+1)-(LEN(D7)-(SEARCH(".",D7,SEARCH(".",D7,SEARCH(".",D7)+1)+1)-1)))),"") ->  | D7: a.a/a.a.a/a.a.a.a | E7: =VLOOKUP($F7,DADOS_COTACAO,2,0) ->  | G7: COTAÇÃO | H7: =VLOOKUP($F7,DADOS_COTACAO,9,0) ->  | J7: =TRUNC(VLOOKUP($F7,DADOS_COTACAO,12,0),2) ->  | K7: BDI 2 | L7: =TRUNC(J7*(1+$N$18),2) ->  | M7: =IFERROR(TRUNC(I7*J7,2),"") ->  | N7: =IFERROR(TRUNC(L7*I7,2),"") -> 
A8: 2000
E11: PLANILHA ORÇAMENTÁRIA | M11: Revisão: | N11: =DADOS!D6 -> R01 | O11: a
M12: Data: | N12: =DADOS!D2 -> 2023-03-27
D13: Projeto: | E13: =DADOS!D8 -> REFORMA DA COBERTURA DA PEM CORONEL BRITO FILHO | M13: Bancos:
D14: Responsável: | F14: Cliente: | M14: =DADOS!D14 -> SINAPI: 02/2023 Minas Gerais SETOP: 01/2023 Minas Gerais SICRO : 10/2022 Minas Gerais SUDECAP: 12/2022 Minas Gerais
M17: BDI 1: | N17: =DADOS!D10 -> 0.2652
M18: BDI 2: | N18: =DADOS!D12 -> 0.2025
D20: =E11&" DE "&DADOS!D20&" - "&E13 -> PLANILHA ORÇAMENTÁRIA DE PROJETO EXECUTIVO - REFORMA DA COBERTURA DA PEM CORONEL BRITO FILHO
D22: Item | E22: Descrição | F22: Código | G22: Banco | H22: Unidade | I22: Quantidade | J22: Valor Unitário | K22: BDI | L22: Valor Unit. com BDI | M22: Total | N22: Total com BDI
M23: =ROUND(I23*J23,2) -> 0 | N23: =ROUND(L23*I23,2) -> 0
A24: 1000 | D24: 1 | E24: CANTEIRO DE OBRA | M24: =SUMIF(A:A,D24,M:M) -> 6972.16 | N24: =SUMIF(A:A,D24,N:N) -> 8820.09
A25: =IFERROR(LEFT(D25,SEARCH(".",D25)-1),"") -> 1 | B25: =IFERROR(LEFT(RIGHT(D25,LEN(D25)-SEARCH(".",D25)),SEARCH(".",RIGHT(D25,LEN(D25)-SEARCH(".",D25)))-1),"") ->  | C25: =IFERROR(IF(LEN(D25)-LEN(SUBSTITUTE(D25,".",""))<>3,"",MID(D25,SEARCH(".",D25,SEARCH(".",D25)+1)+1,LEN(D25)-SEARCH(".",D25,SEARCH(".",D25)+1)-(LEN(D25)-(SEARCH(".",D25,SEARCH(".",D25,SEARCH(".",D25)+1)+1)-1)))),"") ->  | D25: 1.1 | E25: =IF($G25="SINAPI",VLOOKUP($F25,DADOS_SINAPI,2,0),IF(G25="SETOP",VLOOKUP($F25,DADOS_SETOP,2,0),IF(G25="CPU",VLOOKUP($F25,DADOS_COMPOSICAO,2,0),IF(G25="SICRO",VLOOKUP($F25,DADOS_SICRO,2,0),IF(G25="SUDECAP",VLOOKUP(F25,DADOS_SUDECAP,2,0),IF(G25="COTAÇÃO",VLOOKUP($F25,DADOS_COTACAO,2,0),"")))))) -> LOCAÇÃO DE BANHEIRO QUÍMICO, DIMENSÃO (110X120X230)CM, LINHA PADRÃO, CONTENDO UMA (1) PIA/HIGIENIZADOR DE MÃOS, INCLUSIVE MANUTENÇÃO E MOBILIZAÇÃO/DESMOBILIZAÇÃO | F25: ED-50155 | G25: SETOP | H25: =IF(G25="SINAPI",VLOOKUP($F25,DADOS_SINAPI,3,0),IF(G25="SETOP",VLOOKUP($F25,DADOS_SETOP,3,0),IF(G25="CPU",VLOOKUP($F25,DADOS_COMPOSICAO,10,0),IF(G25="SICRO",VLOOKUP($F25,DADOS_SICRO,3,0),IF(G25="SUDECAP",VLOOKUP(F25,DADOS_SUDECAP,3,0),IF(G25="COTAÇÃO",VLOOKUP($F25,DADOS_COTACAO,9,0),"")))))) -> mês | I25: =F28 -> 4 | J25: =TRUNC(IF(G25="SINAPI",VLOOKUP($F25,DADOS_SINAPI,4,0),IF(G25="SETOP",VLOOKUP($F25,DADOS_SETOP,4,0),IF(G25="CPU",VLOOKUP($F25,DADOS_COMPOSICAO,13,0),IF(G25="SICRO",VLOOKUP($F25,DADOS_SICRO,4,0),IF(G25="SUDECAP",VLOOKUP(F25,DADOS_SUDECAP,4,0),IF(G25="COTAÇÃO",VLOOKUP(F25,DADOS_COTACAO,12,0),"")))))),2) -> 820 | K25: BDI 1 | L25: =TRUNC(J25*(1+$N$17),2) -> 1037.46 | M25: =IFERROR(TRUNC(I25*J25,2),"") -> 3280 | N25: =IFERROR(TRUNC(L25*I25,2),"") -> 4149.84
A26: 2000
A27: 2000 | E27: Quantidade de Meses | F27: =F55 -> 4 | G27: meses
A28: 2000 | E28: Total | F28: =F27 -> 4 | G28: meses
A29: 2000
A30: =IFERROR(LEFT(D30,SEARCH(".",D30)-1),"") -> 1 | B30: =IFERROR(LEFT(RIGHT(D30,LEN(D30)-SEARCH(".",D30)),SEARCH(".",RIGHT(D30,LEN(D30)-SEARCH(".",D30)))-1),"") ->  | C30: =IFERROR(IF(LEN(D30)-LEN(SUBSTITUTE(D30,".",""))<>3,"",MID(D30,SEARCH(".",D30,SEARCH(".",D30)+1)+1,LEN(D30)-SEARCH(".",D30,SEARCH(".",D30)+1)-(LEN(D30)-(SEARCH(".",D30,SEARCH(".",D30,SEARCH(".",D30)+1)+1)-1)))),"") ->  | D30: 1.2 | E30: =IF($G30="SINAPI",VLOOKUP($F30,DADOS_SINAPI,2,0),IF(G30="SETOP",VLOOKUP($F30,DADOS_SETOP,2,0),IF(G30="CPU",VLOOKUP($F30,DADOS_COMPOSICAO,2,0),IF(G30="SICRO",VLOOKUP($F30,DADOS_SICRO,2,0),IF(G30="SUDECAP",VLOOKUP(F30,DADOS_SUDECAP,2,0),IF(G30="COTAÇÃO",VLOOKUP($F30,DADOS_COTACAO,2,0),"")))))) -> LOCAÇÃO DE CONTAINER COM ISOLAMENTO TÉRMICO, TIPO 3, PARA DEPÓSITO/FERRAMENTARIA DE OBRA, COM MEDIDAS REFERENCIAIS DE (6) METROS COMPRIMENTO, (2,3) METROS LARGURA E (2,5) METROS ALTURA ÚTIL INTERNA, INCLUSIVE LIGAÇÕES ELÉTRICAS INTERNAS, EXCLUSIVE MOBILIZAÇÃO/DESMOBILIZAÇÃO E LIGAÇÕES PROVISÓRIAS EXTERNAS | F30: ED-16350 | G30: SETOP | H30: =IF(G30="SINAPI",VLOOKUP($F30,DADOS_SINAPI,3,0),IF(G30="SETOP",VLOOKUP($F30,DADOS_SETOP,3,0),IF(G30="CPU",VLOOKUP($F30,DADOS_COMPOSICAO,10,0),IF(G30="SICRO",VLOOKUP($F30,DADOS_SICRO,3,0),IF(G30="SUDECAP",VLOOKUP(F30,DADOS_SUDECAP,3,0),IF(G30="COTAÇÃO",VLOOKUP($F30,DADOS_COTACAO,9,0),"")))))) -> mês | I30: =F33 -> 4 | J30: =TRUNC(IF(G30="SINAPI",VLOOKUP($F30,DADOS_SINAPI,4,0),IF(G30="SETOP",VLOOKUP($F30,DADOS_SETOP,4,0),IF(G30="CPU",VLOOKUP($F30,DADOS_COMPOSICAO,13,0),IF(G30="SICRO",VLOOKUP($F30,DADOS_SICRO,4,0),IF(G30="SUDECAP",VLOOKUP(F30,DADOS_SUDECAP,4,0),IF(G30="COTAÇÃO",VLOOKUP(F30,DADOS_COTACAO,12,0),"")))))),2) -> 689.44 | K30: BDI 1 | L30: =TRUNC(J30*(1+$N$17),2) -> 872.27 | M30: =IFERROR(TRUNC(I30*J30,2),"") -> 2757.76 | N30: =IFERROR(TRUNC(L30*I30,2),"") -> 3489.08
A31: 2000
A32: 2000 | E32: Quantidade de Meses | F32: =F55 -> 4 | G32: meses
A33: 2000 | E33: Total | F33: =F32 -> 4 | G33: meses
A34: 2000
A35: =IFERROR(LEFT(D35,SEARCH(".",D35)-1),"") -> 1 | B35: =IFERROR(LEFT(RIGHT(D35,LEN(D35)-SEARCH(".",D35)),SEARCH(".",RIGHT(D35,LEN(D35)-SEARCH(".",D35)))-1),"") ->  | C35: =IFERROR(IF(LEN(D35)-LEN(SUBSTITUTE(D35,".",""))<>3,"",MID(D35,SEARCH(".",D35,SEARCH(".",D35)+1)+1,LEN(D35)-SEARCH(".",D35,SEARCH(".",D35)+1)-(LEN(D35)-(SEARCH(".",D35,SEARCH(".",D35,SEARCH(".",D35)+1)+1)-1)))),"") ->  | D35: 1.3 | E35: =IF($G35="SINAPI",VLOOKUP($F35,DADOS_SINAPI,2,0),IF(G35="SETOP",VLOOKUP($F35,DADOS_SETOP,2,0),IF(G35="CPU",VLOOKUP($F35,DADOS_COMPOSICAO,2,0),IF(G35="SICRO",VLOOKUP($F35,DADOS_SICRO,2,0),IF(G35="SUDECAP",VLOOKUP(F35,DADOS_SUDECAP,2,0),IF(G35="COTAÇÃO",VLOOKUP($F35,DADOS_COTACAO,2,0),"")))))) -> MOBILIZAÇÃO E DESMOBILIZAÇÃO DE CONTAINER, INCLUSIVE CARGA, DESCARGA E TRANSPORTE EM CAMINHÃO CARROCERIA COM GUINDAUTO (MUNCK), EXCLUSIVE LOCAÇÃO DO CONTAINER | F35: ED-50137 | G35: SETOP | H35: =IF(G35="SINAPI",VLOOKUP($F35,DADOS_SINAPI,3,0),IF(G35="SETOP",VLOOKUP($F35,DADOS_SETOP,3,0),IF(G35="CPU",VLOOKUP($F35,DADOS_COMPOSICAO,10,0),IF(G35="SICRO",VLOOKUP($F35,DADOS_SICRO,3,0),IF(G35="SUDECAP",VLOOKUP(F35,DADOS_SUDECAP,3,0),IF(G35="COTAÇÃO",VLOOKUP($F35,DADOS_COTACAO,9,0),"")))))) -> un | I35: =F38 -> 1 | J35: =TRUNC(IF(G35="SINAPI",VLOOKUP($F35,DADOS_SINAPI,4,0),IF(G35="SETOP",VLOOKUP($F35,DADOS_SETOP,4,0),IF(G35="CPU",VLOOKUP($F35,DADOS_COMPOSICAO,13,0),IF(G35="SICRO",VLOOKUP($F35,DADOS_SICRO,4,0),IF(G35="SUDECAP",VLOOKUP(F35,DADOS_SUDECAP,4,0),IF(G35="COTAÇÃO",VLOOKUP(F35,DADOS_COTACAO,12,0),"")))))),2) -> 631.9 | K35: BDI 1 | L35: =TRUNC(J35*(1+$N$17),2) -> 799.47 | M35: =IFERROR(TRUNC(I35*J35,2),"") -> 631.9 | N35: =IFERROR(TRUNC(L35*I35,2),"") -> 799.47
A36: 2000
A37: 2000 | E37: Quantidade | F37: 1 | G37: un
A38: 2000 | E38: Total | F38: =F37 -> 1 | G38: un
A39: 2000
A40: =IFERROR(LEFT(D40,SEARCH(".",D40)-1),"") -> 1 | B40: =IFERROR(LEFT(RIGHT(D40,LEN(D40)-SEARCH(".",D40)),SEARCH(".",RIGHT(D40,LEN(D40)-SEARCH(".",D40)))-1),"") ->  | C40: =IFERROR(IF(LEN(D40)-LEN(SUBSTITUTE(D40,".",""))<>3,"",MID(D40,SEARCH(".",D40,SEARCH(".",D40)+1)+1,LEN(D40)-SEARCH(".",D40,SEARCH(".",D40)+1)-(LEN(D40)-(SEARCH(".",D40,SEARCH(".",D40,SEARCH(".",D40)+1)+1)-1)))),"") ->  | D40: 1.4 | E40: =IF($G40="SINAPI",VLOOKUP($F40,DADOS_SINAPI,2,0),IF(G40="SETOP",VLOOKUP($F40,DADOS_SETOP,2,0),IF(G40="CPU",VLOOKUP($F40,DADOS_COMPOSICAO,2,0),IF(G40="SICRO",VLOOKUP($F40,DADOS_SICRO,2,0),IF(G40="SUDECAP",VLOOKUP(F40,DADOS_SUDECAP,2,0),IF(G40="COTAÇÃO",VLOOKUP($F40,DADOS_COTACAO,2,0),"")))))) -> FITA ZEBRADA AMARELA PARA SINALIZAÇAO L= 7CM | F40: 01.04.11 | G40: SUDECAP | H40: =IF(G40="SINAPI",VLOOKUP($F40,DADOS_SINAPI,3,0),IF(G40="SETOP",VLOOKUP($F40,DADOS_SETOP,3,0),IF(G40="CPU",VLOOKUP($F40,DADOS_COMPOSICAO,10,0),IF(G40="SICRO",VLOOKUP($F40,DADOS_SICRO,3,0),IF(G40="SUDECAP",VLOOKUP(F40,DADOS_SUDECAP,3,0),IF(G40="COTAÇÃO",VLOOKUP($F40,DADOS_COTACAO,9,0),"")))))) -> M | I40: =TRUNC(F43,2) -> 110 | J40: =TRUNC(IF(G40="SINAPI",VLOOKUP($F40,DADOS_SINAPI,4,0),IF(G40="SETOP",VLOOKUP($F40,DADOS_SETOP,4,0),IF(G40="CPU",VLOOKUP($F40,DADOS_COMPOSICAO,13,0),IF(G40="SICRO",VLOOKUP($F40,DADOS_SICRO,4,0),IF(G40="SUDECAP",VLOOKUP(F40,DADOS_SUDECAP,4,0),IF(G40="COTAÇÃO",VLOOKUP(F40,DADOS_COTACAO,12,0),"")))))),2) -> 2.75 | K40: BDI 1 | L40: =TRUNC(J40*(1+$N$17),2) -> 3.47 | M40: =IFERROR(TRUNC(I40*J40,2),"") -> 302.5 | N40: =IFERROR(TRUNC(L40*I40,2),"") -> 381.7
A41: 2000
A42: 2000 | E42: Quantidade | F42: 110 | G42: m
A43: 2000 | E43: Total | F43: =F42 -> 110 | G43: m
A44: 2000
A45: 1000 | D45: 2 | E45: SERVIÇOS PRELIMINARES | M45: =SUMIF(A:A,D45,M:M) -> 3707.52 | N45: =SUMIF(A:A,D45,N:N) -> 4690.75
A46: =IFERROR(LEFT(D46,SEARCH(".",D46)-1),"") -> 2 | B46: =IFERROR(LEFT(RIGHT(D46,LEN(D46)-SEARCH(".",D46)),SEARCH(".",RIGHT(D46,LEN(D46)-SEARCH(".",D46)))-1),"") ->  | C46: =IFERROR(IF(LEN(D46)-LEN(SUBSTITUTE(D46,".",""))<>3,"",MID(D46,SEARCH(".",D46,SEARCH(".",D46)+1)+1,LEN(D46)-SEARCH(".",D46,SEARCH(".",D46)+1)-(LEN(D46)-(SEARCH(".",D46,SEARCH(".",D46,SEARCH(".",D46)+1)+1)-1)))),"") ->  | D46: 2.1 | E46: =IF($G46="SINAPI",VLOOKUP($F46,DADOS_SINAPI,2,0),IF(G46="SETOP",VLOOKUP($F46,DADOS_SETOP,2,0),IF(G46="CPU",VLOOKUP($F46,DADOS_COMPOSICAO,2,0),IF(G46="SICRO",VLOOKUP($F46,DADOS_SICRO,2,0),IF(G46="SUDECAP",VLOOKUP(F46,DADOS_SUDECAP,2,0),IF(G46="COTAÇÃO",VLOOKUP($F46,DADOS_COTACAO,2,0),"")))))) -> FORNECIMENTO E COLOCAÇÃO DE PLACA DE OBRA EM CHAPA GALVANIZADA #26, ESP. 0,45MM, DIMENSÃO (4X3)M, PLOTADA COM ADESIVO VINÍLICO, AFIXADA COM REBITES 4,8X40MM, EM ESTRUTURA METÁLICA DE METALON 20X20MM, ESP. 1,25MM, INCLUSIVE SUPORTE EM EUCALIPTO AUTOCLAVADO PINTADO COM TINTA PVA DUAS (2) DEMÃOS | F46: ED-28428 | G46: SETOP | H46: =IF(G46="SINAPI",VLOOKUP($F46,DADOS_SINAPI,3,0),IF(G46="SETOP",VLOOKUP($F46,DADOS_SETOP,3,0),IF(G46="CPU",VLOOKUP($F46,DADOS_COMPOSICAO,10,0),IF(G46="SICRO",VLOOKUP($F46,DADOS_SICRO,3,0),IF(G46="SUDECAP",VLOOKUP(F46,DADOS_SUDECAP,3,0),IF(G46="COTAÇÃO",VLOOKUP($F46,DADOS_COTACAO,9,0),"")))))) -> un | I46: =F49 -> 1 | J46: =TRUNC(IF(G46="SINAPI",VLOOKUP($F46,DADOS_SINAPI,4,0),IF(G46="SETOP",VLOOKUP($F46,DADOS_SETOP,4,0),IF(G46="CPU",VLOOKUP($F46,DADOS_COMPOSICAO,13,0),IF(G46="SICRO",VLOOKUP($F46,DADOS_SICRO,4,0),IF(G46="SUDECAP",VLOOKUP(F46,DADOS_SUDECAP,4,0),IF(G46="COTAÇÃO",VLOOKUP(F46,DADOS_COTACAO,12,0),"")))))),2) -> 3707.52 | K46: BDI 1 | L46: =TRUNC(J46*(1+$N$17),2) -> 4690.75 | M46: =IFERROR(TRUNC(I46*J46,2),"") -> 3707.52 | N46: =IFERROR(TRUNC(L46*I46,2),"") -> 4690.75
A47: 2000
A48: 2000 | E48: Quantidade | F48: 1 | G48: un
A49: 2000 | E49: Total | F49: =F48 -> 1 | G49: un
A50: 2000
A51: 1000 | D51: 3 | E51: ADMINISTRAÇÃO DE OBRA | M51: =SUMIF(A:A,D51,M:M) -> 91685.72 | N51: =SUMIF(A:A,D51,N:N) -> 116000.72
A52: =IFERROR(LEFT(D52,SEARCH(".",D52)-1),"") -> 3 | B52: =IFERROR(LEFT(RIGHT(D52,LEN(D52)-SEARCH(".",D52)),SEARCH(".",RIGHT(D52,LEN(D52)-SEARCH(".",D52)))-1),"") ->  | C52: =IFERROR(IF(LEN(D52)-LEN(SUBSTITUTE(D52,".",""))<>3,"",MID(D52,SEARCH(".",D52,SEARCH(".",D52)+1)+1,LEN(D52)-SEARCH(".",D52,SEARCH(".",D52)+1)-(LEN(D52)-(SEARCH(".",D52,SEARCH(".",D52,SEARCH(".",D52)+1)+1)-1)))),"") ->  | D52: 3.1 | E52: =IF($G52="SINAPI",VLOOKUP($F52,DADOS_SINAPI,2,0),IF(G52="SETOP",VLOOKUP($F52,DADOS_SETOP,2,0),IF(G52="CPU",VLOOKUP($F52,DADOS_COMPOSICAO,2,0),IF(G52="SICRO",VLOOKUP($F52,DADOS_SICRO,2,0),IF(G52="SUDECAP",VLOOKUP(F52,DADOS_SUDECAP,2,0),IF(G52="COTAÇÃO",VLOOKUP($F52,DADOS_COTACAO,2,0),"")))))) -> ENGENHEIRO CIVIL DE OBRA JUNIOR COM ENCARGOS COMPLEMENTARES | F52: 93565 | G52: SINAPI | H52: =IF(G52="SINAPI",VLOOKUP($F52,DADOS_SINAPI,3,0),IF(G52="SETOP",VLOOKUP($F52,DADOS_SETOP,3,0),IF(G52="CPU",VLOOKUP($F52,DADOS_COMPOSICAO,10,0),IF(G52="SICRO",VLOOKUP($F52,DADOS_SICRO,3,0),IF(G52="SUDECAP",VLOOKUP(F52,DADOS_SUDECAP,3,0),IF(G52="COTAÇÃO",VLOOKUP($F52,DADOS_COTACAO,9,0),"")))))) -> MES | I52: =F55 -> 4 | J52: =TRUNC(IF(G52="SINAPI",VLOOKUP($F52,DADOS_SINAPI,4,0),IF(G52="SETOP",VLOOKUP($F52,DADOS_SETOP,4,0),IF(G52="CPU",VLOOKUP($F52,DADOS_COMPOSICAO,13,0),IF(G52="SICRO",VLOOKUP($F52,DADOS_SICRO,4,0),IF(G52="SUDECAP",VLOOKUP(F52,DADOS_SUDECAP,4,0),IF(G52="COTAÇÃO",VLOOKUP(F52,DADOS_COTACAO,12,0),"")))))),2) -> 17112.16 | K52: BDI 1 | L52: =TRUNC(J52*(1+$N$17),2) -> 21650.3 | M52: =IFERROR(TRUNC(I52*J52,2),"") -> 68448.64 | N52: =IFERROR(TRUNC(L52*I52,2),"") -> 86601.2
A53: 2000
A54: 2000 | E54: Quantidade de Meses | F54: 4 | G54: meses
A55: 2000 | E55: Total | F55: =F54 -> 4 | G55: meses
A56: 2000
A57: =IFERROR(LEFT(D57,SEARCH(".",D57)-1),"") -> 3 | B57: =IFERROR(LEFT(RIGHT(D57,LEN(D57)-SEARCH(".",D57)),SEARCH(".",RIGHT(D57,LEN(D57)-SEARCH(".",D57)))-1),"") ->  | C57: =IFERROR(IF(LEN(D57)-LEN(SUBSTITUTE(D57,".",""))<>3,"",MID(D57,SEARCH(".",D57,SEARCH(".",D57)+1)+1,LEN(D57)-SEARCH(".",D57,SEARCH(".",D57)+1)-(LEN(D57)-(SEARCH(".",D57,SEARCH(".",D57,SEARCH(".",D57)+1)+1)-1)))),"") ->  | D57: 3.2 | E57: =IF($G57="SINAPI",VLOOKUP($F57,DADOS_SINAPI,2,0),IF(G57="SETOP",VLOOKUP($F57,DADOS_SETOP,2,0),IF(G57="CPU",VLOOKUP($F57,DADOS_COMPOSICAO,2,0),IF(G57="SICRO",VLOOKUP($F57,DADOS_SICRO,2,0),IF(G57="SUDECAP",VLOOKUP(F57,DADOS_SUDECAP,2,0),IF(G57="COTAÇÃO",VLOOKUP($F57,DADOS_COTACAO,2,0),"")))))) -> TÉCNICO EM SEGURANÇA DO TRABALHO COM ENCARGOS COMPLEMENTARES | F57: 100321 | G57: SINAPI | H57: =IF(G57="SINAPI",VLOOKUP($F57,DADOS_SINAPI,3,0),IF(G57="SETOP",VLOOKUP($F57,DADOS_SETOP,3,0),IF(G57="CPU",VLOOKUP($F57,DADOS_COMPOSICAO,10,0),IF(G57="SICRO",VLOOKUP($F57,DADOS_SICRO,3,0),IF(G57="SUDECAP",VLOOKUP(F57,DADOS_SUDECAP,3,0),IF(G57="COTAÇÃO",VLOOKUP($F57,DADOS_COTACAO,9,0),"")))))) -> MES | I57: =F60 -> 4 | J57: =TRUNC(IF(G57="SINAPI",VLOOKUP($F57,DADOS_SINAPI,4,0),IF(G57="SETOP",VLOOKUP($F57,DADOS_SETOP,4,0),IF(G57="CPU",VLOOKUP($F57,DADOS_COMPOSICAO,13,0),IF(G57="SICRO",VLOOKUP($F57,DADOS_SICRO,4,0),IF(G57="SUDECAP",VLOOKUP(F57,DADOS_SUDECAP,4,0),IF(G57="COTAÇÃO",VLOOKUP(F57,DADOS_COTACAO,12,0),"")))))),2) -> 5809.27 | K57: BDI 1 | L57: =TRUNC(J57*(1+$N$17),2) -> 7349.88 | M57: =IFERROR(TRUNC(I57*J57,2),"") -> 23237.08 | N57: =IFERROR(TRUNC(L57*I57,2),"") -> 29399.52
A58: 2000
A59: 2000 | E59: Quantidade de Meses | F59: =F55 -> 4 | G59: meses
A60: 2000 | E60: Total | F60: =F59 -> 4 | G60: meses
A61: 2000
A62: 1000 | D62: 4 | E62: DEMOLIÇÕES E REMOÇÕES | M62: =SUMIF(A:A,D62,M:M) -> 9335.67 | N62: =SUMIF(A:A,D62,N:N) -> 11806.86
A63: =IFERROR(LEFT(D63,SEARCH(".",D63)-1),"") -> 4 | B63: =IFERROR(LEFT(RIGHT(D63,LEN(D63)-SEARCH(".",D63)),SEARCH(".",RIGHT(D63,LEN(D63)-SEARCH(".",D63)))-1),"") ->  | C63: =IFERROR(IF(LEN(D63)-LEN(SUBSTITUTE(D63,".",""))<>3,"",MID(D63,SEARCH(".",D63,SEARCH(".",D63)+1)+1,LEN(D63)-SEARCH(".",D63,SEARCH(".",D63)+1)-(LEN(D63)-(SEARCH(".",D63,SEARCH(".",D63,SEARCH(".",D63)+1)+1)-1)))),"") ->  | D63: 4.1 | E63: =IF($G63="SINAPI",VLOOKUP($F63,DADOS_SINAPI,2,0),IF(G63="SETOP",VLOOKUP($F63,DADOS_SETOP,2,0),IF(G63="CPU",VLOOKUP($F63,DADOS_COMPOSICAO,2,0),IF(G63="SICRO",VLOOKUP($F63,DADOS_SICRO,2,0),IF(G63="SUDECAP",VLOOKUP(F63,DADOS_SUDECAP,2,0),IF(G63="COTAÇÃO",VLOOKUP($F63,DADOS_COTACAO,2,0),"")))))) -> REMOÇÃO DE TELHAS DE FIBROCIMENTO, METÁLICA E CERÂMICA, DE FORMA MECANIZADA, COM USO DE GUINDASTE, SEM REAPROVEITAMENTO. AF_12/2017 | F63: 97649 | G63: SINAPI | H63: =IF(G63="SINAPI",VLOOKUP($F63,DADOS_SINAPI,3,0),IF(G63="SETOP",VLOOKUP($F63,DADOS_SETOP,3,0),IF(G63="CPU",VLOOKUP($F63,DADOS_COMPOSICAO,10,0),IF(G63="SICRO",VLOOKUP($F63,DADOS_SICRO,3,0),IF(G63="SUDECAP",VLOOKUP(F63,DADOS_SUDECAP,3,0),IF(G63="COTAÇÃO",VLOOKUP($F63,DADOS_COTACAO,9,0),"")))))) -> M2 | I63: =TRUNC(F68,2) -> 380.44 | J63: =TRUNC(IF(G63="SINAPI",VLOOKUP($F63,DADOS_SINAPI,4,0),IF(G63="SETOP",VLOOKUP($F63,DADOS_SETOP,4,0),IF(G63="CPU",VLOOKUP($F63,DADOS_COMPOSICAO,13,0),IF(G63="SICRO",VLOOKUP($F63,DADOS_SICRO,4,0),IF(G63="SUDECAP",VLOOKUP(F63,DADOS_SUDECAP,4,0),IF(G63="COTAÇÃO",VLOOKUP(F63,DADOS_COTACAO,12,0),"")))))),2) -> 3.7 | K63: BDI 1 | L63: =TRUNC(J63*(1+$N$17),2) -> 4.68 | M63: =IFERROR(TRUNC(I63*J63,2),"") -> 1407.62 | N63: =IFERROR(TRUNC(L63*I63,2),"") -> 1780.45
A64: 2000
A65: 2000 | E65: Administração e Salas | F65: =ROUNDUP(18.65*10.965,2) -> 204.5 | G65: m² | H65: (Considerando o beiral)
A66: 2000 | E66: Refeitório | F66: =ROUNDUP(11.505*8.73,2) -> 100.44 | G66: m² | H66: (Considerando o beiral)
A67: 2000 | E67: Sala de Aula / Cozinha | F67: =ROUNDUP(5.15*14.66,2) -> 75.5 | G67: m² | H67: (Considerando o beiral)
A68: 2000 | E68: Total | F68: =SUM(F65:F67) -> 380.44 | G68: m²
A69: 2000
A70: =IFERROR(LEFT(D70,SEARCH(".",D70)-1),"") -> 4 | B70: =IFERROR(LEFT(RIGHT(D70,LEN(D70)-SEARCH(".",D70)),SEARCH(".",RIGHT(D70,LEN(D70)-SEARCH(".",D70)))-1),"") ->  | C70: =IFERROR(IF(LEN(D70)-LEN(SUBSTITUTE(D70,".",""))<>3,"",MID(D70,SEARCH(".",D70,SEARCH(".",D70)+1)+1,LEN(D70)-SEARCH(".",D70,SEARCH(".",D70)+1)-(LEN(D70)-(SEARCH(".",D70,SEARCH(".",D70,SEARCH(".",D70)+1)+1)-1)))),"") ->  | D70: 4.2 | E70: =IF($G70="SINAPI",VLOOKUP($F70,DADOS_SINAPI,2,0),IF(G70="SETOP",VLOOKUP($F70,DADOS_SETOP,2,0),IF(G70="CPU",VLOOKUP($F70,DADOS_COMPOSICAO,2,0),IF(G70="SICRO",VLOOKUP($F70,DADOS_SICRO,2,0),IF(G70="SUDECAP",VLOOKUP(F70,DADOS_SUDECAP,2,0),IF(G70="COTAÇÃO",VLOOKUP($F70,DADOS_COTACAO,2,0),"")))))) -> REMOÇÃO MANUAL DE RUFO METÁLICO, COM REAPROVEITAMENTO, INCLUSIVE AFASTAMENTO E EMPILHAMENTO, EXCLUSIVE TRANSPORTE E RETIRADA DO MATERIAL REMOVIDO NÃO REAPROVEITÁVEL | F70: ED-48506 | G70: SETOP | H70: =IF(G70="SINAPI",VLOOKUP($F70,DADOS_SINAPI,3,0),IF(G70="SETOP",VLOOKUP($F70,DADOS_SETOP,3,0),IF(G70="CPU",VLOOKUP($F70,DADOS_COMPOSICAO,10,0),IF(G70="SICRO",VLOOKUP($F70,DADOS_SICRO,3,0),IF(G70="SUDECAP",VLOOKUP(F70,DADOS_SUDECAP,3,0),IF(G70="COTAÇÃO",VLOOKUP($F70,DADOS_COTACAO,9,0),"")))))) -> m | I70: =TRUNC(F74,2) -> 51.11 | J70: =TRUNC(IF(G70="SINAPI",VLOOKUP($F70,DADOS_SINAPI,4,0),IF(G70="SETOP",VLOOKUP($F70,DADOS_SETOP,4,0),IF(G70="CPU",VLOOKUP($F70,DADOS_COMPOSICAO,13,0),IF(G70="SICRO",VLOOKUP($F70,DADOS_SICRO,4,0),IF(G70="SUDECAP",VLOOKUP(F70,DADOS_SUDECAP,4,0),IF(G70="COTAÇÃO",VLOOKUP(F70,DADOS_COTACAO,12,0),"")))))),2) -> 6.05 | K70: BDI 1 | L70: =TRUNC(J70*(1+$N$17),2) -> 7.65 | M70: =IFERROR(TRUNC(I70*J70,2),"") -> 309.21 | N70: =IFERROR(TRUNC(L70*I70,2),"") -> 390.99
A71: 2000
A72: 2000 | E72: Administração e Salas | F72: =10.15+17.95 -> 28.1 | G72: m | H72: (Rufo da cobertura metálica externa)
A73: 2000 | E73: Refeitório | F73: =11.505*2 -> 23.01 | G73: m
A74: 2000 | E74: Total | F74: =SUM(F72:F73) -> 51.11 | G74: m
A75: 2000
A76: =IFERROR(LEFT(D76,SEARCH(".",D76)-1),"") -> 4 | B76: =IFERROR(LEFT(RIGHT(D76,LEN(D76)-SEARCH(".",D76)),SEARCH(".",RIGHT(D76,LEN(D76)-SEARCH(".",D76)))-1),"") ->  | C76: =IFERROR(IF(LEN(D76)-LEN(SUBSTITUTE(D76,".",""))<>3,"",MID(D76,SEARCH(".",D76,SEARCH(".",D76)+1)+1,LEN(D76)-SEARCH(".",D76,SEARCH(".",D76)+1)-(LEN(D76)-(SEARCH(".",D76,SEARCH(".",D76,SEARCH(".",D76)+1)+1)-1)))),"") ->  | D76: 4.3 | E76: =IF($G76="SINAPI",VLOOKUP($F76,DADOS_SINAPI,2,0),IF(G76="SETOP",VLOOKUP($F76,DADOS_SETOP,2,0),IF(G76="CPU",VLOOKUP($F76,DADOS_COMPOSICAO,2,0),IF(G76="SICRO",VLOOKUP($F76,DADOS_SICRO,2,0),IF(G76="SUDECAP",VLOOKUP(F76,DADOS_SUDECAP,2,0),IF(G76="COTAÇÃO",VLOOKUP($F76,DADOS_COTACAO,2,0),"")))))) -> REMOÇÃO DE CALHA EM CHAPA GALVANIZADA OU EM PVC, COM REAPROVEITAMENTO, INCLUSIVE AFASTAMENTO E EMPILHAMENTO, EXCLUSIVE TRANSPORTE E RETIRADA DO MATERIAL REMOVIDO NÃO REAPROVEITÁVEL | F76: ED-48438 | G76: SETOP | H76: =IF(G76="SINAPI",VLOOKUP($F76,DADOS_SINAPI,3,0),IF(G76="SETOP",VLOOKUP($F76,DADOS_SETOP,3,0),IF(G76="CPU",VLOOKUP($F76,DADOS_COMPOSICAO,10,0),IF(G76="SICRO",VLOOKUP($F76,DADOS_SICRO,3,0),IF(G76="SUDECAP",VLOOKUP(F76,DADOS_SUDECAP,3,0),IF(G76="COTAÇÃO",VLOOKUP($F76,DADOS_COTACAO,9,0),"")))))) -> m | I76: =TRUNC(F80,2) -> 23.39 | J76: =TRUNC(IF(G76="SINAPI",VLOOKUP($F76,DADOS_SINAPI,4,0),IF(G76="SETOP",VLOOKUP($F76,DADOS_SETOP,4,0),IF(G76="CPU",VLOOKUP($F76,DADOS_COMPOSICAO,13,0),IF(G76="SICRO",VLOOKUP($F76,DADOS_SICRO,4,0),IF(G76="SUDECAP",VLOOKUP(F76,DADOS_SUDECAP,4,0),IF(G76="COTAÇÃO",VLOOKUP(F76,DADOS_COTACAO,12,0),"")))))),2) -> 4.11 | K76: BDI 1 | L76: =TRUNC(J76*(1+$N$17),2) -> 5.19 | M76: =IFERROR(TRUNC(I76*J76,2),"") -> 96.13 | N76: =IFERROR(TRUNC(L76*I76,2),"") -> 121.39
A77: 2000
A78: 2000 | E78: Refeitório | F78: 8.73 | G78: m
A79: 2000 | E79: Sala de Aula / Cozinha | F79: 14.66 | G79: m
A80: 2000 | E80: Total | F80: =SUM(F78:F79) -> 23.39 | G80: m
A81: 2000
A82: =IFERROR(LEFT(D82,SEARCH(".",D82)-1),"") -> 4 | B82: =IFERROR(LEFT(RIGHT(D82,LEN(D82)-SEARCH(".",D82)),SEARCH(".",RIGHT(D82,LEN(D82)-SEARCH(".",D82)))-1),"") ->  | C82: =IFERROR(IF(LEN(D82)-LEN(SUBSTITUTE(D82,".",""))<>3,"",MID(D82,SEARCH(".",D82,SEARCH(".",D82)+1)+1,LEN(D82)-SEARCH(".",D82,SEARCH(".",D82)+1)-(LEN(D82)-(SEARCH(".",D82,SEARCH(".",D82,SEARCH(".",D82)+1)+1)-1)))),"") ->  | D82: 4.4 | E82: =IF($G82="SINAPI",VLOOKUP($F82,DADOS_SINAPI,2,0),IF(G82="SETOP",VLOOKUP($F82,DADOS_SETOP,2,0),IF(G82="CPU",VLOOKUP($F82,DADOS_COMPOSICAO,2,0),IF(G82="SICRO",VLOOKUP($F82,DADOS_SICRO,2,0),IF(G82="SUDECAP",VLOOKUP(F82,DADOS_SUDECAP,2,0),IF(G82="COTAÇÃO",VLOOKUP($F82,DADOS_COTACAO,2,0),"")))))) -> REMOÇÃO DE TRAMA DE MADEIRA PARA COBERTURA, DE FORMA MANUAL, SEM REAPROVEITAMENTO. AF_12/2017 | F82: 97650 | G82: SINAPI | H82: =IF(G82="SINAPI",VLOOKUP($F82,DADOS_SINAPI,3,0),IF(G82="SETOP",VLOOKUP($F82,DADOS_SETOP,3,0),IF(G82="CPU",VLOOKUP($F82,DADOS_COMPOSICAO,10,0),IF(G82="SICRO",VLOOKUP($F82,DADOS_SICRO,3,0),IF(G82="SUDECAP",VLOOKUP(F82,DADOS_SUDECAP,3,0),IF(G82="COTAÇÃO",VLOOKUP($F82,DADOS_COTACAO,9,0),"")))))) -> M2 | I82: =TRUNC(F87,2) -> 380.44 | J82: =TRUNC(IF(G82="SINAPI",VLOOKUP($F82,DADOS_SINAPI,4,0),IF(G82="SETOP",VLOOKUP($F82,DADOS_SETOP,4,0),IF(G82="CPU",VLOOKUP($F82,DADOS_COMPOSICAO,13,0),IF(G82="SICRO",VLOOKUP($F82,DADOS_SICRO,4,0),IF(G82="SUDECAP",VLOOKUP(F82,DADOS_SUDECAP,4,0),IF(G82="COTAÇÃO",VLOOKUP(F82,DADOS_COTACAO,12,0),"")))))),2) -> 6.23 | K82: BDI 1 | L82: =TRUNC(J82*(1+$N$17),2) -> 7.88 | M82: =IFERROR(TRUNC(I82*J82,2),"") -> 2370.14 | N82: =IFERROR(TRUNC(L82*I82,2),"") -> 2997.86
A83: 2000
A84: 2000 | E84: Administração e Salas | F84: =F65 -> 204.5 | G84: m²
A85: 2000 | E85: Refeitório | F85: =F66 -> 100.44 | G85: m²
A86: 2000 | E86: Sala de Aula / Cozinha | F86: =F67 -> 75.5 | G86: m²
A87: 2000 | E87: Total | F87: =SUM(F84:F86) -> 380.44 | G87: m²
A88: 2000
A89: =IFERROR(LEFT(D89,SEARCH(".",D89)-1),"") -> 4 | B89: =IFERROR(LEFT(RIGHT(D89,LEN(D89)-SEARCH(".",D89)),SEARCH(".",RIGHT(D89,LEN(D89)-SEARCH(".",D89)))-1),"") ->  | C89: =IFERROR(IF(LEN(D89)-LEN(SUBSTITUTE(D89,".",""))<>3,"",MID(D89,SEARCH(".",D89,SEARCH(".",D89)+1)+1,LEN(D89)-SEARCH(".",D89,SEARCH(".",D89)+1)-(LEN(D89)-(SEARCH(".",D89,SEARCH(".",D89,SEARCH(".",D89)+1)+1)-1)))),"") ->  | D89: 4.5 | E89: =IF($G89="SINAPI",VLOOKUP($F89,DADOS_SINAPI,2,0),IF(G89="SETOP",VLOOKUP($F89,DADOS_SETOP,2,0),IF(G89="CPU",VLOOKUP($F89,DADOS_COMPOSICAO,2,0),IF(G89="SICRO",VLOOKUP($F89,DADOS_SICRO,2,0),IF(G89="SUDECAP",VLOOKUP(F89,DADOS_SUDECAP,2,0),IF(G89="COTAÇÃO",VLOOKUP($F89,DADOS_COTACAO,2,0),"")))))) -> REMOÇÃO DE TESOURAS DE MADEIRA, COM VÃO MAIOR OU IGUAL A 8M, DE FORMA MANUAL, SEM REAPROVEITAMENTO. AF_12/2017 | F89: 97652 | G89: SINAPI | H89: =IF(G89="SINAPI",VLOOKUP($F89,DADOS_SINAPI,3,0),IF(G89="SETOP",VLOOKUP($F89,DADOS_SETOP,3,0),IF(G89="CPU",VLOOKUP($F89,DADOS_COMPOSICAO,10,0),IF(G89="SICRO",VLOOKUP($F89,DADOS_SICRO,3,0),IF(G89="SUDECAP",VLOOKUP(F89,DADOS_SUDECAP,3,0),IF(G89="COTAÇÃO",VLOOKUP($F89,DADOS_COTACAO,9,0),"")))))) -> UN | I89: =F93 -> 10 | J89: =TRUNC(IF(G89="SINAPI",VLOOKUP($F89,DADOS_SINAPI,4,0),IF(G89="SETOP",VLOOKUP($F89,DADOS_SETOP,4,0),IF(G89="CPU",VLOOKUP($F89,DADOS_COMPOSICAO,13,0),IF(G89="SICRO",VLOOKUP($F89,DADOS_SICRO,4,0),IF(G89="SUDECAP",VLOOKUP(F89,DADOS_SUDECAP,4,0),IF(G89="COTAÇÃO",VLOOKUP(F89,DADOS_COTACAO,12,0),"")))))),2) -> 156.39 | K89: BDI 1 | L89: =TRUNC(J89*(1+$N$17),2) -> 197.86 | M89: =IFERROR(TRUNC(I89*J89,2),"") -> 1563.9 | N89: =IFERROR(TRUNC(L89*I89,2),"") -> 1978.6
A90: 2000
A91: 2000 | E91: Administração e Salas | F91: 7 | G91: un
A92: 2000 | E92: Refeitório | F92: 3 | G92: un
A93: 2000 | E93: Total | F93: =SUM(F91:F92) -> 10 | G93: un
A94: 2000
A95: =IFERROR(LEFT(D95,SEARCH(".",D95)-1),"") -> 4 | B95: =IFERROR(LEFT(RIGHT(D95,LEN(D95)-SEARCH(".",D95)),SEARCH(".",RIGHT(D95,LEN(D95)-SEARCH(".",D95)))-1),"") ->  | C95: =IFERROR(IF(LEN(D95)-LEN(SUBSTITUTE(D95,".",""))<>3,"",MID(D95,SEARCH(".",D95,SEARCH(".",D95)+1)+1,LEN(D95)-SEARCH(".",D95,SEARCH(".",D95)+1)-(LEN(D95)-(SEARCH(".",D95,SEARCH(".",D95,SEARCH(".",D95)+1)+1)-1)))),"") ->  | D95: 4.6 | E95: =IF($G95="SINAPI",VLOOKUP($F95,DADOS_SINAPI,2,0),IF(G95="SETOP",VLOOKUP($F95,DADOS_SETOP,2,0),IF(G95="CPU",VLOOKUP($F95,DADOS_COMPOSICAO,2,0),IF(G95="SICRO",VLOOKUP($F95,DADOS_SICRO,2,0),IF(G95="SUDECAP",VLOOKUP(F95,DADOS_SUDECAP,2,0),IF(G95="COTAÇÃO",VLOOKUP($F95,DADOS_COTACAO,2,0),"")))))) -> REMOÇÃO DE TESOURAS DE MADEIRA, COM VÃO MENOR QUE 8M, DE FORMA MANUAL, SEM REAPROVEITAMENTO. AF_12/2017 | F95: 97651 | G95: SINAPI | H95: =IF(G95="SINAPI",VLOOKUP($F95,DADOS_SINAPI,3,0),IF(G95="SETOP",VLOOKUP($F95,DADOS_SETOP,3,0),IF(G95="CPU",VLOOKUP($F95,DADOS_COMPOSICAO,10,0),IF(G95="SICRO",VLOOKUP($F95,DADOS_SICRO,3,0),IF(G95="SUDECAP",VLOOKUP(F95,DADOS_SUDECAP,3,0),IF(G95="COTAÇÃO",VLOOKUP($F95,DADOS_COTACAO,9,0),"")))))) -> UN | I95: =F99 -> 9 | J95: =TRUNC(IF(G95="SINAPI",VLOOKUP($F95,DADOS_SINAPI,4,0),IF(G95="SETOP",VLOOKUP($F95,DADOS_SETOP,4,0),IF(G95="CPU",VLOOKUP($F95,DADOS_COMPOSICAO,13,0),IF(G95="SICRO",VLOOKUP($F95,DADOS_SICRO,4,0),IF(G95="SUDECAP",VLOOKUP(F95,DADOS_SUDECAP,4,0),IF(G95="COTAÇÃO",VLOOKUP(F95,DADOS_COTACAO,12,0),"")))))),2) -> 68.99 | K95: BDI 1 | L95: =TRUNC(J95*(1+$N$17),2) -> 87.28 | M95: =IFERROR(TRUNC(I95*J95,2),"") -> 620.91 | N95: =IFERROR(TRUNC(L95*I95,2),"") -> 785.52
A96: 2000
A97: 2000 | E97: Administração e Salas | F97: 8 | G97: un
A98: 2000 | E98: Refeitório | F98: 1 | G98: un
A99: 2000 | E99: Total | F99: =SUM(F97:F98) -> 9 | G99: un
A100: 2000
A101: =IFERROR(LEFT(D101,SEARCH(".",D101)-1),"") -> 4 | B101: =IFERROR(LEFT(RIGHT(D101,LEN(D101)-SEARCH(".",D101)),SEARCH(".",RIGHT(D101,LEN(D101)-SEARCH(".",D101)))-1),"") ->  | C101: =IFERROR(IF(LEN(D101)-LEN(SUBSTITUTE(D101,".",""))<>3,"",MID(D101,SEARCH(".",D101,SEARCH(".",D101)+1)+1,LEN(D101)-SEARCH(".",D101,SEARCH(".",D101)+1)-(LEN(D101)-(SEARCH(".",D101,SEARCH(".",D101,SEARCH(".",D101)+1)+1)-1)))),"") ->  | D101: 4.7 | E101: =IF($G101="SINAPI",VLOOKUP($F101,DADOS_SINAPI,2,0),IF(G101="SETOP",VLOOKUP($F101,DADOS_SETOP,2,0),IF(G101="CPU",VLOOKUP($F101,DADOS_COMPOSICAO,2,0),IF(G101="SICRO",VLOOKUP($F101,DADOS_SICRO,2,0),IF(G101="SUDECAP",VLOOKUP(F101,DADOS_SUDECAP,2,0),IF(G101="COTAÇÃO",VLOOKUP($F101,DADOS_COTACAO,2,0),"")))))) -> DEMOLIÇÃO DE ALVENARIA DE TIJOLO MACIÇO, DE FORMA MANUAL, SEM REAPROVEITAMENTO. AF_12/2017 | F101: 97624 | G101: SINAPI | H101: =IF(G101="SINAPI",VLOOKUP($F101,DADOS_SINAPI,3,0),IF(G101="SETOP",VLOOKUP($F101,DADOS_SETOP,3,0),IF(G101="CPU",VLOOKUP($F101,DADOS_COMPOSICAO,10,0),IF(G101="SICRO",VLOOKUP($F101,DADOS_SICRO,3,0),IF(G101="SUDECAP",VLOOKUP(F101,DADOS_SUDECAP,3,0),IF(G101="COTAÇÃO",VLOOKUP($F101,DADOS_COTACAO,9,0),"")))))) -> M3 | I101: =TRUNC(F104,2) -> 0.97 | J101: =TRUNC(IF(G101="SINAPI",VLOOKUP($F101,DADOS_SINAPI,4,0),IF(G101="SETOP",VLOOKUP($F101,DADOS_SETOP,4,0),IF(G101="CPU",VLOOKUP($F101,DADOS_COMPOSICAO,13,0),IF(G101="SICRO",VLOOKUP($F101,DADOS_SICRO,4,0),IF(G101="SUDECAP",VLOOKUP(F101,DADOS_SUDECAP,4,0),IF(G101="COTAÇÃO",VLOOKUP(F101,DADOS_COTACAO,12,0),"")))))),2) -> 87.99 | K101: BDI 1 | L101: =TRUNC(J101*(1+$N$17),2) -> 111.32 | M101: =IFERROR(TRUNC(I101*J101,2),"") -> 85.35 | N101: =IFERROR(TRUNC(L101*I101,2),"") -> 107.98
A102: 2000
A103: 2000 | E103: Volume | F103: =ROUNDUP(2*(2*0.3)*2*0.15+4.15*3.26*0.3*0.15,2) -> 0.97 | G103: m³ | H103: (área da limpeza)
A104: 2000 | E104: Total | F104: =F103 -> 0.97 | G104: m³
A105: 2000
A106: =IFERROR(LEFT(D106,SEARCH(".",D106)-1),"") -> 4 | B106: =IFERROR(LEFT(RIGHT(D106,LEN(D106)-SEARCH(".",D106)),SEARCH(".",RIGHT(D106,LEN(D106)-SEARCH(".",D106)))-1),"") ->  | C106: =IFERROR(IF(LEN(D106)-LEN(SUBSTITUTE(D106,".",""))<>3,"",MID(D106,SEARCH(".",D106,SEARCH(".",D106)+1)+1,LEN(D106)-SEARCH(".",D106,SEARCH(".",D106)+1)-(LEN(D106)-(SEARCH(".",D106,SEARCH(".",D106,SEARCH(".",D106)+1)+1)-1)))),"") ->  | D106: 4.8 | E106: =IF($G106="SINAPI",VLOOKUP($F106,DADOS_SINAPI,2,0),IF(G106="SETOP",VLOOKUP($F106,DADOS_SETOP,2,0),IF(G106="CPU",VLOOKUP($F106,DADOS_COMPOSICAO,2,0),IF(G106="SICRO",VLOOKUP($F106,DADOS_SICRO,2,0),IF(G106="SUDECAP",VLOOKUP(F106,DADOS_SUDECAP,2,0),IF(G106="COTAÇÃO",VLOOKUP($F106,DADOS_COTACAO,2,0),"")))))) -> CARGA MANUAL DE MATERIAL DE QUALQUER NATUREZA SOBRE CAMINHÃO, EXCLUSIVE TRANSPORTE | F106: ED-51131 | G106: SETOP | H106: =IF(G106="SINAPI",VLOOKUP($F106,DADOS_SINAPI,3,0),IF(G106="SETOP",VLOOKUP($F106,DADOS_SETOP,3,0),IF(G106="CPU",VLOOKUP($F106,DADOS_COMPOSICAO,10,0),IF(G106="SICRO",VLOOKUP($F106,DADOS_SICRO,3,0),IF(G106="SUDECAP",VLOOKUP(F106,DADOS_SUDECAP,3,0),IF(G106="COTAÇÃO",VLOOKUP($F106,DADOS_COTACAO,9,0),"")))))) -> m3 | I106: =TRUNC(F133,2) -> 46.67 | J106: =TRUNC(IF(G106="SINAPI",VLOOKUP($F106,DADOS_SINAPI,4,0),IF(G106="SETOP",VLOOKUP($F106,DADOS_SETOP,4,0),IF(G106="CPU",VLOOKUP($F106,DADOS_COMPOSICAO,13,0),IF(G106="SICRO",VLOOKUP($F106,DADOS_SICRO,4,0),IF(G106="SUDECAP",VLOOKUP(F106,DADOS_SUDECAP,4,0),IF(G106="COTAÇÃO",VLOOKUP(F106,DADOS_COTACAO,12,0),"")))))),2) -> 35.54 | K106: BDI 1 | L106: =TRUNC(J106*(1+$N$17),2) -> 44.96 | M106: =IFERROR(TRUNC(I106*J106,2),"") -> 1658.65 | N106: =IFERROR(TRUNC(L106*I106,2),"") -> 2098.28
A107: 2000
A108: 2000 | E108: Espessura telha | F108: 0.06 | G108: m
A109: 2000 | E109: Espessura média trama | F109: 0.035 | G109: m
A110: 2000 | E110: Espessura treliças | F110: 0.08 | G110: m
A111: 2000 | E111: Fator de redução (vãos da trama; vãos internos treliça) | F111: 0.5 | G111: -
A112: 2000
A113: 2000 | E113: Administração e Salas | F113: =F84 -> 204.5 | G113: m²
A114: 2000 | E114: Inclinação | F114: 0.3 | G114: (30%)
A115: 2000 | E115: Altura treliça | F115: =ROUNDUP(10.95/2*F114,2) -> 1.65 | G115: m
A116: 2000 | E116: Rufo | F116: =ROUNDUP(0.5*0.01*F72,2) -> 0.15 | G116: m³
A117: 2000 | E117: Total | F117: =ROUND(F113/COS((ATAN(F114)))*(F108+F109*F111)+((11.99+0.4)*F115)/2*F110*F111*F91,2)+F116 -> 19.56 | G117: m³
A118: 2000
A119: 2000 | E119: Refeitório | F119: =F66 -> 100.44 | G119: m²
A120: 2000 | E120: Inclinação | F120: 0.3 | G120: (30%)
A121: 2000 | E121: Altura treliça | F121: =ROUNDUP(8/2*F120,2) -> 1.2 | G121: m
A122: 2000 | E122: Rufo | F122: =ROUNDUP(0.5*0.01*F73,2) -> 0.12 | G122: m³
A123: 2000 | E123: Calha | F123: =ROUNDUP(0.5*0.05*F78,2) -> 0.22 | G123: m³
A124: 2000 | E124: Total | F124: =ROUND(F119/COS((ATAN(F120)))*(F108+F109*F111)+((6.85+0.4)*F121)/2*F111*F110*F97,2)+F122+F123 -> 9.86 | G124: m³
A125: 2000
A126: 2000 | E126: Sala de Aula / Cozinha | F126: =F67 -> 75.5 | G126: m²
A127: 2000 | E127: Inclinação | F127: 0.3 | G127: (10%)
A128: 2000 | E128: Calha | F128: =ROUNDUP(0.5*0.05*F79,2) -> 0.37 | G128: m³
A129: 2000 | E129: Total | F129: =ROUNDUP(F126/COS(ATAN(F127))*(F108+F109*F111),2)+F128 -> 6.48 | G129: m³
A130: 2000
A131: 2000 | E131: Fator de Empilhamento | F131: 1.3
A132: 2000
A133: 2000 | E133: Total | F133: =ROUNDUP((F129+F124+F117)*F131,2) -> 46.67 | G133: m³
A134: 2000
A135: =IFERROR(LEFT(D135,SEARCH(".",D135)-1),"") -> 4 | B135: =IFERROR(LEFT(RIGHT(D135,LEN(D135)-SEARCH(".",D135)),SEARCH(".",RIGHT(D135,LEN(D135)-SEARCH(".",D135)))-1),"") ->  | C135: =IFERROR(IF(LEN(D135)-LEN(SUBSTITUTE(D135,".",""))<>3,"",MID(D135,SEARCH(".",D135,SEARCH(".",D135)+1)+1,LEN(D135)-SEARCH(".",D135,SEARCH(".",D135)+1)-(LEN(D135)-(SEARCH(".",D135,SEARCH(".",D135,SEARCH(".",D135)+1)+1)-1)))),"") ->  | D135: 4.9 | E135: =IF($G135="SINAPI",VLOOKUP($F135,DADOS_SINAPI,2,0),IF(G135="SETOP",VLOOKUP($F135,DADOS_SETOP,2,0),IF(G135="CPU",VLOOKUP($F135,DADOS_COMPOSICAO,2,0),IF(G135="SICRO",VLOOKUP($F135,DADOS_SICRO,2,0),IF(G135="SUDECAP",VLOOKUP(F135,DADOS_SUDECAP,2,0),IF(G135="COTAÇÃO",VLOOKUP($F135,DADOS_COTACAO,2,0),"")))))) -> TRANSPORTE COM CAMINHÃO BASCULANTE DE 6 M³, EM VIA URBANA PAVIMENTADA, DMT ATÉ 30 KM (UNIDADE: M3XKM). AF_07/2020 | F135: 97914 | G135: SINAPI | H135: =IF(G135="SINAPI",VLOOKUP($F135,DADOS_SINAPI,3,0),IF(G135="SETOP",VLOOKUP($F135,DADOS_SETOP,3,0),IF(G135="CPU",VLOOKUP($F135,DADOS_COMPOSICAO,10,0),IF(G135="SICRO",VLOOKUP($F135,DADOS_SICRO,3,0),IF(G135="SUDECAP",VLOOKUP(F135,DADOS_SUDECAP,3,0),IF(G135="COTAÇÃO",VLOOKUP($F135,DADOS_COTACAO,9,0),"")))))) -> M3XKM | I135: =TRUNC(F139,2) -> 345.36 | J135: =TRUNC(IF(G135="SINAPI",VLOOKUP($F135,DADOS_SINAPI,4,0),IF(G135="SETOP",VLOOKUP($F135,DADOS_SETOP,4,0),IF(G135="CPU",VLOOKUP($F135,DADOS_COMPOSICAO,13,0),IF(G135="SICRO",VLOOKUP($F135,DADOS_SICRO,4,0),IF(G135="SUDECAP",VLOOKUP(F135,DADOS_SUDECAP,4,0),IF(G135="COTAÇÃO",VLOOKUP(F135,DADOS_COTACAO,12,0),"")))))),2) -> 2.7 | K135: BDI 1 | L135: =TRUNC(J135*(1+$N$17),2) -> 3.41 | M135: =IFERROR(TRUNC(I135*J135,2),"") -> 932.47 | N135: =IFERROR(TRUNC(L135*I135,2),"") -> 1177.67
A136: 2000
A137: 2000 | E137: Volume | F137: =F133 -> 46.67 | G137: m³
A138: 2000 | E138: Distância | F138: 7.4 | G138: km
A139: 2000 | E139: Total | F139: =ROUNDUP(F137*F138,2) -> 345.36 | G139: m³ x km
A140: 2000
A141: =IFERROR(LEFT(D141,SEARCH(".",D141)-1),"") -> 4 | B141: =IFERROR(LEFT(RIGHT(D141,LEN(D141)-SEARCH(".",D141)),SEARCH(".",RIGHT(D141,LEN(D141)-SEARCH(".",D141)))-1),"") ->  | C141: =IFERROR(IF(LEN(D141)-LEN(SUBSTITUTE(D141,".",""))<>3,"",MID(D141,SEARCH(".",D141,SEARCH(".",D141)+1)+1,LEN(D141)-SEARCH(".",D141,SEARCH(".",D141)+1)-(LEN(D141)-(SEARCH(".",D141,SEARCH(".",D141,SEARCH(".",D141)+1)+1)-1)))),"") ->  | D141: 4.10 | E141: =IF($G141="SINAPI",VLOOKUP($F141,DADOS_SINAPI,2,0),IF(G141="SETOP",VLOOKUP($F141,DADOS_SETOP,2,0),IF(G141="CPU",VLOOKUP($F141,DADOS_COMPOSICAO,2,0),IF(G141="SICRO",VLOOKUP($F141,DADOS_SICRO,2,0),IF(G141="SUDECAP",VLOOKUP(F141,DADOS_SUDECAP,2,0),IF(G141="COTAÇÃO",VLOOKUP($F141,DADOS_COTACAO,2,0),"")))))) -> ESPALHAMENTO DE MATERIAL COM TRATOR DE ESTEIRAS. AF_11/2019 | F141: 100574 | G141: SINAPI | H141: =IF(G141="SINAPI",VLOOKUP($F141,DADOS_SINAPI,3,0),IF(G141="SETOP",VLOOKUP($F141,DADOS_SETOP,3,0),IF(G141="CPU",VLOOKUP($F141,DADOS_COMPOSICAO,10,0),IF(G141="SICRO",VLOOKUP($F141,DADOS_SICRO,3,0),IF(G141="SUDECAP",VLOOKUP(F141,DADOS_SUDECAP,3,0),IF(G141="COTAÇÃO",VLOOKUP($F141,DADOS_COTACAO,9,0),"")))))) -> M3 | I141: =TRUNC(F144,2) -> 46.67 | J141: =TRUNC(IF(G141="SINAPI",VLOOKUP($F141,DADOS_SINAPI,4,0),IF(G141="SETOP",VLOOKUP($F141,DADOS_SETOP,4,0),IF(G141="CPU",VLOOKUP($F141,DADOS_COMPOSICAO,13,0),IF(G141="SICRO",VLOOKUP($F141,DADOS_SICRO,4,0),IF(G141="SUDECAP",VLOOKUP(F141,DADOS_SUDECAP,4,0),IF(G141="COTAÇÃO",VLOOKUP(F141,DADOS_COTACAO,12,0),"")))))),2) -> 1.31 | K141: BDI 1 | L141: =TRUNC(J141*(1+$N$17),2) -> 1.65 | M141: =IFERROR(TRUNC(I141*J141,2),"") -> 61.13 | N141: =IFERROR(TRUNC(L141*I141,2),"") -> 77
A142: 2000
A143: 2000 | E143: Volume de material | F143: =F133 -> 46.67 | G143: m³
A144: 2000 | E144: Total | F144: =F143 -> 46.67 | G144: m³
A145: 2000
A146: =IFERROR(LEFT(D146,SEARCH(".",D146)-1),"") -> 4 | B146: =IFERROR(LEFT(RIGHT(D146,LEN(D146)-SEARCH(".",D146)),SEARCH(".",RIGHT(D146,LEN(D146)-SEARCH(".",D146)))-1),"") ->  | C146: =IFERROR(IF(LEN(D146)-LEN(SUBSTITUTE(D146,".",""))<>3,"",MID(D146,SEARCH(".",D146,SEARCH(".",D146)+1)+1,LEN(D146)-SEARCH(".",D146,SEARCH(".",D146)+1)-(LEN(D146)-(SEARCH(".",D146,SEARCH(".",D146,SEARCH(".",D146)+1)+1)-1)))),"") ->  | D146: 4.11 | E146: =IF($G146="SINAPI",VLOOKUP($F146,DADOS_SINAPI,2,0),IF(G146="SETOP",VLOOKUP($F146,DADOS_SETOP,2,0),IF(G146="CPU",VLOOKUP($F146,DADOS_COMPOSICAO,2,0),IF(G146="SICRO",VLOOKUP($F146,DADOS_SICRO,2,0),IF(G146="SUDECAP",VLOOKUP(F146,DADOS_SUDECAP,2,0),IF(G146="COTAÇÃO",VLOOKUP($F146,DADOS_COTACAO,2,0),"")))))) -> FORNECIMENTO DE ANDAIME METÁLICO TUBULAR TIPO TORRE (LOCAÇÃO), INCLUSIVE RODÍZIOS, EXCLUSIVE MONTAGEM E DESMONTAGEM | F146: ED-9076 | G146: SETOP | H146: =IF(G146="SINAPI",VLOOKUP($F146,DADOS_SINAPI,3,0),IF(G146="SETOP",VLOOKUP($F146,DADOS_SETOP,3,0),IF(G146="CPU",VLOOKUP($F146,DADOS_COMPOSICAO,10,0),IF(G146="SICRO",VLOOKUP($F146,DADOS_SICRO,3,0),IF(G146="SUDECAP",VLOOKUP(F146,DADOS_SUDECAP,3,0),IF(G146="COTAÇÃO",VLOOKUP($F146,DADOS_COTACAO,9,0),"")))))) -> mxmês | I146: =TRUNC(F150,2) -> 6 | J146: =TRUNC(IF(G146="SINAPI",VLOOKUP($F146,DADOS_SINAPI,4,0),IF(G146="SETOP",VLOOKUP($F146,DADOS_SETOP,4,0),IF(G146="CPU",VLOOKUP($F146,DADOS_COMPOSICAO,13,0),IF(G146="SICRO",VLOOKUP($F146,DADOS_SICRO,4,0),IF(G146="SUDECAP",VLOOKUP(F146,DADOS_SUDECAP,4,0),IF(G146="COTAÇÃO",VLOOKUP(F146,DADOS_COTACAO,12,0),"")))))),2) -> 20 | K146: BDI 1 | L146: =TRUNC(J146*(1+$N$17),2) -> 25.3 | M146: =IFERROR(TRUNC(I146*J146,2),"") -> 120 | N146: =IFERROR(TRUNC(L146*I146,2),"") -> 151.8
A147: 2000
A148: 2000 | E148: Altura do Andaime | F148: 6 | G148: m
A149: 2000 | E149: Meses | F149: 1 | G149: mês
A150: 2000 | E150: Total | F150: =F148*F149 -> 6 | G150: m x mês
A151: 2000
A152: =IFERROR(LEFT(D152,SEARCH(".",D152)-1),"") -> 4 | B152: =IFERROR(LEFT(RIGHT(D152,LEN(D152)-SEARCH(".",D152)),SEARCH(".",RIGHT(D152,LEN(D152)-SEARCH(".",D152)))-1),"") ->  | C152: =IFERROR(IF(LEN(D152)-LEN(SUBSTITUTE(D152,".",""))<>3,"",MID(D152,SEARCH(".",D152,SEARCH(".",D152)+1)+1,LEN(D152)-SEARCH(".",D152,SEARCH(".",D152)+1)-(LEN(D152)-(SEARCH(".",D152,SEARCH(".",D152,SEARCH(".",D152)+1)+1)-1)))),"") ->  | D152: 4.12 | E152: =IF($G152="SINAPI",VLOOKUP($F152,DADOS_SINAPI,2,0),IF(G152="SETOP",VLOOKUP($F152,DADOS_SETOP,2,0),IF(G152="CPU",VLOOKUP($F152,DADOS_COMPOSICAO,2,0),IF(G152="SICRO",VLOOKUP($F152,DADOS_SICRO,2,0),IF(G152="SUDECAP",VLOOKUP(F152,DADOS_SUDECAP,2,0),IF(G152="COTAÇÃO",VLOOKUP($F152,DADOS_COTACAO,2,0),"")))))) -> MONTAGEM E DESMONTAGEM DE ANDAIME TUBULAR TIPO TORRE (EXCLUSIVE ANDAIME E LIMPEZA). AF_11/2017 | F152: 97064 | G152: SINAPI | H152: =IF(G152="SINAPI",VLOOKUP($F152,DADOS_SINAPI,3,0),IF(G152="SETOP",VLOOKUP($F152,DADOS_SETOP,3,0),IF(G152="CPU",VLOOKUP($F152,DADOS_COMPOSICAO,10,0),IF(G152="SICRO",VLOOKUP($F152,DADOS_SICRO,3,0),IF(G152="SUDECAP",VLOOKUP(F152,DADOS_SUDECAP,3,0),IF(G152="COTAÇÃO",VLOOKUP($F152,DADOS_COTACAO,9,0),"")))))) -> M | I152: =TRUNC(F155,2) -> 6 | J152: =TRUNC(IF(G152="SINAPI",VLOOKUP($F152,DADOS_SINAPI,4,0),IF(G152="SETOP",VLOOKUP($F152,DADOS_SETOP,4,0),IF(G152="CPU",VLOOKUP($F152,DADOS_COMPOSICAO,13,0),IF(G152="SICRO",VLOOKUP($F152,DADOS_SICRO,4,0),IF(G152="SUDECAP",VLOOKUP(F152,DADOS_SUDECAP,4,0),IF(G152="COTAÇÃO",VLOOKUP(F152,DADOS_COTACAO,12,0),"")))))),2) -> 18.36 | K152: BDI 1 | L152: =TRUNC(J152*(1+$N$17),2) -> 23.22 | M152: =IFERROR(TRUNC(I152*J152,2),"") -> 110.16 | N152: =IFERROR(TRUNC(L152*I152,2),"") -> 139.32
A153: 2000
A154: 2000 | E154: Altura do Andaime | F154: =F148 -> 6 | G154: =G148 -> m
A155: 2000 | E155: Total | F155: =F154 -> 6 | G155: m
A156: 2000
A157: 1000 | D157: 5 | E157: SISTEMA DE COBERTURA | M157: =SUMIF(A:A,D157,M:M) -> 187878.25 | N157: =SUMIF(A:A,D157,N:N) -> 237662.75
D158: 5.1 | E158: BLOCOS | M158: =IFERROR(SUMIFS(M:M,A:A,LEFT(D158,SEARCH(".",D158)-1),B:B,RIGHT(D158,LEN(D158)-SEARCH(".",D158))),"") -> 3153.76 | N158: =IFERROR(SUMIFS(N:N,A:A,LEFT(D158,SEARCH(".",D158)-1),B:B,RIGHT(D158,LEN(D158)-SEARCH(".",D158))),"") -> 3989.76
A159: =IFERROR(LEFT(D159,SEARCH(".",D159)-1),"") -> 5 | B159: =IFERROR(LEFT(RIGHT(D159,LEN(D159)-SEARCH(".",D159)),SEARCH(".",RIGHT(D159,LEN(D159)-SEARCH(".",D159)))-1),"") -> 1 | C159: =IFERROR(IF(LEN(D159)-LEN(SUBSTITUTE(D159,".",""))<>3,"",MID(D159,SEARCH(".",D159,SEARCH(".",D159)+1)+1,LEN(D159)-SEARCH(".",D159,SEARCH(".",D159)+1)-(LEN(D159)-(SEARCH(".",D159,SEARCH(".",D159,SEARCH(".",D159)+1)+1)-1)))),"") ->  | D159: 5.1.1 | E159: =IF($G159="SINAPI",VLOOKUP($F159,DADOS_SINAPI,2,0),IF(G159="SETOP",VLOOKUP($F159,DADOS_SETOP,2,0),IF(G159="CPU",VLOOKUP($F159,DADOS_COMPOSICAO,2,0),IF(G159="SICRO",VLOOKUP($F159,DADOS_SICRO,2,0),IF(G159="SUDECAP",VLOOKUP(F159,DADOS_SUDECAP,2,0),IF(G159="COTAÇÃO",VLOOKUP($F159,DADOS_COTACAO,2,0),"")))))) -> ESCAVAÇÃO MECANIZADA PARA BLOCO DE COROAMENTO OU SAPATA COM RETROESCAVADEIRA (INCLUINDO ESCAVAÇÃO PARA COLOCAÇÃO DE FÔRMAS). AF_06/2017 | F159: 96521 | G159: SINAPI | H159: =IF(G159="SINAPI",VLOOKUP($F159,DADOS_SINAPI,3,0),IF(G159="SETOP",VLOOKUP($F159,DADOS_SETOP,3,0),IF(G159="CPU",VLOOKUP($F159,DADOS_COMPOSICAO,10,0),IF(G159="SICRO",VLOOKUP($F159,DADOS_SICRO,3,0),IF(G159="SUDECAP",VLOOKUP(F159,DADOS_SUDECAP,3,0),IF(G159="COTAÇÃO",VLOOKUP($F159,DADOS_COTACAO,9,0),"")))))) -> M3 | I159: =TRUNC(F163,2) -> 1.75 | J159: =TRUNC(IF(G159="SINAPI",VLOOKUP($F159,DADOS_SINAPI,4,0),IF(G159="SETOP",VLOOKUP($F159,DADOS_SETOP,4,0),IF(G159="CPU",VLOOKUP($F159,DADOS_COMPOSICAO,13,0),IF(G159="SICRO",VLOOKUP($F159,DADOS_SICRO,4,0),IF(G159="SUDECAP",VLOOKUP(F159,DADOS_SUDECAP,4,0),IF(G159="COTAÇÃO",VLOOKUP(F159,DADOS_COTACAO,12,0),"")))))),2) -> 43.57 | K159: BDI 1 | L159: =TRUNC(J159*(1+$N$17),2) -> 55.12 | M159: =IFERROR(TRUNC(I159*J159,2),"") -> 76.24 | N159: =IFERROR(TRUNC(L159*I159,2),"") -> 96.46
A160: 2000
A161: 2000 | E161: Quantidade de Blocos | F161: 5 | G161: un
A162: 2000 | E162: Escavação por bloco | F162: =ROUNDUP(0.7^3,2) -> 0.35 | G162: m³
A163: 2000 | E163: Total | F163: =F161*F162 -> 1.75 | G163: m³
A164: 2000
A165: =IFERROR(LEFT(D165,SEARCH(".",D165)-1),"") -> 5 | B165: =IFERROR(LEFT(RIGHT(D165,LEN(D165)-SEARCH(".",D165)),SEARCH(".",RIGHT(D165,LEN(D165)-SEARCH(".",D165)))-1),"") -> 1 | C165: =IFERROR(IF(LEN(D165)-LEN(SUBSTITUTE(D165,".",""))<>3,"",MID(D165,SEARCH(".",D165,SEARCH(".",D165)+1)+1,LEN(D165)-SEARCH(".",D165,SEARCH(".",D165)+1)-(LEN(D165)-(SEARCH(".",D165,SEARCH(".",D165,SEARCH(".",D165)+1)+1)-1)))),"") ->  | D165: 5.1.2 | E165: =IF($G165="SINAPI",VLOOKUP($F165,DADOS_SINAPI,2,0),IF(G165="SETOP",VLOOKUP($F165,DADOS_SETOP,2,0),IF(G165="CPU",VLOOKUP($F165,DADOS_COMPOSICAO,2,0),IF(G165="SICRO",VLOOKUP($F165,DADOS_SICRO,2,0),IF(G165="SUDECAP",VLOOKUP(F165,DADOS_SUDECAP,2,0),IF(G165="COTAÇÃO",VLOOKUP($F165,DADOS_COTACAO,2,0),"")))))) -> ESTACA BROCA DE CONCRETO, DIÂMETRO DE 25CM, ESCAVAÇÃO MANUAL COM TRADO CONCHA, COM ARMADURA DE ARRANQUE. AF_05/2020 | F165: 101174 | G165: SINAPI | H165: =IF(G165="SINAPI",VLOOKUP($F165,DADOS_SINAPI,3,0),IF(G165="SETOP",VLOOKUP($F165,DADOS_SETOP,3,0),IF(G165="CPU",VLOOKUP($F165,DADOS_COMPOSICAO,10,0),IF(G165="SICRO",VLOOKUP($F165,DADOS_SICRO,3,0),IF(G165="SUDECAP",VLOOKUP(F165,DADOS_SUDECAP,3,0),IF(G165="COTAÇÃO",VLOOKUP($F165,DADOS_COTACAO,9,0),"")))))) -> M | I165: =TRUNC(F169,2) -> 20 | J165: =TRUNC(IF(G165="SINAPI",VLOOKUP($F165,DADOS_SINAPI,4,0),IF(G165="SETOP",VLOOKUP($F165,DADOS_SETOP,4,0),IF(G165="CPU",VLOOKUP($F165,DADOS_COMPOSICAO,13,0),IF(G165="SICRO",VLOOKUP($F165,DADOS_SICRO,4,0),IF(G165="SUDECAP",VLOOKUP(F165,DADOS_SUDECAP,4,0),IF(G165="COTAÇÃO",VLOOKUP(F165,DADOS_COTACAO,12,0),"")))))),2) -> 78.68 | K165: BDI 1 | L165: =TRUNC(J165*(1+$N$17),2) -> 99.54 | M165: =IFERROR(TRUNC(I165*J165,2),"") -> 1573.6 | N165: =IFERROR(TRUNC(L165*I165,2),"") -> 1990.8
A166: 2000
A167: 2000 | E167: Quantidade de Blocos | F167: =$F$161 -> 5 | G167: un
A168: 2000 | E168: Consumo por bloco | F168: 4 | G168: m
A169: 2000 | E169: Total | F169: =F167*F168 -> 20 | G169: m
A170: 2000
A171: =IFERROR(LEFT(D171,SEARCH(".",D171)-1),"") -> 5 | B171: =IFERROR(LEFT(RIGHT(D171,LEN(D171)-SEARCH(".",D171)),SEARCH(".",RIGHT(D171,LEN(D171)-SEARCH(".",D171)))-1),"") -> 1 | C171: =IFERROR(IF(LEN(D171)-LEN(SUBSTITUTE(D171,".",""))<>3,"",MID(D171,SEARCH(".",D171,SEARCH(".",D171)+1)+1,LEN(D171)-SEARCH(".",D171,SEARCH(".",D171)+1)-(LEN(D171)-(SEARCH(".",D171,SEARCH(".",D171,SEARCH(".",D171)+1)+1)-1)))),"") ->  | D171: 5.1.3 | E171: =IF($G171="SINAPI",VLOOKUP($F171,DADOS_SINAPI,2,0),IF(G171="SETOP",VLOOKUP($F171,DADOS_SETOP,2,0),IF(G171="CPU",VLOOKUP($F171,DADOS_COMPOSICAO,2,0),IF(G171="SICRO",VLOOKUP($F171,DADOS_SICRO,2,0),IF(G171="SUDECAP",VLOOKUP(F171,DADOS_SUDECAP,2,0),IF(G171="COTAÇÃO",VLOOKUP($F171,DADOS_COTACAO,2,0),"")))))) -> ARRASAMENTO MECANICO DE ESTACA DE CONCRETO ARMADO, DIAMETROS DE ATÉ 40 CM. AF_05/2021 | F171: 95601 | G171: SINAPI | H171: =IF(G171="SINAPI",VLOOKUP($F171,DADOS_SINAPI,3,0),IF(G171="SETOP",VLOOKUP($F171,DADOS_SETOP,3,0),IF(G171="CPU",VLOOKUP($F171,DADOS_COMPOSICAO,10,0),IF(G171="SICRO",VLOOKUP($F171,DADOS_SICRO,3,0),IF(G171="SUDECAP",VLOOKUP(F171,DADOS_SUDECAP,3,0),IF(G171="COTAÇÃO",VLOOKUP($F171,DADOS_COTACAO,9,0),"")))))) -> UN | I171: =F174 -> 5 | J171: =TRUNC(IF(G171="SINAPI",VLOOKUP($F171,DADOS_SINAPI,4,0),IF(G171="SETOP",VLOOKUP($F171,DADOS_SETOP,4,0),IF(G171="CPU",VLOOKUP($F171,DADOS_COMPOSICAO,13,0),IF(G171="SICRO",VLOOKUP($F171,DADOS_SICRO,4,0),IF(G171="SUDECAP",VLOOKUP(F171,DADOS_SUDECAP,4,0),IF(G171="COTAÇÃO",VLOOKUP(F171,DADOS_COTACAO,12,0),"")))))),2) -> 15.04 | K171: BDI 1 | L171: =TRUNC(J171*(1+$N$17),2) -> 19.02 | M171: =IFERROR(TRUNC(I171*J171,2),"") -> 75.2 | N171: =IFERROR(TRUNC(L171*I171,2),"") -> 95.1
A172: 2000
A173: 2000 | E173: Quantidade de Blocos | F173: =F161 -> 5 | G173: un
A174: 2000 | E174: Total | F174: =F161 -> 5 | G174: un
A175: 2000
A176: =IFERROR(LEFT(D176,SEARCH(".",D176)-1),"") -> 5 | B176: =IFERROR(LEFT(RIGHT(D176,LEN(D176)-SEARCH(".",D176)),SEARCH(".",RIGHT(D176,LEN(D176)-SEARCH(".",D176)))-1),"") -> 1 | C176: =IFERROR(IF(LEN(D176)-LEN(SUBSTITUTE(D176,".",""))<>3,"",MID(D176,SEARCH(".",D176,SEARCH(".",D176)+1)+1,LEN(D176)-SEARCH(".",D176,SEARCH(".",D176)+1)-(LEN(D176)-(SEARCH(".",D176,SEARCH(".",D176,SEARCH(".",D176)+1)+1)-1)))),"") ->  | D176: 5.1.4 | E176: =IF($G176="SINAPI",VLOOKUP($F176,DADOS_SINAPI,2,0),IF(G176="SETOP",VLOOKUP($F176,DADOS_SETOP,2,0),IF(G176="CPU",VLOOKUP($F176,DADOS_COMPOSICAO,2,0),IF(G176="SICRO",VLOOKUP($F176,DADOS_SICRO,2,0),IF(G176="SUDECAP",VLOOKUP(F176,DADOS_SUDECAP,2,0),IF(G176="COTAÇÃO",VLOOKUP($F176,DADOS_COTACAO,2,0),"")))))) -> LASTRO DE CONCRETO MAGRO, APLICADO EM BLOCOS DE COROAMENTO OU SAPATAS, ESPESSURA DE 5 CM. AF_08/2017 | F176: 96619 | G176: SINAPI | H176: =IF(G176="SINAPI",VLOOKUP($F176,DADOS_SINAPI,3,0),IF(G176="SETOP",VLOOKUP($F176,DADOS_SETOP,3,0),IF(G176="CPU",VLOOKUP($F176,DADOS_COMPOSICAO,10,0),IF(G176="SICRO",VLOOKUP($F176,DADOS_SICRO,3,0),IF(G176="SUDECAP",VLOOKUP(F176,DADOS_SUDECAP,3,0),IF(G176="COTAÇÃO",VLOOKUP($F176,DADOS_COTACAO,9,0),"")))))) -> M2 | I176: =TRUNC(F180,2) -> 1.55 | J176: =TRUNC(IF(G176="SINAPI",VLOOKUP($F176,DADOS_SINAPI,4,0),IF(G176="SETOP",VLOOKUP($F176,DADOS_SETOP,4,0),IF(G176="CPU",VLOOKUP($F176,DADOS_COMPOSICAO,13,0),IF(G176="SICRO",VLOOKUP($F176,DADOS_SICRO,4,0),IF(G176="SUDECAP",VLOOKUP(F176,DADOS_SUDECAP,4,0),IF(G176="COTAÇÃO",VLOOKUP(F176,DADOS_COTACAO,12,0),"")))))),2) -> 30.79 | K176: BDI 1 | L176: =TRUNC(J176*(1+$N$17),2) -> 38.95 | M176: =IFERROR(TRUNC(I176*J176,2),"") -> 47.72 | N176: =IFERROR(TRUNC(L176*I176,2),"") -> 60.37
A177: 2000
A178: 2000 | E178: Quantidade de Blocos | F178: =$F$161 -> 5 | G178: un
A179: 2000 | E179: Consumo por bloco | F179: =ROUNDUP(0.55^2,2) -> 0.31 | G179: m²
A180: 2000 | E180: Total | F180: =F178*F179 -> 1.55 | G180: m²
A181: 2000
A182: =IFERROR(LEFT(D182,SEARCH(".",D182)-1),"") -> 5 | B182: =IFERROR(LEFT(RIGHT(D182,LEN(D182)-SEARCH(".",D182)),SEARCH(".",RIGHT(D182,LEN(D182)-SEARCH(".",D182)))-1),"") -> 1 | C182: =IFERROR(IF(LEN(D182)-LEN(SUBSTITUTE(D182,".",""))<>3,"",MID(D182,SEARCH(".",D182,SEARCH(".",D182)+1)+1,LEN(D182)-SEARCH(".",D182,SEARCH(".",D182)+1)-(LEN(D182)-(SEARCH(".",D182,SEARCH(".",D182,SEARCH(".",D182)+1)+1)-1)))),"") ->  | D182: 5.1.5 | E182: =IF($G182="SINAPI",VLOOKUP($F182,DADOS_SINAPI,2,0),IF(G182="SETOP",VLOOKUP($F182,DADOS_SETOP,2,0),IF(G182="CPU",VLOOKUP($F182,DADOS_COMPOSICAO,2,0),IF(G182="SICRO",VLOOKUP($F182,DADOS_SICRO,2,0),IF(G182="SUDECAP",VLOOKUP(F182,DADOS_SUDECAP,2,0),IF(G182="COTAÇÃO",VLOOKUP($F182,DADOS_COTACAO,2,0),"")))))) -> FÔRMA E DESFORMA DE COMPENSADO PLASTIFICADO, ESP. 12MM, REAPROVEITAMENTO (3X) (FUNDAÇÃO) | F182: ED-8571 | G182: SETOP | H182: =IF(G182="SINAPI",VLOOKUP($F182,DADOS_SINAPI,3,0),IF(G182="SETOP",VLOOKUP($F182,DADOS_SETOP,3,0),IF(G182="CPU",VLOOKUP($F182,DADOS_COMPOSICAO,10,0),IF(G182="SICRO",VLOOKUP($F182,DADOS_SICRO,3,0),IF(G182="SUDECAP",VLOOKUP(F182,DADOS_SUDECAP,3,0),IF(G182="COTAÇÃO",VLOOKUP($F182,DADOS_COTACAO,9,0),"")))))) -> m2 | I182: =TRUNC(F187,2) -> 3.7 | J182: =TRUNC(IF(G182="SINAPI",VLOOKUP($F182,DADOS_SINAPI,4,0),IF(G182="SETOP",VLOOKUP($F182,DADOS_SETOP,4,0),IF(G182="CPU",VLOOKUP($F182,DADOS_COMPOSICAO,13,0),IF(G182="SICRO",VLOOKUP($F182,DADOS_SICRO,4,0),IF(G182="SUDECAP",VLOOKUP(F182,DADOS_SUDECAP,4,0),IF(G182="COTAÇÃO",VLOOKUP(F182,DADOS_COTACAO,12,0),"")))))),2) -> 71.99 | K182: BDI 1 | L182: =TRUNC(J182*(1+$N$17),2) -> 91.08 | M182: =IFERROR(TRUNC(I182*J182,2),"") -> 266.36 | N182: =IFERROR(TRUNC(L182*I182,2),"") -> 336.99
A183: 2000
A184: 2000 | E184: Quantidade de Blocos | F184: =$F$161 -> 5 | G184: un
A185: 2000 | E185: Consumo por bloco | F185: 2.22 | G185: m²
A186: 2000 | E186: Reutilização | F186: 3 | G186: vezes
A187: 2000 | E187: Total | F187: =F184*F185/F186 -> 3.7 | G187: m²
A188: 2000
A189: =IFERROR(LEFT(D189,SEARCH(".",D189)-1),"") -> 5 | B189: =IFERROR(LEFT(RIGHT(D189,LEN(D189)-SEARCH(".",D189)),SEARCH(".",RIGHT(D189,LEN(D189)-SEARCH(".",D189)))-1),"") -> 1 | C189: =IFERROR(IF(LEN(D189)-LEN(SUBSTITUTE(D189,".",""))<>3,"",MID(D189,SEARCH(".",D189,SEARCH(".",D189)+1)+1,LEN(D189)-SEARCH(".",D189,SEARCH(".",D189)+1)-(LEN(D189)-(SEARCH(".",D189,SEARCH(".",D189,SEARCH(".",D189)+1)+1)-1)))),"") ->  | D189: 5.1.6 | E189: =IF($G189="SINAPI",VLOOKUP($F189,DADOS_SINAPI,2,0),IF(G189="SETOP",VLOOKUP($F189,DADOS_SETOP,2,0),IF(G189="CPU",VLOOKUP($F189,DADOS_COMPOSICAO,2,0),IF(G189="SICRO",VLOOKUP($F189,DADOS_SICRO,2,0),IF(G189="SUDECAP",VLOOKUP(F189,DADOS_SUDECAP,2,0),IF(G189="COTAÇÃO",VLOOKUP($F189,DADOS_COTACAO,2,0),"")))))) -> CORTE, DOBRA E MONTAGEM DE AÇO CA-50/60, INCLUSIVE ESPAÇADOR | F189: ED-48298 | G189: SETOP | H189: =IF(G189="SINAPI",VLOOKUP($F189,DADOS_SINAPI,3,0),IF(G189="SETOP",VLOOKUP($F189,DADOS_SETOP,3,0),IF(G189="CPU",VLOOKUP($F189,DADOS_COMPOSICAO,10,0),IF(G189="SICRO",VLOOKUP($F189,DADOS_SICRO,3,0),IF(G189="SUDECAP",VLOOKUP(F189,DADOS_SUDECAP,3,0),IF(G189="COTAÇÃO",VLOOKUP($F189,DADOS_COTACAO,9,0),"")))))) -> Kg | I189: =TRUNC(F193,2) -> 28.6 | J189: =TRUNC(IF(G189="SINAPI",VLOOKUP($F189,DADOS_SINAPI,4,0),IF(G189="SETOP",VLOOKUP($F189,DADOS_SETOP,4,0),IF(G189="CPU",VLOOKUP($F189,DADOS_COMPOSICAO,13,0),IF(G189="SICRO",VLOOKUP($F189,DADOS_SICRO,4,0),IF(G189="SUDECAP",VLOOKUP(F189,DADOS_SUDECAP,4,0),IF(G189="COTAÇÃO",VLOOKUP(F189,DADOS_COTACAO,12,0),"")))))),2) -> 13.52 | K189: BDI 1 | L189: =TRUNC(J189*(1+$N$17),2) -> 17.1 | M189: =IFERROR(TRUNC(I189*J189,2),"") -> 386.67 | N189: =IFERROR(TRUNC(L189*I189,2),"") -> 489.06
A190: 2000
A191: 2000 | E191: Quantidade de Blocos | F191: =$F$161 -> 5 | G191: un
A192: 2000 | E192: Consumo por bloco | F192: =5.72 -> 5.72 | G192: kg
A193: 2000 | E193: Total | F193: =F191*F192 -> 28.6 | G193: kg
A194: 2000
A195: =IFERROR(LEFT(D195,SEARCH(".",D195)-1),"") -> 5 | B195: =IFERROR(LEFT(RIGHT(D195,LEN(D195)-SEARCH(".",D195)),SEARCH(".",RIGHT(D195,LEN(D195)-SEARCH(".",D195)))-1),"") -> 1 | C195: =IFERROR(IF(LEN(D195)-LEN(SUBSTITUTE(D195,".",""))<>3,"",MID(D195,SEARCH(".",D195,SEARCH(".",D195)+1)+1,LEN(D195)-SEARCH(".",D195,SEARCH(".",D195)+1)-(LEN(D195)-(SEARCH(".",D195,SEARCH(".",D195,SEARCH(".",D195)+1)+1)-1)))),"") ->  | D195: 5.1.7 | E195: =IF($G195="SINAPI",VLOOKUP($F195,DADOS_SINAPI,2,0),IF(G195="SETOP",VLOOKUP($F195,DADOS_SETOP,2,0),IF(G195="CPU",VLOOKUP($F195,DADOS_COMPOSICAO,2,0),IF(G195="SICRO",VLOOKUP($F195,DADOS_SICRO,2,0),IF(G195="SUDECAP",VLOOKUP(F195,DADOS_SUDECAP,2,0),IF(G195="COTAÇÃO",VLOOKUP($F195,DADOS_COTACAO,2,0),"")))))) -> FORNECIMENTO DE CONCRETO ESTRUTURAL, USINADO BOMBEADO, COM FCK 30MPA, INCLUSIVE LANÇAMENTO, ADENSAMENTO E ACABAMENTO (FUNDAÇÃO) | F195: ED-49806 | G195: SETOP | H195: =IF(G195="SINAPI",VLOOKUP($F195,DADOS_SINAPI,3,0),IF(G195="SETOP",VLOOKUP($F195,DADOS_SETOP,3,0),IF(G195="CPU",VLOOKUP($F195,DADOS_COMPOSICAO,10,0),IF(G195="SICRO",VLOOKUP($F195,DADOS_SICRO,3,0),IF(G195="SUDECAP",VLOOKUP(F195,DADOS_SUDECAP,3,0),IF(G195="COTAÇÃO",VLOOKUP($F195,DADOS_COTACAO,9,0),"")))))) -> m3 | I195: =TRUNC(F199,2) -> 0.85 | J195: =TRUNC(IF(G195="SINAPI",VLOOKUP($F195,DADOS_SINAPI,4,0),IF(G195="SETOP",VLOOKUP($F195,DADOS_SETOP,4,0),IF(G195="CPU",VLOOKUP($F195,DADOS_COMPOSICAO,13,0),IF(G195="SICRO",VLOOKUP($F195,DADOS_SICRO,4,0),IF(G195="SUDECAP",VLOOKUP(F195,DADOS_SUDECAP,4,0),IF(G195="COTAÇÃO",VLOOKUP(F195,DADOS_COTACAO,12,0),"")))))),2) -> 737.11 | K195: BDI 1 | L195: =TRUNC(J195*(1+$N$17),2) -> 932.59 | M195: =IFERROR(TRUNC(I195*J195,2),"") -> 626.54 | N195: =IFERROR(TRUNC(L195*I195,2),"") -> 792.7
A196: 2000
A197: 2000 | E197: Quantidade de Blocos | F197: =$F$161 -> 5 | G197: un
A198: 2000 | E198: Consumo por bloco | F198: =ROUNDUP(0.55^3,2) -> 0.17 | G198: m³
A199: 2000 | E199: Total | F199: =F197*F198 -> 0.85 | G199: m³
A200: 2000
A201: =IFERROR(LEFT(D201,SEARCH(".",D201)-1),"") -> 5 | B201: =IFERROR(LEFT(RIGHT(D201,LEN(D201)-SEARCH(".",D201)),SEARCH(".",RIGHT(D201,LEN(D201)-SEARCH(".",D201)))-1),"") -> 1 | C201: =IFERROR(IF(LEN(D201)-LEN(SUBSTITUTE(D201,".",""))<>3,"",MID(D201,SEARCH(".",D201,SEARCH(".",D201)+1)+1,LEN(D201)-SEARCH(".",D201,SEARCH(".",D201)+1)-(LEN(D201)-(SEARCH(".",D201,SEARCH(".",D201,SEARCH(".",D201)+1)+1)-1)))),"") ->  | D201: 5.1.8 | E201: =IF($G201="SINAPI",VLOOKUP($F201,DADOS_SINAPI,2,0),IF(G201="SETOP",VLOOKUP($F201,DADOS_SETOP,2,0),IF(G201="CPU",VLOOKUP($F201,DADOS_COMPOSICAO,2,0),IF(G201="SICRO",VLOOKUP($F201,DADOS_SICRO,2,0),IF(G201="SUDECAP",VLOOKUP(F201,DADOS_SUDECAP,2,0),IF(G201="COTAÇÃO",VLOOKUP($F201,DADOS_COTACAO,2,0),"")))))) -> REATERRO MANUAL APILOADO COM SOQUETE. AF_10/2017 | F201: 96995 | G201: SINAPI | H201: =IF(G201="SINAPI",VLOOKUP($F201,DADOS_SINAPI,3,0),IF(G201="SETOP",VLOOKUP($F201,DADOS_SETOP,3,0),IF(G201="CPU",VLOOKUP($F201,DADOS_COMPOSICAO,10,0),IF(G201="SICRO",VLOOKUP($F201,DADOS_SICRO,3,0),IF(G201="SUDECAP",VLOOKUP(F201,DADOS_SUDECAP,3,0),IF(G201="COTAÇÃO",VLOOKUP($F201,DADOS_COTACAO,9,0),"")))))) -> M3 | I201: =TRUNC(F205,2) -> 0.9 | J201: =TRUNC(IF(G201="SINAPI",VLOOKUP($F201,DADOS_SINAPI,4,0),IF(G201="SETOP",VLOOKUP($F201,DADOS_SETOP,4,0),IF(G201="CPU",VLOOKUP($F201,DADOS_COMPOSICAO,13,0),IF(G201="SICRO",VLOOKUP($F201,DADOS_SICRO,4,0),IF(G201="SUDECAP",VLOOKUP(F201,DADOS_SUDECAP,4,0),IF(G201="COTAÇÃO",VLOOKUP(F201,DADOS_COTACAO,12,0),"")))))),2) -> 42.62 | K201: BDI 1 | L201: =TRUNC(J201*(1+$N$17),2) -> 53.92 | M201: =IFERROR(TRUNC(I201*J201,2),"") -> 38.35 | N201: =IFERROR(TRUNC(L201*I201,2),"") -> 48.52
A202: 2000
A203: 2000 | E203: Quantidade de Blocos | F203: =$F$161 -> 5 | G203: un
A204: 2000 | E204: Reaterro por bloco | F204: =(F162-F198) -> 0.18 | G204: m³
A205: 2000 | E205: Total | F205: =F203*F204 -> 0.9 | G205: m³
A206: 2000
A207: =IFERROR(LEFT(D207,SEARCH(".",D207)-1),"") -> 5 | B207: =IFERROR(LEFT(RIGHT(D207,LEN(D207)-SEARCH(".",D207)),SEARCH(".",RIGHT(D207,LEN(D207)-SEARCH(".",D207)))-1),"") -> 1 | C207: =IFERROR(IF(LEN(D207)-LEN(SUBSTITUTE(D207,".",""))<>3,"",MID(D207,SEARCH(".",D207,SEARCH(".",D207)+1)+1,LEN(D207)-SEARCH(".",D207,SEARCH(".",D207)+1)-(LEN(D207)-(SEARCH(".",D207,SEARCH(".",D207,SEARCH(".",D207)+1)+1)-1)))),"") ->  | D207: 5.1.9 | E207: =IF($G207="SINAPI",VLOOKUP($F207,DADOS_SINAPI,2,0),IF(G207="SETOP",VLOOKUP($F207,DADOS_SETOP,2,0),IF(G207="CPU",VLOOKUP($F207,DADOS_COMPOSICAO,2,0),IF(G207="SICRO",VLOOKUP($F207,DADOS_SICRO,2,0),IF(G207="SUDECAP",VLOOKUP(F207,DADOS_SUDECAP,2,0),IF(G207="COTAÇÃO",VLOOKUP($F207,DADOS_COTACAO,2,0),"")))))) -> CARGA MANUAL DE MATERIAL DE QUALQUER NATUREZA SOBRE CAMINHÃO, EXCLUSIVE TRANSPORTE | F207: ED-51131 | G207: SETOP | H207: =IF(G207="SINAPI",VLOOKUP($F207,DADOS_SINAPI,3,0),IF(G207="SETOP",VLOOKUP($F207,DADOS_SETOP,3,0),IF(G207="CPU",VLOOKUP($F207,DADOS_COMPOSICAO,10,0),IF(G207="SICRO",VLOOKUP($F207,DADOS_SICRO,3,0),IF(G207="SUDECAP",VLOOKUP(F207,DADOS_SUDECAP,3,0),IF(G207="COTAÇÃO",VLOOKUP($F207,DADOS_COTACAO,9,0),"")))))) -> m3 | I207: =TRUNC(F212,2) -> 1.11 | J207: =TRUNC(IF(G207="SINAPI",VLOOKUP($F207,DADOS_SINAPI,4,0),IF(G207="SETOP",VLOOKUP($F207,DADOS_SETOP,4,0),IF(G207="CPU",VLOOKUP($F207,DADOS_COMPOSICAO,13,0),IF(G207="SICRO",VLOOKUP($F207,DADOS_SICRO,4,0),IF(G207="SUDECAP",VLOOKUP(F207,DADOS_SUDECAP,4,0),IF(G207="COTAÇÃO",VLOOKUP(F207,DADOS_COTACAO,12,0),"")))))),2) -> 35.54 | K207: BDI 1 | L207: =TRUNC(J207*(1+$N$17),2) -> 44.96 | M207: =IFERROR(TRUNC(I207*J207,2),"") -> 39.44 | N207: =IFERROR(TRUNC(L207*I207,2),"") -> 49.9
A208: 2000
... 127 more rows

Sheet ABC
A2: CURVA ABC DE SERVIÇOS | H2: Revisão: | I2: =DADOS!D6 -> R01
H3: Data: | I3: =DADOS!D2 -> 2023-03-27
A4: Projeto: | C4: Responsável: | D4: Cliente: | H4: Bancos:
A5: =DADOS!D8 -> REFORMA DA COBERTURA DA PEM CORONEL BRITO FILHO | H5: =DADOS!D14 -> SINAPI: 02/2023 Minas Gerais SETOP: 01/2023 Minas Gerais SICRO : 10/2022 Minas Gerais SUDECAP: 12/2022 Minas Gerais
H8: BDI 1: | I8: =DADOS!D10 -> 0.2652
H9: BDI 2: | I9: =DADOS!D12 -> 0.2025
A11: =A2&" DE "&DADOS!D20&" - "&A5 -> CURVA ABC DE SERVIÇOS DE PROJETO EXECUTIVO - REFORMA DA COBERTURA DA PEM CORONEL BRITO FILHO
A13: Código | B13: Banco | C13: Descrição | D13: Unidade | E13: Quantidade | F13: Valor Unitário | G13: Total | H13: Peso (%) | I13: Peso Acumulado (%)
A15: ED-49664 | B15: SETOP | C15: FORNECIMENTO DE ESTRUTURA METÁLICA EM PERFIL LAMINADO, INCLUSIVE FABRICAÇÃO, TRANSPORTE, MONTAGEM E APLICAÇÃO DE FUNDO PREPARADOR ANTICORROSIVO EM SUPERFÍCIE METÁLICA, UMA (1) DEMÃO | D15: Kg | E15: 3492.2 | F15: 30.9 | G15: 107908.98 | H15: 0.2576104052 | I15: 0.2576104052
A16: 93565 | B16: SINAPI | C16: ENGENHEIRO CIVIL DE OBRA JUNIOR COM ENCARGOS COMPLEMENTARES | D16: MES | E16: 4 | F16: 21650.3 | G16: 86601.2 | H16: 0.2067424807 | I16: 0.4643528859
A17: 94216 | B17: SINAPI | C17: TELHAMENTO COM TELHA METÁLICA TERMOACÚSTICA E = 30 MM, COM ATÉ 2 ÁGUAS, INCLUSO IÇAMENTO. AF_07/2019 | D17: M2 | E17: 304.49 | F17: 234.69 | G17: 71460.75 | H17: 0.1705977831 | I17: 0.634950669
A18: ED-50497 | B18: SETOP | C18: PINTURA ESMALTE EM ESTRUTURA METÁLICA, DUAS (2) DEMÃOS, INCLUSIVE UMA (1) DEMÃO FUNDO ANTICORROSIVO | D18: m2 | E18: 905.24 | F18: 41.63 | G18: 37685.14 | H18: 0.08996548929 | I18: 0.7249161583
A19: 100321 | B19: SINAPI | C19: TÉCNICO EM SEGURANÇA DO TRABALHO COM ENCARGOS COMPLEMENTARES | D19: MES | E19: 4 | F19: 7349.88 | G19: 29399.52 | H19: 0.07018528262 | I19: 0.7951014409
A20: 92539 | B20: SINAPI | C20: TRAMA DE MADEIRA COMPOSTA POR RIPAS, CAIBROS E TERÇAS PARA TELHADOS DE ATÉ 2 ÁGUAS PARA TELHA DE ENCAIXE DE CERÂMICA OU DE CONCRETO, INCLUSO TRANSPORTE VERTICAL. AF_07/2019 | D20: M2 | E20: 75.5 | F20: 138.8 | G20: 10479.4 | H20: 0.02501740337 | I20: 0.8201188442
A21: 94228 | B21: SINAPI | C21: CALHA EM CHAPA DE AÇO GALVANIZADO NÚMERO 24, DESENVOLVIMENTO DE 50 CM, INCLUSO TRANSPORTE VERTICAL. AF_07/2019 | D21: M | E21: 76.38 | F21: 127.05 | G21: 9704.07 | H21: 0.02316646311 | I21: 0.8432853074
A22: 89512 | B22: SINAPI | C22: TUBO PVC, SÉRIE R, ÁGUA PLUVIAL, DN 100 MM, FORNECIDO E INSTALADO EM RAMAL DE ENCAMINHAMENTO. AF_06/2022 | D22: M | E22: 83.05 | F22: 65.19 | G22: 5414.02 | H22: 0.01292485469 | I22: 0.856210162
A23: ED-48227 | B23: SETOP | C23: ALVENARIA DE VEDAÇÃO COM TIJOLO MACIÇO REQUEIMADO, ESP. 10CM, PARA REVESTIMENTO, INCLUSIVE ARGAMASSA PARA ASSENTAMENTO | D23: m2 | E23: 43.14 | F23: 110.85 | G23: 4782.06 | H23: 0.01141618069 | I23: 0.8676263427
A24: ED-28428 | B24: SETOP | C24: FORNECIMENTO E COLOCAÇÃO DE PLACA DE OBRA EM CHAPA GALVANIZADA #26, ESP. 0,45MM, DIMENSÃO (4X3)M, PLOTADA COM ADESIVO VINÍLICO, AFIXADA COM REBITES 4,8X40MM, EM ESTRUTURA METÁLICA DE METALON 20X20MM, ESP. 1,25MM, INCLUSIVE SUPORTE EM EUCALIPTO AUTOCLAVADO PINTADO COM TINTA PVA DUAS (2) DEMÃOS | D24: un | E24: 1 | F24: 4690.75 | G24: 4690.75 | H24: 0.01119819692 | I24: 0.8788245397
A25: ED-50266 | B25: SETOP | C25: LIMPEZA FINAL PARA ENTREGA DA OBRA | D25: m2 | E25: 521.06 | F25: 8.17 | G25: 4257.06 | H25: 0.01016285161 | I25: 0.8889873913
A26: 100327 | B26: SINAPI | C26: RUFO EXTERNO/INTERNO EM CHAPA DE AÇO GALVANIZADO NÚMERO 26, CORTE DE 33 CM, INCLUSO IÇAMENTO. AF_07/2019 | D26: M | E26: 50.51 | F26: 84 | G26: 4242.84 | H26: 0.0101289043 | I26: 0.8991162956
A27: ED-50155 | B27: SETOP | C27: LOCAÇÃO DE BANHEIRO QUÍMICO, DIMENSÃO (110X120X230)CM, LINHA PADRÃO, CONTENDO UMA (1) PIA/HIGIENIZADOR DE MÃOS, INCLUSIVE MANUTENÇÃO E MOBILIZAÇÃO/DESMOBILIZAÇÃO | D27: mês | E27: 4 | F27: 1037.46 | G27: 4149.84 | H27: 0.009906886005 | I27: 0.9090231816
A28: 87792 | B28: SINAPI | C28: EMBOÇO OU MASSA ÚNICA EM ARGAMASSA TRAÇO 1:2:8, PREPARO MECÂNICO COM BETONEIRA 400 L, APLICADA MANUALMENTE EM PANOS CEGOS DE FACHADA (SEM PRESENÇA DE VÃOS), ESPESSURA DE 25 MM. AF_08/2022 | D28: M2 | E28: 86.28 | F28: 46.67 | G28: 4026.68 | H28: 0.009612866939 | I28: 0.9186360485
A29: 94442 | B29: SINAPI | C29: TELHAMENTO COM TELHA CERÂMICA DE ENCAIXE, TIPO ROMANA, COM ATÉ 2 ÁGUAS, INCLUSO TRANSPORTE VERTICAL. AF_07/2019 | D29: M2 | E29: 75.5 | F29: 49.69 | G29: 3751.59 | H29: 0.008956146374 | I29: 0.9275921949
A30: ED-50761 | B30: SETOP | C30: REBOCO COM ARGAMASSA, TRAÇO 1:2:8 (CIMENTO, CAL E AREIA), ESP. 20MM, APLICAÇÃO MANUAL, PREPARO MECÂNICO | D30: m2 | E30: 86.28 | F30: 40.58 | G30: 3501.24 | H30: 0.008358487449 | I30: 0.9359506823
A31: ED-16350 | B31: SETOP | C31: LOCAÇÃO DE CONTAINER COM ISOLAMENTO TÉRMICO, TIPO 3, PARA DEPÓSITO/FERRAMENTARIA DE OBRA, COM MEDIDAS REFERENCIAIS DE (6) METROS COMPRIMENTO, (2,3) METROS LARGURA E (2,5) METROS ALTURA ÚTIL INTERNA, INCLUSIVE LIGAÇÕES ELÉTRICAS INTERNAS, EXCLUSIVE MOBILIZAÇÃO/DESMOBILIZAÇÃO E LIGAÇÕES PROVISÓRIAS EXTERNAS | D31: mês | E31: 4 | F31: 872.27 | G31: 3489.08 | H31: 0.00832945796 | I31: 0.9442801403
A32: 97650 | B32: SINAPI | C32: REMOÇÃO DE TRAMA DE MADEIRA PARA COBERTURA, DE FORMA MANUAL, SEM REAPROVEITAMENTO. AF_12/2017 | D32: M2 | E32: 380.44 | F32: 7.88 | G32: 2997.86 | H32: 0.007156771653 | I32: 0.9514369119
A33: ED-51131 | B33: SETOP | C33: CARGA MANUAL DE MATERIAL DE QUALQUER NATUREZA SOBRE CAMINHÃO, EXCLUSIVE TRANSPORTE | D33: m3 | E33: 47.78 | F33: 44.96 | G33: 2148.18 | H33: 0.005128336123 | I33: 0.9565652481
A34: 101174 | B34: SINAPI | C34: ESTACA BROCA DE CONCRETO, DIÂMETRO DE 25CM, ESCAVAÇÃO MANUAL COM TRADO CONCHA, COM ARMADURA DE ARRANQUE. AF_05/2020 | D34: M | E34: 20 | F34: 99.54 | G34: 1990.8 | H34: 0.004752623874 | I34: 0.9613178719
A35: 97652 | B35: SINAPI | C35: REMOÇÃO DE TESOURAS DE MADEIRA, COM VÃO MAIOR OU IGUAL A 8M, DE FORMA MANUAL, SEM REAPROVEITAMENTO. AF_12/2017 | D35: UN | E35: 10 | F35: 197.86 | G35: 1978.6 | H35: 0.004723498894 | I35: 0.9660413708
A36: ED-48402 | B36: SETOP | C36: COLOCAÇÃO DE CUMEEIRA GALVANIZADA TRAPEZOIDAL E = 0,50 MM, SIMPLES | D36: m | E36: 27.38 | F36: 69.34 | G36: 1898.52 | H36: 0.004532324431 | I36: 0.9705736953
A37: 97649 | B37: SINAPI | C37: REMOÇÃO DE TELHAS DE FIBROCIMENTO, METÁLICA E CERÂMICA, DE FORMA MECANIZADA, COM USO DE GUINDASTE, SEM REAPROVEITAMENTO. AF_12/2017 | D37: M2 | E37: 380.44 | F37: 4.68 | G37: 1780.45 | H37: 0.004250456689 | I37: 0.974824152
A38: 95626 | B38: SINAPI | C38: APLICAÇÃO MANUAL DE TINTA LÁTEX ACRÍLICA EM PAREDE EXTERNAS DE CASAS, DUAS DEMÃOS. AF_11/2016 | D38: M2 | E38: 86.28 | F38: 18.96 | G38: 1635.86 | H38: 0.003905277924 | I38: 0.9787294299
A39: 89529 | B39: SINAPI | C39: JOELHO 90 GRAUS, PVC, SERIE R, ÁGUA PLUVIAL, DN 100 MM, JUNTA ELÁSTICA, FORNECIDO E INSTALADO EM RAMAL DE ENCAMINHAMENTO. AF_06/2022 | D39: UN | E39: 26 | F39: 48.29 | G39: 1255.54 | H39: 0.002997342465 | I39: 0.9817267724
A40: 97914 | B40: SINAPI | C40: TRANSPORTE COM CAMINHÃO BASCULANTE DE 6 M³, EM VIA URBANA PAVIMENTADA, DMT ATÉ 30 KM (UNIDADE: M3XKM). AF_07/2020 | D40: M3XKM | E40: 353.58 | F40: 3.41 | G40: 1205.7 | H40: 0.002878359757 | I40: 0.9846051321
A41: ED-50137 | B41: SETOP | C41: MOBILIZAÇÃO E DESMOBILIZAÇÃO DE CONTAINER, INCLUSIVE CARGA, DESCARGA E TRANSPORTE EM CAMINHÃO CARROCERIA COM GUINDAUTO (MUNCK), EXCLUSIVE LOCAÇÃO DO CONTAINER | D41: un | E41: 1 | F41: 799.47 | G41: 799.47 | H41: 0.001908569524 | I41: 0.9865137016
A42: ED-49806 | B42: SETOP | C42: FORNECIMENTO DE CONCRETO ESTRUTURAL, USINADO BOMBEADO, COM FCK 30MPA, INCLUSIVE LANÇAMENTO, ADENSAMENTO E ACABAMENTO (FUNDAÇÃO) | D42: m3 | E42: 0.85 | F42: 932.59 | G42: 792.7 | H42: 0.001892407547 | I42: 0.9884061092
A43: 97651 | B43: SINAPI | C43: REMOÇÃO DE TESOURAS DE MADEIRA, COM VÃO MENOR QUE 8M, DE FORMA MANUAL, SEM REAPROVEITAMENTO. AF_12/2017 | D43: UN | E43: 9 | F43: 87.28 | G43: 785.52 | H43: 0.00187526678 | I43: 0.990281376
A44: 93358 | B44: SINAPI | C44: ESCAVAÇÃO MANUAL DE VALA COM PROFUNDIDADE MENOR OU IGUAL A 1,30 M. AF_02/2021 | D44: M3 | E44: 5.69 | F44: 88.93 | G44: 506.01 | H44: 0.001207994377 | I44: 0.9914893703
A45: ED-48298 | B45: SETOP | C45: CORTE, DOBRA E MONTAGEM DE AÇO CA-50/60, INCLUSIVE ESPAÇADOR | D45: Kg | E45: 28.6 | F45: 17.1 | G45: 489.06 | H45: 0.001167529753 | I45: 0.9926569001
A46: 94221 | B46: SINAPI | C46: CUMEEIRA PARA TELHA CERÂMICA EMBOÇADA COM ARGAMASSA TRAÇO 1:2:9 (CIMENTO, CAL E AREIA) PARA TELHADOS COM ATÉ 2 ÁGUAS, INCLUSO TRANSPORTE VERTICAL. AF_07/2019 | D46: M | E46: 14.66 | F46: 33.33 | G46: 488.61 | H46: 0.001166455471 | I46: 0.9938233556
A47: ED-48506 | B47: SETOP | C47: REMOÇÃO MANUAL DE RUFO METÁLICO, COM REAPROVEITAMENTO, INCLUSIVE AFASTAMENTO E EMPILHAMENTO, EXCLUSIVE TRANSPORTE E RETIRADA DO MATERIAL REMOVIDO NÃO REAPROVEITÁVEL | D47: m | E47: 51.11 | F47: 7.65 | G47: 390.99 | H47: 0.0009334078806 | I47: 0.9947567634
A48: 01.04.11 | B48: SUDECAP | C48: FITA ZEBRADA AMARELA PARA SINALIZAÇAO L= 7CM | D48: M | E48: 110 | F48: 3.47 | G48: 381.7 | H48: 0.0009112299241 | I48: 0.9956679934
A49: 88415 | B49: SINAPI | C49: APLICAÇÃO MANUAL DE FUNDO SELADOR ACRÍLICO EM PAREDES EXTERNAS DE CASAS. AF_06/2014 | D49: M2 | E49: 86.28 | F49: 4.27 | G49: 368.41 | H49: 0.0008795027936 | I49: 0.9965474962
A50: ED-8571 | B50: SETOP | C50: FÔRMA E DESFORMA DE COMPENSADO PLASTIFICADO, ESP. 12MM, REAPROVEITAMENTO (3X) (FUNDAÇÃO) | D50: m2 | E50: 3.7 | F50: 91.08 | G50: 336.99 | H50: 0.0008044940322 | I50: 0.9973519902
A51: 93382 | B51: SINAPI | C51: REATERRO MANUAL DE VALAS COM COMPACTAÇÃO MECANIZADA. AF_04/2016 | D51: M3 | E51: 5.69 | F51: 36.81 | G51: 209.44 | H51: 0.000499994748 | I51: 0.9978519849
A52: ED-9076 | B52: SETOP | C52: FORNECIMENTO DE ANDAIME METÁLICO TUBULAR TIPO TORRE (LOCAÇÃO), INCLUSIVE RODÍZIOS, EXCLUSIVE MONTAGEM E DESMONTAGEM | D52: mxmês | E52: 6 | F52: 25.3 | G52: 151.8 | H52: 0.0003623911514 | I52: 0.9982143761
A53: 97064 | B53: SINAPI | C53: MONTAGEM E DESMONTAGEM DE ANDAIME TUBULAR TIPO TORRE (EXCLUSIVE ANDAIME E LIMPEZA). AF_11/2017 | D53: M | E53: 6 | F53: 23.22 | G53: 139.32 | H53: 0.0003325977286 | I53: 0.9985469738
A54: ED-48438 | B54: SETOP | C54: REMOÇÃO DE CALHA EM CHAPA GALVANIZADA OU EM PVC, COM REAPROVEITAMENTO, INCLUSIVE AFASTAMENTO E EMPILHAMENTO, EXCLUSIVE TRANSPORTE E RETIRADA DO MATERIAL REMOVIDO NÃO REAPROVEITÁVEL | D54: m | E54: 23.39 | F54: 5.19 | G54: 121.39 | H54: 0.0002897935564 | I54: 0.9988367674
A55: 97624 | B55: SINAPI | C55: DEMOLIÇÃO DE ALVENARIA DE TIJOLO MACIÇO, DE FORMA MANUAL, SEM REAPROVEITAMENTO. AF_12/2017 | D55: M3 | E55: 0.97 | F55: 111.32 | G55: 107.98 | H55: 0.0002577799507 | I55: 0.9990945473
A56: 96521 | B56: SINAPI | C56: ESCAVAÇÃO MECANIZADA PARA BLOCO DE COROAMENTO OU SAPATA COM RETROESCAVADEIRA (INCLUINDO ESCAVAÇÃO PARA COLOCAÇÃO DE FÔRMAS). AF_06/2017 | D56: M3 | E56: 1.75 | F56: 55.12 | G56: 96.46 | H56: 0.0002302783298 | I56: 0.9993248257
A57: 95601 | B57: SINAPI | C57: ARRASAMENTO MECANICO DE ESTACA DE CONCRETO ARMADO, DIAMETROS DE ATÉ 40 CM. AF_05/2021 | D57: UN | E57: 5 | F57: 19.02 | G57: 95.1 | H57: 0.0002270316106 | I57: 0.9995518573
A58: 100574 | B58: SINAPI | C58: ESPALHAMENTO DE MATERIAL COM TRATOR DE ESTEIRAS. AF_11/2019 | D58: M3 | E58: 47.78 | F58: 1.65 | G58: 78.83 | H58: 0.0001881903456 | I58: 0.9997400476
A59: 96619 | B59: SINAPI | C59: LASTRO DE CONCRETO MAGRO, APLICADO EM BLOCOS DE COROAMENTO OU SAPATAS, ESPESSURA DE 5 CM. AF_08/2017 | D59: M2 | E59: 1.55 | F59: 38.95 | G59: 60.37 | H59: 0.0001441209078 | I59: 0.9998841685
A60: 96995 | B60: SINAPI | C60: REATERRO MANUAL APILOADO COM SOQUETE. AF_10/2017 | D60: M3 | E60: 0.9 | F60: 53.92 | G60: 48.52 | H60: 0.00011583148 | I60: 1
A62: TOTAL INCLUINDO ADMINISTRAÇÃO | H62: =ORC!M332 -> 331122.38
A63: BDI | H63: =ORC!M333 -> 87762.02
A64: TOTAL GERAL | H64: =IF(ORC!M334=SUM(G:G),ORC!M334,"ERRO") -> 418884.4
D68: RESPONSÁVEL TÉCNICO: | F68: =DADOS!D16 -> FLÁVIA CRISTINA BARBOSA
F69: =DADOS!D18 -> CREA - MG 187.842/D

Sheet Auxiliar_ABC (hidden)
A1: ED-49664 | B1: SETOP | C1: FORNECIMENTO DE ESTRUTURA METÁLICA EM PERFIL LAMINADO, INCLUSIVE FABRICAÇÃO, TRANSPORTE, MONTAGEM E APLICAÇÃO DE FUNDO PREPARADOR ANTICORROSIVO EM SUPERFÍCIE METÁLICA, UMA (1) DEMÃO | D1: Kg | E1: 3492.2 | F1: 30.9 | G1: 107908.98 | H1: 0.2576104052 | I1: 0.2576104052 | R1: QUANTIDADE TOTAL | V1: VALOR TOTAL | W1: % | X1: =W1 -> %
A2: 93565 | B2: SINAPI | C2: ENGENHEIRO CIVIL DE OBRA JUNIOR COM ENCARGOS COMPLEMENTARES | D2: MES | E2: 4 | F2: 21650.3 | G2: 86601.2 | H2: 0.2067424807 | I2: 0.4643528859 | R2: =SUMIF(ORC!$F:$F,O2,ORC!$I:$I) -> 0 | V2: =SUMIF(ORC!$F:$F,O2,ORC!$N:$N) -> 0 | W2: =V2/SUM($I:$I) -> 0 | X2: =W2+X1 -> 
A3: 94216 | B3: SINAPI | C3: TELHAMENTO COM TELHA METÁLICA TERMOACÚSTICA E = 30 MM, COM ATÉ 2 ÁGUAS, INCLUSO IÇAMENTO. AF_07/2019 | D3: M2 | E3: 304.49 | F3: 234.69 | G3: 71460.75 | H3: 0.1705977831 | I3: 0.634950669
A4: ED-50497 | B4: SETOP | C4: PINTURA ESMALTE EM ESTRUTURA METÁLICA, DUAS (2) DEMÃOS, INCLUSIVE UMA (1) DEMÃO FUNDO ANTICORROSIVO | D4: m2 | E4: 905.24 | F4: 41.63 | G4: 37685.14 | H4: 0.08996548929 | I4: 0.7249161583
A5: 100321 | B5: SINAPI | C5: TÉCNICO EM SEGURANÇA DO TRABALHO COM ENCARGOS COMPLEMENTARES | D5: MES | E5: 4 | F5: 7349.88 | G5: 29399.52 | H5: 0.07018528262 | I5: 0.7951014409
A6: 92539 | B6: SINAPI | C6: TRAMA DE MADEIRA COMPOSTA POR RIPAS, CAIBROS E TERÇAS PARA TELHADOS DE ATÉ 2 ÁGUAS PARA TELHA DE ENCAIXE DE CERÂMICA OU DE CONCRETO, INCLUSO TRANSPORTE VERTICAL. AF_07/2019 | D6: M2 | E6: 75.5 | F6: 138.8 | G6: 10479.4 | H6: 0.02501740337 | I6: 0.8201188442
A7: 94228 | B7: SINAPI | C7: CALHA EM CHAPA DE AÇO GALVANIZADO NÚMERO 24, DESENVOLVIMENTO DE 50 CM, INCLUSO TRANSPORTE VERTICAL. AF_07/2019 | D7: M | E7: 76.38 | F7: 127.05 | G7: 9704.07 | H7: 0.02316646311 | I7: 0.8432853074
A8: 89512 | B8: SINAPI | C8: TUBO PVC, SÉRIE R, ÁGUA PLUVIAL, DN 100 MM, FORNECIDO E INSTALADO EM RAMAL DE ENCAMINHAMENTO. AF_06/2022 | D8: M | E8: 83.05 | F8: 65.19 | G8: 5414.02 | H8: 0.01292485469 | I8: 0.856210162
A9: ED-48227 | B9: SETOP | C9: ALVENARIA DE VEDAÇÃO COM TIJOLO MACIÇO REQUEIMADO, ESP. 10CM, PARA REVESTIMENTO, INCLUSIVE ARGAMASSA PARA ASSENTAMENTO | D9: m2 | E9: 43.14 | F9: 110.85 | G9: 4782.06 | H9: 0.01141618069 | I9: 0.8676263427
A10: ED-28428 | B10: SETOP | C10: FORNECIMENTO E COLOCAÇÃO DE PLACA DE OBRA EM CHAPA GALVANIZADA #26, ESP. 0,45MM, DIMENSÃO (4X3)M, PLOTADA COM ADESIVO VINÍLICO, AFIXADA COM REBITES 4,8X40MM, EM ESTRUTURA METÁLICA DE METALON 20X20MM, ESP. 1,25MM, INCLUSIVE SUPORTE EM EUCALIPTO AUTOCLAVADO PINTADO COM TINTA PVA DUAS (2) DEMÃOS | D10: un | E10: 1 | F10: 4690.75 | G10: 4690.75 | H10: 0.01119819692 | I10: 0.8788245397
A11: ED-50266 | B11: SETOP | C11: LIMPEZA FINAL PARA ENTREGA DA OBRA | D11: m2 | E11: 521.06 | F11: 8.17 | G11: 4257.06 | H11: 0.01016285161 | I11: 0.8889873913
A12: 100327 | B12: SINAPI | C12: RUFO EXTERNO/INTERNO EM CHAPA DE AÇO GALVANIZADO NÚMERO 26, CORTE DE 33 CM, INCLUSO IÇAMENTO. AF_07/2019 | D12: M | E12: 50.51 | F12: 84 | G12: 4242.84 | H12: 0.0101289043 | I12: 0.8991162956
A13: ED-50155 | B13: SETOP | C13: LOCAÇÃO DE BANHEIRO QUÍMICO, DIMENSÃO (110X120X230)CM, LINHA PADRÃO, CONTENDO UMA (1) PIA/HIGIENIZADOR DE MÃOS, INCLUSIVE MANUTENÇÃO E MOBILIZAÇÃO/DESMOBILIZAÇÃO | D13: mês | E13: 4 | F13: 1037.46 | G13: 4149.84 | H13: 0.009906886005 | I13: 0.9090231816
A14: 87792 | B14: SINAPI | C14: EMBOÇO OU MASSA ÚNICA EM ARGAMASSA TRAÇO 1:2:8, PREPARO MECÂNICO COM BETONEIRA 400 L, APLICADA MANUALMENTE EM PANOS CEGOS DE FACHADA (SEM PRESENÇA DE VÃOS), ESPESSURA DE 25 MM. AF_08/2022 | D14: M2 | E14: 86.28 | F14: 46.67 | G14: 4026.68 | H14: 0.009612866939 | I14: 0.9186360485
A15: 94442 | B15: SINAPI | C15: TELHAMENTO COM TELHA CERÂMICA DE ENCAIXE, TIPO ROMANA, COM ATÉ 2 ÁGUAS, INCLUSO TRANSPORTE VERTICAL. AF_07/2019 | D15: M2 | E15: 75.5 | F15: 49.69 | G15: 3751.59 | H15: 0.008956146374 | I15: 0.9275921949
A16: ED-50761 | B16: SETOP | C16: REBOCO COM ARGAMASSA, TRAÇO 1:2:8 (CIMENTO, CAL E AREIA), ESP. 20MM, APLICAÇÃO MANUAL, PREPARO MECÂNICO | D16: m2 | E16: 86.28 | F16: 40.58 | G16: 3501.24 | H16: 0.008358487449 | I16: 0.9359506823
A17: ED-16350 | B17: SETOP | C17: LOCAÇÃO DE CONTAINER COM ISOLAMENTO TÉRMICO, TIPO 3, PARA DEPÓSITO/FERRAMENTARIA DE OBRA, COM MEDIDAS REFERENCIAIS DE (6) METROS COMPRIMENTO, (2,3) METROS LARGURA E (2,5) METROS ALTURA ÚTIL INTERNA, INCLUSIVE LIGAÇÕES ELÉTRICAS INTERNAS, EXCLUSIVE MOBILIZAÇÃO/DESMOBILIZAÇÃO E LIGAÇÕES PROVISÓRIAS EXTERNAS | D17: mês | E17: 4 | F17: 872.27 | G17: 3489.08 | H17: 0.00832945796 | I17: 0.9442801403
A18: 97650 | B18: SINAPI | C18: REMOÇÃO DE TRAMA DE MADEIRA PARA COBERTURA, DE FORMA MANUAL, SEM REAPROVEITAMENTO. AF_12/2017 | D18: M2 | E18: 380.44 | F18: 7.88 | G18: 2997.86 | H18: 0.007156771653 | I18: 0.9514369119
A19: ED-51131 | B19: SETOP | C19: CARGA MANUAL DE MATERIAL DE QUALQUER NATUREZA SOBRE CAMINHÃO, EXCLUSIVE TRANSPORTE | D19: m3 | E19: 47.78 | F19: 44.96 | G19: 2148.18 | H19: 0.005128336123 | I19: 0.9565652481
A20: 101174 | B20: SINAPI | C20: ESTACA BROCA DE CONCRETO, DIÂMETRO DE 25CM, ESCAVAÇÃO MANUAL COM TRADO CONCHA, COM ARMADURA DE ARRANQUE. AF_05/2020 | D20: M | E20: 20 | F20: 99.54 | G20: 1990.8 | H20: 0.004752623874 | I20: 0.9613178719
A21: 97652 | B21: SINAPI | C21: REMOÇÃO DE TESOURAS DE MADEIRA, COM VÃO MAIOR OU IGUAL A 8M, DE FORMA MANUAL, SEM REAPROVEITAMENTO. AF_12/2017 | D21: UN | E21: 10 | F21: 197.86 | G21: 1978.6 | H21: 0.004723498894 | I21: 0.9660413708
A22: ED-48402 | B22: SETOP | C22: COLOCAÇÃO DE CUMEEIRA GALVANIZADA TRAPEZOIDAL E = 0,50 MM, SIMPLES | D22: m | E22: 27.38 | F22: 69.34 | G22: 1898.52 | H22: 0.004532324431 | I22: 0.9705736953
A23: 97649 | B23: SINAPI | C23: REMOÇÃO DE TELHAS DE FIBROCIMENTO, METÁLICA E CERÂMICA, DE FORMA MECANIZADA, COM USO DE GUINDASTE, SEM REAPROVEITAMENTO. AF_12/2017 | D23: M2 | E23: 380.44 | F23: 4.68 | G23: 1780.45 | H23: 0.004250456689 | I23: 0.974824152
A24: 95626 | B24: SINAPI | C24: APLICAÇÃO MANUAL DE TINTA LÁTEX ACRÍLICA EM PAREDE EXTERNAS DE CASAS, DUAS DEMÃOS. AF_11/2016 | D24: M2 | E24: 86.28 | F24: 18.96 | G24: 1635.86 | H24: 0.003905277924 | I24: 0.9787294299
A25: 89529 | B25: SINAPI | C25: JOELHO 90 GRAUS, PVC, SERIE R, ÁGUA PLUVIAL, DN 100 MM, JUNTA ELÁSTICA, FORNECIDO E INSTALADO EM RAMAL DE ENCAMINHAMENTO. AF_06/2022 | D25: UN | E25: 26 | F25: 48.29 | G25: 1255.54 | H25: 0.002997342465 | I25: 0.9817267724
A26: 97914 | B26: SINAPI | C26: TRANSPORTE COM CAMINHÃO BASCULANTE DE 6 M³, EM VIA URBANA PAVIMENTADA, DMT ATÉ 30 KM (UNIDADE: M3XKM). AF_07/2020 | D26: M3XKM | E26: 353.58 | F26: 3.41 | G26: 1205.7 | H26: 0.002878359757 | I26: 0.9846051321
A27: ED-50137 | B27: SETOP | C27: MOBILIZAÇÃO E DESMOBILIZAÇÃO DE CONTAINER, INCLUSIVE CARGA, DESCARGA E TRANSPORTE EM CAMINHÃO CARROCERIA COM GUINDAUTO (MUNCK), EXCLUSIVE LOCAÇÃO DO CONTAINER | D27: un | E27: 1 | F27: 799.47 | G27: 799.47 | H27: 0.001908569524 | I27: 0.9865137016
A28: ED-49806 | B28: SETOP | C28: FORNECIMENTO DE CONCRETO ESTRUTURAL, USINADO BOMBEADO, COM FCK 30MPA, INCLUSIVE LANÇAMENTO, ADENSAMENTO E ACABAMENTO (FUNDAÇÃO) | D28: m3 | E28: 0.85 | F28: 932.59 | G28: 792.7 | H28: 0.001892407547 | I28: 0.9884061092
A29: 97651 | B29: SINAPI | C29: REMOÇÃO DE TESOURAS DE MADEIRA, COM VÃO MENOR QUE 8M, DE FORMA MANUAL, SEM REAPROVEITAMENTO. AF_12/2017 | D29: UN | E29: 9 | F29: 87.28 | G29: 785.52 | H29: 0.00187526678 | I29: 0.990281376
A30: 93358 | B30: SINAPI | C30: ESCAVAÇÃO MANUAL DE VALA COM PROFUNDIDADE MENOR OU IGUAL A 1,30 M. AF_02/2021 | D30: M3 | E30: 5.69 | F30: 88.93 | G30: 506.01 | H30: 0.001207994377 | I30: 0.9914893703
A31: ED-48298 | B31: SETOP | C31: CORTE, DOBRA E MONTAGEM DE AÇO CA-50/60, INCLUSIVE ESPAÇADOR | D31: Kg | E31: 28.6 | F31: 17.1 | G31: 489.06 | H31: 0.001167529753 | I31: 0.9926569001
A32: 94221 | B32: SINAPI | C32: CUMEEIRA PARA TELHA CERÂMICA EMBOÇADA COM ARGAMASSA TRAÇO 1:2:9 (CIMENTO, CAL E AREIA) PARA TELHADOS COM ATÉ 2 ÁGUAS, INCLUSO TRANSPORTE VERTICAL. AF_07/2019 | D32: M | E32: 14.66 | F32: 33.33 | G32: 488.61 | H32: 0.001166455471 | I32: 0.9938233556
A33: ED-48506 | B33: SETOP | C33: REMOÇÃO MANUAL DE RUFO METÁLICO, COM REAPROVEITAMENTO, INCLUSIVE AFASTAMENTO E EMPILHAMENTO, EXCLUSIVE TRANSPORTE E RETIRADA DO MATERIAL REMOVIDO NÃO REAPROVEITÁVEL | D33: m | E33: 51.11 | F33: 7.65 | G33: 390.99 | H33: 0.0009334078806 | I33: 0.9947567634
A34: 01.04.11 | B34: SUDECAP | C34: FITA ZEBRADA AMARELA PARA SINALIZAÇAO L= 7CM | D34: M | E34: 110 | F34: 3.47 | G34: 381.7 | H34: 0.0009112299241 | I34: 0.9956679934
A35: 88415 | B35: SINAPI | C35: APLICAÇÃO MANUAL DE FUNDO SELADOR ACRÍLICO EM PAREDES EXTERNAS DE CASAS. AF_06/2014 | D35: M2 | E35: 86.28 | F35: 4.27 | G35: 368.41 | H35: 0.0008795027936 | I35: 0.9965474962
A36: ED-8571 | B36: SETOP | C36: FÔRMA E DESFORMA DE COMPENSADO PLASTIFICADO, ESP. 12MM, REAPROVEITAMENTO (3X) (FUNDAÇÃO) | D36: m2 | E36: 3.7 | F36: 91.08 | G36: 336.99 | H36: 0.0008044940322 | I36: 0.9973519902
A37: 93382 | B37: SINAPI | C37: REATERRO MANUAL DE VALAS COM COMPACTAÇÃO MECANIZADA. AF_04/2016 | D37: M3 | E37: 5.69 | F37: 36.81 | G37: 209.44 | H37: 0.000499994748 | I37: 0.9978519849
A38: ED-9076 | B38: SETOP | C38: FORNECIMENTO DE ANDAIME METÁLICO TUBULAR TIPO TORRE (LOCAÇÃO), INCLUSIVE RODÍZIOS, EXCLUSIVE MONTAGEM E DESMONTAGEM | D38: mxmês | E38: 6 | F38: 25.3 | G38: 151.8 | H38: 0.0003623911514 | I38: 0.9982143761
A39: 97064 | B39: SINAPI | C39: MONTAGEM E DESMONTAGEM DE ANDAIME TUBULAR TIPO TORRE (EXCLUSIVE ANDAIME E LIMPEZA). AF_11/2017 | D39: M | E39: 6 | F39: 23.22 | G39: 139.32 | H39: 0.0003325977286 | I39: 0.9985469738
A40: ED-48438 | B40: SETOP | C40: REMOÇÃO DE CALHA EM CHAPA GALVANIZADA OU EM PVC, COM REAPROVEITAMENTO, INCLUSIVE AFASTAMENTO E EMPILHAMENTO, EXCLUSIVE TRANSPORTE E RETIRADA DO MATERIAL REMOVIDO NÃO REAPROVEITÁVEL | D40: m | E40: 23.39 | F40: 5.19 | G40: 121.39 | H40: 0.0002897935564 | I40: 0.9988367674
A41: 97624 | B41: SINAPI | C41: DEMOLIÇÃO DE ALVENARIA DE TIJOLO MACIÇO, DE FORMA MANUAL, SEM REAPROVEITAMENTO. AF_12/2017 | D41: M3 | E41: 0.97 | F41: 111.32 | G41: 107.98 | H41: 0.0002577799507 | I41: 0.9990945473
A42: 96521 | B42: SINAPI | C42: ESCAVAÇÃO MECANIZADA PARA BLOCO DE COROAMENTO OU SAPATA COM RETROESCAVADEIRA (INCLUINDO ESCAVAÇÃO PARA COLOCAÇÃO DE FÔRMAS). AF_06/2017 | D42: M3 | E42: 1.75 | F42: 55.12 | G42: 96.46 | H42: 0.0002302783298 | I42: 0.9993248257
A43: 95601 | B43: SINAPI | C43: ARRASAMENTO MECANICO DE ESTACA DE CONCRETO ARMADO, DIAMETROS DE ATÉ 40 CM. AF_05/2021 | D43: UN | E43: 5 | F43: 19.02 | G43: 95.1 | H43: 0.0002270316106 | I43: 0.9995518573
A44: 100574 | B44: SINAPI | C44: ESPALHAMENTO DE MATERIAL COM TRATOR DE ESTEIRAS. AF_11/2019 | D44: M3 | E44: 47.78 | F44: 1.65 | G44: 78.83 | H44: 0.0001881903456 | I44: 0.9997400476
A45: 96619 | B45: SINAPI | C45: LASTRO DE CONCRETO MAGRO, APLICADO EM BLOCOS DE COROAMENTO OU SAPATAS, ESPESSURA DE 5 CM. AF_08/2017 | D45: M2 | E45: 1.55 | F45: 38.95 | G45: 60.37 | H45: 0.0001441209078 | I45: 0.9998841685
A46: 96995 | B46: SINAPI | C46: REATERRO MANUAL APILOADO COM SOQUETE. AF_10/2017 | D46: M3 | E46: 0.9 | F46: 53.92 | G46: 48.52 | H46: 0.00011583148 | I46: 1

Sheet Auxiliar_ABC2 (hidden)
A1: 1 | D1: 1.1 | E1: LOCAÇÃO DE BANHEIRO QUÍMICO, DIMENSÃO (110X120X230)CM, LINHA PADRÃO, CONTENDO UMA (1) PIA/HIGIENIZADOR DE MÃOS, INCLUSIVE MANUTENÇÃO E MOBILIZAÇÃO/DESMOBILIZAÇÃO | F1: ED-50155 | G1: SETOP | H1: mês | I1: 4 | J1: 820 | K1: BDI 1 | L1: 1037.46 | M1: 3280 | N1: 4149.84
A2: 1 | D2: 1.2 | E2: LOCAÇÃO DE CONTAINER COM ISOLAMENTO TÉRMICO, TIPO 3, PARA DEPÓSITO/FERRAMENTARIA DE OBRA, COM MEDIDAS REFERENCIAIS DE (6) METROS COMPRIMENTO, (2,3) METROS LARGURA E (2,5) METROS ALTURA ÚTIL INTERNA, INCLUSIVE LIGAÇÕES ELÉTRICAS INTERNAS, EXCLUSIVE MOBILIZAÇÃO/DESMOBILIZAÇÃO E LIGAÇÕES PROVISÓRIAS EXTERNAS | F2: ED-16350 | G2: SETOP | H2: mês | I2: 4 | J2: 689.44 | K2: BDI 1 | L2: 872.27 | M2: 2757.76 | N2: 3489.08
A3: 1 | D3: 1.3 | E3: MOBILIZAÇÃO E DESMOBILIZAÇÃO DE CONTAINER, INCLUSIVE CARGA, DESCARGA E TRANSPORTE EM CAMINHÃO CARROCERIA COM GUINDAUTO (MUNCK), EXCLUSIVE LOCAÇÃO DO CONTAINER | F3: ED-50137 | G3: SETOP | H3: un | I3: 1 | J3: 631.9 | K3: BDI 1 | L3: 799.47 | M3: 631.9 | N3: 799.47
A4: 1 | D4: 1.4 | E4: FITA ZEBRADA AMARELA PARA SINALIZAÇAO L= 7CM | F4: 01.04.11 | G4: SUDECAP | H4: M | I4: 110 | J4: 2.75 | K4: BDI 1 | L4: 3.47 | M4: 302.5 | N4: 381.7
A5: 2 | D5: 2.1 | E5: FORNECIMENTO E COLOCAÇÃO DE PLACA DE OBRA EM CHAPA GALVANIZADA #26, ESP. 0,45MM, DIMENSÃO (4X3)M, PLOTADA COM ADESIVO VINÍLICO, AFIXADA COM REBITES 4,8X40MM, EM ESTRUTURA METÁLICA DE METALON 20X20MM, ESP. 1,25MM, INCLUSIVE SUPORTE EM EUCALIPTO AUTOCLAVADO PINTADO COM TINTA PVA DUAS (2) DEMÃOS | F5: ED-28428 | G5: SETOP | H5: un | I5: 1 | J5: 3707.52 | K5: BDI 1 | L5: 4690.75 | M5: 3707.52 | N5: 4690.75
A6: 3 | D6: 3.1 | E6: ENGENHEIRO CIVIL DE OBRA JUNIOR COM ENCARGOS COMPLEMENTARES | F6: 93565 | G6: SINAPI | H6: MES | I6: 4 | J6: 17112.16 | K6: BDI 1 | L6: 21650.3 | M6: 68448.64 | N6: 86601.2
A7: 3 | D7: 3.2 | E7: TÉCNICO EM SEGURANÇA DO TRABALHO COM ENCARGOS COMPLEMENTARES | F7: 100321 | G7: SINAPI | H7: MES | I7: 4 | J7: 5809.27 | K7: BDI 1 | L7: 7349.88 | M7: 23237.08 | N7: 29399.52
A8: 4 | D8: 4.1 | E8: REMOÇÃO DE TELHAS DE FIBROCIMENTO, METÁLICA E CERÂMICA, DE FORMA MECANIZADA, COM USO DE GUINDASTE, SEM REAPROVEITAMENTO. AF_12/2017 | F8: 97649 | G8: SINAPI | H8: M2 | I8: 380.44 | J8: 3.7 | K8: BDI 1 | L8: 4.68 | M8: 1407.62 | N8: 1780.45
A9: 4 | D9: 4.2 | E9: REMOÇÃO MANUAL DE RUFO METÁLICO, COM REAPROVEITAMENTO, INCLUSIVE AFASTAMENTO E EMPILHAMENTO, EXCLUSIVE TRANSPORTE E RETIRADA DO MATERIAL REMOVIDO NÃO REAPROVEITÁVEL | F9: ED-48506 | G9: SETOP | H9: m | I9: 51.11 | J9: 6.05 | K9: BDI 1 | L9: 7.65 | M9: 309.21 | N9: 390.99
A10: 4 | D10: 4.3 | E10: REMOÇÃO DE CALHA EM CHAPA GALVANIZADA OU EM PVC, COM REAPROVEITAMENTO, INCLUSIVE AFASTAMENTO E EMPILHAMENTO, EXCLUSIVE TRANSPORTE E RETIRADA DO MATERIAL REMOVIDO NÃO REAPROVEITÁVEL | F10: ED-48438 | G10: SETOP | H10: m | I10: 23.39 | J10: 4.11 | K10: BDI 1 | L10: 5.19 | M10: 96.13 | N10: 121.39
A11: 4 | D11: 4.4 | E11: REMOÇÃO DE TRAMA DE MADEIRA PARA COBERTURA, DE FORMA MANUAL, SEM REAPROVEITAMENTO. AF_12/2017 | F11: 97650 | G11: SINAPI | H11: M2 | I11: 380.44 | J11: 6.23 | K11: BDI 1 | L11: 7.88 | M11: 2370.14 | N11: 2997.86
A12: 4 | D12: 4.5 | E12: REMOÇÃO DE TESOURAS DE MADEIRA, COM VÃO MAIOR OU IGUAL A 8M, DE FORMA MANUAL, SEM REAPROVEITAMENTO. AF_12/2017 | F12: 97652 | G12: SINAPI | H12: UN | I12: 10 | J12: 156.39 | K12: BDI 1 | L12: 197.86 | M12: 1563.9 | N12: 1978.6
A13: 4 | D13: 4.6 | E13: REMOÇÃO DE TESOURAS DE MADEIRA, COM VÃO MENOR QUE 8M, DE FORMA MANUAL, SEM REAPROVEITAMENTO. AF_12/2017 | F13: 97651 | G13: SINAPI | H13: UN | I13: 9 | J13: 68.99 | K13: BDI 1 | L13: 87.28 | M13: 620.91 | N13: 785.52
A14: 4 | D14: 4.7 | E14: DEMOLIÇÃO DE ALVENARIA DE TIJOLO MACIÇO, DE FORMA MANUAL, SEM REAPROVEITAMENTO. AF_12/2017 | F14: 97624 | G14: SINAPI | H14: M3 | I14: 0.97 | J14: 87.99 | K14: BDI 1 | L14: 111.32 | M14: 85.35 | N14: 107.98
A15: 4 | D15: 4.8 | E15: CARGA MANUAL DE MATERIAL DE QUALQUER NATUREZA SOBRE CAMINHÃO, EXCLUSIVE TRANSPORTE | F15: ED-51131 | G15: SETOP | H15: m3 | I15: 46.67 | J15: 35.54 | K15: BDI 1 | L15: 44.96 | M15: 1658.65 | N15: 2098.28
A16: 4 | D16: 4.9 | E16: TRANSPORTE COM CAMINHÃO BASCULANTE DE 6 M³, EM VIA URBANA PAVIMENTADA, DMT ATÉ 30 KM (UNIDADE: M3XKM). AF_07/2020 | F16: 97914 | G16: SINAPI | H16: M3XKM | I16: 345.36 | J16: 2.7 | K16: BDI 1 | L16: 3.41 | M16: 932.47 | N16: 1177.67
A17: 4 | D17: 4.10 | E17: ESPALHAMENTO DE MATERIAL COM TRATOR DE ESTEIRAS. AF_11/2019 | F17: 100574 | G17: SINAPI | H17: M3 | I17: 46.67 | J17: 1.31 | K17: BDI 1 | L17: 1.65 | M17: 61.13 | N17: 77
A18: 4 | D18: 4.11 | E18: FORNECIMENTO DE ANDAIME METÁLICO TUBULAR TIPO TORRE (LOCAÇÃO), INCLUSIVE RODÍZIOS, EXCLUSIVE MONTAGEM E DESMONTAGEM | F18: ED-9076 | G18: SETOP | H18: mxmês | I18: 6 | J18: 20 | K18: BDI 1 | L18: 25.3 | M18: 120 | N18: 151.8
A19: 4 | D19: 4.12 | E19: MONTAGEM E DESMONTAGEM DE ANDAIME TUBULAR TIPO TORRE (EXCLUSIVE ANDAIME E LIMPEZA). AF_11/2017 | F19: 97064 | G19: SINAPI | H19: M | I19: 6 | J19: 18.36 | K19: BDI 1 | L19: 23.22 | M19: 110.16 | N19: 139.32
A20: 5 | B20: 1 | D20: 5.1.1 | E20: ESCAVAÇÃO MECANIZADA PARA BLOCO DE COROAMENTO OU SAPATA COM RETROESCAVADEIRA (INCLUINDO ESCAVAÇÃO PARA COLOCAÇÃO DE FÔRMAS). AF_06/2017 | F20: 96521 | G20: SINAPI | H20: M3 | I20: 1.75 | J20: 43.57 | K20: BDI 1 | L20: 55.12 | M20: 76.24 | N20: 96.46
A21: 5 | B21: 1 | D21: 5.1.2 | E21: ESTACA BROCA DE CONCRETO, DIÂMETRO DE 25CM, ESCAVAÇÃO MANUAL COM TRADO CONCHA, COM ARMADURA DE ARRANQUE. AF_05/2020 | F21: 101174 | G21: SINAPI | H21: M | I21: 20 | J21: 78.68 | K21: BDI 1 | L21: 99.54 | M21: 1573.6 | N21: 1990.8
A22: 5 | B22: 1 | D22: 5.1.3 | E22: ARRASAMENTO MECANICO DE ESTACA DE CONCRETO ARMADO, DIAMETROS DE ATÉ 40 CM. AF_05/2021 | F22: 95601 | G22: SINAPI | H22: UN | I22: 5 | J22: 15.04 | K22: BDI 1 | L22: 19.02 | M22: 75.2 | N22: 95.1
A23: 5 | B23: 1 | D23: 5.1.4 | E23: LASTRO DE CONCRETO MAGRO, APLICADO EM BLOCOS DE COROAMENTO OU SAPATAS, ESPESSURA DE 5 CM. AF_08/2017 | F23: 96619 | G23: SINAPI | H23: M2 | I23: 1.55 | J23: 30.79 | K23: BDI 1 | L23: 38.95 | M23: 47.72 | N23: 60.37
A24: 5 | B24: 1 | D24: 5.1.5 | E24: FÔRMA E DESFORMA DE COMPENSADO PLASTIFICADO, ESP. 12MM, REAPROVEITAMENTO (3X) (FUNDAÇÃO) | F24: ED-8571 | G24: SETOP | H24: m2 | I24: 3.7 | J24: 71.99 | K24: BDI 1 | L24: 91.08 | M24: 266.36 | N24: 336.99
A25: 5 | B25: 1 | D25: 5.1.6 | E25: CORTE, DOBRA E MONTAGEM DE AÇO CA-50/60, INCLUSIVE ESPAÇADOR | F25: ED-48298 | G25: SETOP | H25: Kg | I25: 28.6 | J25: 13.52 | K25: BDI 1 | L25: 17.1 | M25: 386.67 | N25: 489.06
A26: 5 | B26: 1 | D26: 5.1.7 | E26: FORNECIMENTO DE CONCRETO ESTRUTURAL, USINADO BOMBEADO, COM FCK 30MPA, INCLUSIVE LANÇAMENTO, ADENSAMENTO E ACABAMENTO (FUNDAÇÃO) | F26: ED-49806 | G26: SETOP | H26: m3 | I26: 0.85 | J26: 737.11 | K26: BDI 1 | L26: 932.59 | M26: 626.54 | N26: 792.7
A27: 5 | B27: 1 | D27: 5.1.8 | E27: REATERRO MANUAL APILOADO COM SOQUETE. AF_10/2017 | F27: 96995 | G27: SINAPI | H27: M3 | I27: 0.9 | J27: 42.62 | K27: BDI 1 | L27: 53.92 | M27: 38.35 | N27: 48.52
A28: 5 | B28: 1 | D28: 5.1.9 | E28: CARGA MANUAL DE MATERIAL DE QUALQUER NATUREZA SOBRE CAMINHÃO, EXCLUSIVE TRANSPORTE | F28: ED-51131 | G28: SETOP | H28: m3 | I28: 1.11 | J28: 35.54 | K28: BDI 1 | L28: 44.96 | M28: 39.44 | N28: 49.9
A29: 5 | B29: 1 | D29: 5.1.10 | E29: TRANSPORTE COM CAMINHÃO BASCULANTE DE 6 M³, EM VIA URBANA PAVIMENTADA, DMT ATÉ 30 KM (UNIDADE: M3XKM). AF_07/2020 | F29: 97914 | G29: SINAPI | H29: M3XKM | I29: 8.22 | J29: 2.7 | K29: BDI 1 | L29: 3.41 | M29: 22.19 | N29: 28.03
A30: 5 | B30: 1 | D30: 5.1.11 | E30: ESPALHAMENTO DE MATERIAL COM TRATOR DE ESTEIRAS. AF_11/2019 | F30: 100574 | G30: SINAPI | H30: M3 | I30: 1.11 | J30: 1.31 | K30: BDI 1 | L30: 1.65 | M30: 1.45 | N30: 1.83
A31: 5 | B31: 2 | D31: 5.2.1 | E31: FORNECIMENTO DE ESTRUTURA METÁLICA EM PERFIL LAMINADO, INCLUSIVE FABRICAÇÃO, TRANSPORTE, MONTAGEM E APLICAÇÃO DE FUNDO PREPARADOR ANTICORROSIVO EM SUPERFÍCIE METÁLICA, UMA (1) DEMÃO | F31: ED-49664 | G31: SETOP | H31: Kg | I31: 3492.2 | J31: 24.43 | K31: BDI 1 | L31: 30.9 | M31: 85314.44 | N31: 107908.98
A32: 5 | B32: 2 | D32: 5.2.2 | E32: TELHAMENTO COM TELHA METÁLICA TERMOACÚSTICA E = 30 MM, COM ATÉ 2 ÁGUAS, INCLUSO IÇAMENTO. AF_07/2019 | F32: 94216 | G32: SINAPI | H32: M2 | I32: 304.49 | J32: 185.5 | K32: BDI 1 | L32: 234.69 | M32: 56482.89 | N32: 71460.75
A33: 5 | B33: 2 | D33: 5.2.3 | E33: COLOCAÇÃO DE CUMEEIRA GALVANIZADA TRAPEZOIDAL E = 0,50 MM, SIMPLES | F33: ED-48402 | G33: SETOP | H33: m | I33: 27.38 | J33: 54.81 | K33: BDI 1 | L33: 69.34 | M33: 1500.69 | N33: 1898.52
A34: 5 | B34: 2 | D34: 5.2.4 | E34: TRAMA DE MADEIRA COMPOSTA POR RIPAS, CAIBROS E TERÇAS PARA TELHADOS DE ATÉ 2 ÁGUAS PARA TELHA DE ENCAIXE DE CERÂMICA OU DE CONCRETO, INCLUSO TRANSPORTE VERTICAL. AF_07/2019 | F34: 92539 | G34: SINAPI | H34: M2 | I34: 75.5 | J34: 109.71 | K34: BDI 1 | L34: 138.8 | M34: 8283.1 | N34: 10479.4
A35: 5 | B35: 2 | D35: 5.2.5 | E35: TELHAMENTO COM TELHA CERÂMICA DE ENCAIXE, TIPO ROMANA, COM ATÉ 2 ÁGUAS, INCLUSO TRANSPORTE VERTICAL. AF_07/2019 | F35: 94442 | G35: SINAPI | H35: M2 | I35: 75.5 | J35: 39.28 | K35: BDI 1 | L35: 49.69 | M35: 2965.64 | N35: 3751.59
A36: 5 | B36: 2 | D36: 5.2.6 | E36: CUMEEIRA PARA TELHA CERÂMICA EMBOÇADA COM ARGAMASSA TRAÇO 1:2:9 (CIMENTO, CAL E AREIA) PARA TELHADOS COM ATÉ 2 ÁGUAS, INCLUSO TRANSPORTE VERTICAL. AF_07/2019 | F36: 94221 | G36: SINAPI | H36: M | I36: 14.66 | J36: 26.35 | K36: BDI 1 | L36: 33.33 | M36: 386.29 | N36: 488.61
A37: 5 | B37: 2 | D37: 5.2.7 | E37: PINTURA ESMALTE EM ESTRUTURA METÁLICA, DUAS (2) DEMÃOS, INCLUSIVE UMA (1) DEMÃO FUNDO ANTICORROSIVO | F37: ED-50497 | G37: SETOP | H37: m2 | I37: 905.24 | J37: 32.91 | K37: BDI 1 | L37: 41.63 | M37: 29791.44 | N37: 37685.14
A38: 6 | D38: 6.1 | E38: ALVENARIA DE VEDAÇÃO COM TIJOLO MACIÇO REQUEIMADO, ESP. 10CM, PARA REVESTIMENTO, INCLUSIVE ARGAMASSA PARA ASSENTAMENTO | F38: ED-48227 | G38: SETOP | H38: m2 | I38: 43.14 | J38: 87.62 | K38: BDI 1 | L38: 110.85 | M38: 3779.92 | N38: 4782.06
A39: 6 | D39: 6.2 | E39: EMBOÇO OU MASSA ÚNICA EM ARGAMASSA TRAÇO 1:2:8, PREPARO MECÂNICO COM BETONEIRA 400 L, APLICADA MANUALMENTE EM PANOS CEGOS DE FACHADA (SEM PRESENÇA DE VÃOS), ESPESSURA DE 25 MM. AF_08/2022 | F39: 87792 | G39: SINAPI | H39: M2 | I39: 86.28 | J39: 36.89 | K39: BDI 1 | L39: 46.67 | M39: 3182.86 | N39: 4026.68
A40: 6 | D40: 6.3 | E40: REBOCO COM ARGAMASSA, TRAÇO 1:2:8 (CIMENTO, CAL E AREIA), ESP. 20MM, APLICAÇÃO MANUAL, PREPARO MECÂNICO | F40: ED-50761 | G40: SETOP | H40: m2 | I40: 86.28 | J40: 32.08 | K40: BDI 1 | L40: 40.58 | M40: 2767.86 | N40: 3501.24
A41: 6 | D41: 6.4 | E41: APLICAÇÃO MANUAL DE FUNDO SELADOR ACRÍLICO EM PAREDES EXTERNAS DE CASAS. AF_06/2014 | F41: 88415 | G41: SINAPI | H41: M2 | I41: 86.28 | J41: 3.38 | K41: BDI 1 | L41: 4.27 | M41: 291.62 | N41: 368.41
A42: 6 | D42: 6.5 | E42: APLICAÇÃO MANUAL DE TINTA LÁTEX ACRÍLICA EM PAREDE EXTERNAS DE CASAS, DUAS DEMÃOS. AF_11/2016 | F42: 95626 | G42: SINAPI | H42: M2 | I42: 86.28 | J42: 14.99 | K42: BDI 1 | L42: 18.96 | M42: 1293.33 | N42: 1635.86
A43: 7 | D43: 7.1 | E43: JOELHO 90 GRAUS, PVC, SERIE R, ÁGUA PLUVIAL, DN 100 MM, JUNTA ELÁSTICA, FORNECIDO E INSTALADO EM RAMAL DE ENCAMINHAMENTO. AF_06/2022 | F43: 89529 | G43: SINAPI | H43: UN | I43: 26 | J43: 38.17 | K43: BDI 1 | L43: 48.29 | M43: 992.42 | N43: 1255.54
A44: 7 | D44: 7.2 | E44: TUBO PVC, SÉRIE R, ÁGUA PLUVIAL, DN 100 MM, FORNECIDO E INSTALADO EM RAMAL DE ENCAMINHAMENTO. AF_06/2022 | F44: 89512 | G44: SINAPI | H44: M | I44: 83.05 | J44: 51.53 | K44: BDI 1 | L44: 65.19 | M44: 4279.56 | N44: 5414.02
A45: 7 | D45: 7.3 | E45: CALHA EM CHAPA DE AÇO GALVANIZADO NÚMERO 24, DESENVOLVIMENTO DE 50 CM, INCLUSO TRANSPORTE VERTICAL. AF_07/2019 | F45: 94228 | G45: SINAPI | H45: M | I45: 76.38 | J45: 100.42 | K45: BDI 1 | L45: 127.05 | M45: 7670.07 | N45: 9704.07
A46: 7 | D46: 7.4 | E46: RUFO EXTERNO/INTERNO EM CHAPA DE AÇO GALVANIZADO NÚMERO 26, CORTE DE 33 CM, INCLUSO IÇAMENTO. AF_07/2019 | F46: 100327 | G46: SINAPI | H46: M | I46: 50.51 | J46: 66.4 | K46: BDI 1 | L46: 84 | M46: 3353.86 | N46: 4242.84
A47: 7 | D47: 7.5 | E47: ESCAVAÇÃO MANUAL DE VALA COM PROFUNDIDADE MENOR OU IGUAL A 1,30 M. AF_02/2021 | F47: 93358 | G47: SINAPI | H47: M3 | I47: 5.69 | J47: 70.29 | K47: BDI 1 | L47: 88.93 | M47: 399.95 | N47: 506.01
A48: 7 | D48: 7.6 | E48: REATERRO MANUAL DE VALAS COM COMPACTAÇÃO MECANIZADA. AF_04/2016 | F48: 93382 | G48: SINAPI | H48: M3 | I48: 5.69 | J48: 29.1 | K48: BDI 1 | L48: 36.81 | M48: 165.57 | N48: 209.44
A49: 8 | D49: 8.1 | E49: LIMPEZA FINAL PARA ENTREGA DA OBRA | F49: ED-50266 | G49: SETOP | H49: m2 | I49: 521.06 | J49: 6.46 | K49: BDI 1 | L49: 8.17 | M49: 3366.04 | N49: 4257.06

Sheet CPU
A2: COMPOSIÇÕES DE CUSTO | L2: Revisão: | M2: =DADOS!D6 -> R01
L3: Data: | M3: =DADOS!D2 -> 2023-03-27
A4: Projeto: | D4: Cliente: | H4: Cliente: | L4: Bancos:
A5: =DADOS!D8 -> REFORMA DA COBERTURA DA PEM CORONEL BRITO FILHO | L5: =DADOS!D14 -> SINAPI: 02/2023 Minas Gerais SETOP: 01/2023 Minas Gerais SICRO : 10/2022 Minas Gerais SUDECAP: 12/2022 Minas Gerais
L8: BDI 1: | M8: =DADOS!D10 -> 0.2652
L9: BDI 2: | M9: =DADOS!D12 -> 0.2025
A11: =A2&" DE "&DADOS!D20&" - "&A5 -> COMPOSIÇÕES DE CUSTO DE PROJETO EXECUTIVO - REFORMA DA COBERTURA DA PEM CORONEL BRITO FILHO
A13: CÓDIGO | B13: DESCRIÇÃO | I13: Banco | J13: Unid. | K13: Coeficiente | L13: Preço Unit. | M13: Total
A15: 6 | B15: =VLOOKUP(A15,ORC!$D$45:$N$334,2,0) -> FECHAMENTO DA COBERTURA
A16: DAC-6.1 | B16: MONTAGEM DE PAREDE COM CHAPA CIMENTÍCIA 6MM ESPESSURA | I16: CPU | J16: M2 | M16: =SUM(M17:M22) -> 32.77
B17: 88309 | C17: =IF(I17="SINAPI",VLOOKUP(B17,DADOS_SINAPI,2,0),IF(I17="SETOP",VLOOKUP(B17,DADOS_SETOP,2,0),IF(I17="SICRO",VLOOKUP(B17,DADOS_SICRO,2,0),IF(I17="SUDECAP",VLOOKUP(B17,DADOS_SUDECAP,2,0),IF(I17="COTAÇÃO",VLOOKUP(B17,DADOS_COTACAO,2,0),VLOOKUP(B17,DADOS_COMPOSICAO,2,0)))))) -> PEDREIRO COM ENCARGOS COMPLEMENTARES | I17: SINAPI | J17: =IF(I17="SINAPI",VLOOKUP(B17,DADOS_SINAPI,3,0),IF(I17="SETOP",VLOOKUP(B17,DADOS_SETOP,3,0),IF(I17="SICRO",VLOOKUP(B17,DADOS_SICRO,3,0),IF(I17="SUDECAP",VLOOKUP(B17,DADOS_SUDECAP,3,0),IF(I17="COTAÇÃO",VLOOKUP(B17,DADOS_COTACAO,9,0),VLOOKUP(B17,DADOS_COMPOSICAO,10,0)))))) -> H | K17: 0.25 | L17: =TRUNC(IF(I17="SINAPI",VLOOKUP(B17,DADOS_SINAPI,4,0),IF(I17="SETOP",VLOOKUP(B17,DADOS_SETOP,4,0),IF(I17="SICRO",VLOOKUP(B17,DADOS_SICRO,4,0),IF(I17="SUDECAP",VLOOKUP(B17,DADOS_SUDECAP,4,0),IF(I17="COTAÇÃO",VLOOKUP(B17,DADOS_COTACAO,12,0),VLOOKUP(B17,DADOS_COMPOSICAO,13,0)))))),2) -> 24.43 | M17: =TRUNC(K17*L17,2) -> 6.1
B18: 39431 | C18: FITA DE PAPEL MICROPERFURADO, 50 X 150 MM, PARA TRATAMENTO DE JUNTAS DE CHAPA DE GESSO PARA DRYWALL | I18: SINAPI | J18: M | K18: 2 | L18: 0.31 | M18: =TRUNC(K18*L18,2) -> 0.62
B19: 39432 | C19: FITA DE PAPEL REFORCADA COM LAMINA DE METAL PARA REFORCO DE CANTOS DE CHAPA DE GESSO PARA DRYWALL | I19: SINAPI | J19: M | K19: 1 | L19: 2.79 | M19: 2.79
B20: 39437 | C20: PARAFUSO DRY WALL, EM ACO FOSFATIZADO, CABECA TROMBETA E PONTA AGULHA (TA), COMPRIMENTO 45 MM | I20: SINAPI | J20: UN | K20: 32 | L20: 0.34 | M20: 10.88
B21: 34357 | C21: REJUNTE CIMENTICIO, QUALQUER COR | I21: SINAPI | J21: KG | K21: 0.5 | L21: 4.11 | M21: 2.05
B22: 11063 | C22: PLACA CIMENTICIA LISA E = 6 MM, DE 1,20 X *2,50* M (SEM AMIANTO) | I22: SINAPI | J22: M2 | K22: 0.4 | L22: 25.84 | M22: 10.33
D28: RESPONSÁVEL TÉCNICO: | G28: =DADOS!D16 -> FLÁVIA CRISTINA BARBOSA
G29: =DADOS!D18 -> CREA - MG 187.842/D

Sheet COT
A2: PLANILHA DE COTAÇÕES | K2: Revisão: | L2: =DADOS!D6 -> R01
K3: Data: | L3: =DADOS!D2 -> 2023-03-27
A4: Projeto: | D4: Responsável: | G4: Cliente: | K4: Bancos:
A5: =DADOS!D8 -> REFORMA DA COBERTURA DA PEM CORONEL BRITO FILHO | D5: =DADOS!G8 -> 0 | K5: =DADOS!D14 -> SINAPI: 02/2023 Minas Gerais SETOP: 01/2023 Minas Gerais SICRO : 10/2022 Minas Gerais SUDECAP: 12/2022 Minas Gerais
K8: BDI 1: | L8: =DADOS!D10 -> 0.2652
K9: BDI 2: | L9: =DADOS!D12 -> 0.2025
A11: =A2&" DE "&DADOS!D20&" - "&A5 -> PLANILHA DE COTAÇÕES DE PROJETO EXECUTIVO - REFORMA DA COBERTURA DA PEM CORONEL BRITO FILHO
A13: COT-MET-001 | B13: FORNECIMENTO, MONTAGEM E INSTALAÇÃO DE COBERTURA METÁLICA COM TELHAS DE POLICARBONATO COMPATA, LARGURA DE 4,30m E COMPRIMENTO DE 24,56m, INCLUSO PINTURA | I13: UN | L13: =MEDIAN(L15:XFD17) -> 
A14: EMPRESA | B14: CIDADE | C14: LOCAL / LINK | G14: CNPJ | H14: CONTATO | I14: UN | J14: VALOR | K14: FRETE | L14: TOTAL
C24: RESPONSÁVEL TÉCNICO: | F24: =DADOS!D16 -> FLÁVIA CRISTINA BARBOSA
F25: =DADOS!D18 -> CREA - MG 187.842/D

Sheet SINAPI (hidden)
B1: SINAPI FEVEREIRO 2023
A2: CÓDIGO | B2: DESCRIÇÃO | C2: UNIDADE | D2: PREÇO
A3: 38605 | B3: ABERTURA PARA ENCAIXE DE CUBA OU LAVATORIO EM BANCADA DE MARMORE/ GRANITO OU OUTRO TIPO DE PEDRA NATURAL | C3: UN | D3: 117.28
A4: 11270 | B4: ABRACADEIRA DE LATAO PARA FIXACAO DE CABO PARA-RAIO, DIMENSOES 32 X 24 X 24 MM | C4: UN | D4: 3.84
A5: 412 | B5: ABRACADEIRA DE NYLON PARA AMARRACAO DE CABOS, COMPRIMENTO DE *230* X *7,6* MM | C5: UN | D5: 0.97
A6: 414 | B6: ABRACADEIRA DE NYLON PARA AMARRACAO DE CABOS, COMPRIMENTO DE 100 X 2,5 MM | C6: UN | D6: 0.06
A7: 410 | B7: ABRACADEIRA DE NYLON PARA AMARRACAO DE CABOS, COMPRIMENTO DE 150 X *3,6* MM | C7: UN | D7: 0.15
A8: 411 | B8: ABRACADEIRA DE NYLON PARA AMARRACAO DE CABOS, COMPRIMENTO DE 200 X *4,6* MM | C8: UN | D8: 0.19
A9: 408 | B9: ABRACADEIRA DE NYLON PARA AMARRACAO DE CABOS, COMPRIMENTO DE 390 X *4,6* MM | C9: UN | D9: 0.94
A10: 39131 | B10: ABRACADEIRA EM ACO PARA AMARRACAO DE ELETRODUTOS, TIPO D, COM 1 1/2" E CUNHA DE FIXACAO | C10: UN | D10: 3.57
A11: 394 | B11: ABRACADEIRA EM ACO PARA AMARRACAO DE ELETRODUTOS, TIPO D, COM 1 1/2" E PARAFUSO DE FIXACAO | C11: UN | D11: 3.61
A12: 39130 | B12: ABRACADEIRA EM ACO PARA AMARRACAO DE ELETRODUTOS, TIPO D, COM 1 1/4" E CUNHA DE FIXACAO | C12: UN | D12: 3.26
A13: 395 | B13: ABRACADEIRA EM ACO PARA AMARRACAO DE ELETRODUTOS, TIPO D, COM 1 1/4" E PARAFUSO DE FIXACAO | C13: UN | D13: 3.48
A14: 39127 | B14: ABRACADEIRA EM ACO PARA AMARRACAO DE ELETRODUTOS, TIPO D, COM 1/2" E CUNHA DE FIXACAO | C14: UN | D14: 1.72
A15: 392 | B15: ABRACADEIRA EM ACO PARA AMARRACAO DE ELETRODUTOS, TIPO D, COM 1/2" E PARAFUSO DE FIXACAO | C15: UN | D15: 1.76
A16: 39129 | B16: ABRACADEIRA EM ACO PARA AMARRACAO DE ELETRODUTOS, TIPO D, COM 1" E CUNHA DE FIXACAO | C16: UN | D16: 2.01
A17: 393 | B17: ABRACADEIRA EM ACO PARA AMARRACAO DE ELETRODUTOS, TIPO D, COM 1" E PARAFUSO DE FIXACAO | C17: UN | D17: 2.1
A18: 39133 | B18: ABRACADEIRA EM ACO PARA AMARRACAO DE ELETRODUTOS, TIPO D, COM 2 1/2" E CUNHA DE FIXACAO | C18: UN | D18: 4.69
A19: 397 | B19: ABRACADEIRA EM ACO PARA AMARRACAO DE ELETRODUTOS, TIPO D, COM 2 1/2" E PARAFUSO DE FIXACAO | C19: UN | D19: 5.18
A20: 39132 | B20: ABRACADEIRA EM ACO PARA AMARRACAO DE ELETRODUTOS, TIPO D, COM 2" E CUNHA DE FIXACAO | C20: UN | D20: 3.75
A21: 396 | B21: ABRACADEIRA EM ACO PARA AMARRACAO DE ELETRODUTOS, TIPO D, COM 2" E PARAFUSO DE FIXACAO | C21: UN | D21: 4.02
A22: 39135 | B22: ABRACADEIRA EM ACO PARA AMARRACAO DE ELETRODUTOS, TIPO D, COM 3 1/2" E CUNHA DE FIXACAO | C22: UN | D22: 7.5
A23: 39128 | B23: ABRACADEIRA EM ACO PARA AMARRACAO DE ELETRODUTOS, TIPO D, COM 3/4" E CUNHA DE FIXACAO | C23: UN | D23: 1.87
A24: 400 | B24: ABRACADEIRA EM ACO PARA AMARRACAO DE ELETRODUTOS, TIPO D, COM 3/4" E PARAFUSO DE FIXACAO | C24: UN | D24: 1.83
A25: 39125 | B25: ABRACADEIRA EM ACO PARA AMARRACAO DE ELETRODUTOS, TIPO D, COM 3/8" E PARAFUSO DE FIXACAO | C25: UN | D25: 1.87
A26: 39134 | B26: ABRACADEIRA EM ACO PARA AMARRACAO DE ELETRODUTOS, TIPO D, COM 3" E CUNHA DE FIXACAO | C26: UN | D26: 6.25
A27: 398 | B27: ABRACADEIRA EM ACO PARA AMARRACAO DE ELETRODUTOS, TIPO D, COM 3" E PARAFUSO DE FIXACAO | C27: UN | D27: 5.76
A28: 39126 | B28: ABRACADEIRA EM ACO PARA AMARRACAO DE ELETRODUTOS, TIPO D, COM 4" E CUNHA DE FIXACAO | C28: UN | D28: 8.44
A29: 399 | B29: ABRACADEIRA EM ACO PARA AMARRACAO DE ELETRODUTOS, TIPO D, COM 4" E PARAFUSO DE FIXACAO | C29: UN | D29: 7.43
A30: 39158 | B30: ABRACADEIRA EM ACO PARA AMARRACAO DE ELETRODUTOS, TIPO ECONOMICA (GOTA), COM 8" | C30: UN | D30: 19.97
A31: 39141 | B31: ABRACADEIRA EM ACO PARA AMARRACAO DE ELETRODUTOS, TIPO U SIMPLES, COM 1 1/2" | C31: UN | D31: 1.45
A32: 39140 | B32: ABRACADEIRA EM ACO PARA AMARRACAO DE ELETRODUTOS, TIPO U SIMPLES, COM 1 1/4" | C32: UN | D32: 1.31
A33: 39137 | B33: ABRACADEIRA EM ACO PARA AMARRACAO DE ELETRODUTOS, TIPO U SIMPLES, COM 1/2" | C33: UN | D33: 0.75
A34: 39139 | B34: ABRACADEIRA EM ACO PARA AMARRACAO DE ELETRODUTOS, TIPO U SIMPLES, COM 1" | C34: UN | D34: 1.09
A35: 39143 | B35: ABRACADEIRA EM ACO PARA AMARRACAO DE ELETRODUTOS, TIPO U SIMPLES, COM 2 1/2" | C35: UN | D35: 2.99
A36: 39142 | B36: ABRACADEIRA EM ACO PARA AMARRACAO DE ELETRODUTOS, TIPO U SIMPLES, COM 2" | C36: UN | D36: 2.14
A37: 39138 | B37: ABRACADEIRA EM ACO PARA AMARRACAO DE ELETRODUTOS, TIPO U SIMPLES, COM 3/4" | C37: UN | D37: 0.8
A38: 39136 | B38: ABRACADEIRA EM ACO PARA AMARRACAO DE ELETRODUTOS, TIPO U SIMPLES, COM 3/8" | C38: UN | D38: 0.53
A39: 39144 | B39: ABRACADEIRA EM ACO PARA AMARRACAO DE ELETRODUTOS, TIPO U SIMPLES, COM 3" | C39: UN | D39: 3.48
A40: 39145 | B40: ABRACADEIRA EM ACO PARA AMARRACAO DE ELETRODUTOS, TIPO U SIMPLES, COM 4" | C40: UN | D40: 5.74
A41: 12615 | B41: ABRACADEIRA PVC, PARA CALHA PLUVIAL, DIAMETRO ENTRE *80 E 100* MM, PARA DRENAGEM PLUVIAL PREDIAL | C41: UN | D41: 14.77
A42: 11927 | B42: ABRACADEIRA, GALVANIZADA/ZINCADA, ROSCA SEM FIM, PARAFUSO INOX, LARGURA FITA *12,6 A *14 MM, D = 2" A 2 1/2" | C42: UN | D42: 11.46
A43: 11928 | B43: ABRACADEIRA, GALVANIZADA/ZINCADA, ROSCA SEM FIM, PARAFUSO INOX, LARGURA FITA *12,6 A *14 MM, D = 3" A 3 3/4" | C43: UN | D43: 13.13
A44: 11929 | B44: ABRACADEIRA, GALVANIZADA/ZINCADA, ROSCA SEM FIM, PARAFUSO INOX, LARGURA FITA *12,6 A *14 MM, D = 4" A 4 3/4" | C44: UN | D44: 20.31
A45: 36801 | B45: ACABAMENTO DE METAL CROMADO PARA REGISTRO PEQUENO, DE PAREDE, 1/2 " OU 3/4 " | C45: UN | D45: 27.25
A46: 36246 | B46: ACABAMENTO SIMPLES/CONVENCIONAL PARA FORRO PVC, TIPO "U" OU "C", COR BRANCA, COMPRIMENTO 6 M | C46: M | D46: 4.7
A47: 37600 | B47: ACESSORIO DE LIGACAO NAO ELETRICO PARA CARGAS EXPLOSIVAS, TUBO DE 6 M | C47: UN | D47: 112.99
A48: 37599 | B48: ACESSORIO INICIADOR NAO ELETRICO, TUBO DE 6 M, TEMPO DE RETARDO DE *160* MS | C48: UN | D48: 105.16
A49: 1 | B49: ACETILENO (RECARGA DE GAS ACETILENO PARA CILINDRO DE CONJUNTO OXICORTE GRANDE) NAO INCLUI TROCA/MANUTENCAO DO CILINDRO | C49: KG | D49: 92.5
A50: 3 | B50: ACIDO CLORIDRICO / ACIDO MURIATICO, DILUICAO 10% A 12% PARA USO EM LIMPEZA | C50: L | D50: 20.45
A51: 43054 | B51: ACO CA-25, 10,0 MM, OU 12,5 MM, OU 16,0 MM, OU 20,0 MM, OU 25,0 MM, VERGALHAO | C51: KG | D51: 8.94
A52: 42402 | B52: ACO CA-25, 16,0 MM, BARRA DE TRANSFERENCIA | C52: KG | D52: 8.55
A53: 42403 | B53: ACO CA-25, 20,0 MM, BARRA DE TRANSFERENCIA | C53: KG | D53: 10.96
A54: 42404 | B54: ACO CA-25, 25,0 MM, BARRA DE TRANSFERENCIA | C54: KG | D54: 10.9
A55: 42405 | B55: ACO CA-25, 32,0 MM, BARRA DE TRANSFERENCIA | C55: KG | D55: 11.61
A56: 34341 | B56: ACO CA-25, 32,0 MM, VERGALHAO | C56: KG | D56: 10.08
A57: 43053 | B57: ACO CA-25, 6,3 MM OU 8,0 MM, VERGALHAO | C57: KG | D57: 7.99
A58: 43058 | B58: ACO CA-50, 10,0 MM, OU 12,5 MM, OU 16,0 MM, OU 20,0 MM, DOBRADO E CORTADO | C58: KG | D58: 8.28
A59: 34 | B59: ACO CA-50, 10,0 MM, VERGALHAO | C59: KG | D59: 8.32
A60: 43055 | B60: ACO CA-50, 12,5 MM OU 16,0 MM, VERGALHAO | C60: KG | D60: 7.21
A61: 43056 | B61: ACO CA-50, 20,0 MM OU 25,0 MM, VERGALHAO | C61: KG | D61: 8.31
A62: 43057 | B62: ACO CA-50, 32,0 MM, VERGALHAO | C62: KG | D62: 9.13
A63: 34449 | B63: ACO CA-50, 6,3 MM, DOBRADO E CORTADO | C63: KG | D63: 9.76
A64: 32 | B64: ACO CA-50, 6,3 MM, VERGALHAO | C64: KG | D64: 8.78
A65: 33 | B65: ACO CA-50, 8,0 MM, VERGALHAO | C65: KG | D65: 8.83
A66: 43061 | B66: ACO CA-60, 4,2 MM OU 5,0 MM, DOBRADO E CORTADO | C66: KG | D66: 8.25
A67: 43059 | B67: ACO CA-60, 4,2 MM, OU 5,0 MM, OU 6,0 MM, OU 7,0 MM, VERGALHAO | C67: KG | D67: 7.88
A68: 43062 | B68: ACO CA-60, 6,0 MM OU 7,0 MM, DOBRADO E CORTADO | C68: KG | D68: 8.73
A69: 43060 | B69: ACO CA-60, 8,0 MM OU 9,5 MM, VERGALHAO | C69: KG | D69: 6.86
A70: 40410 | B70: ACOPLAMENTO RIGIDO EM FERRO FUNDIDO PARA SISTEMA DE TUBULACAO RANHURADA, DN 50 MM (2") | C70: UN | D70: 26.72
A71: 40411 | B71: ACOPLAMENTO RIGIDO EM FERRO FUNDIDO PARA SISTEMA DE TUBULACAO RANHURADA, DN 65 MM (2 1/2") | C71: UN | D71: 29
A72: 40412 | B72: ACOPLAMENTO RIGIDO EM FERRO FUNDIDO PARA SISTEMA DE TUBULACAO RANHURADA, DN 80 MM (3") | C72: UN | D72: 32.54
A73: 44254 | B73: ADAPTADOR CPVC, ROSCAVEL, COM FLANGES E ANEL DE VEDACAO, 15 MM, CAIXA D'AGUA PARA AGUA QUENTE | C73: UN | D73: 30.01
A74: 44255 | B74: ADAPTADOR CPVC, ROSCAVEL, COM FLANGES E ANEL DE VEDACAO, 22 MM, CAIXA D'AGUA PARA AGUA QUENTE | C74: UN | D74: 33.27
A75: 44256 | B75: ADAPTADOR CPVC, ROSCAVEL, COM FLANGES E ANEL DE VEDACAO, 28 MM, CAIXA D'AGUA PARA AGUA QUENTE | C75: UN | D75: 37.57
A76: 44257 | B76: ADAPTADOR CPVC, ROSCAVEL, COM FLANGES E ANEL DE VEDACAO, 35 MM, CAIXA D'AGUA PARA AGUA QUENTE | C76: UN | D76: 59.44
A77: 44258 | B77: ADAPTADOR CPVC, ROSCAVEL, COM FLANGES E ANEL DE VEDACAO, 42 MM, CAIXA D'AGUA PARA AGUA QUENTE | C77: UN | D77: 67.94
A78: 44259 | B78: ADAPTADOR CPVC, ROSCAVEL, COM FLANGES E ANEL DE VEDACAO, 54 MM, CAIXA D'AGUA PARA AGUA QUENTE | C78: UN | D78: 93.25
A79: 55 | B79: ADAPTADOR DE COMPRESSAO EM POLIPROPILENO (PP), PARA TUBO EM PEAD, 20 MM X 1/2", PARA LIGACAO PREDIAL DE AGUA (NTS 179) | C79: UN | D79: 4.86
A80: 61 | B80: ADAPTADOR DE COMPRESSAO EM POLIPROPILENO (PP), PARA TUBO EM PEAD, 20 MM X 3/4", PARA LIGACAO PREDIAL DE AGUA (NTS 179) | C80: UN | D80: 4.59
A81: 62 | B81: ADAPTADOR DE COMPRESSAO EM POLIPROPILENO (PP), PARA TUBO EM PEAD, 32 MM X 1", PARA LIGACAO PREDIAL DE AGUA (NTS 179) | C81: UN | D81: 9.52
A82: 103 | B82: ADAPTADOR PVC SOLDAVEL CURTO COM BOLSA E ROSCA, 110 MM X 4", PARA AGUA FRIA | C82: UN | D82: 54.99
A83: 107 | B83: ADAPTADOR PVC SOLDAVEL CURTO COM BOLSA E ROSCA, 20 MM X 1/2", PARA AGUA FRIA | C83: UN | D83: 1.03
A84: 65 | B84: ADAPTADOR PVC SOLDAVEL CURTO COM BOLSA E ROSCA, 25 MM X 3/4", PARA AGUA FRIA | C84: UN | D84: 1.13
A85: 108 | B85: ADAPTADOR PVC SOLDAVEL CURTO COM BOLSA E ROSCA, 32 MM X 1", PARA AGUA FRIA | C85: UN | D85: 2.28
A86: 110 | B86: ADAPTADOR PVC SOLDAVEL CURTO COM BOLSA E ROSCA, 40 MM X 1 1/2", PARA AGUA FRIA | C86: UN | D86: 7.91
A87: 109 | B87: ADAPTADOR PVC SOLDAVEL CURTO COM BOLSA E ROSCA, 40 MM X 1 1/4", PARA AGUA FRIA | C87: UN | D87: 4.71
A88: 111 | B88: ADAPTADOR PVC SOLDAVEL CURTO COM BOLSA E ROSCA, 50 MM X 1 1/4", PARA AGUA FRIA | C88: UN | D88: 10.7
A89: 112 | B89: ADAPTADOR PVC SOLDAVEL CURTO COM BOLSA E ROSCA, 50 MM X1 1/2", PARA AGUA FRIA | C89: UN | D89: 5.67
A90: 113 | B90: ADAPTADOR PVC SOLDAVEL CURTO COM BOLSA E ROSCA, 60 MM X 2", PARA AGUA FRIA | C90: UN | D90: 14.2
A91: 104 | B91: ADAPTADOR PVC SOLDAVEL CURTO COM BOLSA E ROSCA, 75 MM X 2 1/2", PARA AGUA FRIA | C91: UN | D91: 24.72
A92: 102 | B92: ADAPTADOR PVC SOLDAVEL CURTO COM BOLSA E ROSCA, 85 MM X 3", PARA AGUA FRIA | C92: UN | D92: 34.08
A93: 95 | B93: ADAPTADOR PVC SOLDAVEL, COM FLANGE E ANEL DE VEDACAO, 20 MM X 1/2", PARA CAIXA D'AGUA | C93: UN | D93: 14.4
A94: 96 | B94: ADAPTADOR PVC SOLDAVEL, COM FLANGE E ANEL DE VEDACAO, 25 MM X 3/4", PARA CAIXA D'AGUA | C94: UN | D94: 15.66
A95: 97 | B95: ADAPTADOR PVC SOLDAVEL, COM FLANGE E ANEL DE VEDACAO, 32 MM X 1", PARA CAIXA D'AGUA | C95: UN | D95: 23.57
A96: 98 | B96: ADAPTADOR PVC SOLDAVEL, COM FLANGE E ANEL DE VEDACAO, 40 MM X 1 1/4", PARA CAIXA D'AGUA | C96: UN | D96: 35.28
A97: 99 | B97: ADAPTADOR PVC SOLDAVEL, COM FLANGE E ANEL DE VEDACAO, 50 MM X 1 1/2", PARA CAIXA D'AGUA | C97: UN | D97: 33.34
A98: 100 | B98: ADAPTADOR PVC SOLDAVEL, COM FLANGES E ANEL DE VEDACAO, 60 MM X 2", PARA CAIXA D' AGUA | C98: UN | D98: 58.25
A99: 75 | B99: ADAPTADOR PVC SOLDAVEL, COM FLANGES LIVRES, 110 MM X 4", PARA CAIXA D' AGUA | C99: UN | D99: 339.61
A100: 83 | B100: ADAPTADOR PVC SOLDAVEL, COM FLANGES LIVRES, 75 MM X 2 1/2", PARA CAIXA D' AGUA | C100: UN | D100: 271.51
A101: 74 | B101: ADAPTADOR PVC SOLDAVEL, COM FLANGES LIVRES, 85 MM X 3", PARA CAIXA D' AGUA | C101: UN | D101: 388.18
A102: 106 | B102: ADAPTADOR PVC SOLDAVEL, LONGO, COM FLANGE LIVRE, 110 MM X 4", PARA CAIXA D' AGUA | C102: UN | D102: 490.87
A103: 88 | B103: ADAPTADOR PVC SOLDAVEL, LONGO, COM FLANGE LIVRE, 32 MM X 1", PARA CAIXA D' AGUA | C103: UN | D103: 13.8
A104: 82 | B104: ADAPTADOR PVC SOLDAVEL, LONGO, COM FLANGE LIVRE, 75 MM X 2 1/2", PARA CAIXA D' AGUA | C104: UN | D104: 258.32
A105: 105 | B105: ADAPTADOR PVC SOLDAVEL, LONGO, COM FLANGE LIVRE, 85 MM X 3", PARA CAIXA D' AGUA | C105: UN | D105: 366.03
A106: 60 | B106: ADAPTADOR PVC, COM REGISTRO, PARA PEAD, 20 MM X 3/4", PARA LIGACAO PREDIAL DE AGUA | C106: UN | D106: 6.3
A107: 72 | B107: ADAPTADOR PVC, ROSCAVEL, COM FLANGES E ANEL DE VEDACAO, 1 1/2", PARA CAIXA D'AGUA | C107: UN | D107: 63.94
A108: 67 | B108: ADAPTADOR PVC, ROSCAVEL, COM FLANGES E ANEL DE VEDACAO, 1/2", PARA CAIXA D' AGUA | C108: UN | D108: 20.67
A109: 71 | B109: ADAPTADOR PVC, ROSCAVEL, COM FLANGES E ANEL DE VEDACAO, 1", PARA CAIXA D' AGUA | C109: UN | D109: 39.49
A110: 73 | B110: ADAPTADOR PVC, ROSCAVEL, COM FLANGES E ANEL DE VEDACAO, 3/4", PARA CAIXA D' AGUA | C110: UN | D110: 19.78
A111: 37997 | B111: ADAPTADOR, CPVC, SOLDAVEL, 15 MM, PARA AGUA QUENTE | C111: UN | D111: 17.88
A112: 37998 | B112: ADAPTADOR, CPVC, SOLDAVEL, 22 MM, PARA AGUA QUENTE | C112: UN | D112: 23.94
A113: 10899 | B113: ADAPTADOR, EM LATAO, ENGATE RAPIDO 2 1/2" X ROSCA INTERNA 5 FIOS 2 1/2", PARA INSTALACAO PREDIAL DE COMBATE A INCENDIO | C113: UN | D113: 102.95
A114: 10900 | B114: ADAPTADOR, EM LATAO, ENGATE RAPIDO1 1/2" X ROSCA INTERNA 5 FIOS 2 1/2", PARA INSTALACAO PREDIAL DE COMBATE A INCENDIO | C114: UN | D114: 80.57
A115: 46 | B115: ADAPTADOR, PVC PBA, BOLSA/ROSCA, JE, DN 75 / DE 85 MM | C115: UN | D115: 51.81
A116: 47 | B116: ADAPTADOR, PVC PBA, BOLSA/ROSCA, JE, DN 100 / DE 110 MM | C116: UN | D116: 88.6
A117: 48 | B117: ADAPTADOR, PVC PBA, BOLSA/ROSCA, JE, DN 50 / DE 60 MM | C117: UN | D117: 23.11
A118: 52 | B118: ADAPTADOR, PVC PBA, PONTA/ROSCA, JE, DN 50 / DE 60 MM | C118: UN | D118: 17.56
A119: 43 | B119: ADAPTADOR, PVC PBA, PONTA/ROSCA, JE, DN 75 / DE 85 MM | C119: UN | D119: 59.25
A120: 39719 | B120: ADESIVO / COLA DE CONTATO LIQUIDO, A BASE DE RESINAS, PARA COLAGEM DE ESPUMA PARA ISOLAMENTO TERMICO FLEXIVEL | C120: L | D120: 149.11
A121: 3410 | B121: ADESIVO / COLA PARA EPS (ISOPOR) E OUTROS MATERIAIS | C121: KG | D121: 33.54
A122: 4791 | B122: ADESIVO ACRILICO DE BASE AQUOSA / COLA DE CONTATO | C122: KG | D122: 47.6
A123: 157 | B123: ADESIVO ESTRUTURAL A BASE DE RESINA EPOXI PARA INJECAO EM TRINCAS, BICOMPONENTE, BAIXA VISCOSIDADE | C123: KG | D123: 133.22
A124: 156 | B124: ADESIVO ESTRUTURAL A BASE DE RESINA EPOXI, BICOMPONENTE, FLUIDO | C124: KG | D124: 47.43
A125: 131 | B125: ADESIVO ESTRUTURAL A BASE DE RESINA EPOXI, BICOMPONENTE, PASTOSO (TIXOTROPICO) | C125: KG | D125: 40.56
A126: 21114 | B126: ADESIVO PARA TUBOS CPVC, *75* G | C126: UN | D126: 29.39
A127: 119 | B127: ADESIVO PLASTICO PARA PVC, BISNAGA COM 75 GR | C127: UN | D127: 7.45
A128: 122 | B128: ADESIVO PLASTICO PARA PVC, FRASCO COM *850* GR | C128: UN | D128: 57.32
A129: 20080 | B129: ADESIVO PLASTICO PARA PVC, FRASCO COM 175 GR | C129: UN | D129: 18.71
A130: 124 | B130: ADITIVO ACELERADOR DE PEGA E ENDURECIMENTO PARA ARGAMASSAS E CONCRETOS, LIQUIDO E ISENTO DE CLORETOS | C130: L | D130: 15.64
A131: 7334 | B131: ADITIVO ADESIVO LIQUIDO PARA ARGAMASSAS DE REVESTIMENTOS CIMENTICIOS | C131: L | D131: 15.75
A132: 123 | B132: ADITIVO IMPERMEABILIZANTE DE PEGA NORMAL PARA ARGAMASSAS E CONCRETOS SEM ARMACAO, LIQUIDO E ISENTO DE CLORETOS | C132: L | D132: 6.4
A133: 127 | B133: ADITIVO IMPERMEABILIZANTE DE PEGA ULTRARRAPIDA, LIQUIDO E ISENTO DE CLORETOS | C133: L | D133: 15.28
A134: 41373 | B134: ADITIVO LIQUIDO IMPERMEABILIZANTE CRISTALIZANTE | C134: L | D134: 21.29
A135: 133 | B135: ADITIVO LIQUIDO INCORPORADOR DE AR PARA CONCRETO E ARGAMASSA, LIQUIDO E ISENTO DE CLORETOS | C135: L | D135: 6.34
A136: 43617 | B136: ADITIVO PLASTIFICANTE E ESTABILIZADOR PARA ARGAMASSAS DE ASSENTAMENTO E REBOCO, LIQUIDO E ISENTO DE CLORETOS | C136: L | D136: 7.09
A137: 132 | B137: ADITIVO PLASTIFICANTE RETARDADOR DE PEGA E REDUTOR DE AGUA PARA CONCRETO, LIQUIDO E ISENTO DE CLORETOS | C137: L | D137: 6.58
A138: 43618 | B138: ADITIVO SUPERPLASTIFICANTE DE PEGA NORMAL PARA CONCRETO, LIQUIDO E ISENTO DE CLORETOS | C138: KG | D138: 16.56
A139: 37476 | B139: ADUELA/ GALERIA PRE-MOLDADA DE CONCRETO ARMADO, SECAO QUADRADA INTERNA DE 1,50 X 1,50 M (L X A), MISULA DE 20 X 20 CM, C = 1,00 M, ESPESSURA MIN = 15 CM, TB-45 E FCK DO CONCRETO = 30 MPA | C139: UN | D139: 4159.66
A140: 37478 | B140: ADUELA/ GALERIA PRE-MOLDADA DE CONCRETO ARMADO, SECAO RETANGULAR INTERNA DE 2,00 X 2,00 M (L X A), MISULA DE 20 X 20 CM, C = 1,00 M, ESPESSURA MIN = 15 CM, TB-45 E FCK DO CONCRETO = 30 MPA | C140: UN | D140: 5210.08
A141: 37477 | B141: ADUELA/ GALERIA PRE-MOLDADA DE CONCRETO ARMADO, SECAO RETANGULAR INTERNA DE 2,50 X 2,50 M (L X A), MISULA DE 20 X 20 CM, C = 1,00 M, ESPESSURA MIN = 15 CM, TB-45 E FCK DO CONCRETO = 30 MPA | C141: UN | D141: 7058.82
A142: 37479 | B142: ADUELA/ GALERIA PRE-MOLDADA DE CONCRETO ARMADO, SECAO RETANGULAR INTERNA DE 3,00 X 3,00 M (L X A), MISULA DE 20 X 20 CM, C = 1.00 M, ESPESSURA MIN = 20 CM, TB-45 E FCK DO CONCRETO = 30 MPA | C142: UN | D142: 8371.84
A143: 4319 | B143: AFASTADOR PARA TELHA DE FIBROCIMENTO CANALETE 90 OU KALHETAO | C143: UN | D143: 2.37
A144: 42409 | B144: AGENTE DE CURA, PROTETOR DA EVAPORACAO DA AGUA DE HIDRATACAO DO CONCRETO | C144: KG | D144: 10.43
A145: 40553 | B145: AGREGADO RECICLADO, TIPO RACHAO RECICLADO CINZA, CLASSE A | C145: M3 | D145: 48.5
A146: 6114 | B146: AJUDANTE DE ARMADOR (HORISTA) | C146: H | D146: 12.39
A147: 40912 | B147: AJUDANTE DE ARMADOR (MENSALISTA) | C147: MES | D147: 2185.38
A148: 247 | B148: AJUDANTE DE ELETRICISTA (HORISTA) | C148: H | D148: 13.86
A149: 40919 | B149: AJUDANTE DE ELETRICISTA (MENSALISTA) | C149: MES | D149: 2446
A150: 40984 | B150: AJUDANTE DE ESTRUTURAS METALICAS (MENSALISTA) | C150: MES | D150: 2582.9
A151: 44499 | B151: AJUDANTE DE ESTRUTURAS METALICAS HORISTA | C151: H | D151: 14.63
A152: 248 | B152: AJUDANTE DE OPERACAO EM GERAL (HORISTA) | C152: H | D152: 13.86
A153: 41086 | B153: AJUDANTE DE OPERACAO EM GERAL (MENSALISTA) | C153: MES | D153: 2446
A154: 34466 | B154: AJUDANTE DE PINTOR (HORISTA) | C154: H | D154: 13.86
A155: 41083 | B155: AJUDANTE DE PINTOR (MENSALISTA) | C155: MES | D155: 2446
A156: 252 | B156: AJUDANTE DE SERRALHEIRO (HORISTA) | C156: H | D156: 13.86
A157: 40909 | B157: AJUDANTE DE SERRALHEIRO (MENSALISTA) | C157: MES | D157: 2446
A158: 242 | B158: AJUDANTE ESPECIALIZADO (HORISTA) | C158: H | D158: 13.88
A159: 41085 | B159: AJUDANTE ESPECIALIZADO (MENSALISTA) | C159: MES | D159: 2449.4
A160: 427 | B160: ALCA PREFORMADA DE CONTRA POSTE, EM ACO GALVANIZADO, PARA CABO 3/16", COMPRIMENTO *860* MM | C160: UN | D160: 8.51
A161: 417 | B161: ALCA PREFORMADA DE DISTRIBUICAO, EM ACO GALVANIZADO, PARA CABO DE ALUMINIO DIAMETRO 16 A 25 MM | C161: UN | D161: 4.01
A162: 11273 | B162: ALCA PREFORMADA DE DISTRIBUICAO, EM ACO GALVANIZADO, PARA CONDUTORES DE ALUMINIO AWG 1/0 (CAA 6/1 OU CA 7 FIOS) | C162: UN | D162: 12.45
A163: 11272 | B163: ALCA PREFORMADA DE DISTRIBUICAO, EM ACO GALVANIZADO, PARA CONDUTORES DE ALUMINIO AWG 2 (CAA 6/1 OU CA 7 FIOS) | C163: UN | D163: 7.51
A164: 11275 | B164: ALCA PREFORMADA DE SERVICO, EM ACO GALVANIZADO, PARA CONDUTORES DE ALUMINIO AWG 4 (CAA 6/1) | C164: UN | D164: 3.01
A165: 11274 | B165: ALCA PREFORMADA DE SERVICO, EM ACO GALVANIZADO, PARA CONDUTORES DE ALUMINIO AWG 6 (CAA 6/1) | C165: UN | D165: 2.3
A166: 38470 | B166: ALICATE DE CORTE DIAGONAL 6 " COM ISOLAMENTO | C166: UN | D166: 36
A167: 38547 | B167: ALICATE DE CRIMPAR RJ11, RJ12 E RJ45 | C167: UN | D167: 98.24
A168: 38469 | B168: ALICATE DE PRESSAO PARA SOLDA DE CHAPA 18 " | C168: UN | D168: 105.63
A169: 38467 | B169: ALICATE DE PRESSAO 11 " PARA SOLDA, TIPO C | C169: UN | D169: 59.43
A170: 38468 | B170: ALICATE DE PRESSAO 11 " PARA SOLDA, TIPO U | C170: UN | D170: 65.4
A171: 38471 | B171: ALICATE PARA ANEIS DE PISTAO, CAPACIDADE 50 A 100 MM | C171: UN | D171: 84.93
A172: 37370 | B172: ALIMENTACAO - HORISTA (COLETADO CAIXA - ENCARGOS COMPLEMENTARES) | C172: H | D172: 1.69
A173: 40862 | B173: ALIMENTACAO - MENSALISTA (COLETADO CAIXA - ENCARGOS COMPLEMENTARES) | C173: MES | D173: 319.56
A174: 10658 | B174: ALISADORA DE CONCRETO COM MOTOR A GASOLINA DE 5,5 HP, PESO COM MOTOR DE 78 KG, 4 PAS | C174: UN | D174: 8364.5
A175: 253 | B175: ALMOXARIFE (HORISTA) | C175: H | D175: 18.55
A176: 40809 | B176: ALMOXARIFE (MENSALISTA) | C176: MES | D176: 3270.79
A177: 42428 | B177: ALONGADOR COM TRES ALTURAS, EM TUBO DE ACO CARBONO, PINTURA NO PROCESSO ELETROSTATICO - EQUIPAMENTO DE GINASTICA PARA ACADEMIA AO AR LIVRE / ACADEMIA DA TERCEIRA IDADE - ATI | C177: UN | D177: 2251
A178: 583 | B178: ALUMINIO ANODIZADO | C178: KG | D178: 65
A179: 301 | B179: ANEL BORRACHA PARA TUBO ESGOTO PREDIAL, DN 100 MM (NBR 5688) | C179: UN | D179: 3
A180: 296 | B180: ANEL BORRACHA PARA TUBO ESGOTO PREDIAL, DN 50 MM (NBR 5688) | C180: UN | D180: 1.69
A181: 297 | B181: ANEL BORRACHA PARA TUBO ESGOTO PREDIAL, DN 75 MM (NBR 5688) | C181: UN | D181: 2.49
A182: 299 | B182: ANEL BORRACHA, DN 100 MM, PARA TUBO SERIE REFORCADA ESGOTO PREDIAL | C182: UN | D182: 3.52
A183: 300 | B183: ANEL BORRACHA, DN 150 MM, PARA TUBO SERIE REFORCADA ESGOTO PREDIAL | C183: UN | D183: 12.18
A184: 20085 | B184: ANEL BORRACHA, DN 50 MM, PARA TUBO SERIE REFORCADA ESGOTO PREDIAL | C184: UN | D184: 2.22
A185: 298 | B185: ANEL BORRACHA, DN 75 MM, PARA TUBO SERIE REFORCADA ESGOTO PREDIAL | C185: UN | D185: 2.7
A186: 311 | B186: ANEL BORRACHA, PARA TUBO PVC DEFOFO, DN 100 MM (NBR 7665) | C186: UN | D186: 10.04
A187: 318 | B187: ANEL BORRACHA, PARA TUBO PVC DEFOFO, DN 150 MM (NBR 7665) | C187: UN | D187: 20.22
A188: 319 | B188: ANEL BORRACHA, PARA TUBO PVC DEFOFO, DN 200 MM (NBR 7665) | C188: UN | D188: 31.71
A189: 303 | B189: ANEL BORRACHA, PARA TUBO PVC, REDE COLETOR ESGOTO, DN 100 MM (NBR 7362) | C189: UN | D189: 3.32
A190: 305 | B190: ANEL BORRACHA, PARA TUBO PVC, REDE COLETOR ESGOTO, DN 150 MM (NBR 7362) | C190: UN | D190: 10.45
A191: 306 | B191: ANEL BORRACHA, PARA TUBO PVC, REDE COLETOR ESGOTO, DN 200 MM (NBR 7362) | C191: UN | D191: 15.85
A192: 307 | B192: ANEL BORRACHA, PARA TUBO PVC, REDE COLETOR ESGOTO, DN 250 MM (NBR 7362) | C192: UN | D192: 40.06
A193: 309 | B193: ANEL BORRACHA, PARA TUBO PVC, REDE COLETOR ESGOTO, DN 350 MM (NBR 7362) | C193: UN | D193: 65.62
A194: 310 | B194: ANEL BORRACHA, PARA TUBO PVC, REDE COLETOR ESGOTO, DN 400 MM (NBR 7362) | C194: UN | D194: 90.95
A195: 328 | B195: ANEL BORRACHA, PARA TUBO/CONEXAO PVC PBA, DN 100 MM, PARA REDE AGUA | C195: UN | D195: 7.95
A196: 325 | B196: ANEL BORRACHA, PARA TUBO/CONEXAO PVC PBA, DN 50 MM, PARA REDE AGUA | C196: UN | D196: 2.34
A197: 20326 | B197: ANEL BORRACHA, PARA TUBO/CONEXAO PVC PBA, DN 60 MM, PARA REDE AGUA | C197: UN | D197: 4.29
A198: 329 | B198: ANEL BORRACHA, PARA TUBO/CONEXAO PVC PBA, DN 75 MM, PARA REDE AGUA | C198: UN | D198: 6.65
A199: 308 | B199: ANEL BORRACHA, PARA TUBO, PVC REDE COLETOR ESGOTO, DN 300 MM (NBR 7362) | C199: UN | D199: 89.4
A200: 39642 | B200: ANEL DE BORRACHA PARA VEDACAO DE DUTO PEAD CORRUGADO PARA ELETRICA, DN 1 1/2" (NBR 15715) | C200: UN | D200: 2.94
... 12255 more rows

Sheet SETOP (hidden)
B1: SETOP JANEIRO 2023
A2: CÓDIGO | B2: DESCRIÇÃO | C2: UNIDADE | D2: PREÇO
A3: 8662 | B3: MOBILIZAÇÃO E DESMOBILIZAÇÃO DE OBRA
A4: 8700 | B4: OBRAS EM CENTRO URBANO OU REGIÃO LIMÍTROFE
A5: ED-50394 | B5: MOBILIZAÇÃO E DESMOBILIZAÇÃO DE OBRA EM CENTRO URBANO OU REGIÃO LIMÍTROFE COM VALOR ACIMA DE 3.000.000,01 | C5: % | D5: 0.2
A6: ED-50392 | B6: MOBILIZAÇÃO E DESMOBILIZAÇÃO DE OBRA EM CENTRO URBANO OU REGIÃO LIMÍTROFE COM VALOR ATÉ O VALOR DE 1.000.000,00 | C6: % | D6: 0.5
A7: ED-50393 | B7: MOBILIZAÇÃO E DESMOBILIZAÇÃO DE OBRA EM CENTRO URBANO OU REGIÃO LIMÍTROFE COM VALOR ENTRE 1.000.000,01 E 3.000.000,00 | C7: % | D7: 0.3
A8: ED-29823 | B8: TAPUME FIXO DE PROTEÇÃO PARA FECHAMENTO DE OBRA EM TELHA METÁLICA GALVANIZADA, TIPO TRAPEZOIDAL, ESP. 0,5MM, COM MÓDULO NA DIMENSÃO DE (300X220)CM, COM REAPROVEITAMENTO, EXCLUSIVE PINTURA ESMALTE, INCLUSIVE PONTALETE E FIXAÇÃO | C8: m2 | D8: 58.23
A9: 8701 | B9: OBRA DISTANTE DE CENTRO URBANO
A10: ED-50391 | B10: MOBILIZAÇÃO E DESMOBILIZAÇÃO OBRA DISTANTE DE CENTRO URBANO COM ACIMA DE 3.000.000,01 | C10: % | D10: 1
A11: ED-50390 | B11: MOBILIZAÇÃO E DESMOBILIZAÇÃO OBRA DISTANTE DE CENTRO URBANO COM ENTRE 1.000.000,01 E 3.000.000,00 | C11: % | D11: 1.5
A12: ED-50389 | B12: MOBILIZAÇÃO E DESMOBILIZAÇÃO OBRA DISTANTE DE CENTRO URBANO COM VALOR ATÉ O VALOR DE 1.000.000,00 | C12: % | D12: 2
A13: 8663 | B13: SERVIÇOS PRELIMINARES
A14: 8702 | B14: LIMPEZA DO TERRENO
A15: ED-50701 | B15: CAPINA MANUAL DO TERRENO, EXCLUSIVE RASTELAMENTO E QUEIMA | C15: m2 | D15: 1.18
A16: ED-28163 | B16: DESTOCAMENTO E AFASTAMENTO DE REMANESCENTE ARBÓREO, INCLUSIVE TRANSPORTE E RETIRADA DO MATERIAL ESCAVADO (EM CAÇAMBA) | C16: un | D16: 408.37
A17: ED-50703 | B17: LIMPEZA DE TERRENO, INCLUSIVE CAPINA, RASTELAMENTO COM AFASTAMENTO ATÉ VINTE (20) METROS E QUEIMA CONTROLADA | C17: m2 | D17: 2.08
A18: ED-8143 | B18: RASTELAMENTO DE ÁREA COM AFASTAMENTO DE ATÉ VINTE (20) METROS, EXCLUSIVE CAPINA OU ROÇADA MANUAL | C18: m2 | D18: 0.78
A19: ED-28162 | B19: ROÇADA MANUAL DE TERRENO COM ROÇADEIRA COSTAL, EXCLUSIVE RASTELAMENTO E QUEIMA | C19: m2 | D19: 0.17
A20: 8703 | B20: DESMATAMENTO E DESTOCAMENTO
A21: ED-50702 | B21: DESMATAMENTO, DESTOCAMENTO E LIMPEZA, INCLUSIVE TRANSPORTE ATÉ CINQUENTA (50) METROS | C21: m2 | D21: 0.49
A22: 8704 | B22: SUPRESSÃO DE ÁRVORE
A23: ED-50699 | B23: CORTE DE ÁRVORE COM MOTOSSERRA, DIÂMETRO DO TRONCO ACIMA DE TRINTA (30) CENTÍMETROS ATÉ CINQUENTA (50) CENTÍMETROS, EXCLUSIVE DESTOCAMENTO E AFASTAMENTO | C23: un | D23: 81.41
A24: ED-50697 | B24: CORTE DE ÁRVORE COM MOTOSSERRA, DIÂMETRO DO TRONCO DE QUINZE (15) CENTÍMETROS ATÉ TRINTA (30) CENTÍMETROS, EXCLUSIVE DESTOCAMENTO E AFASTAMENTO | C24: un | D24: 48.85
A25: 8706 | B25: REMOÇÃO DE TELHADO
A26: ED-48438 | B26: REMOÇÃO DE CALHA EM CHAPA GALVANIZADA OU EM PVC, COM REAPROVEITAMENTO, INCLUSIVE AFASTAMENTO E EMPILHAMENTO, EXCLUSIVE TRANSPORTE E RETIRADA DO MATERIAL REMOVIDO NÃO REAPROVEITÁVEL | C26: m | D26: 4.11
A27: ED-48446 | B27: REMOÇÃO MANUAL DE CONDUTOR EM PVC OU METÁLICO, COM REAPROVEITAMENTO, INCLUSIVE AFASTAMENTO E EMPILHAMENTO, EXCLUSIVE TRANSPORTE E RETIRADA DO MATERIAL REMOVIDO NÃO REAPROVEITÁVEL | C27: m | D27: 4.93
A28: ED-48455 | B28: REMOÇÃO MANUAL DE ENGRADAMENTO PARA TELHA TIPO CALHA ESTRUTURAL EM FIBROCIMENTO, COM REAPROVEITAMENTO, INCLUSIVE AFASTAMENTO E EMPILHAMENTO, EXCLUSIVE TRANSPORTE E RETIRADA DO MATERIAL REMOVIDO NÃO REAPROVEITÁVEL | C28: m2 | D28: 9.93
A29: ED-48457 | B29: REMOÇÃO MANUAL DE ENGRADAMENTO PARA TELHA TIPO CERÂMICA OU CONCRETO, INCLUSIVE AFASTAMENTO E EMPILHAMENTO, EXCLUSIVE TRANSPORTE E RETIRADA DO MATERIAL REMOVIDO NÃO REAPROVEITÁVEL | C29: m2 | D29: 19.86
A30: ED-48454 | B30: REMOÇÃO MANUAL DE ENGRADAMENTO PARA TELHA TIPO METÁLICA, PVC OU FIBROCIMENTO, COM REAPROVEITAMENTO, INCLUSIVE AFASTAMENTO E EMPILHAMENTO, EXCLUSIVE TRANSPORTE E RETIRADA DO MATERIAL REMOVIDO NÃO REAPROVEITÁVEL | C30: m2 | D30: 13.24
A31: ED-48506 | B31: REMOÇÃO MANUAL DE RUFO METÁLICO, COM REAPROVEITAMENTO, INCLUSIVE AFASTAMENTO E EMPILHAMENTO, EXCLUSIVE TRANSPORTE E RETIRADA DO MATERIAL REMOVIDO NÃO REAPROVEITÁVEL | C31: m | D31: 6.05
A32: ED-48512 | B32: REMOÇÃO MANUAL DE TELHA EM FIBROCIMENTO, TIPO ONDULADA, COM REAPROVEITAMENTO, INCLUSIVE AFASTAMENTO E EMPILHAMENTO, EXCLUSIVE TRANSPORTE E RETIRADA DO MATERIAL REMOVIDO NÃO REAPROVEITÁVEL | C32: m2 | D32: 11.35
A33: ED-48514 | B33: REMOÇÃO MANUAL DE TELHA CERÂMICA, COM REAPROVEITAMENTO, INCLUSIVE AFASTAMENTO E EMPILHAMENTO, EXCLUSIVE TRANSPORTE E RETIRADA DO MATERIAL REMOVIDO NÃO REAPROVEITÁVEL | C33: m2 | D33: 21.41
A34: ED-48510 | B34: REMOÇÃO MANUAL DE TELHA EM FIBROCIMENTO, TIPO CALHA ESTRUTURAL, COM REAPROVEITAMENTO, INCLUSIVE IÇAMENTO, AFASTAMENTO E EMPILHAMENTO, EXCLUSIVE TRANSPORTE E RETIRADA DO MATERIAL REMOVIDO NÃO REAPROVEITÁVEL | C34: m2 | D34: 23.4
A35: ED-48509 | B35: REMOÇÃO MANUAL DE TELHA METÁLICA OU PVC, COM REAPROVEITAMENTO, INCLUSIVE AFASTAMENTO E EMPILHAMENTO, EXCLUSIVE TRANSPORTE E RETIRADA DO MATERIAL REMOVIDO NÃO REAPROVEITÁVEL | C35: m2 | D35: 7.94
A36: 8707 | B36: DEMOLIÇÃO E REMOÇÃO DE INSTALAÇÃO
A37: ED-48500 | B37: DEMOLIÇÃO MANUAL DE TUBULAÇÕES EMBUTIDAS DE REDE (ÁGUA, ELÉTRICA, GASES, ETC.), INCLUSIVE RASGO EM ALVENARIA, REMOÇÃO DE ACESSÓRIOS DE FIXAÇÃO, AFASTAMENTO E EMPILHAMENTO, EXCLUSIVE TRANSPORTE E RETIRADA DO MATERIAL DEMOLIDO | C37: m | D37: 7.4
A38: ED-48466 | B38: REMOÇÃO MANUAL DE INTERFONE, COM REAPROVEITAMENTO, INCLUSIVE AFASTAMENTO E EMPILHAMENTO, EXCLUSIVE TRANSPORTE E RETIRADA DO MATERIAL REMOVIDO NÃO REAPROVEITÁVEL | C38: un | D38: 38.95
A39: ED-48468 | B39: REMOÇÃO MANUAL DE LUMINÁRIA COMERCIAL, EMBUTIDA OU SOBREPOR, COM REAPROVEITAMENTO, INCLUSIVE AFASTAMENTO E EMPILHAMENTO, EXCLUSIVE TRANSPORTE E RETIRADA DO MATERIAL REMOVIDO NÃO REAPROVEITÁVEL | C39: un | D39: 9.37
A40: ED-48469 | B40: REMOÇÃO MANUAL DE LUMINÁRIA COMPACTA (PLAFON, PAINEL LED, ETC.) EMBUTIDA OU SOBREPOR, COM REAPROVEITAMENTO, INCLUSIVE AFASTAMENTO E EMPILHAMENTO, EXCLUSIVE TRANSPORTE E RETIRADA DO MATERIAL REMOVIDO NÃO REAPROVEITÁVEL | C40: un | D40: 5.46
A41: ED-48499 | B41: REMOÇÃO MANUAL DE REDES DE DUTOS PARA CLIMATIZAÇÃO, INCLUSIVE AFASTAMENTO E EMPILHAMENTO, EXCLUSIVE TRANSPORTE E RETIRADA DO MATERIAL REMOVIDO NÃO REAPROVEITÁVEL | C41: m | D41: 8.22
A42: ED-48515 | B42: REMOÇÃO MANUAL DE TUBULAÇÕES EMBUTIDAS DE REDE (ÁGUA, ELÉTRICA, GASES, ETC.), COM REAPROVEITAMENTO, INCLUSIVE RASGO EM ALVENARIA, REMOÇÃO DE ACESSÓRIOS DE FIXAÇÃO, AFASTAMENTO E EMPILHAMENTO, EXCLUSIVE TRANSPORTE E RETIRADA DO MATERIAL REMOVIDO NÃO REAPROVEITÁVEL | C42: m | D42: 10.66
A43: 8708 | B43: DEMOLIÇÃO DE FORRO
A44: ED-48463 | B44: DEMOLIÇÃO MANUAL DE FORRO DE CHAPA OU PLACA DE GESSO, INCLUSIVE DEMOLIÇÃO DA ESTRUTURA DE SUSTENTAÇÃO, AFASTAMENTO E EMPILHAMENTO, EXCLUSIVE TRANSPORTE E RETIRADA DO MATERIAL DEMOLIDO | C44: m2 | D44: 4.88
A45: 8709 | B45: REMOÇÃO DE FORRO
A46: ED-48460 | B46: REMOÇÃO MANUAL DE FORRO DE PLACAS (GESSO, MINERAL, FIBRA, ISOPOR, COLMEIA, PVC, ETC.), COM REAPROVEITAMENTO, INCLUSIVE AFASTAMENTO E EMPILHAMENTO, EXCLUSIVE DEMOLIÇÃO DA ESTRUTURA DE SUSTENTAÇÃO, TRANSPORTE E RETIRADA DO MATERIAL REMOVIDO NÃO REAPROVEITÁVEL | C46: m2 | D46: 1.84
A47: ED-48459 | B47: REMOÇÃO MANUAL DE FORRO DE PLACAS (GESSO, MINERAL, FIBRA, ISOPOR, COLMEIA, PVC, ETC.), COM REAPROVEITAMENTO, INCLUSIVE DEMOLIÇÃO ESTRUTURA DE SUSTENTAÇÃO, AFASTAMENTO E EMPILHAMENTO, EXCLUSIVE TRANSPORTE E RETIRADA DO MATERIAL REMOVIDO NÃO REAPROVEITÁVEL | C47: m2 | D47: 5.53
A48: ED-48464 | B48: REMOÇÃO MANUAL DE FORRO DE TÁBUAS DE PINHO, COM REAPROVEITAMENTO, INCLUSIVE AFASTAMENTO E EMPILHAMENTO, EXCLUSIVE REMOÇÃO DA ESTRUTURA DE SUSTENTAÇÃO, TRANSPORTE E RETIRADA DO MATERIAL REMOVIDO NÃO REAPROVEITÁVEL | C48: m2 | D48: 8.71
A49: ED-28355 | B49: REMOÇÃO MANUAL ESTRUTURA OU TRAMA DE SUSTENTAÇÃO DE MADEIRA OU METÁLICA PARA FORRO, COM REAPROVEITAMENTO, INCLUSIVE AFASTAMENTO E EMPILHAMENTO, EXCLUSIVE TRANSPORTE E RETIRADA DO MATERIAL REMOVIDO NÃO REAPROVEITÁVEL | C49: m2 | D49: 3.69
A50: 8710 | B50: REMOÇÃO DE ESQUADRIA
A51: ED-48496 | B51: REMOÇÃO MANUAL DE CONJUNTO DE ALIZARES, COM REAPROVEITAMENTO, INCLUSIVE AFASTAMENTO E EMPILHAMENTO, EXCLUSIVE TRANSPORTE E RETIRADA DO MATERIAL REMOVIDO NÃO REAPROVEITÁVEL | C51: cj | D51: 3.09
A52: ED-48458 | B52: REMOÇÃO MANUAL DE CONJUNTO DE FERRAGENS (DOBRADIÇAS, FECHADURA E MAÇANETAS), COM REAPROVEITAMENTO, INCLUSIVE AFASTAMENTO E EMPILHAMENTO, EXCLUSIVE TRANSPORTE E RETIRADA DO MATERIAL REMOVIDO NÃO REAPROVEITÁVEL | C52: un | D52: 18.85
A53: ED-48493 | B53: REMOÇÃO MANUAL DE ESQUADRIA EM MADEIRA, COM REAPROVEITAMENTO, INCLUSIVE REMOÇÃO DE MARCO/ALIZAR/GUARNIÇÕES, AFASTAMENTO E EMPILHAMENTO, EXCLUSIVE TRANSPORTE E RETIRADA DO MATERIAL REMOVIDO NÃO REAPROVEITÁVEL | C53: m2 | D53: 11.85
A54: ED-48497 | B54: REMOÇÃO MANUAL DE ESQUADRIA METÁLICA, COM REAPROVEITAMENTO, INCLUSIVE MARCO/ALIZAR/GUARNIÇÕES, AFASTAMENTO E EMPILHAMENTO, EXCLUSIVE TRANSPORTE E RETIRADA DO MATERIAL REMOVIDO NÃO REAPROVEITÁVEL | C54: m2 | D54: 16.46
A55: ED-48494 | B55: REMOÇÃO MANUAL DE FOLHA DE PORTA OU JANELA DE MADEIRA OU METÁLICA, COM REAPROVEITAMENTO, INCLUSIVE AFASTAMENTO E EMPILHAMENTO, EXCLUSIVE TRANSPORTE E RETIRADA DO MATERIAL REMOVIDO NÃO REAPROVEITÁVEL | C55: m2 | D55: 8
A56: ED-48495 | B56: REMOÇÃO MANUAL DE MARCO EM MADEIRA OU METÁLICO, COM REAPROVEITAMENTO, INCLUSIVE AFASTAMENTO E EMPILHAMENTO, EXCLUSIVE TRANSPORTE E RETIRADA DO MATERIAL REMOVIDO NÃO REAPROVEITÁVEL | C56: un | D56: 16
A57: 8711 | B57: DEMOLIÇÃO DE IMPERMEABILIZAÇÃO
A58: ED-48465 | B58: DEMOLIÇÃO MANUAL DE IMPERMEABILIZAÇÃO E PROTEÇÃO MECÂNICA, INCLUSIVE AFASTAMENTO E EMPILHAMENTO, EXCLUSIVE TRANSPORTE E RETIRADA DO MATERIAL DEMOLIDO | C58: m2 | D58: 24.42
A59: 8712 | B59: REMOÇÃO DE LOUÇA E ACESSÓRIOS
A60: ED-48467 | B60: REMOÇÃO DE LOUÇAS (LAVATÓRIO, BANHEIRA, PIA, VASO SANITÁRIO, TANQUE), COM REAPROVEITAMENTO, INCLUSIVE AFASTAMENTO E EMPILHAMENTO, EXCLUSIVE TRANSPORTE E RETIRADA DO MATERIAL REMOVIDO NÃO REAPROVEITÁVEL | C60: un | D60: 37.99
A61: ED-48470 | B61: REMOÇÃO MANUAL DE METAIS COMUNS E ACABAMENTOS (TORNEIRA, ACABAMENTO PARA REGISTRO, SIFÃO, ENGATE FLEXÍVEL, ETC.), COM REAPROVEITAMENTO, INCLUSIVE AFASTAMENTO E EMPILHAMENTO, EXCLUSIVE TRANSPORTE E RETIRADA DO MATERIAL REMOVIDO NÃO REAPROVEITÁVEL | C61: un | D61: 5.66
A62: ED-48471 | B62: REMOÇÃO MANUAL DE METAIS EMBUTIDOS (BASE DE REGISTRO, VÁLVULA DE DESCARGA, TORNEIRA ANTIVANDALISMO, ETC.), COM REAPROVEITAMENTO, INCLUSIVE AFASTAMENTO E EMPILHAMENTO, EXCLUSIVE TRANSPORTE E RETIRADA DO MATERIAL REMOVIDO NÃO REAPROVEITÁVEL | C62: un | D62: 18.08
A63: 8713 | B63: DEMOLIÇÃO E REMOÇÃO DE DIVISÓRIA E BANCADA
A64: ED-48452 | B64: DEMOLIÇÃO MANUAL DE ALVENARIA/DIVISÓRIA DE ELEMENTOS VAZADOS (COBOGÓ, ETC. ), INCLUSIVE AFASTAMENTO E EMPILHAMENTO, EXCLUSIVE TRANSPORTE E RETIRADA DO MATERIAL DEMOLIDO | C64: m2 | D64: 15.59
A65: ED-48453 | B65: DEMOLIÇÃO MANUAL DE DIVISÓRIA COMERCIAL EM LAMINADO, INCLUSIVE AFASTAMENTO E EMPILHAMENTO, EXCLUSIVE TRANSPORTE E RETIRADA DO MATERIAL DEMOLIDO | C65: m2 | D65: 6.27
A66: ED-8024 | B66: DEMOLIÇÃO MANUAL DE DIVISÓRIA DE MADEIRA, INCLUSIVE AFASTAMENTO E EMPILHAMENTO, EXCLUSIVE TRANSPORTE E RETIRADA DO MATERIAL DEMOLIDO | C66: m2 | D66: 9.56
A67: ED-48437 | B67: REMOÇÃO MANUAL DE BANCADA DE PEDRA (MÁRMORE, GRANITO, ARDÓSIA, MARMORITE, ETC.), COM REAPROVEITAMENTO, INCLUSIVE RASGO EM ALVENARIA, REMOÇÃO DE ACESSÓRIOS DE FIXAÇÃO, AFASTAMENTO E EMPILHAMENTO, EXCLUSIVE TRANSPORTE E RETIRADA DO MATERIAL REMOVIDO NÃO REAPROVEITÁVEL | C67: m2 | D67: 47.42
A68: ED-28348 | B68: REMOÇÃO MANUAL DE DIVISÓRIA EM PEDRA (MÁRMORE, GRANITO, ARDÓSIA, MARMORITE, ETC.), COM REAPROVEITAMENTO, INCLUSIVE RASGO EM ALVENARIA, REMOÇÃO DE ACESSÓRIOS DE FIXAÇÃO, AFASTAMENTO E EMPILHAMENTO, EXCLUSIVE TRANSPORTE E RETIRADA DO MATERIAL REMOVIDO NÃO REAPROVEITÁVEL | C68: m2 | D68: 39.57
A69: 8714 | B69: DEMOLIÇÃO DE ALVENARIA
A70: ED-48436 | B70: DEMOLIÇÃO MANUAL DE ALVENARIA DE TIJOLO CERÂMICO MACIÇO, INCLUSIVE AFASTAMENTO E EMPILHAMENTO, EXCLUSIVE TRANSPORTE E RETIRADA DO MATERIAL DEMOLIDO | C70: m3 | D70: 134.74
A71: ED-48435 | B71: DEMOLIÇÃO MANUAL DE ALVENARIA DE TIJOLO CERÂMICO OU BLOCO DE CONCRETO, INCLUSIVE AFASTAMENTO E EMPILHAMENTO, EXCLUSIVE TRANSPORTE E RETIRADA DO MATERIAL DEMOLIDO | C71: m3 | D71: 92.63
A72: ED-28338 | B72: DEMOLIÇÃO MANUAL DE CONSTRUÇÃO EM ALVENARIAS DE VEDAÇÃO, COM ESPESSURA MÁXIMA DE 15CM, INCLUSIVE REMOÇÃO COM REAPROVEITAMENTO DE ESQUADRIAS, AFASTAMENTO E EMPILHAMENTO, EXCLUSIVE TRANSPORTE E RETIRADA DO MATERIAL DEMOLIDO/REMOVIDO NÃO REAPROVEITÁVEL | C72: m2 | D72: 14.71
A73: 8715 | B73: DEMOLIÇÃO DE CONCRETO
A74: ED-48441 | B74: DEMOLIÇÃO MANUAL DE CONCRETO ARMADO, INCLUSIVE AFASTAMENTO E EMPILHAMENTO, EXCLUSIVE TRANSPORTE E RETIRADA DO MATERIAL DEMOLIDO | C74: m3 | D74: 423.5
A75: ED-48440 | B75: DEMOLIÇÃO MANUAL DE CONCRETO, SEM ARMAÇÃO, INCLUSIVE AFASTAMENTO E EMPILHAMENTO, EXCLUSIVE TRANSPORTE E RETIRADA DO MATERIAL DEMOLIDO | C75: m3 | D75: 256.67
A76: ED-48443 | B76: DEMOLIÇÃO MECANIZADA DE CONCRETO ARMADO, COM EQUIPAMENTO ELÉTRICO, INCLUSIVE AFASTAMENTO E EMPILHAMENTO, EXCLUSIVE TRANSPORTE E RETIRADA DO MATERIAL DEMOLIDO | C76: m3 | D76: 219.71
A77: ED-48445 | B77: DEMOLIÇÃO MECANIZADA DE CONCRETO ARMADO, COM EQUIPAMENTO PNEUMÁTICO, INCLUSIVE AFASTAMENTO E EMPILHAMENTO, EXCLUSIVE TRANSPORTE E RETIRADA DO MATERIAL DEMOLIDO | C77: m3 | D77: 307.73
A78: ED-48442 | B78: DEMOLIÇÃO MECANIZADA DE CONCRETO, SEM ARMAÇÃO, COM EQUIPAMENTO ELÉTRICO, INCLUSIVE AFASTAMENTO E EMPILHAMENTO, EXCLUSIVE TRANSPORTE E RETIRADA DO MATERIAL DEMOLIDO | C78: m3 | D78: 135.4
A79: ED-48444 | B79: DEMOLIÇÃO MECANIZADA DE CONCRETO, SEM ARMAÇÃO, COM EQUIPAMENTO PNEUMÁTICO, INCLUSIVE AFASTAMENTO E EMPILHAMENTO, EXCLUSIVE TRANSPORTE E RETIRADA DO MATERIAL DEMOLIDO | C79: m3 | D79: 188.74
A80: 8716 | B80: REMOÇÃO DE PADRÃO CONCESSIONÁRIA
A81: ED-48475 | B81: REMOÇÃO MANUAL DE PADRÃO DE ENTRADA DE ÁGUA, COM REAPROVEITAMENTO, INCLUSIVE AFASTAMENTO E EMPILHAMENTO, EXCLUSIVE TRANSPORTE E RETIRADA DO MATERIAL REMOVIDO NÃO REAPROVEITÁVEL | C81: un | D81: 86.86
A82: ED-48474 | B82: REMOÇÃO MANUAL DE PADRÃO DE ENTRADA DE ENERGIA, COM REAPROVEITAMENTO, INCLUSIVE AFASTAMENTO E EMPILHAMENTO, EXCLUSIVE TRANSPORTE E RETIRADA DO MATERIAL REMOVIDO NÃO REAPROVEITÁVEL | C82: un | D82: 218.82
A83: 8717 | B83: DEMOLIÇÃO E REMOÇÃO DE PAVIMENTAÇÃO
A84: ED-48487 | B84: DEMOLIÇÃO MANUAL DE LAJE DE CONCRETO ARMADO, COM ESPESSURA DE ATÉ 15CM, INCLUSIVE AFASTAMENTO E EMPILHAMENTO, EXCLUSIVE TRANSPORTE E RETIRADA DO MATERIAL DEMOLIDO | C84: m2 | D84: 37.04
A85: ED-48507 | B85: DEMOLIÇÃO MANUAL DE SARJETA OU SARJETÃO DE CONCRETO, INCLUSIVE AFASTAMENTO E EMPILHAMENTO, EXCLUSIVE TRANSPORTE E RETIRADA DO MATERIAL DEMOLIDO | C85: m2 | D85: 9.25
A86: ED-48489 | B86: DEMOLIÇÃO MECANIZADA DE LAJE DE CONCRETO ARMADO, COM ESPESSURA DE ATÉ 15CM, , COM EQUIPAMENTO ELÉTRICO, INCLUSIVE AFASTAMENTO E EMPILHAMENTO, EXCLUSIVE TRANSPORTE E RETIRADA DO MATERIAL DEMOLIDO | C86: m2 | D86: 19.95
A87: ED-48486 | B87: DEMOLIÇÃO MECANIZADA DE LAJE DE CONCRETO ARMADO, COM ESPESSURA DE ATÉ 15CM, , COM EQUIPAMENTO PNEUMÁTICO, INCLUSIVE AFASTAMENTO E EMPILHAMENTO, EXCLUSIVE TRANSPORTE E RETIRADA DO MATERIAL DEMOLIDO | C87: m2 | D87: 27.43
A88: ED-48492 | B88: DEMOLIÇÃO MECANIZADA DE REVESTIMENTO ASFÁLTICO, COM EQUIPAMENTO PNEUMÁTICO, INCLUSIVE AFASTAMENTO E EMPILHAMENTO, EXCLUSIVE TRANSPORTE E RETIRADA DO MATERIAL DEMOLIDO | C88: m2 | D88: 9.1
A89: ED-48490 | B89: REMOÇÃO MANUAL DE ALVENARIA POLIÉDRICA, COM REAPROVEITAMENTO, INCLUSIVE AFASTAMENTO E EMPILHAMENTO, EXCLUSIVE TRANSPORTE E RETIRADA DO MATERIAL REMOVIDO NÃO REAPROVEITÁVEL | C89: m2 | D89: 12.73
A90: ED-48488 | B90: REMOÇÃO MANUAL DE CALÇADA PORTUGUESA, COM REAPROVEITAMENTO, INCLUSIVE AFASTAMENTO E EMPILHAMENTO, EXCLUSIVE TRANSPORTE E RETIRADA DO MATERIAL REMOVIDO NÃO REAPROVEITÁVEL | C90: m2 | D90: 7.68
A91: ED-48473 | B91: REMOÇÃO MANUAL DE GUIA DE MEIO-FIO EM PEDRA (GNAISSE, BASALTO, ETC.), COM REAPROVEITAMENTO, INCLUSIVE AFASTAMENTO E EMPILHAMENTO, EXCLUSIVE TRANSPORTE E RETIRADA DO MATERIAL REMOVIDO NÃO REAPROVEITÁVEL | C91: m | D91: 18.51
A92: ED-48472 | B92: REMOÇÃO MANUAL DE GUIA DE MEIO-FIO PRÉ-MOLDADA EM CONCRETO, COM REAPROVEITAMENTO, INCLUSIVE AFASTAMENTO E EMPILHAMENTO, EXCLUSIVE TRANSPORTE E RETIRADA DO MATERIAL REMOVIDO NÃO REAPROVEITÁVEL | C92: m | D92: 9.87
A93: ED-48476 | B93: REMOÇÃO MANUAL DE PAVIMENTAÇÃO INTERTRAVADA OU SEXTAVADO EM PRÉ-MOLDADO DE CONCRETO, COM REAPROVEITAMENTO, INCLUSIVE AFASTAMENTO E EMPILHAMENTO, EXCLUSIVE TRANSPORTE E RETIRADA DO MATERIAL REMOVIDO NÃO REAPROVEITÁVEL | C93: m2 | D93: 12.73
A94: ED-48491 | B94: REMOÇÃO MANUAL DE PAVIMENTO PARALELEPÍPEDO, COM REAPROVEITAMENTO, INCLUSIVE AFASTAMENTO E EMPILHAMENTO, EXCLUSIVE TRANSPORTE E RETIRADA DO MATERIAL REMOVIDO NÃO REAPROVEITÁVEL | C94: m2 | D94: 14.14
A95: 8718 | B95: DEMOLIÇÃO E REMOÇÃO DE REVESTIMENTO
A96: ED-48504 | B96: DEMOLIÇÃO MANUAL DE LAMINADO MELAMÍNICO EM SUPERFÍCIE DE MADEIRA OU PAREDE, INCLUSIVE AFASTAMENTO E EMPILHAMENTO, EXCLUSIVE TRANSPORTE E RETIRADA DO MATERIAL DEMOLIDO | C96: m2 | D96: 9.25
A97: ED-48501 | B97: DEMOLIÇÃO MANUAL DE REBOCO OU EMBOÇO, COM ESPESSURA DE ATÉ 55MM, INCLUSIVE AFASTAMENTO E EMPILHAMENTO, EXCLUSIVE TRANSPORTE E RETIRADA DO MATERIAL DEMOLIDO | C97: m2 | D97: 8.79
A98: ED-48502 | B98: DEMOLIÇÃO MANUAL DE REVESTIMENTO CERÂMICO, AZULEJO OU LADRILHO HIDRÁULICO, INCLUSIVE AFASTAMENTO E EMPILHAMENTO, EXCLUSIVE DEMOLIÇÃO DO REBOCO OU EMBOÇO, TRANSPORTE E RETIRADA DO MATERIAL DEMOLIDO | C98: m2 | D98: 18.31
A99: ED-48503 | B99: DEMOLIÇÃO MANUAL DE REVESTIMENTO DE PEDRA (MÁRMORE, GRANITO, ARDÓSIA, ETC.), INCLUSIVE AFASTAMENTO E EMPILHAMENTO, EXCLUSIVE DEMOLIÇÃO DO REBOCO OU EMBOÇO, TRANSPORTE E RETIRADA DO MATERIAL DEMOLIDO | C99: m2 | D99: 21.98
A100: ED-48478 | B100: REMOÇÃO MANUAL DE PEITORIL DE MÁRMORE OU GRANITO, COM REAPROVEITAMENTO, INCLUSIVE AFASTAMENTO E EMPILHAMENTO, EXCLUSIVE TRANSPORTE E RETIRADA DO MATERIAL REMOVIDO NÃO REAPROVEITÁVEL | C100: m | D100: 7.2
A101: 8719 | B101: DEMOLIÇÃO E REMOÇÃO DE PISO
A102: ED-48480 | B102: DEMOLIÇÃO MANUAL DE PISO CERÂMICO OU LADRILHO HIDRÁULICO, INCLUSIVE AFASTAMENTO E EMPILHAMENTO, EXCLUSIVE DEMOLIÇÃO DE CONTRAPISO, TRANSPORTE E RETIRADA DO MATERIAL DEMOLIDO | C102: m2 | D102: 14.65
A103: ED-48479 | B103: DEMOLIÇÃO MANUAL DE PISO CIMENTADO OU CONTRAPISO DE ARGAMASSA, COM ESPESSURA MÁXIMA DE 10CM, INCLUSIVE AFASTAMENTO E EMPILHAMENTO, EXCLUSIVE TRANSPORTE E RETIRADA DO MATERIAL DEMOLIDO | C103: m2 | D103: 15.69
A104: ED-48481 | B104: DEMOLIÇÃO MANUAL DE PISO DE PEDRAS (MÁRMORE, GRANITO, ARDÓSIA, ETC.), INCLUSIVE AFASTAMENTO E EMPILHAMENTO, EXCLUSIVE DEMOLIÇÃO DE CONTRAPISO, TRANSPORTE E RETIRADA DO MATERIAL DEMOLIDO | C104: m2 | D104: 18.31
A105: ED-48483 | B105: DEMOLIÇÃO MANUAL DE PISO EM GRANILITE/MARMORITE, INCLUSIVE AFASTAMENTO E EMPILHAMENTO, EXCLUSIVE TRANSPORTE E RETIRADA DO MATERIAL DEMOLIDO | C105: m2 | D105: 19.98
A106: ED-48482 | B106: DEMOLIÇÃO MANUAL DE PISO VINÍLICO, INCLUSIVE AFASTAMENTO E EMPILHAMENTO, EXCLUSIVE TRANSPORTE E RETIRADA DO MATERIAL DEMOLIDO | C106: m2 | D106: 7.79
A107: ED-48505 | B107: DEMOLIÇÃO MANUAL DE RODAPÉ, INCLUSIVE ARGAMASSA DE ASSENTAMENTO E AFASTAMENTO, EXCLUSIVE TRANSPORTE E RETIRADA DO MATERIAL DEMOLIDO | C107: m | D107: 2.42
A108: ED-48485 | B108: REMOÇÃO MANUAL DE PISO DE TÁBUAS, COM REAPROVEITAMENTO, INCLUSIVE AFASTAMENTO E EMPILHAMENTO, EXCLUSIVE TRANSPORTE E RETIRADA DO MATERIAL REMOVIDO NÃO REAPROVEITÁVEL | C108: m2 | D108: 21.98
A109: ED-48484 | B109: REMOÇÃO MANUAL DE PISO DE TACO DE MADEIRA, COM REAPROVEITAMENTO, INCLUSIVE AFASTAMENTO E EMPILHAMENTO, EXCLUSIVE TRANSPORTE E RETIRADA DO MATERIAL REMOVIDO NÃO REAPROVEITÁVEL | C109: m2 | D109: 19.11
A110: ED-48508 | B110: REMOÇÃO MANUAL DE SOLEIRA DE MÁRMORE OU GRANITO, COM REAPROVEITAMENTO, INCLUSIVE AFASTAMENTO E EMPILHAMENTO, EXCLUSIVE TRANSPORTE E RETIRADA DO MATERIAL REMOVIDO NÃO REAPROVEITÁVEL | C110: m | D110: 7.7
A111: 8720 | B111: REMOÇÃO DE CERCA E ALAMBRADO
A112: ED-48434 | B112: REMOÇÃO MANUAL DE ALAMBRADO METÁLICO, COM REAPROVEITAMENTO, INCLUSIVE AFASTAMENTO E EMPILHAMENTO, EXCLUSIVE TRANSPORTE E RETIRADA DO MATERIAL REMOVIDO NÃO REAPROVEITÁVEL | C112: m2 | D112: 16.91
A113: ED-48439 | B113: REMOÇÃO MANUAL DE CERCA, COM REAPROVEITAMENTO, INCLUSIVE AFASTAMENTO E EMPILHAMENTO, EXCLUSIVE TRANSPORTE E RETIRADA DO MATERIAL REMOVIDO NÃO REAPROVEITÁVEL | C113: m2 | D113: 14.65
A114: ED-48449 | B114: REMOÇÃO MANUAL DE CONCERTINA, COM DIÂMETRO DE ATÉ 730MM, COM REAPROVEITAMENTO, INCLUSIVE AFASTAMENTO E EMPILHAMENTO, EXCLUSIVE TRANSPORTE E RETIRADA DO MATERIAL REMOVIDO NÃO REAPROVEITÁVEL | C114: m | D114: 2.45
A115: 8721 | B115: REMOÇÃO DE VIDRO
A116: ED-48516 | B116: REMOÇÃO MANUAL DE VIDRO EM ESQUADRIAS, COM REAPROVEITAMENTO, INCLUSIVE LIMPEZA DO ENCAIXE, AFASTAMENTO E EMPILHAMENTO, EXCLUSIVE TRANSPORTE E RETIRADA DO MATERIAL REMOVIDO NÃO REAPROVEITÁVEL | C116: m2 | D116: 5.78
A117: 8722 | B117: REMOÇÃO DE ITEM ESCOLAR
A118: ED-48498 | B118: REMOÇÃO MANUAL DE QUADRO NEGRO, COM REAPROVEITAMENTO, INCLUSIVE AFASTAMENTO E EMPILHAMENTO, EXCLUSIVE TRANSPORTE E RETIRADA DO MATERIAL REMOVIDO NÃO REAPROVEITÁVEL | C118: m2 | D118: 24.69
A119: 8664 | B119: INSTALAÇÕES PROVISÓRIAS
A120: 8723 | B120: PLACA DE OBRA
A121: ED-16660 | B121: FORNECIMENTO E COLOCAÇÃO DE PLACA DE OBRA EM CHAPA GALVANIZADA #26, ESP. 0,45 MM, PLOTADA COM ADESIVO VINÍLICO, AFIXADA COM REBITES 4,8X40 MM, EM ESTRUTURA METÁLICA DE METALON 20X20 MM, ESP. 1,25 MM, INCLUSIVE SUPORTE EM EUCALIPTO AUTOCLAVADO PINTADO COM TINTA PVA DUAS (2) DEMÃOS | C121: m2 | D121: 308.96
A122: ED-28427 | B122: FORNECIMENTO E COLOCAÇÃO DE PLACA DE OBRA EM CHAPA GALVANIZADA #26, ESP. 0,45MM, DIMENSÃO (3X1,5)M, PLOTADA COM ADESIVO VINÍLICO, AFIXADA COM REBITES 4,8X40MM, EM ESTRUTURA METÁLICA DE METALON 20X20MM, ESP. 1,25MM, INCLUSIVE SUPORTE EM EUCALIPTO AUTOCLAVADO PINTADO COM TINTA PVA DUAS (2) DEMÃOS | C122: un | D122: 1390.32
A123: ED-28428 | B123: FORNECIMENTO E COLOCAÇÃO DE PLACA DE OBRA EM CHAPA GALVANIZADA #26, ESP. 0,45MM, DIMENSÃO (4X3)M, PLOTADA COM ADESIVO VINÍLICO, AFIXADA COM REBITES 4,8X40MM, EM ESTRUTURA METÁLICA DE METALON 20X20MM, ESP. 1,25MM, INCLUSIVE SUPORTE EM EUCALIPTO AUTOCLAVADO PINTADO COM TINTA PVA DUAS (2) DEMÃOS | C123: un | D123: 3707.52
A124: ED-28429 | B124: FORNECIMENTO E COLOCAÇÃO DE PLACA DE OBRA EM CHAPA GALVANIZADA #26, ESP. 0,45MM, DIMENSÃO (6X3)M, PLOTADA COM ADESIVO VINÍLICO, AFIXADA COM REBITES 4,8X40MM, EM ESTRUTURA METÁLICA DE METALON 20X20MM, ESP. 1,25MM, INCLUSIVE SUPORTE EM EUCALIPTO AUTOCLAVADO PINTADO COM TINTA PVA DUAS (2) DEMÃOS | C124: un | D124: 5561.28
A125: 8724 | B125: INSTALAÇÃO PROVISÓRIA ÁGUA E ENERGIA
A126: ED-50150 | B126: LIGAÇÃO DE ÁGUA PROVISÓRIA PARA CANTEIRO, INCLUSIVE HIDRÔMETRO E CAVALETE PARA MEDIÇÃO DE ÁGUA - ENTRADA PRINCIPAL, EM AÇO GALVANIZADO DN 20MM (1/2") - PADRÃO CONCESSIONÁRIA | C126: un | D126: 371.6
A127: ED-50151 | B127: LIGAÇÃO PROVISÓRIA COM ENTRADA DE ENERGIA AÉREA, PADRÃO CEMIG, CARGA INSTALADA DE 15,1KVA ATÉ 30KVA, TRIFÁSICO, COM SAÍDA SUBTERRÂNEA, INCLUSIVE POSTE, CAIXA PARA MEDIDOR, DISJUNTOR, BARRAMENTO, ATERRAMENTO E ACESSÓRIOS | C127: un | D127: 1151.74
A128: 8725 | B128: ESCRITÓRIO DE OBRA
A129: ED-50125 | B129: ÁREA COBERTA EM TELHA FIBROCIMENTO PARA CENTRAL DE CORTE/DOBRA/MONTAGEM EM CANTEIRO DE OBRAS, INCLUSIVE BANCADA E INSTALAÇÕES ELÉTRICAS, EXCLUSIVE VEDAÇÕES LATERAIS | C129: m2 | D129: 121.28
A130: ED-50135 | B130: BARRACÃO DE OBRA, EM CHAPA DE COMPENSADO RESINADO, INCLUSIVE INSTALAÇÕES SANITÁRIAS E MOBILIÁRIO - PADRÃO DER-MG | C130: m2 | D130: 552.57
A131: ED-50128 | B131: BARRACÃO DE OBRA PARA DEPÓSITO E FERRAMENTARIA TIPO-I, ÁREA INTERNA 14,52M2, EM CHAPA DE COMPENSADO RESINADO, INCLUSIVE MOBILIÁRIO (OBRA DE PEQUENO PORTE, EFETIVO ATÉ 30 HOMENS), PADRÃO DER-MG | C131: un | D131: 7436.24
A132: ED-50129 | B132: BARRACÃO DE OBRA PARA DEPÓSITO E FERRAMENTARIA TIPO-II, ÁREA INTERNA 25,41M2, EM CHAPA DE COMPENSADO RESINADO, INCLUSIVE MOBILIÁRIO (OBRA DE MÉDIO PORTE, EFETIVO DE 30 A 60 HOMENS), PADRÃO DER-MG | C132: un | D132: 12261.58
A133: ED-50148 | B133: BARRACÃO DE OBRA PARA ESCRITÓRIO DA EMPREITEIRA TIPO-I, ÁREA INTERNA 18,15M2, EM CHAPA DE COMPENSADO RESINADO, INCLUSIVE MOBILIÁRIO (OBRA DE PEQUENO A MÉDIO PORTE, EFETIVO ATÉ 60 HOMENS) - PADRÃO DER-MG | C133: un | D133: 9779.83
A134: ED-50149 | B134: BARRACÃO DE OBRA PARA ESCRITÓRIO DA EMPREITEIRA TIPO-II, ÁREA INTERNA 21,78M2, EM CHAPA DE COMPENSADO RESINADO, INCLUSIVE MOBILIÁRIO (OBRA DE GRANDE PORTE, EFETIVO ACIMA 60 HOMENS) - PADRÃO DER-MG | C134: un | D134: 11317.49
A135: ED-50146 | B135: BARRACÃO DE OBRA PARA ESCRITÓRIO DA FISCALIZAÇÃO TIPO-I, ÁREA INTERNA 18,15M2, EM CHAPA DE COMPENSADO RESINADO, INCLUSIVE MOBILIÁRIO (OBRA DE PEQUENO A MÉDIO PORTE, EFETIVO ATÉ 60 HOMENS) - PADRÃO DER-MG | C135: un | D135: 9721.43
A136: ED-50147 | B136: BARRACÃO DE OBRA PARA ESCRITÓRIO DA FISCALIZAÇÃO TIPO-II, ÁREA INTERNA 21,78M2, EM CHAPA DE COMPENSADO RESINADO, INCLUSIVE MOBILIÁRIO (OBRA DE GRANDE PORTE, EFETIVO ACIMA 60 HOMENS) - PADRÃO DER-MG | C136: un | D136: 11259.09
A137: ED-50130 | B137: BARRACÃO DE OBRA PARA INSTALAÇÃO SANITÁRIA TIPO-I, ÁREA INTERNA 14,52M2, EM CHAPA DE COMPENSADO RESINADO (OBRA DE PEQUENO PORTE, EFETIVO ATÉ 30 HOMENS), PADRÃO DER-MG | C137: un | D137: 8369.9
A138: ED-50131 | B138: BARRACÃO DE OBRA PARA INSTALAÇÃO SANITÁRIA TIPO-II, ÁREA INTERNA 18,15M2, EM CHAPA DE COMPENSADO RESINADO (OBRA DE MÉDIO PORTE, EFETIVO DE 30 A 60 HOMENS), PADRÃO DER-MG | C138: un | D138: 10685.98
A139: ED-50132 | B139: BARRACÃO DE OBRA PARA INSTALAÇÃO SANITÁRIA TIPO-III, ÁREA INTERNA 25,41M2, EM CHAPA DE COMPENSADO RESINADO (OBRA DE GRANDE PORTE, EFETIVO ACIMA DE 60 HOMENS), PADRÃO DER-MG | C139: un | D139: 15044.63
A140: ED-50133 | B140: BARRACÃO DE OBRA PARA REFEITÓRIO TIPO-I, ÁREA INTERNA 18,15M2, EM CHAPA DE COMPENSADO RESINADO (OBRA DE MÉDIO PORTE, EFETIVO DE 30 A 60 HOMENS), PADRÃO DER-MG | C140: un | D140: 9321.13
A141: ED-50134 | B141: BARRACÃO DE OBRA PARA REFEITÓRIO TIPO-II, ÁREA INTERNA 25,41M2, EM CHAPA DE COMPENSADO RESINADO (OBRA DE GRANDE PORTE, EFETIVO ACIMA DE 60 HOMENS), PADRÃO DER-MG | C141: un | D141: 12573.1
A142: ED-50126 | B142: BARRACÃO DE OBRA PARA VESTIÁRIO TIPO-I, ÁREA INTERNA 25,41M2, EM CHAPA DE COMPENSADO RESINADO, INCLUSIVE MOBILIÁRIO (OBRA DE PEQUENO PORTE, EFETIVO ATÉ 30 HOMENS), PADRÃO DER-MG | C142: un | D142: 12810.55
A143: ED-50127 | B143: BARRACÃO DE OBRA PARA VESTIÁRIO TIPO-II, ÁREA INTERNA 67,76M2, EM CHAPA DE COMPENSADO RESINADO, INCLUSIVE MOBILIÁRIO (OBRA DE MÉDIO PORTE, EFETIVO DE 30 A 60 HOMENS), PADRÃO DER-MG | C143: un | D143: 24678.92
A144: ED-16341 | B144: LIGAÇÃO PROVISÓRIA DE ÁGUA E ESGOTO PARA CONTAINER (ESCRITÓRIO DE OBRA) | C144: un | D144: 304
A145: ED-16343 | B145: LIGAÇÃO PROVISÓRIA DE ÁGUA E ESGOTO PARA CONTAINER (VESTIÁRIO DE OBRA), EXCLUSIVE CHUVEIRO ELÉTRICO | C145: un | D145: 356.17
A146: ED-16342 | B146: LIGAÇÃO PROVISÓRIA DE ENERGIA ELÉTRICA PARA CONTAINER | C146: un | D146: 331
A147: ED-16356 | B147: LIGAÇÕES PROVISÓRIAS PARA CONTAINER TIPO 1 (CORRESPONDENTE AO CÓDIGO ED-16348) | C147: un | D147: 331
A148: ED-16357 | B148: LIGAÇÕES PROVISÓRIAS PARA CONTAINER TIPO 2 (CORRESPONDENTE AO CÓDIGO ED-16349) | C148: un | D148: 635
A149: ED-16358 | B149: LIGAÇÕES PROVISÓRIAS PARA CONTAINER TIPO 3 (CORRESPONDENTE AO CÓDIGO ED-16350) | C149: un | D149: 331
A150: ED-16359 | B150: LIGAÇÕES PROVISÓRIAS PARA CONTAINER TIPO 4 (CORRESPONDENTE AO CÓDIGO ED-16351) | C150: un | D150: 331
A151: ED-16360 | B151: LIGAÇÕES PROVISÓRIAS PARA CONTAINER TIPO 5 (CORRESPONDENTE AO CÓDIGO ED-16352) | C151: un | D151: 1062.33
A152: ED-16361 | B152: LIGAÇÕES PROVISÓRIAS PARA CONTAINER TIPO 6 (CORRESPONDENTE AO CÓDIGO ED-16353) | C152: un | D152: 687.17
A153: ED-16362 | B153: LIGAÇÕES PROVISÓRIAS PARA CONTAINER TIPO 7 (CORRESPONDENTE AO CÓDIGO ED-16354) | C153: un | D153: 901.55
A154: ED-16363 | B154: LIGAÇÕES PROVISÓRIAS PARA CONTAINER TIPO 8 (CORRESPONDENTE AO CÓDIGO ED-16355) | C154: un | D154: 331
A155: ED-50155 | B155: LOCAÇÃO DE BANHEIRO QUÍMICO, DIMENSÃO (110X120X230)CM, LINHA PADRÃO, CONTENDO UMA (1) PIA/HIGIENIZADOR DE MÃOS, INCLUSIVE MANUTENÇÃO E MOBILIZAÇÃO/DESMOBILIZAÇÃO | C155: mês | D155: 820
A156: ED-16348 | B156: LOCAÇÃO DE CONTAINER COM ISOLAMENTO TÉRMICO, TIPO 1, PARA ESCRITÓRIO DE OBRA, COM MEDIDAS REFERENCIAIS DE (6) METROS COMPRIMENTO, (2,3) METROS LARGURA E (2,5) METROS ALTURA ÚTIL INTERNA, INCLUSIVE AR CONDICIONADO E LIGAÇÕES ELÉTRICAS INTERNAS, EXCLUSIVE MOBILIZAÇÃO/DESMOBILIZAÇÃO E LIGAÇÕES PROVISÓRIAS EXTERNAS | C156: mês | D156: 800.88
A157: ED-16349 | B157: LOCAÇÃO DE CONTAINER COM ISOLAMENTO TÉRMICO, TIPO 2, PARA ESCRITÓRIO DE OBRA COM SANITÁRIO CONTENDO UM (1) VASO SANITÁRIO E UM (1) LAVATÓRIO, COM MEDIDAS REFERENCIAIS DE (6) METROS COMPRIMENTO, (2,3) METROS LARGURA E (2,5) METROS ALTURA ÚTIL INTERNA, INCLUSIVE AR CONDICIONADO E LIGAÇÕES ELÉTRICAS E HIDROSSANITÁRIAS INTERNAS, EXCLUSIVE MOBILIZAÇÃO/DESMOBILIZAÇÃO E LIGAÇÕES PROVISÓRIAS EXTERNAS | C157: mês | D157: 953.49
A158: ED-16350 | B158: LOCAÇÃO DE CONTAINER COM ISOLAMENTO TÉRMICO, TIPO 3, PARA DEPÓSITO/FERRAMENTARIA DE OBRA, COM MEDIDAS REFERENCIAIS DE (6) METROS COMPRIMENTO, (2,3) METROS LARGURA E (2,5) METROS ALTURA ÚTIL INTERNA, INCLUSIVE LIGAÇÕES ELÉTRICAS INTERNAS, EXCLUSIVE MOBILIZAÇÃO/DESMOBILIZAÇÃO E LIGAÇÕES PROVISÓRIAS EXTERNAS | C158: mês | D158: 689.44
A159: ED-16351 | B159: LOCAÇÃO DE CONTAINER COM ISOLAMENTO TÉRMICO, TIPO 4, PARA REFEITÓRIO DE OBRA, COM MEDIDAS REFERENCIAIS DE (6) METROS COMPRIMENTO, (2,3) METROS LARGURA E (2,5) METROS ALTURA ÚTIL INTERNA, INCLUSIVE LIGAÇÕES ELÉTRICAS INTERNAS, EXCLUSIVE MOBILIZAÇÃO/DESMOBILIZAÇÃO E LIGAÇÕES PROVISÓRIAS EXTERNAS | C159: mês | D159: 609.04
A160: ED-16352 | B160: LOCAÇÃO DE CONTAINER COM ISOLAMENTO TÉRMICO, TIPO 5, PARA VESTIÁRIO DE OBRA COM SETE (7) CHUVEIROS E DOIS (2) LAVATÓRIOS, COM MEDIDAS REFERENCIAIS DE (6) METROS COMPRIMENTO, (2,3) METROS LARGURA E (2,5) METROS ALTURA ÚTIL INTERNA, INCLUSIVE LIGAÇÕES ELÉTRICAS E HIDROSSANITÁRIAS INTERNAS, EXCLUSIVE MOBILIZAÇÃO/DESMOBILIZAÇÃO E LIGAÇÕES PROVISÓRIAS EXTERNAS | C160: mês | D160: 834.25
A161: ED-16353 | B161: LOCAÇÃO DE CONTAINER COM ISOLAMENTO TÉRMICO, TIPO 6, PARA VESTIÁRIO DE OBRA COM SETE (7) VASOS SANITÁRIOS, UM (1) MICTÓRIO E UM (1) LAVATÓRIO, COM MEDIDAS REFERENCIAIS DE (6) METROS COMPRIMENTO, (2,3) METROS LARGURA E (2,5) METROS ALTURA ÚTIL INTERNA, INCLUSIVE LIGAÇÕES ELÉTRICAS E HIDROSSANITÁRIAS INTERNAS, EXCLUSIVE MOBILIZAÇÃO/DESMOBILIZAÇÃO E LIGAÇÕES PROVISÓRIAS EXTERNAS | C161: mês | D161: 802.88
A162: ED-16354 | B162: LOCAÇÃO DE CONTAINER COM ISOLAMENTO TÉRMICO, TIPO 7, PARA VESTIÁRIO DE OBRA COM QUATRO (4) CHUVEIROS, TRÊS (3) VASOS SANITÁRIOS, UM (1) MICTÓRIO E UM (1) LAVATÓRIO, COM MEDIDAS REFERENCIAIS DE (6) METROS COMPRIMENTO, (2,3) METROS LARGURA E (2,5) METROS ALTURA ÚTIL INTERNA, INCLUSIVE LIGAÇÕES ELÉTRICAS E HIDROSSANITÁRIAS INTERNAS, EXCLUSIVE MOBILIZAÇÃO/DESMOBILIZAÇÃO E LIGAÇÕES PROVISÓRIAS EXTERNAS | C162: mês | D162: 807.6
A163: ED-16355 | B163: LOCAÇÃO DE CONTAINER COM ISOLAMENTO TÉRMICO, TIPO 8, PARA VESTIÁRIO DE OBRA COM OITO (8) BANCOS E CINCO (5) ARMÁRIOS, COM MEDIDAS REFERENCIAIS DE (6) METROS COMPRIMENTO, (2,3) METROS LARGURA E (2,5) METROS ALTURA ÚTIL INTERNA, INCLUSIVE LIGAÇÕES ELÉTRICAS INTERNAS, EXCLUSIVE MOBILIZAÇÃO/DESMOBILIZAÇÃO E LIGAÇÕES PROVISÓRIAS EXTERNAS | C163: mês | D163: 630.99
A164: ED-50137 | B164: MOBILIZAÇÃO E DESMOBILIZAÇÃO DE CONTAINER, INCLUSIVE CARGA, DESCARGA E TRANSPORTE EM CAMINHÃO CARROCERIA COM GUINDAUTO (MUNCK), EXCLUSIVE LOCAÇÃO DO CONTAINER | C164: un | D164: 631.9
A165: 8726 | B165: LOCAÇÃO DA OBRA
A166: ED-17989 | B166: LOCAÇÃO DE OBRA COM GABARITO DE TÁBUAS CORRIDAS PONTALETADAS A CADA 2,00M, REAPROVEITAMENTO (2X), INCLUSIVE ACOMPANHAMENTO DE EQUIPE TOPOGRÁFICA PARA MARCAÇÃO DE PONTO TOPOGRÁFICO | C166: m | D166: 48.91
A167: ED-50276 | B167: LOCAÇÃO TOPOGRÁFICA ACIMA DE CINQUENTA (50) PONTOS REFERENCIAIS, INCLUSIVE ESTACA (PIQUETE) DE MARCAÇÃO | C167: un | D167: 31.27
A168: ED-50275 | B168: LOCAÇÃO TOPOGRÁFICA DE VINTE UM (21) ATÉ CINQUENTA (50) PONTOS REFERENCIAIS, INCLUSIVE ESTACA (PIQUETE) DE MARCAÇÃO | C168: un | D168: 54.05
A169: ED-50274 | B169: LOCAÇÃO TOPOGRÁFICA PARA ATÉ VINTE (20) PONTOS REFERENCIAIS, INCLUSIVE ESTACA (PIQUETE) DE MARCAÇÃO | C169: un | D169: 71.77
A170: 8727 | B170: TAPUME E CERCA
A171: ED-50136 | B171: CERCA COM MOURÕES DE MADEIRA ROLIÇA, COM CINCO (5) FIOS DE ARAME FARPADO, BWG 14 (2,0MM), ALTURA DE 150CM, INCLUSIVE ESCAVAÇÃO, REATERRO COMPACTADO E FORNECIMENTO | C171: m | D171: 39.02
A172: ED-50162 | B172: PORTÃO PARA TAPUME FIXO DE PROTEÇÃO COM FECHAMENTO DE OBRA EM CHAPA DE COMPENSADO, ESP. 12MM, COM MÓDULO NA DIMENSÃO DE (110X220)CM, INCLUSIVE FERRAGENS E PINTURA LÁTEX (PVA) COM DUAS (2) DEMÃOS | C172: m2 | D172: 141.09
A173: ED-50166 | B173: REMANEJAMENTO DE TAPUME FIXO DE PROTEÇÃO PARA FECHAMENTO DE OBRA, INCLUSIVE ESCAVAÇÃO MANUAL E REATERRO COMPACTADO | C173: m2 | D173: 9.33
A174: ED-50163 | B174: TAPUME DE PROTEÇÃO PARA TRANSEUNTE EM TELA DE POLIETILENO, COM MÓDULO NA DIMENSÃO DE (150X150)CM, INCLUSIVE BASE DE APOIO EM CONCRETO MAGRO, DIMENSÃO (40X40)CM, ALTURA DE 20CM, EM PONTALETE, FORNECIMENTO E MOVIMENTAÇÃO | C174: m | D174: 17.17
A175: ED-50159 | B175: TAPUME FIXO DE PROTEÇÃO PARA FECHAMENTO DE OBRA EM CHAPA DE COMPENSADO, ESP. 12MM, COM MÓDULO NA DIMENSÃO DE (110X220)CM, INCLUSIVE PINTURA LÁTEX (PVA) COM DUAS (2) DEMÃOS, EXCLUSIVE ABERTURA PARA PORTÃO | C175: m | D175: 206.9
A176: ED-50164 | B176: TAPUME FIXO DE PROTEÇÃO PARA FECHAMENTO DE OBRA EM TELA GALVANIZADA, COM TRAMA LOSANGULAR DE 2"X2", FIO BWG 14, COM MÓDULO NA DIMENSÃO DE (300X220)CM, INCLUSIVE PINTURA ESMALTE COM DUAS (2) DEMÃOS, EXCLUSIVE ABERTURA PARA PORTÃO | C176: m2 | D176: 69.78
A177: ED-50165 | B177: TAPUME REMOVÍVEL DE PROTEÇÃO PARA FECHAMENTO DE OBRA EM TELA GALVANIZADA, COM TRAMA LOSANGULAR DE 2"X2", FIO BWG 14, COM MÓDULO NA DIMENSÃO DE (300X220)CM, INCLUSIVE BASE DE APOIO EM CONCRETO MAGRO, DIMENSÃO (40X40)CM, ALTURA DE 20CM EM PONTALETE | C177: m2 | D177: 76.81
A178: 8728 | B178: PROTEÇÃO DE TRANSEUNTE
A179: ED-27006 | B179: CONE PARA SINALIZAÇÃO/ISOLAMENTO DE ÁREAS, ALTURA 75CM, INCLUSIVE FORNECIMENTO E MOVIMENTAÇÃO | C179: un | D179: 4.61
A180: ED-50157 | B180: FITA ZEBRADA AMARELA PARA SINALIZAÇÃO ISOLAMENTO DE ÁREA, EXCLUSIVE SUPORTE PARA SUSTENTAÇÃO, INCLUSIVE FIXAÇÃO E FORNECIMENTO | C180: m | D180: 2.5
A181: ED-50156 | B181: PROTEÇÃO PARA TRANSEUNTE OU ISOLAMENTO DE ÁREA COM FITA ZEBRADA AMARELA, INCLUSIVE BASE DE APOIO EM CONCRETO MAGRO , DIMENSÃO (40X40)CM, ALTURA DE 150CM, EM PONTALETE, FORNECIMENTO E MOVIMENTAÇÃO | C181: m | D181: 7.3
A182: 8729 | B182: ANDAIME
A183: ED-28530 | B183: ANDAIME EM CAVALETE METÁLICO PARA ALVENARIA, COM CHAPA DE COMPENSADO E TÁBUA, COM REAPROVEITAMENTO, INCLUSIVE MONTAGEM/DESMONTAGEM E REMANEJAMENTO | C183: m | D183: 1.47
A184: ED-28533 | B184: ANDAIME EM CAVALETE METÁLICO PARA FORRO OU SERVIÇO EM ALTURA INTERNO, COM CHAPA DE COMPENSADO E TÁBUA, COM REAPROVEITAMENTO, INCLUSIVE MONTAGEM/DESMONTAGEM E REMANEJAMENTO | C184: m2 | D184: 1.34
A185: ED-48243 | B185: CONDUTOR/DUTO DE ENTULHO EM POLIETILENO, INCLUSIVE ACESSÓRIOS DE FIXAÇÃO, SUPORTES, MONTAGEM/DESMONTAGEM E REMANEJAMENTO | C185: mxmês | D185: 44.12
A186: ED-9075 | B186: FORNECIMENTO DE ANDAIME METÁLICO PARA FACHADA (LOCAÇÃO), INCLUSIVE PISO METÁLICO E SAPATAS, EXCLUSIVE MONTAGEM E DESMONTAGEM | C186: m2xmês | D186: 6.66
A187: ED-9076 | B187: FORNECIMENTO DE ANDAIME METÁLICO TUBULAR TIPO TORRE (LOCAÇÃO), INCLUSIVE RODÍZIOS, EXCLUSIVE MONTAGEM E DESMONTAGEM | C187: mxmês | D187: 20
A188: ED-48246 | B188: MONTAGEM E DESMONTAGEM DE ANDAIME METÁLICO PARA FACHADA COM PISO METÁLICO, EXCLUSIVE FORNECIMENTO DO ANDAIME E RODAPÉ/GUARDA-CORPO EM MADEIRA | C188: m2 | D188: 7.7
A189: ED-48245 | B189: MONTAGEM E DESMONTAGEM DE ANDAIME METÁLICO PARA FACHADA COM PISO METÁLICO, INCLUSIVE RODAPÉ/GUARDA-CORPO EM MADEIRA, EXCLUSIVE FORNECIMENTO DO ANDAIME | C189: m2 | D189: 10.91
A190: ED-9077 | B190: MONTAGEM E DESMONTAGEM DE ANDAIME METÁLICO TUBULAR TIPO TORRE, EXCLUSIVE FORNECIMENTO DO ANDAIME | C190: m | D190: 8.8
A191: ED-48249 | B191: TELA DE PROTEÇÃO, TIPO FACHADEIRA, INSTALADA EM ANDAIME METÁLICO PARA FACHADA, EXCLUSIVE ANDAIME METÁLICO, INCLUSIVE ACESSÓRIOS DE FIXAÇÃO | C191: m2 | D191: 6.26
A192: ED-48248 | B192: TELA PARA PROTEÇÃO DE FACHADA EM POLIETILENO, EXCLUSIVE BANDEJA SALVA VIDAS, INCLUSIVE ACESSÓRIOS DE FIXAÇÃO | C192: m2 | D192: 7.8
A193: 8730 | B193: BANDEJA DE PROTEÇÃO/SALVA VIDAS
A194: ED-28493 | B194: BANDEJA SALVA VIDAS, TIPO PRIMÁRIA, EM SUPORTE METÁLICO COM FORRO EM COMPENSADO RESINADO E TÁBUA, COMPRIMENTO DE 250CM COM COMPLEMENTO DE 80CM, INCLUSIVE ACESSÓRIOS DE FIXAÇÃO E INSTALAÇÃO | C194: m | D194: 228.93
A195: ED-28494 | B195: BANDEJA SALVA VIDAS, TIPO SECUNDÁRIA, EM SUPORTE METÁLICO COM FORRO EM COMPENSADO RESINADO E TÁBUA, COMPRIMENTO DE 140CM COM COMPLEMENTO DE 80CM, INCLUSIVE ACESSÓRIOS DE FIXAÇÃO E INSTALAÇÃO | C195: m | D195: 144.12
A196: 8665 | B196: TERRAPLENAGEM/TRABALHOS EM TERRA
A197: 8731 | B197: REGULARIZAÇÃO E COMPACTAÇÃO DE SOLO
A198: ED-51100 | B198: CORTE E DESATERRO MECÂNICO PARA REGULARIZAÇÃO, COM TRATOR DE ESTEIRA, INCLUSIVE ARRASTAMENTO NIVELADO, AFASTAMENTO E EMPILHAMENTO, EXCLUSIVE CARGA, TRANSPORTE E DESCARGA | C198: m3 | D198: 3.81
A199: ED-51122 | B199: REGULARIZAÇÃO E COMPACTAÇÃO DE TERRENO MANUAL COM SOQUETE, EXCLUSIVE DESMATAMENTO, DESTOCAMENTO, LIMPEZA/ROÇADA DO TERRENO | C199: m2 | D199: 8.72
A200: ED-51124 | B200: REGULARIZAÇÃO E COMPACTAÇÃO MECÂNICA DE TERRENO COM ROLO VIBRATÓRIO, EXCLUSIVE DESMATAMENTO, DESTOCAMENTO, LIMPEZA/ROÇADA DO TERRENO | C200: m2 | D200: 2.99
... 3969 more rows

Sheet SICRO (hidden)
B1: SICRO OUTUBRO 2022
A2: CÓDIGO | B2: DESCRIÇÃO | C2: UNIDADE | D2: PREÇO
A3: 307731 | B3: APARELHO DE APOIO DE NEOPRENE FRETADO PARA ESTRUTURAS MOLDADAS NO LOCAL - FORNECIMENTO E INSTALAÇÃO | C3: dm³ | D3: 108.13
A4: 307732 | B4: APARELHO DE APOIO DE NEOPRENE FRETADO PARA ESTRUTURAS PRÉ-MOLDADAS - FORNECIMENTO E INSTALAÇÃO | C4: dm³ | D4: 86.71
A5: 308308 | B5: APARELHO DE APOIO METÁLICO ELASTOMÉRICO FIXO COM CAPACIDADE DE 1.500 KN - FORNECIMENTO E INSTALAÇÃO | C5: un | D5: 14738.83
A6: 308313 | B6: APARELHO DE APOIO METÁLICO ELASTOMÉRICO FIXO COM CAPACIDADE DE 10.000 KN - FORNECIMENTO E INSTALAÇÃO | C6: un | D6: 96602.07
A7: 308309 | B7: APARELHO DE APOIO METÁLICO ELASTOMÉRICO FIXO COM CAPACIDADE DE 2.500 KN - FORNECIMENTO E INSTALAÇÃO | C7: un | D7: 24080.57
A8: 308310 | B8: APARELHO DE APOIO METÁLICO ELASTOMÉRICO FIXO COM CAPACIDADE DE 4.000 KN - FORNECIMENTO E INSTALAÇÃO | C8: un | D8: 38795.77
A9: 308311 | B9: APARELHO DE APOIO METÁLICO ELASTOMÉRICO FIXO COM CAPACIDADE DE 5.500 KN - FORNECIMENTO E INSTALAÇÃO | C9: un | D9: 52065.84
A10: 308312 | B10: APARELHO DE APOIO METÁLICO ELASTOMÉRICO FIXO COM CAPACIDADE DE 7.500 KN - FORNECIMENTO E INSTALAÇÃO | C10: un | D10: 71423.98
A11: 308307 | B11: APARELHO DE APOIO METÁLICO ELASTOMÉRICO FIXO COM CAPACIDADE DE 700 KN - FORNECIMENTO E INSTALAÇÃO | C11: un | D11: 9862.29
A12: 308322 | B12: APARELHO DE APOIO METÁLICO ELASTOMÉRICO MULTIDIRECIONAL COM CAPACIDADE DE 1.500 KN - FORNECIMENTO E INSTALAÇÃO | C12: un | D12: 8603.32
A13: 308327 | B13: APARELHO DE APOIO METÁLICO ELASTOMÉRICO MULTIDIRECIONAL COM CAPACIDADE DE 10.000 KN - FORNECIMENTO E INSTALAÇÃO | C13: un | D13: 51560.74
A14: 308323 | B14: APARELHO DE APOIO METÁLICO ELASTOMÉRICO MULTIDIRECIONAL COM CAPACIDADE DE 2.500 KN - FORNECIMENTO E INSTALAÇÃO | C14: un | D14: 11954.35
A15: 308324 | B15: APARELHO DE APOIO METÁLICO ELASTOMÉRICO MULTIDIRECIONAL COM CAPACIDADE DE 4.000 KN - FORNECIMENTO E INSTALAÇÃO | C15: un | D15: 19914.77
A16: 308325 | B16: APARELHO DE APOIO METÁLICO ELASTOMÉRICO MULTIDIRECIONAL COM CAPACIDADE DE 5.500 KN - FORNECIMENTO E INSTALAÇÃO | C16: un | D16: 28592.56
A17: 308326 | B17: APARELHO DE APOIO METÁLICO ELASTOMÉRICO MULTIDIRECIONAL COM CAPACIDADE DE 7.500 KN - FORNECIMENTO E INSTALAÇÃO | C17: un | D17: 37248.16
A18: 308321 | B18: APARELHO DE APOIO METÁLICO ELASTOMÉRICO MULTIDIRECIONAL COM CAPACIDADE DE 700 KN - FORNECIMENTO E INSTALAÇÃO | C18: un | D18: 5042.67
A19: 308315 | B19: APARELHO DE APOIO METÁLICO ELASTOMÉRICO UNIDIRECIONAL COM CAPACIDADE DE 1.500 KN - FORNECIMENTO E INSTALAÇÃO | C19: un | D19: 10177.09
A20: 308320 | B20: APARELHO DE APOIO METÁLICO ELASTOMÉRICO UNIDIRECIONAL COM CAPACIDADE DE 10.000 KN - FORNECIMENTO E INSTALAÇÃO | C20: un | D20: 57047.86
A21: 308316 | B21: APARELHO DE APOIO METÁLICO ELASTOMÉRICO UNIDIRECIONAL COM CAPACIDADE DE 2.500 KN - FORNECIMENTO E INSTALAÇÃO | C21: un | D21: 15726.11
A22: 308317 | B22: APARELHO DE APOIO METÁLICO ELASTOMÉRICO UNIDIRECIONAL COM CAPACIDADE DE 4.000 KN - FORNECIMENTO E INSTALAÇÃO | C22: un | D22: 24378.21
A23: 308318 | B23: APARELHO DE APOIO METÁLICO ELASTOMÉRICO UNIDIRECIONAL COM CAPACIDADE DE 5.500 KN - FORNECIMENTO E INSTALAÇÃO | C23: un | D23: 32424.55
A24: 308319 | B24: APARELHO DE APOIO METÁLICO ELASTOMÉRICO UNIDIRECIONAL COM CAPACIDADE DE 7.500 KN - FORNECIMENTO E INSTALAÇÃO | C24: un | D24: 44989.51
A25: 308314 | B25: APARELHO DE APOIO METÁLICO ELASTOMÉRICO UNIDIRECIONAL COM CAPACIDADE DE 700 KN - FORNECIMENTO E INSTALAÇÃO | C25: un | D25: 7532.88
A26: 308250 | B26: APARELHO DE APOIO METÁLICO ESFÉRICO FIXO COM CAPACIDADE DE 1.000 KN - FORNECIMENTO E INSTALAÇÃO | C26: un | D26: 5028.89
A27: 308251 | B27: APARELHO DE APOIO METÁLICO ESFÉRICO FIXO COM CAPACIDADE DE 1.500 KN - FORNECIMENTO E INSTALAÇÃO | C27: un | D27: 7474.15
A28: 308268 | B28: APARELHO DE APOIO METÁLICO ESFÉRICO FIXO COM CAPACIDADE DE 10.000 KN - FORNECIMENTO E INSTALAÇÃO | C28: un | D28: 136657.11
A29: 308252 | B29: APARELHO DE APOIO METÁLICO ESFÉRICO FIXO COM CAPACIDADE DE 2.000 KN - FORNECIMENTO E INSTALAÇÃO | C29: un | D29: 9447.83
A30: 308253 | B30: APARELHO DE APOIO METÁLICO ESFÉRICO FIXO COM CAPACIDADE DE 2.500 KN - FORNECIMENTO E INSTALAÇÃO | C30: un | D30: 11906.19
A31: 308254 | B31: APARELHO DE APOIO METÁLICO ESFÉRICO FIXO COM CAPACIDADE DE 3.000 KN - FORNECIMENTO E INSTALAÇÃO | C31: un | D31: 13669.04
A32: 308255 | B32: APARELHO DE APOIO METÁLICO ESFÉRICO FIXO COM CAPACIDADE DE 3.500 KN - FORNECIMENTO E INSTALAÇÃO | C32: un | D32: 16507.31
A33: 308256 | B33: APARELHO DE APOIO METÁLICO ESFÉRICO FIXO COM CAPACIDADE DE 4.000 KN - FORNECIMENTO E INSTALAÇÃO | C33: un | D33: 19453.81
A34: 308257 | B34: APARELHO DE APOIO METÁLICO ESFÉRICO FIXO COM CAPACIDADE DE 4.500 KN - FORNECIMENTO E INSTALAÇÃO | C34: un | D34: 60449.92
A35: 308258 | B35: APARELHO DE APOIO METÁLICO ESFÉRICO FIXO COM CAPACIDADE DE 5.000 KN - FORNECIMENTO E INSTALAÇÃO | C35: un | D35: 67213.12
A36: 308259 | B36: APARELHO DE APOIO METÁLICO ESFÉRICO FIXO COM CAPACIDADE DE 5.500 KN - FORNECIMENTO E INSTALAÇÃO | C36: un | D36: 72906.95
A37: 308260 | B37: APARELHO DE APOIO METÁLICO ESFÉRICO FIXO COM CAPACIDADE DE 6.000 KN - FORNECIMENTO E INSTALAÇÃO | C37: un | D37: 78651.53
A38: 308261 | B38: APARELHO DE APOIO METÁLICO ESFÉRICO FIXO COM CAPACIDADE DE 6.500 KN - FORNECIMENTO E INSTALAÇÃO | C38: un | D38: 89391.34
A39: 308262 | B39: APARELHO DE APOIO METÁLICO ESFÉRICO FIXO COM CAPACIDADE DE 7.000 KN - FORNECIMENTO E INSTALAÇÃO | C39: un | D39: 92236.38
A40: 308263 | B40: APARELHO DE APOIO METÁLICO ESFÉRICO FIXO COM CAPACIDADE DE 7.500 KN - FORNECIMENTO E INSTALAÇÃO | C40: un | D40: 103059.98
A41: 308264 | B41: APARELHO DE APOIO METÁLICO ESFÉRICO FIXO COM CAPACIDADE DE 8.000 KN - FORNECIMENTO E INSTALAÇÃO | C41: un | D41: 110171.21
A42: 308265 | B42: APARELHO DE APOIO METÁLICO ESFÉRICO FIXO COM CAPACIDADE DE 8.500 KN - FORNECIMENTO E INSTALAÇÃO | C42: un | D42: 112449.26
A43: 308266 | B43: APARELHO DE APOIO METÁLICO ESFÉRICO FIXO COM CAPACIDADE DE 9.000 KN - FORNECIMENTO E INSTALAÇÃO | C43: un | D43: 121833.77
A44: 308267 | B44: APARELHO DE APOIO METÁLICO ESFÉRICO FIXO COM CAPACIDADE DE 9.500 KN - FORNECIMENTO E INSTALAÇÃO | C44: un | D44: 128441.88
A45: 308288 | B45: APARELHO DE APOIO METÁLICO ESFÉRICO MULTIDIRECIONAL COM CAPACIDADE DE 1.000 KN - FORNECIMENTO E INSTALAÇÃO | C45: un | D45: 10670.67
A46: 308289 | B46: APARELHO DE APOIO METÁLICO ESFÉRICO MULTIDIRECIONAL COM CAPACIDADE DE 1.500 KN - FORNECIMENTO E INSTALAÇÃO | C46: un | D46: 14417.82
A47: 308306 | B47: APARELHO DE APOIO METÁLICO ESFÉRICO MULTIDIRECIONAL COM CAPACIDADE DE 10.000 KN - FORNECIMENTO E INSTALAÇÃO | C47: un | D47: 95768.93
A48: 308290 | B48: APARELHO DE APOIO METÁLICO ESFÉRICO MULTIDIRECIONAL COM CAPACIDADE DE 2.000 KN - FORNECIMENTO E INSTALAÇÃO | C48: un | D48: 18674.79
A49: 308291 | B49: APARELHO DE APOIO METÁLICO ESFÉRICO MULTIDIRECIONAL COM CAPACIDADE DE 2.500 KN - FORNECIMENTO E INSTALAÇÃO | C49: un | D49: 23501.93
A50: 308292 | B50: APARELHO DE APOIO METÁLICO ESFÉRICO MULTIDIRECIONAL COM CAPACIDADE DE 3.000 KN - FORNECIMENTO E INSTALAÇÃO | C50: un | D50: 27152.72
A51: 308293 | B51: APARELHO DE APOIO METÁLICO ESFÉRICO MULTIDIRECIONAL COM CAPACIDADE DE 3.500 KN - FORNECIMENTO E INSTALAÇÃO | C51: un | D51: 31323.46
A52: 308294 | B52: APARELHO DE APOIO METÁLICO ESFÉRICO MULTIDIRECIONAL COM CAPACIDADE DE 4.000 KN - FORNECIMENTO E INSTALAÇÃO | C52: un | D52: 36208.36
A53: 308295 | B53: APARELHO DE APOIO METÁLICO ESFÉRICO MULTIDIRECIONAL COM CAPACIDADE DE 4.500 KN - FORNECIMENTO E INSTALAÇÃO | C53: un | D53: 40928.51
A54: 308296 | B54: APARELHO DE APOIO METÁLICO ESFÉRICO MULTIDIRECIONAL COM CAPACIDADE DE 5.000 KN - FORNECIMENTO E INSTALAÇÃO | C54: un | D54: 46147.8
A55: 308297 | B55: APARELHO DE APOIO METÁLICO ESFÉRICO MULTIDIRECIONAL COM CAPACIDADE DE 5.500 KN - FORNECIMENTO E INSTALAÇÃO | C55: un | D55: 49844.91
A56: 308298 | B56: APARELHO DE APOIO METÁLICO ESFÉRICO MULTIDIRECIONAL COM CAPACIDADE DE 6.000 KN - FORNECIMENTO E INSTALAÇÃO | C56: un | D56: 57011.64
A57: 308299 | B57: APARELHO DE APOIO METÁLICO ESFÉRICO MULTIDIRECIONAL COM CAPACIDADE DE 6.500 KN - FORNECIMENTO E INSTALAÇÃO | C57: un | D57: 61401.24
A58: 308300 | B58: APARELHO DE APOIO METÁLICO ESFÉRICO MULTIDIRECIONAL COM CAPACIDADE DE 7.000 KN - FORNECIMENTO E INSTALAÇÃO | C58: un | D58: 65865.01
A59: 308301 | B59: APARELHO DE APOIO METÁLICO ESFÉRICO MULTIDIRECIONAL COM CAPACIDADE DE 7.500 KN - FORNECIMENTO E INSTALAÇÃO | C59: un | D59: 69284.43
A60: 308302 | B60: APARELHO DE APOIO METÁLICO ESFÉRICO MULTIDIRECIONAL COM CAPACIDADE DE 8.000 KN - FORNECIMENTO E INSTALAÇÃO | C60: un | D60: 75394.37
A61: 308303 | B61: APARELHO DE APOIO METÁLICO ESFÉRICO MULTIDIRECIONAL COM CAPACIDADE DE 8.500 KN - FORNECIMENTO E INSTALAÇÃO | C61: un | D61: 80170.13
A62: 308304 | B62: APARELHO DE APOIO METÁLICO ESFÉRICO MULTIDIRECIONAL COM CAPACIDADE DE 9.000 KN - FORNECIMENTO E INSTALAÇÃO | C62: un | D62: 84501.49
A63: 308305 | B63: APARELHO DE APOIO METÁLICO ESFÉRICO MULTIDIRECIONAL COM CAPACIDADE DE 9.500 KN - FORNECIMENTO E INSTALAÇÃO | C63: un | D63: 90617.86
A64: 308269 | B64: APARELHO DE APOIO METÁLICO ESFÉRICO UNIDIRECIONAL COM CAPACIDADE DE 1.000 KN - FORNECIMENTO E INSTALAÇÃO | C64: un | D64: 5830.19
A65: 308270 | B65: APARELHO DE APOIO METÁLICO ESFÉRICO UNIDIRECIONAL COM CAPACIDADE DE 1.500 KN - FORNECIMENTO E INSTALAÇÃO | C65: un | D65: 9112.33
A66: 308287 | B66: APARELHO DE APOIO METÁLICO ESFÉRICO UNIDIRECIONAL COM CAPACIDADE DE 10.000 KN - FORNECIMENTO E INSTALAÇÃO | C66: un | D66: 104496.53
A67: 308271 | B67: APARELHO DE APOIO METÁLICO ESFÉRICO UNIDIRECIONAL COM CAPACIDADE DE 2.000 KN - FORNECIMENTO E INSTALAÇÃO | C67: un | D67: 11041.47
A68: 308272 | B68: APARELHO DE APOIO METÁLICO ESFÉRICO UNIDIRECIONAL COM CAPACIDADE DE 2.500 KN - FORNECIMENTO E INSTALAÇÃO | C68: un | D68: 13734.64
A69: 308273 | B69: APARELHO DE APOIO METÁLICO ESFÉRICO UNIDIRECIONAL COM CAPACIDADE DE 3.000 KN - FORNECIMENTO E INSTALAÇÃO | C69: un | D69: 16907.8
A70: 308274 | B70: APARELHO DE APOIO METÁLICO ESFÉRICO UNIDIRECIONAL COM CAPACIDADE DE 3.500 KN - FORNECIMENTO E INSTALAÇÃO | C70: un | D70: 19146.46
A71: 308275 | B71: APARELHO DE APOIO METÁLICO ESFÉRICO UNIDIRECIONAL COM CAPACIDADE DE 4.000 KN - FORNECIMENTO E INSTALAÇÃO | C71: un | D71: 28731.09
A72: 308276 | B72: APARELHO DE APOIO METÁLICO ESFÉRICO UNIDIRECIONAL COM CAPACIDADE DE 4.500 KN - FORNECIMENTO E INSTALAÇÃO | C72: un | D72: 47571.33
A73: 308277 | B73: APARELHO DE APOIO METÁLICO ESFÉRICO UNIDIRECIONAL COM CAPACIDADE DE 5.000 KN - FORNECIMENTO E INSTALAÇÃO | C73: un | D73: 52576.89
A74: 308278 | B74: APARELHO DE APOIO METÁLICO ESFÉRICO UNIDIRECIONAL COM CAPACIDADE DE 5.500 KN - FORNECIMENTO E INSTALAÇÃO | C74: un | D74: 57359.6
A75: 308279 | B75: APARELHO DE APOIO METÁLICO ESFÉRICO UNIDIRECIONAL COM CAPACIDADE DE 6.000 KN - FORNECIMENTO E INSTALAÇÃO | C75: un | D75: 61828.16
A76: 308280 | B76: APARELHO DE APOIO METÁLICO ESFÉRICO UNIDIRECIONAL COM CAPACIDADE DE 6.500 KN - FORNECIMENTO E INSTALAÇÃO | C76: un | D76: 68411.49
A77: 308281 | B77: APARELHO DE APOIO METÁLICO ESFÉRICO UNIDIRECIONAL COM CAPACIDADE DE 7.000 KN - FORNECIMENTO E INSTALAÇÃO | C77: un | D77: 73649.8
A78: 308282 | B78: APARELHO DE APOIO METÁLICO ESFÉRICO UNIDIRECIONAL COM CAPACIDADE DE 7.500 KN - FORNECIMENTO E INSTALAÇÃO | C78: un | D78: 80140.5
A79: 308283 | B79: APARELHO DE APOIO METÁLICO ESFÉRICO UNIDIRECIONAL COM CAPACIDADE DE 8.000 KN - FORNECIMENTO E INSTALAÇÃO | C79: un | D79: 84015.97
A80: 308284 | B80: APARELHO DE APOIO METÁLICO ESFÉRICO UNIDIRECIONAL COM CAPACIDADE DE 8.500 KN - FORNECIMENTO E INSTALAÇÃO | C80: un | D80: 90830.28
A81: 308285 | B81: APARELHO DE APOIO METÁLICO ESFÉRICO UNIDIRECIONAL COM CAPACIDADE DE 9.000 KN - FORNECIMENTO E INSTALAÇÃO | C81: un | D81: 96152.25
A82: 308286 | B82: APARELHO DE APOIO METÁLICO ESFÉRICO UNIDIRECIONAL COM CAPACIDADE DE 9.500 KN - FORNECIMENTO E INSTALAÇÃO | C82: un | D82: 101296.87
A83: 307733 | B83: JUNTA DE DILATAÇÃO EM ELASTÔMERO E PERFIL VV - L = 20 MM E H = 40 MM - FORNECIMENTO E INSTALAÇÃO | C83: m | D83: 422.23
A84: 307734 | B84: JUNTA DE DILATAÇÃO EM ELASTÔMERO E PERFIL VV - L = 25 MM E H = 50 MM - FORNECIMENTO E INSTALAÇÃO | C84: m | D84: 528.92
A85: 307735 | B85: JUNTA DE DILATAÇÃO EM ELASTÔMERO E PERFIL VV - L = 35 MM E H = 60 MM - FORNECIMENTO E INSTALAÇÃO | C85: m | D85: 877.53
A86: 307736 | B86: JUNTA DE DILATAÇÃO EM ELASTÔMERO E PERFIL VV - L = 40 MM E H = 70 MM - FORNECIMENTO E INSTALAÇÃO | C86: m | D86: 1163.19
A87: 307737 | B87: JUNTA DE DILATAÇÃO EM ELASTÔMERO E PERFIL VV - L = 50 MM E H = 80 MM - FORNECIMENTO E INSTALAÇÃO | C87: m | D87: 1433.9
A88: 307730 | B88: JUNTA DE DILATAÇÃO EM PERFIL EXTRUDADO DE BORRACHA VULCANIZADA | C88: m | D88: 0
A89: 307084 | B89: LÁBIOS POLIMÉRICOS EM JUNTA DE PAVIMENTO DE CONCRETO - L = 20 MM E H = 30 MM - CONFECÇÃO E ASSENTAMENTO | C89: m | D89: 28.03
A90: 407818 | B90: ARMAÇÃO EM AÇO CA-25 - FORNECIMENTO, PREPARO E COLOCAÇÃO | C90: kg | D90: 12.14
A91: 407819 | B91: ARMAÇÃO EM AÇO CA-50 - FORNECIMENTO, PREPARO E COLOCAÇÃO | C91: kg | D91: 11.75
A92: 407820 | B92: ARMAÇÃO EM AÇO CA-60 - FORNECIMENTO, PREPARO E COLOCAÇÃO | C92: kg | D92: 13.15
A93: 407740 | B93: CHUMBADOR TIPO ESPERA EM AÇO CA-25 PARA FIXAÇÃO DE ESTRUTURA METÁLICA EM CONCRETO - FORNECIMENTO E INSTALAÇÃO | C93: kg | D93: 14.72
A94: 408037 | B94: LUVA DE EMENDA COM ROSCA CÔNICA PARA AÇO CA-50 - D = 12,5 MM - FORNECIMENTO E INSTALAÇÃO | C94: un | D94: 20.79
A95: 408038 | B95: LUVA DE EMENDA COM ROSCA CÔNICA PARA AÇO CA-50 - D = 16 MM - FORNECIMENTO E INSTALAÇÃO | C95: un | D95: 29.37
A96: 408039 | B96: LUVA DE EMENDA COM ROSCA CÔNICA PARA AÇO CA-50 - D = 20 MM - FORNECIMENTO E INSTALAÇÃO | C96: un | D96: 38.11
A97: 408041 | B97: LUVA DE EMENDA COM ROSCA CÔNICA PARA AÇO CA-50 - D = 25 MM - FORNECIMENTO E INSTALAÇÃO | C97: un | D97: 55.41
A98: 408042 | B98: LUVA DE EMENDA COM ROSCA CÔNICA PARA AÇO CA-50 - D = 32 MM - FORNECIMENTO E INSTALAÇÃO | C98: un | D98: 82.74
A99: 408031 | B99: LUVA DE EMENDA PRENSADA PARA AÇO CA-50 - D = 12,5 MM - FORNECIMENTO E INSTALAÇÃO | C99: un | D99: 19.8
A100: 408032 | B100: LUVA DE EMENDA PRENSADA PARA AÇO CA-50 - D = 16 MM - FORNECIMENTO E INSTALAÇÃO | C100: un | D100: 27.27
A101: 408033 | B101: LUVA DE EMENDA PRENSADA PARA AÇO CA-50 - D = 20 MM - FORNECIMENTO E INSTALAÇÃO | C101: un | D101: 38.66
A102: 408035 | B102: LUVA DE EMENDA PRENSADA PARA AÇO CA-50 - D = 25 MM - FORNECIMENTO E INSTALAÇÃO | C102: un | D102: 66.3
A103: 408036 | B103: LUVA DE EMENDA PRENSADA PARA AÇO CA-50 - D = 32 MM - FORNECIMENTO E INSTALAÇÃO | C103: un | D103: 132.46
A104: 408067 | B104: TELA DE AÇO ELETROSSOLDADA - FORNECIMENTO, PREPARO E COLOCAÇÃO | C104: kg | D104: 11.72
A105: 407743 | B105: TRELIÇA NERVURADA TRÊS BARRAS LONGITUDINAIS INTERLIGADAS POR DUAS DIAGONAIS SINUSOIDAL - FORNECIMENTO E INSTALAÇÃO | C105: kg | D105: 12.97
A106: 607137 | B106: ARCO METÁLICO GALVANIZADO TIPO MP 152S - ARCO ALTO - VÃO = 10,08 M E ALTURA = 6,12 M - ATERRO RODOVIÁRIO MÍNIMO = 0,90 M E MÁXIMO = 5,00 M - AREIA E BRITA COMERCIAIS | C106: m | D106: 60001.16
A107: 606785 | B107: ARCO METÁLICO GALVANIZADO TIPO MP 152S - ARCO ALTO - VÃO = 10,08 M E ALTURA = 6,12 M - ATERRO RODOVIÁRIO MÍNIMO = 0,90 M E MÁXIMO = 5,00 M - AREIA EXTRAÍDA E BRITA PRODUZIDA | C107: m | D107: 59185.19
A108: 607139 | B108: ARCO METÁLICO GALVANIZADO TIPO MP 152S - ARCO ALTO - VÃO = 10,31 M E ALTURA = 6,17 M - ATERRO RODOVIÁRIO MÍNIMO = 0,90 M E MÁXIMO = 4,90 M - AREIA E BRITA COMERCIAIS | C108: m | D108: 60838.25
A109: 606787 | B109: ARCO METÁLICO GALVANIZADO TIPO MP 152S - ARCO ALTO - VÃO = 10,31 M E ALTURA = 6,17 M - ATERRO RODOVIÁRIO MÍNIMO = 0,90 M E MÁXIMO = 4,90 M - AREIA EXTRAÍDA E BRITA PRODUZIDA | C109: m | D109: 59707.74
A110: 607140 | B110: ARCO METÁLICO GALVANIZADO TIPO MP 152S - ARCO ALTO - VÃO = 10,36 M E ALTURA = 5,38 M - ATERRO RODOVIÁRIO MÍNIMO = 1,20 M E MÁXIMO = 3,60 M - AREIA E BRITA COMERCIAIS | C110: m | D110: 55552.25
A111: 606788 | B111: ARCO METÁLICO GALVANIZADO TIPO MP 152S - ARCO ALTO - VÃO = 10,36 M E ALTURA = 5,38 M - ATERRO RODOVIÁRIO MÍNIMO = 1,20 M E MÁXIMO = 3,60 M - AREIA EXTRAÍDA E BRITA PRODUZIDA | C111: m | D111: 55093.9
A112: 607141 | B112: ARCO METÁLICO GALVANIZADO TIPO MP 152S - ARCO ALTO - VÃO = 10,54 M E ALTURA = 6,05 M - ATERRO RODOVIÁRIO MÍNIMO = 1,20 M E MÁXIMO = 4,20 M - AREIA E BRITA COMERCIAIS | C112: m | D112: 61921.72
A113: 606789 | B113: ARCO METÁLICO GALVANIZADO TIPO MP 152S - ARCO ALTO - VÃO = 10,54 M E ALTURA = 6,05 M - ATERRO RODOVIÁRIO MÍNIMO = 1,20 M E MÁXIMO = 4,20 M - AREIA EXTRAÍDA E BRITA PRODUZIDA | C113: m | D113: 61073.92
A114: 607144 | B114: ARCO METÁLICO GALVANIZADO TIPO MP 152S - ARCO ALTO - VÃO = 10,57 M E ALTURA = 5,41 M - ATERRO RODOVIÁRIO MÍNIMO = 1,20 M E MÁXIMO = 4,10 M - AREIA E BRITA COMERCIAIS | C114: m | D114: 72510.52
A115: 606792 | B115: ARCO METÁLICO GALVANIZADO TIPO MP 152S - ARCO ALTO - VÃO = 10,57 M E ALTURA = 5,41 M - ATERRO RODOVIÁRIO MÍNIMO = 1,20 M E MÁXIMO = 4,10 M - AREIA EXTRAÍDA E BRITA PRODUZIDA | C115: m | D115: 71734.68
A116: 607142 | B116: ARCO METÁLICO GALVANIZADO TIPO MP 152S - ARCO ALTO - VÃO = 10,74 M E ALTURA = 6,48 M - ATERRO RODOVIÁRIO MÍNIMO = 1,20 M E MÁXIMO = 4,70 M - AREIA E BRITA COMERCIAIS | C116: m | D116: 64953.24
A117: 606790 | B117: ARCO METÁLICO GALVANIZADO TIPO MP 152S - ARCO ALTO - VÃO = 10,74 M E ALTURA = 6,48 M - ATERRO RODOVIÁRIO MÍNIMO = 1,20 M E MÁXIMO = 4,70 M - AREIA EXTRAÍDA E BRITA PRODUZIDA | C117: m | D117: 64037.69
A118: 607145 | B118: ARCO METÁLICO GALVANIZADO TIPO MP 152S - ARCO ALTO - VÃO = 10,77 M E ALTURA = 6,10 M - ATERRO RODOVIÁRIO MÍNIMO = 1,20 M E MÁXIMO = 4,70 M - AREIA E BRITA COMERCIAIS | C118: m | D118: 80162.99
A119: 606793 | B119: ARCO METÁLICO GALVANIZADO TIPO MP 152S - ARCO ALTO - VÃO = 10,77 M E ALTURA = 6,10 M - ATERRO RODOVIÁRIO MÍNIMO = 1,20 M E MÁXIMO = 4,70 M - AREIA EXTRAÍDA E BRITA PRODUZIDA | C119: m | D119: 79289.18
A120: 607146 | B120: ARCO METÁLICO GALVANIZADO TIPO MP 152S - ARCO ALTO - VÃO = 10,97 M E ALTURA = 6,53 M - ATERRO RODOVIÁRIO MÍNIMO = 1,20 M E MÁXIMO = 4,70 M - AREIA E BRITA COMERCIAIS | C120: m | D120: 83549.84
A121: 606794 | B121: ARCO METÁLICO GALVANIZADO TIPO MP 152S - ARCO ALTO - VÃO = 10,97 M E ALTURA = 6,53 M - ATERRO RODOVIÁRIO MÍNIMO = 1,20 M E MÁXIMO = 4,70 M - AREIA EXTRAÍDA E BRITA PRODUZIDA | C121: m | D121: 82607.47
A122: 607143 | B122: ARCO METÁLICO GALVANIZADO TIPO MP 152S - ARCO ALTO - VÃO = 11,35 M E ALTURA = 7,12 M - ATERRO RODOVIÁRIO MÍNIMO = 1,20 M E MÁXIMO = 4,70 M - AREIA E BRITA COMERCIAIS | C122: m | D122: 70161.43
A123: 606791 | B123: ARCO METÁLICO GALVANIZADO TIPO MP 152S - ARCO ALTO - VÃO = 11,35 M E ALTURA = 7,12 M - ATERRO RODOVIÁRIO MÍNIMO = 1,20 M E MÁXIMO = 4,70 M - AREIA EXTRAÍDA E BRITA PRODUZIDA | C123: m | D123: 69106.53
A124: 607147 | B124: ARCO METÁLICO GALVANIZADO TIPO MP 152S - ARCO ALTO - VÃO = 11,58 M E ALTURA = 7,16 M - ATERRO RODOVIÁRIO MÍNIMO = 1,20 M E MÁXIMO = 6,40 M - AREIA E BRITA COMERCIAIS | C124: m | D124: 90096.36
A125: 606795 | B125: ARCO METÁLICO GALVANIZADO TIPO MP 152S - ARCO ALTO - VÃO = 11,58 M E ALTURA = 7,16 M - ATERRO RODOVIÁRIO MÍNIMO = 1,20 M E MÁXIMO = 6,40 M - AREIA EXTRAÍDA E BRITA PRODUZIDA | C125: m | D125: 89013.71
A126: 607112 | B126: ARCO METÁLICO GALVANIZADO TIPO MP 152S - ARCO ALTO - VÃO = 6,12 M E ALTURA = 2,77 M - ATERRO RODOVIÁRIO MÍNIMO = 0,75 M E MÁXIMO = 5,40 M - AREIA E BRITA COMERCIAIS | C126: m | D126: 29305.06
A127: 606760 | B127: ARCO METÁLICO GALVANIZADO TIPO MP 152S - ARCO ALTO - VÃO = 6,12 M E ALTURA = 2,77 M - ATERRO RODOVIÁRIO MÍNIMO = 0,75 M E MÁXIMO = 5,40 M - AREIA EXTRAÍDA E BRITA PRODUZIDA | C127: m | D127: 29019.55
A128: 607113 | B128: ARCO METÁLICO GALVANIZADO TIPO MP 152S - ARCO ALTO - VÃO = 6,30 M E ALTURA = 3,68 M - ATERRO RODOVIÁRIO MÍNIMO = 0,75 M E MÁXIMO = 7,50 M - AREIA E BRITA COMERCIAIS | C128: m | D128: 34318.12
A129: 606761 | B129: ARCO METÁLICO GALVANIZADO TIPO MP 152S - ARCO ALTO - VÃO = 6,30 M E ALTURA = 3,68 M - ATERRO RODOVIÁRIO MÍNIMO = 0,75 M E MÁXIMO = 7,50 M - AREIA EXTRAÍDA E BRITA PRODUZIDA | C129: m | D129: 33990.73
A130: 606762 | B130: ARCO METÁLICO GALVANIZADO TIPO MP 152S - ARCO ALTO - VÃO = 6,55 M E ALTURA = 3,56 M - ATERRO RODOVIÁRIO MÍNIMO = 0,75 M E MÁXIMO = 4,9 M - AREIA EXTRAÍDA E BRITA PRODUZIDA | C130: m | D130: 33828.05
A131: 607114 | B131: ARCO METÁLICO GALVANIZADO TIPO MP 152S - ARCO ALTO - VÃO = 6,55 M E ALTURA = 3,56 M - ATERRO RODOVIÁRIO MÍNIMO = 0,75 M E MÁXIMO = 4,90 M - AREIA E BRITA COMERCIAIS | C131: m | D131: 34159.24
A132: 607116 | B132: ARCO METÁLICO GALVANIZADO TIPO MP 152S - ARCO ALTO - VÃO = 6,78 M E ALTURA = 3,61 M - ATERRO RODOVIÁRIO MÍNIMO = 0,75 M E MÁXIMO = 4,80 M - AREIA E BRITA COMERCIAIS | C132: m | D132: 36124.36
A133: 606764 | B133: ARCO METÁLICO GALVANIZADO TIPO MP 152S - ARCO ALTO - VÃO = 6,78 M E ALTURA = 3,61 M - ATERRO RODOVIÁRIO MÍNIMO = 0,75 M E MÁXIMO = 4,80 M - AREIA EXTRAÍDA E BRITA PRODUZIDA | C133: m | D133: 35775.94
A134: 607115 | B134: ARCO METÁLICO GALVANIZADO TIPO MP 152S - ARCO ALTO - VÃO = 6,96 M E ALTURA = 4,42 M - ATERRO RODOVIÁRIO MÍNIMO = 0,75 M E MÁXIMO = 8,10 M - AREIA E BRITA COMERCIAIS | C134: m | D134: 41034.49
A135: 606763 | B135: ARCO METÁLICO GALVANIZADO TIPO MP 152S - ARCO ALTO - VÃO = 6,96 M E ALTURA = 4,42 M - ATERRO RODOVIÁRIO MÍNIMO = 0,75 M E MÁXIMO = 8,10 M - AREIA EXTRAÍDA E BRITA PRODUZIDA | C135: m | D135: 40613.78
A136: 607117 | B136: ARCO METÁLICO GALVANIZADO TIPO MP 152S - ARCO ALTO - VÃO = 6,99 M E ALTURA = 4,27 M - ATERRO RODOVIÁRIO MÍNIMO = 0,75 M E MÁXIMO = 5,70 M - AREIA E BRITA COMERCIAIS | C136: m | D136: 41041.52
A137: 606765 | B137: ARCO METÁLICO GALVANIZADO TIPO MP 152S - ARCO ALTO - VÃO = 6,99 M E ALTURA = 4,27 M - ATERRO RODOVIÁRIO MÍNIMO = 0,75 M E MÁXIMO = 5,70 M - AREIA EXTRAÍDA E BRITA PRODUZIDA | C137: m | D137: 40632.02
A138: 607118 | B138: ARCO METÁLICO GALVANIZADO TIPO MP 152S - ARCO ALTO - VÃO = 7,01 M E ALTURA = 3,63 M - ATERRO RODOVIÁRIO MÍNIMO = 0,75 M E MÁXIMO = 4,60 M - AREIA E BRITA COMERCIAIS | C138: m | D138: 36777.55
A139: 606766 | B139: ARCO METÁLICO GALVANIZADO TIPO MP 152S - ARCO ALTO - VÃO = 7,01 M E ALTURA = 3,63 M - ATERRO RODOVIÁRIO MÍNIMO = 0,75 M E MÁXIMO = 4,60 M - AREIA EXTRAÍDA E BRITA PRODUZIDA | C139: m | D139: 36415.17
A140: 607120 | B140: ARCO METÁLICO GALVANIZADO TIPO MP 152S - ARCO ALTO - VÃO = 7,24 M E ALTURA = 3,68 M - ATERRO RODOVIÁRIO MÍNIMO = 0,90 M E MÁXIMO = 4,4 M - AREIA E BRITA COMERCIAIS | C140: m | D140: 37432.41
A141: 606768 | B141: ARCO METÁLICO GALVANIZADO TIPO MP 152S - ARCO ALTO - VÃO = 7,24 M E ALTURA = 3,68 M - ATERRO RODOVIÁRIO MÍNIMO = 0,90 M E MÁXIMO = 4,40 M - AREIA EXTRAÍDA E BRITA PRODUZIDA | C141: m | D141: 37053.59
A142: 607119 | B142: ARCO METÁLICO GALVANIZADO TIPO MP 152S - ARCO ALTO - VÃO = 7,42 M E ALTURA = 4,52 M - ATERRO RODOVIÁRIO MÍNIMO = 0,90 M E MÁXIMO = 6,40 M - AREIA E BRITA COMERCIAIS | C142: m | D142: 43006.86
A143: 606767 | B143: ARCO METÁLICO GALVANIZADO TIPO MP 152S - ARCO ALTO - VÃO = 7,42 M E ALTURA = 4,52 M - ATERRO RODOVIÁRIO MÍNIMO = 0,90 M E MÁXIMO = 6,40 M - AREIA EXTRAÍDA E BRITA PRODUZIDA | C143: m | D143: 42549.03
A144: 607121 | B144: ARCO METÁLICO GALVANIZADO TIPO MP 152S - ARCO ALTO - VÃO = 7,47 M E ALTURA = 4,19 M - ATERRO RODOVIÁRIO MÍNIMO = 0,90 M E MÁXIMO = 4,30 M - AREIA E BRITA COMERCIAIS | C144: m | D144: 40539.79
A145: 606769 | B145: ARCO METÁLICO GALVANIZADO TIPO MP 152S - ARCO ALTO - VÃO = 7,47 M E ALTURA = 4,19 M - ATERRO RODOVIÁRIO MÍNIMO = 0,90 M E MÁXIMO = 4,30 M - AREIA EXTRAÍDA E BRITA PRODUZIDA | C145: m | D145: 40105.94
A146: 607123 | B146: ARCO METÁLICO GALVANIZADO TIPO MP 152S - ARCO ALTO - VÃO = 7,67 M E ALTURA = 3,99 M - ATERRO RODOVIÁRIO MÍNIMO = 0,90 M E MÁXIMO = 4,10 M - AREIA E BRITA COMERCIAIS | C146: m | D146: 39973.27
A147: 606771 | B147: ARCO METÁLICO GALVANIZADO TIPO MP 152S - ARCO ALTO - VÃO = 7,67 M E ALTURA = 3,99 M - ATERRO RODOVIÁRIO MÍNIMO = 0,90 M E MÁXIMO = 4,10 M - AREIA EXTRAÍDA E BRITA PRODUZIDA | C147: m | D147: 39544.23
A148: 607122 | B148: ARCO METÁLICO GALVANIZADO TIPO MP 152S - ARCO ALTO - VÃO = 7,85 M E ALTURA = 4,60 M - ATERRO RODOVIÁRIO MÍNIMO = 0,90 M E MÁXIMO = 6,00 M - AREIA E BRITA COMERCIAIS | C148: m | D148: 44345.42
A149: 606770 | B149: ARCO METÁLICO GALVANIZADO TIPO MP 152S - ARCO ALTO - VÃO = 7,85 M E ALTURA = 4,60 M - ATERRO RODOVIÁRIO MÍNIMO = 0,90 M E MÁXIMO = 6,00 M - AREIA EXTRAÍDA E BRITA PRODUZIDA | C149: m | D149: 43852.04
A150: 607125 | B150: ARCO METÁLICO GALVANIZADO TIPO MP 152S - ARCO ALTO - VÃO = 7,90 M E ALTURA = 4,04 M - ATERRO RODOVIÁRIO MÍNIMO = 0,90 M E MÁXIMO = 4,00 M - AREIA E BRITA COMERCIAIS | C150: m | D150: 41310.37
A151: 606773 | B151: ARCO METÁLICO GALVANIZADO TIPO MP 152S - ARCO ALTO - VÃO = 7,90 M E ALTURA = 4,04 M - ATERRO RODOVIÁRIO MÍNIMO = 0,90 M E MÁXIMO = 4,00 M - AREIA EXTRAÍDA E BRITA PRODUZIDA | C151: m | D151: 40861.9
A152: 607124 | B152: ARCO METÁLICO GALVANIZADO TIPO MP 152S - ARCO ALTO - VÃO = 8,08 M E ALTURA = 4,65 M - ATERRO RODOVIÁRIO MÍNIMO = 0,90 M E MÁXIMO = 5,80 M - AREIA E BRITA COMERCIAIS | C152: m | D152: 45036.63
A153: 606772 | B153: ARCO METÁLICO GALVANIZADO TIPO MP 152S - ARCO ALTO - VÃO = 8,08 M E ALTURA = 4,65 M - ATERRO RODOVIÁRIO MÍNIMO = 0,90 M E MÁXIMO = 5,80 M - AREIA EXTRAÍDA E BRITA PRODUZIDA | C153: m | D153: 44523.64
A154: 607126 | B154: ARCO METÁLICO GALVANIZADO TIPO MP 152S - ARCO ALTO - VÃO = 8,31 M E ALTURA = 4,70 M - ATERRO RODOVIÁRIO MÍNIMO = 0,90 M E MÁXIMO = 5,60 M - AREIA E BRITA COMERCIAIS | C154: m | D154: 46259.89
A155: 606774 | B155: ARCO METÁLICO GALVANIZADO TIPO MP 152S - ARCO ALTO - VÃO = 8,31 M E ALTURA = 4,70 M - ATERRO RODOVIÁRIO MÍNIMO = 0,90 M E MÁXIMO = 5,60 M - AREIA EXTRAÍDA E BRITA PRODUZIDA | C155: m | D155: 45725.38
A156: 607127 | B156: ARCO METÁLICO GALVANIZADO TIPO MP 152S - ARCO ALTO - VÃO = 8,36 M E ALTURA = 4,11 M - ATERRO RODOVIÁRIO MÍNIMO = 0,90 M E MÁXIMO = 3,70 M - AREIA E BRITA COMERCIAIS | C156: m | D156: 42633.48
A157: 606775 | B157: ARCO METÁLICO GALVANIZADO TIPO MP 152S - ARCO ALTO - VÃO = 8,36 M E ALTURA = 4,11 M - ATERRO RODOVIÁRIO MÍNIMO = 0,90 M E MÁXIMO = 3,70 M - AREIA EXTRAÍDA E BRITA PRODUZIDA | C157: m | D157: 42150.86
A158: 607129 | B158: ARCO METÁLICO GALVANIZADO TIPO MP 152S - ARCO ALTO - VÃO = 8,59 M E ALTURA = 4,39 M - ATERRO RODOVIÁRIO MÍNIMO = 0,90 M E MÁXIMO = 3,60 M - AREIA E BRITA COMERCIAIS | C158: m | D158: 44587.75
A159: 606777 | B159: ARCO METÁLICO GALVANIZADO TIPO MP 152S - ARCO ALTO - VÃO = 8,59 M E ALTURA = 4,39 M - ATERRO RODOVIÁRIO MÍNIMO = 0,90 M E MÁXIMO = 3,60 M - AREIA EXTRAÍDA E BRITA PRODUZIDA | C159: m | D159: 44063.53
A160: 607128 | B160: ARCO METÁLICO GALVANIZADO TIPO MP 152S - ARCO ALTO - VÃO = 8,97 M E ALTURA = 5,00 M - ATERRO RODOVIÁRIO MÍNIMO = 0,90 M E MÁXIMO = 5,80 M - AREIA E BRITA COMERCIAIS | C160: m | D160: 49008.06
A161: 606776 | B161: ARCO METÁLICO GALVANIZADO TIPO MP 152S - ARCO ALTO - VÃO = 8,97 M E ALTURA = 5,00 M - ATERRO RODOVIÁRIO MÍNIMO = 0,90 M E MÁXIMO = 5,80 M - AREIA EXTRAÍDA E BRITA PRODUZIDA | C161: m | D161: 48397.23
A162: 607130 | B162: ARCO METÁLICO GALVANIZADO TIPO MP 152S - ARCO ALTO - VÃO = 9,17 M E ALTURA = 5,49 M - ATERRO RODOVIÁRIO MÍNIMO = 0,90 M E MÁXIMO = 5,60 M - AREIA E BRITA COMERCIAIS | C162: m | D162: 52222.42
A163: 606778 | B163: ARCO METÁLICO GALVANIZADO TIPO MP 152S - ARCO ALTO - VÃO = 9,17 M E ALTURA = 5,49 M - ATERRO RODOVIÁRIO MÍNIMO = 0,90 M E MÁXIMO = 5,60 M - AREIA EXTRAÍDA E BRITA PRODUZIDA | C163: m | D163: 51549.74
A164: 607131 | B164: ARCO METÁLICO GALVANIZADO TIPO MP 152S - ARCO ALTO - VÃO = 9,22 M E ALTURA = 4,70 M - ATERRO RODOVIÁRIO MÍNIMO = 0,90 M E MÁXIMO = 4,10 M - AREIA E BRITA COMERCIAIS | C164: m | D164: 49036.05
A165: 606779 | B165: ARCO METÁLICO GALVANIZADO TIPO MP 152S - ARCO ALTO - VÃO = 9,22 M E ALTURA = 4,70 M - ATERRO RODOVIÁRIO MÍNIMO = 0,90 M E MÁXIMO = 4,10 M - AREIA EXTRAÍDA E BRITA PRODUZIDA | C165: m | D165: 48441.84
A166: 607133 | B166: ARCO METÁLICO GALVANIZADO TIPO MP 152S - ARCO ALTO - VÃO = 9,45 M E ALTURA = 4,75 M - ATERRO RODOVIÁRIO MÍNIMO = 0,90 M E MÁXIMO = 4,00 M - AREIA E BRITA COMERCIAIS | C166: m | D166: 49829
A167: 606781 | B167: ARCO METÁLICO GALVANIZADO TIPO MP 152S - ARCO ALTO - VÃO = 9,45 M E ALTURA = 4,75 M - ATERRO RODOVIÁRIO MÍNIMO = 0,90 M E MÁXIMO = 4,00 M - AREIA EXTRAÍDA E BRITA PRODUZIDA | C167: m | D167: 49210.32
A168: 607132 | B168: ARCO METÁLICO GALVANIZADO TIPO MP 152S - ARCO ALTO - VÃO = 9,63 M E ALTURA = 5,59 M - ATERRO RODOVIÁRIO MÍNIMO = 0,90 M E MÁXIMO = 5,30 M - AREIA E BRITA COMERCIAIS | C168: m | D168: 54261.89
A169: 606780 | B169: ARCO METÁLICO GALVANIZADO TIPO MP 152S - ARCO ALTO - VÃO = 9,63 M E ALTURA = 5,59 M - ATERRO RODOVIÁRIO MÍNIMO = 0,90 M E MÁXIMO = 5,30 M - AREIA EXTRAÍDA E BRITA PRODUZIDA | C169: m | D169: 53541.17
A170: 607134 | B170: ARCO METÁLICO GALVANIZADO TIPO MP 152S - ARCO ALTO - VÃO = 9,65 M E ALTURA = 5,41 M - ATERRO RODOVIÁRIO MÍNIMO = 0,90 M E MÁXIMO = 4,70 M - AREIA E BRITA COMERCIAIS | C170: m | D170: 53726.05
A171: 606782 | B171: ARCO METÁLICO GALVANIZADO TIPO MP 152S - ARCO ALTO - VÃO = 9,65 M E ALTURA = 5,41 M - ATERRO RODOVIÁRIO MÍNIMO = 0,90 M E MÁXIMO = 4,70 M - AREIA EXTRAÍDA E BRITA PRODUZIDA | C171: m | D171: 53022.72
A172: 607136 | B172: ARCO METÁLICO GALVANIZADO TIPO MP 152S - ARCO ALTO - VÃO = 9,68 M E ALTURA = 5,23 M - ATERRO RODOVIÁRIO MÍNIMO = 0,90 M E MÁXIMO = 3,90 M - AREIA E BRITA COMERCIAIS | C172: m | D172: 53054.08
A173: 606784 | B173: ARCO METÁLICO GALVANIZADO TIPO MP 152S - ARCO ALTO - VÃO = 9,68 M E ALTURA = 5,23 M - ATERRO RODOVIÁRIO MÍNIMO = 0,90 M E MÁXIMO = 3,90 M - AREIA EXTRAÍDA E BRITA PRODUZIDA | C173: m | D173: 52367.68
A174: 607135 | B174: ARCO METÁLICO GALVANIZADO TIPO MP 152S - ARCO ALTO - VÃO = 9,86 M E ALTURA = 6,07 M - ATERRO RODOVIÁRIO MÍNIMO = 0,90 M E MÁXIMO = 5,20 M - AREIA E BRITA COMERCIAIS | C174: m | D174: 59153.08
A175: 606783 | B175: ARCO METÁLICO GALVANIZADO TIPO MP 152S - ARCO ALTO - VÃO = 9,86 M E ALTURA = 6,07 M - ATERRO RODOVIÁRIO MÍNIMO = 0,90 M E MÁXIMO = 5,20 M - AREIA EXTRAÍDA E BRITA PRODUZIDA | C175: m | D175: 58363.32
A176: 607138 | B176: ARCO METÁLICO GALVANIZADO TIPO MP 152S - ARCO ALTO - VÃO = 9,91 M E ALTURA = 5,28 M - ATERRO RODOVIÁRIO MÍNIMO = 0,90 M E MÁXIMO = 3,80 M - AREIA E BRITA COMERCIAIS | C176: m | D176: 53932.82
A177: 606786 | B177: ARCO METÁLICO GALVANIZADO TIPO MP 152S - ARCO ALTO - VÃO = 9,91 M E ALTURA = 5,28 M - ATERRO RODOVIÁRIO MÍNIMO = 0,90 M E MÁXIMO = 3,80 M - AREIA EXTRAÍDA E BRITA PRODUZIDA | C177: m | D177: 53205.48
A178: 606842 | B178: ARCO METÁLICO GALVANIZADO TIPO MP 152S - OVOIDE - VÃO = 7,21 M E ALTURA = 7,82 M - ATERRO RODOVIÁRIO MÍNIMO = 0,75 M E MÁXIMO = 6,70 M - AREIA E BRITA COMERCIAIS | C178: m | D178: 67344.02
A179: 606832 | B179: ARCO METÁLICO GALVANIZADO TIPO MP 152S - OVOIDE - VÃO = 7,21 M E ALTURA = 7,82 M - ATERRO RODOVIÁRIO MÍNIMO = 0,75 M E MÁXIMO = 6,70 M - AREIA EXTRAÍDA E BRITA PRODUZIDA | C179: m | D179: 66979.83
A180: 606843 | B180: ARCO METÁLICO GALVANIZADO TIPO MP 152S - OVOIDE - VÃO = 7,31 M E ALTURA = 7,87 M - ATERRO RODOVIÁRIO MÍNIMO = 0,90 M E MÁXIMO = 6,80 M - AREIA E BRITA COMERCIAIS | C180: m | D180: 69984.44
A181: 606833 | B181: ARCO METÁLICO GALVANIZADO TIPO MP 152S - OVOIDE - VÃO = 7,31 M E ALTURA = 7,87 M - ATERRO RODOVIÁRIO MÍNIMO = 0,90 M E MÁXIMO = 6,80 M - AREIA EXTRAÍDA E BRITA PRODUZIDA | C181: m | D181: 69600.02
A182: 606845 | B182: ARCO METÁLICO GALVANIZADO TIPO MP 152S - OVOIDE - VÃO = 7,57 M E ALTURA = 8,44 M - ATERRO RODOVIÁRIO MÍNIMO = 0,90 M E MÁXIMO = 5,60 M - AREIA E BRITA COMERCIAIS | C182: m | D182: 72535.93
A183: 606835 | B183: ARCO METÁLICO GALVANIZADO TIPO MP 152S - OVOIDE - VÃO = 7,57 M E ALTURA = 8,44 M - ATERRO RODOVIÁRIO MÍNIMO = 0,90 M E MÁXIMO = 5,60 M - AREIA EXTRAÍDA E BRITA PRODUZIDA | C183: m | D183: 72154.74
A184: 606844 | B184: ARCO METÁLICO GALVANIZADO TIPO MP 152S - OVOIDE - VÃO = 7,77 M E ALTURA = 7,90 M - ATERRO RODOVIÁRIO MÍNIMO = 0,90 M E MÁXIMO = 6,80 M - AREIA E BRITA COMERCIAIS | C184: m | D184: 71081.81
A185: 606834 | B185: ARCO METÁLICO GALVANIZADO TIPO MP 152S - OVOIDE - VÃO = 7,77 M E ALTURA = 7,90 M - ATERRO RODOVIÁRIO MÍNIMO = 0,90 M E MÁXIMO = 6,80 M - AREIA EXTRAÍDA E BRITA PRODUZIDA | C185: m | D185: 70687.5
A186: 606847 | B186: ARCO METÁLICO GALVANIZADO TIPO MP 152S - OVOIDE - VÃO = 8,13 M E ALTURA = 8,01 M - ATERRO RODOVIÁRIO MÍNIMO = 0,90 M E MÁXIMO = 3,50 M - AREIA E BRITA COMERCIAIS | C186: m | D186: 74677.37
A187: 606837 | B187: ARCO METÁLICO GALVANIZADO TIPO MP 152S - OVOIDE - VÃO = 8,13 M E ALTURA = 8,01 M - ATERRO RODOVIÁRIO MÍNIMO = 0,90 M E MÁXIMO = 3,50 M - AREIA EXTRAÍDA E BRITA PRODUZIDA | C187: m | D187: 74243.22
A188: 606846 | B188: ARCO METÁLICO GALVANIZADO TIPO MP 152S - OVOIDE - VÃO = 8,36 M E ALTURA = 8,23 M - ATERRO RODOVIÁRIO MÍNIMO = 0,90 M E MÁXIMO = 4,30 M - AREIA E BRITA COMERCIAIS | C188: m | D188: 76508.2
A189: 606836 | B189: ARCO METÁLICO GALVANIZADO TIPO MP 152S - OVOIDE - VÃO = 8,36 M E ALTURA = 8,23 M - ATERRO RODOVIÁRIO MÍNIMO = 0,90 M E MÁXIMO = 4,30 M - AREIA EXTRAÍDA E BRITA PRODUZIDA | C189: m | D189: 76071.39
A190: 606848 | B190: ARCO METÁLICO GALVANIZADO TIPO MP 152S - OVOIDE - VÃO = 8,56 M E ALTURA = 8,48 M - ATERRO RODOVIÁRIO MÍNIMO = 0,90 M E MÁXIMO = 5,30 M - AREIA E BRITA COMERCIAIS | C190: m | D190: 76540.59
A191: 606838 | B191: ARCO METÁLICO GALVANIZADO TIPO MP 152S - OVOIDE - VÃO = 8,56 M E ALTURA = 8,48 M - ATERRO RODOVIÁRIO MÍNIMO = 0,90 M E MÁXIMO = 5,30 M - AREIA EXTRAÍDA E BRITA PRODUZIDA | C191: m | D191: 76084.74
A192: 606849 | B192: ARCO METÁLICO GALVANIZADO TIPO MP 152S - OVOIDE - VÃO = 8,71 M E ALTURA = 9,32 M - ATERRO RODOVIÁRIO MÍNIMO = 0,90 M E MÁXIMO = 6,00 M - AREIA E BRITA COMERCIAIS | C192: m | D192: 82782.61
A193: 606839 | B193: ARCO METÁLICO GALVANIZADO TIPO MP 152S - OVOIDE - VÃO = 8,71 M E ALTURA = 9,32 M - ATERRO RODOVIÁRIO MÍNIMO = 0,90 M E MÁXIMO = 6,00 M - AREIA EXTRAÍDA E BRITA PRODUZIDA | C193: m | D193: 82341.19
A194: 606850 | B194: ARCO METÁLICO GALVANIZADO TIPO MP 152S - OVOIDE - VÃO = 9,15 M E ALTURA = 9,04 M - ATERRO RODOVIÁRIO MÍNIMO = 0,90 M E MÁXIMO = 4,70 M - AREIA E BRITA COMERCIAIS | C194: m | D194: 83478.52
A195: 606840 | B195: ARCO METÁLICO GALVANIZADO TIPO MP 152S - OVOIDE - VÃO = 9,15 M E ALTURA = 9,04 M - ATERRO RODOVIÁRIO MÍNIMO = 0,90 M E MÁXIMO = 4,70 M - AREIA EXTRAÍDA E BRITA PRODUZIDA | C195: m | D195: 82991.88
A196: 606851 | B196: ARCO METÁLICO GALVANIZADO TIPO MP 152S - OVOIDE - VÃO = 9,15 M E ALTURA = 9,50 M - ATERRO RODOVIÁRIO MÍNIMO = 0,90 M E MÁXIMO = 5,70 M - AREIA E BRITA COMERCIAIS | C196: m | D196: 84197.08
A197: 606841 | B197: ARCO METÁLICO GALVANIZADO TIPO MP 152S - OVOIDE - VÃO = 9,15 M E ALTURA = 9,50 M - ATERRO RODOVIÁRIO MÍNIMO = 0,90 M E MÁXIMO = 5,70 M - AREIA EXTRAÍDA E BRITA PRODUZIDA | C197: m | D197: 83733.28
A198: 605604 | B198: ARGAMASSA DE SOLO-CIMENTO COM 10% DE CIMENTO E MATERIAL DE JAZIDA - PREPARO E INJEÇÃO EM TUNNEL LINER | C198: m³ | D198: 279.56
A199: 605695 | B199: BUEIRO METÁLICO COM CHAPAS MÚLTIPLAS MP 100 COM REVESTIMENTO EM EPÓXI - D = 0,60 M - BRITA COMERCIAL | C199: m | D199: 1599.68
A200: 605607 | B200: BUEIRO METÁLICO COM CHAPAS MÚLTIPLAS MP 100 COM REVESTIMENTO EM EPÓXI - D = 0,60 M - BRITA PRODUZIDA | C200: m | D200: 1571.38
... 7801 more rows

Sheet SUDECAP (hidden)
B1: SUDECAP DEZEMBRO 2022
A2: CÓDIGO | B2: DESCRIÇÃO | C2: UNIDADE | D2: PREÇO
A3: 01 | B3: INSTALAÇAO DA OBRA
A4: 01.01 | B4: ESCRITORIO DE OBRA
A5: 01.01.07 | B5: ESCRITORIO DA FISCALIZAÇAO TIPO I | C5: UN | D5: 7731.03
A6: 01.01.09 | B6: ESCRITORIO DE FISCALIZAÇAO TIPO II | C6: UN | D6: 9054.56
A7: 01.01.12 | B7: ESCRITORIO DA EMPREITEIRA TIPO II | C7: UN | D7: 9054.56
A8: 01.02 | B8: BARRACAO DE OBRA
A9: 01.02.06 | B9: VESTIARIO TIPO I | C9: UN | D9: 6267.11
A10: 01.02.07 | B10: VESTIARIO TIPO II | C10: UN | D10: 12622.3
A11: 01.02.08 | B11: VESTIARIO TIPO III | C11: UN | D11: 16828.32
A12: 01.02.11 | B12: AREA COBERTA EM TELHA ONDULADA DE FIBROCIMENTO 4MM | C12: M2 | D12: 70.03
A13: 01.02.12 | B13: DEPOSITO E FERRAMENTARIA TIPO I | C13: UN | D13: 4996.83
A14: 01.02.13 | B14: DEPOSITO E FERRAMENTARIA TIPO II | C14: UN | D14: 7641.05
A15: 01.02.14 | B15: DEPOSITO E FERRAMENTARIA TIPO III | C15: UN | D15: 10302.42
A16: 01.02.15 | B16: DEPOSITO DE MATERIAIS ENSACADOS | C16: UN | D16: 3717.95
A17: 01.02.20 | B17: INSTALAÇAO SANITARIA TIPO I | C17: UN | D17: 6253.17
A18: 01.02.21 | B18: INSTALAÇAO SANITARIA TIPO II | C18: UN | D18: 7831.42
A19: 01.02.22 | B19: INSTALAÇAO SANITARIA TIPO III | C19: UN | D19: 11085.6
A20: 01.02.25 | B20: REFEITORIO TIPO I | C20: UN | D20: 4918.64
A21: 01.02.26 | B21: REFEITORIO TIPO II | C21: UN | D21: 5555.62
A22: 01.03 | B22: PLACA DE OBRA AFIXADA COM PEÇAS DE MADEIRA
A23: 01.03.01 | B23: 3,00 X 2,00 M EM LONA IMPRESSAO DIGITAL P.SUDECAP | C23: UN | D23: 2412.43
A24: 01.03.02 | B24: PLACA DE OBRA EM LONA IMPRESSAO DIGITAL P. SUDECAP | C24: M2 | D24: 336.09
A25: 01.03.03 | B25: PLACA DE OBRA EM CHAPA GALVANIZADA ADESIVADA, DIMENSÕES 2,40 X 1,20 M, PADRÃO CEF | C25: M2 | D25: 366.87
A26: 01.04 | B26: TAPUME PADRAO SUDECAP (TIPO I, II E III)
A27: 01.04.01 | B27: COMPENSADO 10MM FIXAÇAO ENTERRADA COM INFORME PBH | C27: M | D27: 99.35
A28: 01.04.02 | B28: COMPENSADO 10MM FIXAÇAO ENTERRADA SEM INFORME PBH | C28: M | D28: 99.35
A29: 01.04.03 | B29: COMPENSADO 10MM COM BASE DE CONCRETO C/INFORME PBH | C29: M | D29: 102.7
A30: 01.04.04 | B30: COMPENSADO 10MM COM BASE DE CONCRETO S/INFORME PBH | C30: M | D30: 102.7
A31: 01.04.05 | B31: INFORME PUBLIC.LONA IMP.DIGITAL APLICADO EM TAPUME | C31: M2 | D31: 81.9
A32: 01.04.06 | B32: DE TELA GALVANIZADA #2" FIO 14 C/FIXAÇAO ENTERRADA | C32: M | D32: 50.14
A33: 01.04.07 | B33: DE TELA GALVANIZADA #2" FIO 14 C/BASE DE CONCRETO | C33: M | D33: 54.75
A34: 01.04.09 | B34: TELA-TAPUME DE POLIPROPILENO H= 1,20 M, INCL. BASE | C34: M | D34: 8.84
A35: 01.04.10 | B35: PROTEÇAO COM FITA ZEBRADA AMARELA L=7CM E PEÇA 7X7 | C35: M | D35: 7.07
A36: 01.04.11 | B36: FITA ZEBRADA AMARELA PARA SINALIZAÇAO L= 7CM | C36: M | D36: 2.75
A37: 01.04.12 | B37: TAPUME METÁLICO COM BASE DE CONCRETO | C37: M2 | D37: 46.21
A38: 01.04.13 | B38: TAPUME METÁLICO COM BASE ENTERRADA | C38: M2 | D38: 44.32
A39: 01.04.14 | B39: TAPUME METÁLICO COM TELA E BASE DE CONCRETO | C39: M2 | D39: 42.35
A40: 01.04.15 | B40: TAPUME METÁLICO COM TELA E BASE ENTERRADA | C40: M2 | D40: 40.46
A41: 01.04.20 | B41: REMANEJAMENTO DE TAPUME | C41: M | D41: 7.1
A42: 01.05 | B42: CERCA PADRAO SUDECAP
A43: 01.05.05 | B43: TIPO 1 - PECA 8X8 CADA 2,00M E 5 FIOS ARAME GALVANIZADO | C43: M | D43: 16.21
A44: 01.06 | B44: INSTALAÇAO PROVISORIA - CONCESSIONARIA
A45: 01.06.01 | B45: PADRÃO CEMIG PROVISÓRIO TIPO C3, DEMANDA PROVÁVEL DE 23,1 ATÉ 27,0KW (3F+N) | C45: UN | D45: 759.53
A46: 01.06.05 | B46: PADRAO COPASA - KIT CAVALTE METAL E REGISTRO 3/4" | C46: UN | D46: 442.91
A47: 01.07 | B47: FOSSA E SUMIDOURO
A48: 01.07.02 | B48: FOSSA SEPTICA E SUMIDOURO DN=1,20M H=4,00M | C48: UN | D48: 611.87
A49: 01.08 | B49: REDE INTERNA E PROVISORIA DE AGUA E ESGOTO
A50: 01.08.01 | B50: TUBO PVC D= 100 MM | C50: M | D50: 24.34
A51: 01.08.02 | B51: TUBO PVC D= 150 MM | C51: M | D51: 51.11
A52: 01.08.03 | B52: TUBO PVC D= 200 MM | C52: M | D52: 102.56
A53: 01.08.04 | B53: TUBO PVC D= 250 MM | C53: M | D53: 143.91
A54: 01.08.20 | B54: TUBO PVC AGUA SOLDA E CONEXOES D=20MM (1/2") | C54: M | D54: 6.37
A55: 01.08.21 | B55: TUBO PVC AGUA SOLDA E CONEXOES D=25MM (3/4") | C55: M | D55: 6.68
A56: 01.09 | B56: CONTAINER 6,0X2,30X2,82 M COM ISOLAMENTO TERMICO
A57: 01.09.01 | B57: MOBILIZACAO DE CONTAINER | C57: UN | D57: 600
A58: 01.09.02 | B58: ESCRITORIO COM AR CONDICIONADO | C58: MES | D58: 850
A59: 01.09.03 | B59: ESCRITORIO COM AR CONDICIONADO E SANITARIO | C59: MES | D59: 930
A60: 01.09.05 | B60: VESTIARIO COM 7 CHUVEIROS E 2 LAVATORIOS | C60: MES | D60: 1100
A61: 01.09.06 | B61: VESTIARIO BOX 7 SANIT. 2 LAVAT. 1 MICTORIO | C61: MES | D61: 1100
A62: 01.09.07 | B62: VESTIARIO 4 CHUV. 3 SANIT. 1LAVAT. 1 MICT. | C62: MES | D62: 850
A63: 01.09.08 | B63: VESTIARIO | C63: MES | D63: 650
A64: 01.09.09 | B64: REFEITORIO | C64: MES | D64: 650
A65: 01.09.10 | B65: DEPOSITO E FERRAMENTARIA COM LAVATORIO | C65: MES | D65: 730
A66: 01.09.11 | B66: DESMOBILIZAÇÃO DE CONTAINER | C66: UN | D66: 600
A67: 01.09.12 | B67: INSTALAÇÕES PARA CONTAINERS TIPO ESCRITORIO | C67: UN | D67: 748.98
A68: 01.09.13 | B68: INSTALAÇÕES PARA CONTAINER VESTIARIO COM BANCO E ARMÁRIO | C68: UN | D68: 224.39
A69: 01.09.14 | B69: INSTALAÇÕES PARA CONTAINER REFEITORIO | C69: UN | D69: 227.55
A70: 01.09.15 | B70: INSTALAÇÕES PARA CONTAINER DEPOSITO E FERRAMENTARIA COM LAVATORIO | C70: UN | D70: 381.11
A71: 01.09.16 | B71: CAIXA DÁGUA DE 1000L PARA ABASTECIMENTO DE CONTAINERS | C71: UN | D71: 261.63
A72: 01.10 | B72: BANHEIRO QUIMICO
A73: 01.10.01 | B73: BANHEIRO QUIMICO 110X120X230CM COM MANUTENCAO | C73: MES | D73: 680
A74: 01.10.02 | B74: BANHEIRO QUÍMICO E REBOQUE PARA TRANSPORTE DE BANHEIRO QUÍMICO | C74: MES | D74: 1022.1
A75: 01.11 | B75: SINALIZAÇAO
A76: 01.11.01 | B76: PLACA 1,0X0,60M DUPLA FACE CH.GALV. 26 EM CAVALETE | C76: UNMES | D76: 27.34
A77: 01.11.02 | B77: PLACA 1,0X0,60M CH.26 EM CAVALETE METALON 20X20MM | C77: UNMES | D77: 16.6
A78: 01.11.03 | B78: PLACA 0,50X0,50M DUPLA FACE CH.GALV.22 EM CAVALETE | C78: UNMES | D78: 14.8
A79: 01.11.04 | B79: PLACA 0,50X0,50M CH.GALV.22 CAVALETE METALON 20X20 | C79: UNMES | D79: 12.8
A80: 01.11.05 | B80: FAIXA 6,0X0,80M TECIDO MORIM SUPORTE EM EUCALIPTO | C80: UN | D80: 200.79
A81: 01.11.06 | B81: CONE MASTER 75CM BASE DE BORRACHA CORPO POLIETILEN | C81: UN | D81: 81.14
A82: 01.11.07 | B82: CONE EM PVC H= 75 CM | C82: UN | D82: 40.4
A83: 01.11.08 | B83: SINALIZADOR ELET.MONOLIGHT LED 60 A 70 FLASHES/MIN | C83: UN | D83: 142.09
A84: 01.12 | B84: VISTORIA CAUTELAR
A85: 01.12.01 | B85: VISTORIA CAUTELAR - ÁREA CONSTRUÍDA <= 100M2 | C85: UN | D85: 291.58
A86: 01.12.02 | B86: VISTORIA CAUTELAR - 101M2 < ÁREA CONSTRUÍDA <= 200M2 | C86: UN | D86: 362.8
A87: 01.12.03 | B87: VISTORIA CAUTELAR - 201M2 < ÁREA CONSTRUÍDA <= 500M2 | C87: UN | D87: 482.86
A88: 01.12.04 | B88: VISTORIA CAUTELAR - 501M2 < ÁREA CONSTRUÍDA <= 2000M2 | C88: UN | D88: 700.7
A89: 01.12.05 | B89: VISTORIA CAUTELAR - 2001M2 < ÁREA CONSTRUÍDA <= 7000M2 | C89: UN | D89: 1172.61
A90: 01.12.06 | B90: VISTORIA CAUTELAR - ÁREA CONSTRUÍDA > 7001M2 | C90: UN | D90: 1652.98
A91: 01.17 | B91: LOCAÇAO DE OBRA
A92: 01.17.01 | B92: GABARITO | C92: M | D92: 28.63
A93: 01.29 | B93: ANDAIME FACHADEIRO
A94: 01.29.01 | B94: ANDAIME FACHADEIRO INCLUSIVE FORRO METALICO | C94: M2MES | D94: 11
A95: 01.29.02 | B95: GUARDA CORPO MADEIRA L= 15 CM P/ ANDAIME FACHADEIRO | C95: M2 | D95: 8.82
A96: 01.29.03 | B96: MONTAGEM DE ANDAIME FACHADEIRO | C96: M2 | D96: 1.8
A97: 01.29.04 | B97: DESMONTAGEM DE ANDAIME FACHADEIRO | C97: M2 | D97: 1.8
A98: 01.30 | B98: MONTAGEM E DESMONTAGEM DE ANDAIME
A99: 01.30.02 | B99: ANDAIME INTERNO P/EXEC. DE ALVENARIA ALT. ATE 3,5M | C99: M2 | D99: 14.59
A100: 01.30.03 | B100: ANDAIME INTERNO DE MADEIRA P/ REVESTIMENTO DE TETO | C100: M2 | D100: 15.44
A101: 02 | B101: DEMOLIÇOES E REMOÇOES
A102: 02.01 | B102: REMOÇAO DE TELHA INCLUSIVE EMPILHAMENTO
A103: 02.01.01 | B103: METALICA OU PVC | C103: M2 | D103: 4
A104: 02.01.03 | B104: TIPO CALHA DE FIBROCIMENTO | C104: M2 | D104: 9.59
A105: 02.01.05 | B105: ONDULADA DE FIBROCIMENTO | C105: M2 | D105: 7.99
A106: 02.01.07 | B106: CERAMICA COLONIAL OU FRANCESA | C106: M2 | D106: 9.59
A107: 02.02 | B107: REMOÇAO DE CALHA, RUFO E CONDUTOR,INCL.AFASTAMENTO
A108: 02.02.01 | B108: DE CALHA GALVANIZADA OU PVC | C108: M | D108: 4.79
A109: 02.02.05 | B109: DE RUFO DE CHAPA GALVANIZADA | C109: M | D109: 3.2
A110: 02.02.10 | B110: DE CONDUTOR DE CHAPA GALVANIZADA OU PVC | C110: M | D110: 3.2
A111: 02.03 | B111: REMOÇAO DE ENGRADAMENTO DE TELHADO INCL.EMPILHAM.
A112: 02.03.01 | B112: DE TELHA METALICA OU PVC | C112: M2 | D112: 5.39
A113: 02.03.03 | B113: DE TELHA TIPO CALHA DE FIBROCIMENTO | C113: M2 | D113: 2.69
A114: 02.03.05 | B114: DE TELHA ONDULADA DE FIBROCIMENTO | C114: M2 | D114: 5.39
A115: 02.03.07 | B115: DE TELHA CERAMICA, COLONIAL OU FRANCESA | C115: M2 | D115: 7.58
A116: 02.04 | B116: REMOÇAO DE FORRO INCLUSIVE EMPILHAMENTO
A117: 02.04.01 | B117: DE PLACAS INCLUSIVE BARROTEAMENTO | C117: M2 | D117: 13.52
A118: 02.04.02 | B118: DE PLACAS EXCLUSIVE BARROTEAMENTO | C118: M2 | D118: 6.76
A119: 02.04.10 | B119: DE GESSO | C119: M2 | D119: 10.14
A120: 02.06 | B120: REMOÇAO DE ESQUADRIA DE MADEIRA INCL. EMPILHAMENTO
A121: 02.06.01 | B121: DE PORTA OU JANELA INCLUSIVE MARCO E ALIZAR | C121: M2 | D121: 9.56
A122: 02.06.02 | B122: DE FOLHA DE PORTA OU JANELA | C122: M2 | D122: 4.78
A123: 02.06.03 | B123: DE MARCO E ALIZAR | C123: UN | D123: 8.16
A124: 02.06.04 | B124: DE MARCO | C124: UN | D124: 5.77
A125: 02.06.05 | B125: DE ALIZAR | C125: CJ | D125: 2.39
A126: 02.07 | B126: REMOÇAO DE ESQUADRIA METALICA
A127: 02.07.01 | B127: DE PORTA OU JANELA | C127: M2 | D127: 11.95
A128: 02.09 | B128: DEMOLIÇAO DE REVESTIMENTO INCLUSIVE AFASTAMENTO
A129: 02.09.01 | B129: DE REBOCO | C129: M2 | D129: 2.21
A130: 02.09.03 | B130: CERAMICO, AZULEJO OU LADRILHO HIDRAULICO | C130: M2 | D130: 14.38
A131: 02.09.05 | B131: DE PEDRA (MARMORE, GRANITO, ARDOSIA, SAO TOME,ETC) | C131: M2 | D131: 15.98
A132: 02.09.06 | B132: DE FORMICA | C132: M2 | D132: 4.78
A133: 02.09.07 | B133: DE PEDRA ALMOFADADA | C133: M2 | D133: 33.8
A134: 02.10 | B134: DEMOLIÇAO DE PISO INCLUSIVE AFASTAMENTO
A135: 02.10.01 | B135: CIMENTADO OU CONTRAPISO DE ARGAMASSA | C135: M2 | D135: 2.21
A136: 02.10.03 | B136: CERAMICO OU LADRILHO HIDRAULICO | C136: M2 | D136: 11.19
A137: 02.10.05 | B137: DE PEDRA (MARMORE, GRANITO, ARDOSIA, SAO TOME,ETC) | C137: M2 | D137: 20.76
A138: 02.10.07 | B138: VINILICO | C138: M2 | D138: 5.6
A139: 02.10.08 | B139: DE MARMORITE | C139: M2 | D139: 13.18
A140: 02.10.09 | B140: DE TACO DE MADEIRA | C140: M2 | D140: 21.92
A141: 02.11 | B141: DEMOLIÇAO DE PASSEIO E PAVIMENTO
A142: 02.11.01 | B142: PASSEIO OU LAJE DE CONCRETO MANUALMENTE | C142: M2 | D142: 19.18
A143: 02.11.02 | B143: PASSEIO OU LAJE DE CONCRETO C/ EQUIP. PNEUMATICO | C143: M2 | D143: 13.03
A144: 02.11.03 | B144: CALÇADA PORTUGUESA | C144: M2 | D144: 4.49
A145: 02.11.04 | B145: PASSEIO OU LAJE DE CONCRETO C/EQUIPAMENTO ELETRICO | C145: M2 | D145: 5.52
A146: 02.11.05 | B146: MANUAL DE ALVENARIA POLIEDRICA | C146: M2 | D146: 5.6
A147: 02.11.07 | B147: DE REVESTIMENTO ASFALTICO COM EQUIP. PNEUMATICO | C147: M2 | D147: 13.03
A148: 02.12 | B148: CORTE MECANICO EM CONCRETO/ASFALTO
A149: 02.12.01 | B149: CORTE MECAN. C/ SERRA CIRCULAR EM CONCRETO/ASFALTO | C149: M | D149: 1.83
A150: 02.13 | B150: DEMOLIÇAO DE CONCRETO INCLUSIVE AFASTAMENTO
A151: 02.13.01 | B151: SIMPLES - MANUAL | C151: M3 | D151: 197.7
A152: 02.13.02 | B152: ARMADO - MANUAL | C152: M3 | D152: 271.66
A153: 02.13.03 | B153: SIMPLES - COM EQUIPAMENTO ELETRICO | C153: M3 | D153: 71.88
A154: 02.13.04 | B154: ARMADO - COM EQUIPAMENTO ELETRICO | C154: M3 | D154: 113.28
A155: 02.14 | B155: DEMOLIÇAO MANUAL, DE ALVENARIA INCL. AFASTAMENTO
A156: 02.14.01 | B156: DE ALVENARIA DE TIJOLOS E BLOCOS | C156: M3 | D156: 89.8
A157: 02.15 | B157: REMOÇAO DE MEIO-FIO
A158: 02.15.01 | B158: PREMOLDADO DE CONCRETO | C158: M | D158: 7
A159: 02.15.02 | B159: DE PEDRA (GNAISSE, BASALTO ETC.) | C159: M | D159: 21
A160: 02.16 | B160: DEMOLIÇAO, REMOÇAO E CARGA MECANICA
A161: 02.16.01 | B161: DE CONSTRUÇOES DE ALVENARIA | C161: M2 | D161: 7.33
A162: 02.16.04 | B162: DE GABIAO | C162: M3 | D162: 18.59
A163: 02.19 | B163: DEMOLIÇAO DE DIVISORIA INCLUSIVE AFASTAMENTO
A164: 02.19.01 | B164: DE PEDRA (MARMORE, ARDORSIA OU MARMORITE) | C164: M2 | D164: 33.8
A165: 02.19.03 | B165: DE MADEIRA | C165: M2 | D165: 12.36
A166: 02.19.05 | B166: DE ELEMENTOS VAZADOS (COBOGO, ETC) | C166: M2 | D166: 6.29
A167: 02.19.06 | B167: DE LAMINADO | C167: M2 | D167: 0.85
A168: 02.20 | B168: REMOÇAO DE QUADROS
A169: 02.20.01 | B169: NEGRO | C169: M2 | D169: 15.98
A170: 02.21 | B170: REMOÇAO DE PEÇAS DIVERSAS
A171: 02.21.01 | B171: LOUÇAS | C171: UN | D171: 50.7
A172: 02.21.02 | B172: FERRAGENS (DOBRADIÇAS, FECHADURAS, MAÇANETAS) | C172: UN | D172: 10.26
A173: 02.21.03 | B173: METAIS COMUNS(CONDUITE,SIFAO, REGISTRO, TORNEIRA) | C173: UN | D173: 10.96
A174: 02.21.04 | B174: METAIS ESPECIAIS(VALVULA DE DESCARGA, CAIXA SILEN) | C174: UN | D174: 10.96
A175: 02.21.05 | B175: REMOÇAO DE LUMINARIA FLUORESCENTE | C175: UN | D175: 2.68
A176: 02.21.06 | B176: REMOÇAO DE LUMNARIA INCANDESCENTE | C176: UN | D176: 0.7
A177: 02.21.20 | B177: REMOÇAO DE PADRAO CEMIG | C177: UN | D177: 67.6
A178: 02.21.21 | B178: REMOÇAO DE PADRAO COPASA | C178: UN | D178: 50.7
A179: 02.21.22 | B179: REMOÇAO DE INTERFONE | C179: UN | D179: 5.77
A180: 02.22 | B180: REMOÇAO DE BANCADA
A181: 02.22.01 | B181: DE PEDRA(MARMORE,GRANITO,ARDOSIA,MARMORITE, ETC) | C181: M2 | D181: 33.8
A182: 02.23 | B182: REMOÇAO DE CERCA E ALAMBRADO
A183: 02.23.01 | B183: CERCA DE ARAME | C183: M | D183: 8.77
A184: 02.23.03 | B184: ALAMBRADO | C184: M2 | D184: 11.95
A185: 02.26 | B185: TRANSPORTE DE MATERIAL DEMOLIDO EM CARRINHO DE MAO
A186: 02.26.01 | B186: DMT <= 50,0 M | C186: M3 | D186: 21
A187: 02.26.02 | B187: 50,0 M < DMT <= 100,0 M | C187: M3 | D187: 28
A188: 02.27 | B188: CARGA DE MATERIAL DEMOLIDO SOBRE CAMINHAO
A189: 02.27.01 | B189: MANUAL | C189: M3 | D189: 19.13
A190: 02.27.02 | B190: MECANICA | C190: M3 | D190: 2.94
A191: 02.28 | B191: TRANSPORTE DE MATERIAL DEMOLIDO EM CAMINHAO
A192: 02.28.01 | B192: DMT <= 1 KM | C192: M3 | D192: 3.65
A193: 02.28.02 | B193: 1 KM < DMT <= 2 KM | C193: M3 | D193: 7
A194: 02.28.03 | B194: 2 KM < DMT <= 5 KM | C194: M3KM | D194: 3.16
A195: 02.28.04 | B195: DMT > 5 KM | C195: M3KM | D195: 1.9
A196: 02.29 | B196: TRANSPORTE DE MAT.DE QUALQUER NATUREZA EM CAÇAMBA
A197: 02.29.01 | B197: CAÇAMBA 5m³ | C197: VG | D197: 280
A198: 02.30 | B198: LIMPEZA DO PAVIMENTO
A199: 02.30.01 | B199: CAPINA E VARRIÇAO DE PAVIMENTO EM ALVEN.POLIEDRICA | C199: M2 | D199: 2.33
A200: 03 | B200: TRABALHOS EM TERRA
... 2440 more rows

Sheet CRO 3 meses (hidden)
A2: CRONOGRAMA FÍSICO-FINANCEIRO | M2: Revisão: | N2: =DADOS!D6 -> R01
M3: Data: | N3: =DADOS!D2 -> 2023-03-27
A4: Projeto: | D4: Responsável: | I4: Cliente: | M4: Bancos:
A5: =DADOS!D8 -> REFORMA DA COBERTURA DA PEM CORONEL BRITO FILHO | M5: =DADOS!D14 -> SINAPI: 02/2023 Minas Gerais SETOP: 01/2023 Minas Gerais SICRO : 10/2022 Minas Gerais SUDECAP: 12/2022 Minas Gerais
M8: BDI 1: | N8: =DADOS!D10 -> 0.2652
M9: BDI 2: | N9: =DADOS!D12 -> 0.2025
A11: =A2&" DE "&DADOS!D20&" - "&A5 -> CRONOGRAMA FÍSICO-FINANCEIRO DE PROJETO EXECUTIVO - REFORMA DA COBERTURA DA PEM CORONEL BRITO FILHO
A13: ITEM | B13: DESCRIÇÃO | F13: Unid. | G13: 30 DIAS | I13: 60 DIAS | K13: 90 DIAS | M13: Total por Etapa
A15: 1 | B15: =VLOOKUP(A15,ORC!$D:$N,2,0) -> CANTEIRO DE OBRA | F15: % | M15: =SUM(G15:L15) -> 0
A16: =IFERROR(IF(B15<>"",100,B15),"") -> 100 | F16: R$ | G16: =IF(G15="","",IFERROR(G15*$M16,"")) ->  | I16: =IF(I15="","",IFERROR(I15*$M16,"")) ->  | K16: =IF(K15="","",IFERROR(K15*$M16,"")) ->  | M16: =VLOOKUP(A15,ORC!$D:$N,11,0) -> 8820.09
A17: 2 | B17: =VLOOKUP(A17,ORC!$D:$N,2,0) -> SERVIÇOS PRELIMINARES | F17: % | M17: =SUM(G17:L17) -> 0
A18: =IFERROR(IF(B17<>"",100,B17),"") -> 100 | F18: R$ | G18: =IF(G17="","",IFERROR(G17*$M18,"")) ->  | I18: =IF(I17="","",IFERROR(I17*$M18,"")) ->  | K18: =IF(K17="","",IFERROR(K17*$M18,"")) ->  | M18: =VLOOKUP(A17,ORC!$D:$N,11,0) -> 4690.75
A19: 3 | B19: =VLOOKUP(A19,ORC!$D:$N,2,0) -> ADMINISTRAÇÃO DE OBRA | F19: % | M19: =SUM(G19:L19) -> 0
A20: =IFERROR(IF(B19<>"",100,B19),"") -> 100 | F20: R$ | G20: =IF(G19="","",IFERROR(G19*$M20,"")) ->  | I20: =IF(I19="","",IFERROR(I19*$M20,"")) ->  | K20: =IF(K19="","",IFERROR(K19*$M20,"")) ->  | M20: =VLOOKUP(A19,ORC!$D:$N,11,0) -> 116000.72
A21: 4 | B21: =VLOOKUP(A21,ORC!$D:$N,2,0) -> DEMOLIÇÕES E REMOÇÕES | F21: % | M21: =SUM(G21:L21) -> 0
A22: =IFERROR(IF(B21<>"",100,B21),"") -> 100 | F22: R$ | G22: =IF(G21="","",IFERROR(G21*$M22,"")) ->  | I22: =IF(I21="","",IFERROR(I21*$M22,"")) ->  | K22: =IF(K21="","",IFERROR(K21*$M22,"")) ->  | M22: =VLOOKUP(A21,ORC!$D:$N,11,0) -> 11806.86
A23: 5 | B23: =VLOOKUP(A23,ORC!$D:$N,2,0) -> SISTEMA DE COBERTURA | F23: % | M23: =SUM(G23:L23) -> 0
A24: =IFERROR(IF(B23<>"",100,B23),"") -> 100 | F24: R$ | G24: =IF(G23="","",IFERROR(G23*$M24,"")) ->  | I24: =IF(I23="","",IFERROR(I23*$M24,"")) ->  | K24: =IF(K23="","",IFERROR(K23*$M24,"")) ->  | M24: =VLOOKUP(A23,ORC!$D:$N,11,0) -> 237662.75
A25: 6 | B25: =VLOOKUP(A25,ORC!$D:$N,2,0) -> FECHAMENTO DA COBERTURA | F25: % | M25: =SUM(G25:L25) -> 0
A26: =IFERROR(IF(B25<>"",100,B25),"") -> 100 | F26: R$ | G26: =IF(G25="","",IFERROR(G25*$M26,"")) ->  | I26: =IF(I25="","",IFERROR(I25*$M26,"")) ->  | K26: =IF(K25="","",IFERROR(K25*$M26,"")) ->  | M26: =VLOOKUP(A25,ORC!$D:$N,11,0) -> 14314.25
A27: 7 | B27: =VLOOKUP(A27,ORC!$D:$N,2,0) -> DRENAGEM PLUVIAL | F27: % | M27: =SUM(G27:L27) -> 0
A28: =IFERROR(IF(B27<>"",100,B27),"") -> 100 | F28: R$ | G28: =IF(G27="","",IFERROR(G27*$M28,"")) ->  | I28: =IF(I27="","",IFERROR(I27*$M28,"")) ->  | K28: =IF(K27="","",IFERROR(K27*$M28,"")) ->  | M28: =VLOOKUP(A27,ORC!$D:$N,11,0) -> 21331.92
A29: 8 | B29: =VLOOKUP(A29,ORC!$D:$N,2,0) -> SERVIÇOS FINAIS | F29: % | M29: =SUM(G29:L29) -> 0
A30: =IFERROR(IF(B29<>"",100,B29),"") -> 100 | F30: R$ | G30: =IF(G29="","",IFERROR(G29*$M30,"")) ->  | I30: =IF(I29="","",IFERROR(I29*$M30,"")) ->  | K30: =IF(K29="","",IFERROR(K29*$M30,"")) ->  | M30: =VLOOKUP(A29,ORC!$D:$N,11,0) -> 4257.06
A32: 9 | B32: =VLOOKUP(A32,ORC!$D:$N,2,0) ->  | F32: % | M32: =SUM(G32:L32) -> 0
A33: =IFERROR(IF(B32<>"",100,B32),"") ->  | F33: R$ | G33: =IF(G32="","",IFERROR(G32*$M33,"")) ->  | I33: =IF(I32="","",IFERROR(I32*$M33,"")) ->  | K33: =IF(K32="","",IFERROR(K32*$M33,"")) ->  | M33: =VLOOKUP(A32,ORC!$D:$N,11,0) -> 
A34: 10 | B34: =VLOOKUP(A34,ORC!$D:$N,2,0) ->  | F34: % | M34: =SUM(G34:L34) -> 0
A35: =IFERROR(IF(B34<>"",100,B34),"") ->  | F35: R$ | G35: =IF(G34="","",IFERROR(G34*$M35,"")) ->  | I35: =IF(I34="","",IFERROR(I34*$M35,"")) ->  | K35: =IF(K34="","",IFERROR(K34*$M35,"")) ->  | M35: =VLOOKUP(A34,ORC!$D:$N,11,0) -> 
A36: 11 | B36: =VLOOKUP(A36,ORC!$D:$N,2,0) ->  | F36: % | M36: =SUM(G36:L36) -> 0
A37: =IFERROR(IF(B36<>"",100,B36),"") ->  | F37: R$ | G37: =IF(G36="","",IFERROR(G36*$M37,"")) ->  | I37: =IF(I36="","",IFERROR(I36*$M37,"")) ->  | K37: =IF(K36="","",IFERROR(K36*$M37,"")) ->  | M37: =VLOOKUP(A36,ORC!$D:$N,11,0) -> 
A38: 12 | B38: =VLOOKUP(A38,ORC!$D:$N,2,0) ->  | F38: % | M38: =SUM(G38:L38) -> 0
A39: =IFERROR(IF(B38<>"",100,B38),"") ->  | F39: R$ | G39: =IF(G38="","",IFERROR(G38*$M39,"")) ->  | I39: =IF(I38="","",IFERROR(I38*$M39,"")) ->  | K39: =IF(K38="","",IFERROR(K38*$M39,"")) ->  | M39: =VLOOKUP(A38,ORC!$D:$N,11,0) -> 
A40: 13 | B40: =VLOOKUP(A40,ORC!$D:$N,2,0) ->  | F40: % | M40: =SUM(G40:L40) -> 0
A41: =IFERROR(IF(B40<>"",100,B40),"") ->  | F41: R$ | G41: =IF(G40="","",IFERROR(G40*$M41,"")) ->  | I41: =IF(I40="","",IFERROR(I40*$M41,"")) ->  | K41: =IF(K40="","",IFERROR(K40*$M41,"")) ->  | M41: =VLOOKUP(A40,ORC!$D:$N,11,0) -> 
A42: 14 | B42: =VLOOKUP(A42,ORC!$D:$N,2,0) ->  | F42: % | M42: =SUM(G42:L42) -> 0
A43: =IFERROR(IF(B42<>"",100,B42),"") ->  | F43: R$ | G43: =IF(G42="","",IFERROR(G42*$M43,"")) ->  | I43: =IF(I42="","",IFERROR(I42*$M43,"")) ->  | K43: =IF(K42="","",IFERROR(K42*$M43,"")) ->  | M43: =VLOOKUP(A42,ORC!$D:$N,11,0) -> 
A44: 15 | B44: =VLOOKUP(A44,ORC!$D:$N,2,0) ->  | F44: % | M44: =SUM(G44:L44) -> 0
A45: =IFERROR(IF(B44<>"",100,B44),"") ->  | F45: R$ | G45: =IF(G44="","",IFERROR(G44*$M45,"")) ->  | I45: =IF(I44="","",IFERROR(I44*$M45,"")) ->  | K45: =IF(K44="","",IFERROR(K44*$M45,"")) ->  | M45: =VLOOKUP(A44,ORC!$D:$N,11,0) -> 
A46: 16 | B46: =VLOOKUP(A46,ORC!$D:$N,2,0) ->  | F46: % | M46: =SUM(G46:L46) -> 0
A47: =IFERROR(IF(B46<>"",100,B46),"") ->  | F47: R$ | G47: =IF(G46="","",IFERROR(G46*$M47,"")) ->  | I47: =IF(I46="","",IFERROR(I46*$M47,"")) ->  | K47: =IF(K46="","",IFERROR(K46*$M47,"")) ->  | M47: =VLOOKUP(A46,ORC!$D:$N,11,0) -> 
A48: 17 | B48: =VLOOKUP(A48,ORC!$D:$N,2,0) ->  | F48: % | M48: =SUM(G48:L48) -> 0
A49: =IFERROR(IF(B48<>"",100,B48),"") ->  | F49: R$ | G49: =IF(G48="","",IFERROR(G48*$M49,"")) ->  | I49: =IF(I48="","",IFERROR(I48*$M49,"")) ->  | K49: =IF(K48="","",IFERROR(K48*$M49,"")) ->  | M49: =VLOOKUP(A48,ORC!$D:$N,11,0) -> 
A50: 18 | B50: =VLOOKUP(A50,ORC!$D:$N,2,0) ->  | F50: % | M50: =SUM(G50:L50) -> 0
A51: =IFERROR(IF(B50<>"",100,B50),"") ->  | F51: R$ | G51: =IF(G50="","",IFERROR(G50*$M51,"")) ->  | I51: =IF(I50="","",IFERROR(I50*$M51,"")) ->  | K51: =IF(K50="","",IFERROR(K50*$M51,"")) ->  | M51: =VLOOKUP(A50,ORC!$D:$N,11,0) -> 
A52: 19 | B52: =VLOOKUP(A52,ORC!$D:$N,2,0) ->  | F52: % | M52: =SUM(G52:L52) -> 0
A53: =IFERROR(IF(B52<>"",100,B52),"") ->  | F53: R$ | G53: =IF(G52="","",IFERROR(G52*$M53,"")) ->  | I53: =IF(I52="","",IFERROR(I52*$M53,"")) ->  | K53: =IF(K52="","",IFERROR(K52*$M53,"")) ->  | M53: =VLOOKUP(A52,ORC!$D:$N,11,0) -> 
A55: 20 | B55: =VLOOKUP(A55,ORC!$D:$N,2,0) ->  | F55: % | M55: =SUM(G55:L55) -> 0
A56: =IFERROR(IF(B55<>"",100,B55),"") ->  | F56: R$ | G56: =IF(G55="","",IFERROR(G55*$M56,"")) ->  | I56: =IF(I55="","",IFERROR(I55*$M56,"")) ->  | K56: =IF(K55="","",IFERROR(K55*$M56,"")) ->  | M56: =VLOOKUP(A55,ORC!$D:$N,11,0) -> 
A57: 21 | B57: =VLOOKUP(A57,ORC!$D:$N,2,0) ->  | F57: % | M57: =SUM(G57:L57) -> 0
A58: =IFERROR(IF(B57<>"",100,B57),"") ->  | F58: R$ | G58: =IF(G57="","",IFERROR(G57*$M58,"")) ->  | I58: =IF(I57="","",IFERROR(I57*$M58,"")) ->  | K58: =IF(K57="","",IFERROR(K57*$M58,"")) ->  | M58: =VLOOKUP(A57,ORC!$D:$N,11,0) -> 
A59: 22 | B59: =VLOOKUP(A59,ORC!$D:$N,2,0) ->  | F59: % | M59: =SUM(G59:L59) -> 0
A60: =IFERROR(IF(B59<>"",100,B59),"") ->  | F60: R$ | G60: =IF(G59="","",IFERROR(G59*$M60,"")) ->  | I60: =IF(I59="","",IFERROR(I59*$M60,"")) ->  | K60: =IF(K59="","",IFERROR(K59*$M60,"")) ->  | M60: =VLOOKUP(A59,ORC!$D:$N,11,0) -> 
A61: 23 | B61: =VLOOKUP(A61,ORC!$D:$N,2,0) ->  | F61: % | M61: =SUM(G61:L61) -> 0
A62: =IFERROR(IF(B61<>"",100,B61),"") ->  | F62: R$ | G62: =IF(G61="","",IFERROR(G61*$M62,"")) ->  | I62: =IF(I61="","",IFERROR(I61*$M62,"")) ->  | K62: =IF(K61="","",IFERROR(K61*$M62,"")) ->  | M62: =VLOOKUP(A61,ORC!$D:$N,11,0) -> 
A63: 24 | B63: =VLOOKUP(A63,ORC!$D:$N,2,0) ->  | F63: % | M63: =SUM(G63:L63) -> 0
A64: =IFERROR(IF(B63<>"",100,B63),"") ->  | F64: R$ | G64: =IF(G63="","",IFERROR(G63*$M64,"")) ->  | I64: =IF(I63="","",IFERROR(I63*$M64,"")) ->  | K64: =IF(K63="","",IFERROR(K63*$M64,"")) ->  | M64: =VLOOKUP(A63,ORC!$D:$N,11,0) -> 
A65: 25 | B65: =VLOOKUP(A65,ORC!$D:$N,2,0) ->  | F65: % | M65: =SUM(G65:L65) -> 0
A66: =IFERROR(IF(B65<>"",100,B65),"") ->  | F66: R$ | G66: =IF(G65="","",IFERROR(G65*$M66,"")) ->  | I66: =IF(I65="","",IFERROR(I65*$M66,"")) ->  | K66: =IF(K65="","",IFERROR(K65*$M66,"")) ->  | M66: =VLOOKUP(A65,ORC!$D:$N,11,0) -> 
A67: 26 | B67: =VLOOKUP(A67,ORC!$D:$N,2,0) ->  | F67: % | M67: =SUM(G67:L67) -> 0
A68: =IFERROR(IF(B67<>"",100,B67),"") ->  | F68: R$ | G68: =IF(G67="","",IFERROR(G67*$M68,"")) ->  | I68: =IF(I67="","",IFERROR(I67*$M68,"")) ->  | K68: =IF(K67="","",IFERROR(K67*$M68,"")) ->  | M68: =VLOOKUP(A67,ORC!$D:$N,11,0) -> 
A69: 27 | B69: =VLOOKUP(A69,ORC!$D:$N,2,0) ->  | F69: % | M69: =SUM(G69:L69) -> 0
A70: =IFERROR(IF(B69<>"",100,B69),"") ->  | F70: R$ | G70: =IF(G69="","",IFERROR(G69*$M70,"")) ->  | I70: =IF(I69="","",IFERROR(I69*$M70,"")) ->  | K70: =IF(K69="","",IFERROR(K69*$M70,"")) ->  | M70: =VLOOKUP(A69,ORC!$D:$N,11,0) -> 
A71: 28 | B71: =VLOOKUP(A71,ORC!$D:$N,2,0) ->  | F71: % | M71: =SUM(G71:L71) -> 0
A72: =IFERROR(IF(B71<>"",100,B71),"") ->  | F72: R$ | G72: =IF(G71="","",IFERROR(G71*$M72,"")) ->  | I72: =IF(I71="","",IFERROR(I71*$M72,"")) ->  | K72: =IF(K71="","",IFERROR(K71*$M72,"")) ->  | M72: =VLOOKUP(A71,ORC!$D:$N,11,0) -> 
A73: 29 | B73: =VLOOKUP(A73,ORC!$D:$N,2,0) ->  | F73: % | M73: =SUM(G73:L73) -> 0
A74: =IFERROR(IF(B73<>"",100,B73),"") ->  | F74: R$ | G74: =IF(G73="","",IFERROR(G73*$M74,"")) ->  | I74: =IF(I73="","",IFERROR(I73*$M74,"")) ->  | K74: =IF(K73="","",IFERROR(K73*$M74,"")) ->  | M74: =VLOOKUP(A73,ORC!$D:$N,11,0) -> 
A75: 30 | B75: =VLOOKUP(A75,ORC!$D:$N,2,0) ->  | F75: % | M75: =SUM(G75:L75) -> 0
A76: =IFERROR(IF(B75<>"",100,B75),"") ->  | F76: R$ | G76: =IF(G75="","",IFERROR(G75*$M76,"")) ->  | I76: =IF(I75="","",IFERROR(I75*$M76,"")) ->  | K76: =IF(K75="","",IFERROR(K75*$M76,"")) ->  | M76: =VLOOKUP(A75,ORC!$D:$N,11,0) -> 
F79: Porcentagem | G79: =G80/$K$82 ->  | I79: =I80/$K$82 ->  | K79: =K80/$K$82 -> 
F80: Custo | G80: =SUMIF($A:$A,100,G:G) -> 0 | I80: =SUMIF($A:$A,100,I:I) -> 0 | K80: =SUMIF($A:$A,100,K:K) -> 0
F81: Porcentagem Acumulada | G81: =G79 ->  | I81: =I79+G81 ->  | K81: =K79+I81 -> 
F82: Custo Acumulado | G82: =G80 -> 0 | I82: =I80+G82 -> 0 | K82: =IF(K80+I82=ORC!M334,K80+I82,"ERRO") -> ERRO
F86: RESPONSÁVEL TÉCNICO | G86: =DADOS!D16 -> FLÁVIA CRISTINA BARBOSA
G87: =DADOS!D18 -> CREA - MG 187.842/D

Sheet CRO 4 meses
A2: CRONOGRAMA FÍSICO-FINANCEIRO | K2: Revisão: | L2: =DADOS!D6 -> R01
K3: Data: | L3: =DADOS!D2 -> 2023-03-27
A4: Projeto: | D4: Responsável: | H4: Cliente: | K4: Bancos:
A5: =DADOS!D8 -> REFORMA DA COBERTURA DA PEM CORONEL BRITO FILHO | K5: =DADOS!D14 -> SINAPI: 02/2023 Minas Gerais SETOP: 01/2023 Minas Gerais SICRO : 10/2022 Minas Gerais SUDECAP: 12/2022 Minas Gerais
K8: BDI 1: | L8: =DADOS!D10 -> 0.2652
K9: BDI 2: | L9: =DADOS!D12 -> 0.2025
A11: =A2&" DE "&DADOS!D20&" - "&A5 -> CRONOGRAMA FÍSICO-FINANCEIRO DE PROJETO EXECUTIVO - REFORMA DA COBERTURA DA PEM CORONEL BRITO FILHO
A13: ITEM | B13: DESCRIÇÃO | F13: Unid. | G13: 30 DIAS | H13: 60 DIAS | I13: 90 DIAS | J13: 120 DIAS | K13: Total por Etapa
A15: 1 | B15: =VLOOKUP(A15,ORC!$D:$N,2,0) -> CANTEIRO DE OBRA | F15: % | G15: 0.25 | H15: 0.25 | I15: 0.25 | J15: 0.25 | K15: =SUM(G15:J15) -> 1
A16: =IFERROR(IF(B15<>"",100,B15),"") -> 100 | F16: R$ | G16: =IF(G15="","",IFERROR(G15*$K16,"")) -> 2205.0225 | H16: =IF(H15="","",IFERROR(H15*$K16,"")) -> 2205.0225 | I16: 2205.0225 | J16: 2205.0225 | K16: =VLOOKUP(A15,ORC!$D:$N,11,0) -> 8820.09
A17: 2 | B17: =VLOOKUP(A17,ORC!$D:$N,2,0) -> SERVIÇOS PRELIMINARES | F17: % | G17: 1 | K17: =SUM(G17:J17) -> 1
A18: =IFERROR(IF(B17<>"",100,B17),"") -> 100 | F18: R$ | G18: =IF(G17="","",IFERROR(G17*$K18,"")) -> 4690.75 | H18: =IF(H17="","",IFERROR(H17*$K18,"")) ->  | I18: =IF(I17="","",IFERROR(I17*$K18,"")) ->  | J18: =IF(J17="","",IFERROR(J17*$K18,"")) ->  | K18: =VLOOKUP(A17,ORC!$D:$N,11,0) -> 4690.75
A19: 3 | B19: =VLOOKUP(A19,ORC!$D:$N,2,0) -> ADMINISTRAÇÃO DE OBRA | F19: % | G19: 0.25 | H19: 0.25 | I19: 0.25 | J19: 0.25 | K19: =SUM(G19:J19) -> 1
A20: =IFERROR(IF(B19<>"",100,B19),"") -> 100 | F20: R$ | G20: =IF(G19="","",IFERROR(G19*$K20,"")) -> 29000.18 | H20: =IF(H19="","",IFERROR(H19*$K20,"")) -> 29000.18 | I20: =IF(I19="","",IFERROR(I19*$K20,"")) -> 29000.18 | J20: =IF(J19="","",IFERROR(J19*$K20,"")) -> 29000.18 | K20: =VLOOKUP(A19,ORC!$D:$N,11,0) -> 116000.72
A21: 4 | B21: =VLOOKUP(A21,ORC!$D:$N,2,0) -> DEMOLIÇÕES E REMOÇÕES | F21: % | G21: 1 | K21: =SUM(G21:J21) -> 1
A22: =IFERROR(IF(B21<>"",100,B21),"") -> 100 | F22: R$ | G22: =IF(G21="","",IFERROR(G21*$K22,"")) -> 11806.86 | H22: =IF(H21="","",IFERROR(H21*$K22,"")) ->  | I22: =IF(I21="","",IFERROR(I21*$K22,"")) ->  | J22: =IF(J21="","",IFERROR(J21*$K22,"")) ->  | K22: =VLOOKUP(A21,ORC!$D:$N,11,0) -> 11806.86
A23: 5 | B23: =VLOOKUP(A23,ORC!$D:$N,2,0) -> SISTEMA DE COBERTURA | F23: % | G23: 0.2 | H23: 0.3 | I23: 0.3 | J23: 0.2 | K23: =SUM(G23:J23) -> 1
A24: =IFERROR(IF(B23<>"",100,B23),"") -> 100 | F24: R$ | G24: =IF(G23="","",IFERROR(G23*$K24,"")) -> 47532.55 | H24: =IF(H23="","",IFERROR(H23*$K24,"")) -> 71298.825 | I24: =IF(I23="","",IFERROR(I23*$K24,"")) -> 71298.825 | J24: =IF(J23="","",IFERROR(J23*$K24,"")) -> 47532.55 | K24: =VLOOKUP(A23,ORC!$D:$N,11,0) -> 237662.75
A25: 6 | B25: =VLOOKUP(A25,ORC!$D:$N,2,0) -> FECHAMENTO DA COBERTURA | F25: % | J25: 1 | K25: =SUM(G25:J25) -> 1
A26: =IFERROR(IF(B25<>"",100,B25),"") -> 100 | F26: R$ | G26: =IF(G25="","",IFERROR(G25*$K26,"")) ->  | H26: =IF(H25="","",IFERROR(H25*$K26,"")) ->  | I26: =IF(I25="","",IFERROR(I25*$K26,"")) ->  | J26: =IF(J25="","",IFERROR(J25*$K26,"")) -> 14314.25 | K26: =VLOOKUP(A25,ORC!$D:$N,11,0) -> 14314.25
A27: 7 | B27: =VLOOKUP(A27,ORC!$D:$N,2,0) -> DRENAGEM PLUVIAL | F27: % | I27: 0.2 | J27: 0.8 | K27: =SUM(G27:J27) -> 1
A28: =IFERROR(IF(B27<>"",100,B27),"") -> 100 | F28: R$ | G28: =IF(G27="","",IFERROR(G27*$K28,"")) ->  | H28: =IF(H27="","",IFERROR(H27*$K28,"")) ->  | I28: =IF(I27="","",IFERROR(I27*$K28,"")) -> 4266.384 | J28: =IF(J27="","",IFERROR(J27*$K28,"")) -> 17065.536 | K28: =VLOOKUP(A27,ORC!$D:$N,11,0) -> 21331.92
A29: 8 | B29: =VLOOKUP(A29,ORC!$D:$N,2,0) -> SERVIÇOS FINAIS | F29: % | J29: 1 | K29: =SUM(G29:J29) -> 1
A30: =IFERROR(IF(B29<>"",100,B29),"") -> 100 | F30: R$ | G30: =IF(G29="","",IFERROR(G29*$K30,"")) ->  | H30: =IF(H29="","",IFERROR(H29*$K30,"")) ->  | I30: =IF(I29="","",IFERROR(I29*$K30,"")) ->  | J30: =IF(J29="","",IFERROR(J29*$K30,"")) -> 4257.06 | K30: =VLOOKUP(A29,ORC!$D:$N,11,0) -> 4257.06
A31: 9 | B31: =VLOOKUP(A31,ORC!$D:$N,2,0) ->  | F31: % | K31: =SUM(G31:J31) -> 0
A32: =IFERROR(IF(B31<>"",100,B31),"") ->  | F32: R$ | G32: =IF(G31="","",IFERROR(G31*$K32,"")) ->  | H32: =IF(H31="","",IFERROR(H31*$K32,"")) ->  | I32: =IF(I31="","",IFERROR(I31*$K32,"")) ->  | J32: =IF(J31="","",IFERROR(J31*$K32,"")) ->  | K32: =VLOOKUP(A31,ORC!$D:$N,11,0) -> 
A33: 10 | B33: =VLOOKUP(A33,ORC!$D:$N,2,0) ->  | F33: % | K33: =SUM(G33:J33) -> 0
A34: =IFERROR(IF(B33<>"",100,B33),"") ->  | F34: R$ | G34: =IF(G33="","",IFERROR(G33*$K34,"")) ->  | H34: =IF(H33="","",IFERROR(H33*$K34,"")) ->  | I34: =IF(I33="","",IFERROR(I33*$K34,"")) ->  | J34: =IF(J33="","",IFERROR(J33*$K34,"")) ->  | K34: =VLOOKUP(A33,ORC!$D:$N,11,0) -> 
A35: 11 | B35: =VLOOKUP(A35,ORC!$D:$N,2,0) ->  | F35: % | K35: =SUM(G35:J35) -> 0
A36: =IFERROR(IF(B35<>"",100,B35),"") ->  | F36: R$ | G36: =IF(G35="","",IFERROR(G35*$K36,"")) ->  | H36: =IF(H35="","",IFERROR(H35*$K36,"")) ->  | I36: =IF(I35="","",IFERROR(I35*$K36,"")) ->  | J36: =IF(J35="","",IFERROR(J35*$K36,"")) ->  | K36: =VLOOKUP(A35,ORC!$D:$N,11,0) -> 
A37: 12 | B37: =VLOOKUP(A37,ORC!$D:$N,2,0) ->  | F37: % | K37: =SUM(G37:J37) -> 0
A38: =IFERROR(IF(B37<>"",100,B37),"") ->  | F38: R$ | G38: =IF(G37="","",IFERROR(G37*$K38,"")) ->  | H38: =IF(H37="","",IFERROR(H37*$K38,"")) ->  | I38: =IF(I37="","",IFERROR(I37*$K38,"")) ->  | J38: =IF(J37="","",IFERROR(J37*$K38,"")) ->  | K38: =VLOOKUP(A37,ORC!$D:$N,11,0) -> 
A39: 13 | B39: =VLOOKUP(A39,ORC!$D:$N,2,0) ->  | F39: % | K39: =SUM(G39:J39) -> 0
A40: =IFERROR(IF(B39<>"",100,B39),"") ->  | F40: R$ | G40: =IF(G39="","",IFERROR(G39*$K40,"")) ->  | H40: =IF(H39="","",IFERROR(H39*$K40,"")) ->  | I40: =IF(I39="","",IFERROR(I39*$K40,"")) ->  | J40: =IF(J39="","",IFERROR(J39*$K40,"")) ->  | K40: =VLOOKUP(A39,ORC!$D:$N,11,0) -> 
A41: 14 | B41: =VLOOKUP(A41,ORC!$D:$N,2,0) ->  | F41: % | K41: =SUM(G41:J41) -> 0
A42: =IFERROR(IF(B41<>"",100,B41),"") ->  | F42: R$ | G42: =IF(G41="","",IFERROR(G41*$K42,"")) ->  | H42: =IF(H41="","",IFERROR(H41*$K42,"")) ->  | I42: =IF(I41="","",IFERROR(I41*$K42,"")) ->  | J42: =IF(J41="","",IFERROR(J41*$K42,"")) ->  | K42: =VLOOKUP(A41,ORC!$D:$N,11,0) -> 
A43: 15 | B43: =VLOOKUP(A43,ORC!$D:$N,2,0) ->  | F43: % | K43: =SUM(G43:J43) -> 0
A44: =IFERROR(IF(B43<>"",100,B43),"") ->  | F44: R$ | G44: =IF(G43="","",IFERROR(G43*$K44,"")) ->  | H44: =IF(H43="","",IFERROR(H43*$K44,"")) ->  | I44: =IF(I43="","",IFERROR(I43*$K44,"")) ->  | J44: =IF(J43="","",IFERROR(J43*$K44,"")) ->  | K44: =VLOOKUP(A43,ORC!$D:$N,11,0) -> 
A45: 16 | B45: =VLOOKUP(A45,ORC!$D:$N,2,0) ->  | F45: % | K45: =SUM(G45:J45) -> 0
A46: =IFERROR(IF(B45<>"",100,B45),"") ->  | F46: R$ | G46: =IF(G45="","",IFERROR(G45*$K46,"")) ->  | H46: =IF(H45="","",IFERROR(H45*$K46,"")) ->  | I46: =IF(I45="","",IFERROR(I45*$K46,"")) ->  | J46: =IF(J45="","",IFERROR(J45*$K46,"")) ->  | K46: =VLOOKUP(A45,ORC!$D:$N,11,0) -> 
A47: 17 | B47: =VLOOKUP(A47,ORC!$D:$N,2,0) ->  | F47: % | K47: =SUM(G47:J47) -> 0
A48: =IFERROR(IF(B47<>"",100,B47),"") ->  | F48: R$ | G48: =IF(G47="","",IFERROR(G47*$K48,"")) ->  | H48: =IF(H47="","",IFERROR(H47*$K48,"")) ->  | I48: =IF(I47="","",IFERROR(I47*$K48,"")) ->  | J48: =IF(J47="","",IFERROR(J47*$K48,"")) ->  | K48: =VLOOKUP(A47,ORC!$D:$N,11,0) -> 
A49: 18 | B49: =VLOOKUP(A49,ORC!$D:$N,2,0) ->  | F49: % | K49: =SUM(G49:J49) -> 0
A50: =IFERROR(IF(B49<>"",100,B49),"") ->  | F50: R$ | G50: =IF(G49="","",IFERROR(G49*$K50,"")) ->  | H50: =IF(H49="","",IFERROR(H49*$K50,"")) ->  | I50: =IF(I49="","",IFERROR(I49*$K50,"")) ->  | J50: =IF(J49="","",IFERROR(J49*$K50,"")) ->  | K50: =VLOOKUP(A49,ORC!$D:$N,11,0) -> 
A51: 19 | B51: =VLOOKUP(A51,ORC!$D:$N,2,0) ->  | F51: % | K51: =SUM(G51:J51) -> 0
A52: =IFERROR(IF(B51<>"",100,B51),"") ->  | F52: R$ | G52: =IF(G51="","",IFERROR(G51*$K52,"")) ->  | H52: =IF(H51="","",IFERROR(H51*$K52,"")) ->  | I52: =IF(I51="","",IFERROR(I51*$K52,"")) ->  | J52: =IF(J51="","",IFERROR(J51*$K52,"")) ->  | K52: =VLOOKUP(A51,ORC!$D:$N,11,0) -> 
A54: 20 | B54: =VLOOKUP(A54,ORC!$D:$N,2,0) ->  | F54: % | K54: =SUM(G54:J54) -> 0
A55: =IFERROR(IF(B54<>"",100,B54),"") ->  | F55: R$ | G55: =IF(G54="","",IFERROR(G54*$K55,"")) ->  | H55: =IF(H54="","",IFERROR(H54*$K55,"")) ->  | I55: =IF(I54="","",IFERROR(I54*$K55,"")) ->  | J55: =IF(J54="","",IFERROR(J54*$K55,"")) ->  | K55: =VLOOKUP(A54,ORC!$D:$N,11,0) -> 
A56: 21 | B56: =VLOOKUP(A56,ORC!$D:$N,2,0) ->  | F56: % | K56: =SUM(G56:J56) -> 0
A57: =IFERROR(IF(B56<>"",100,B56),"") ->  | F57: R$ | G57: =IF(G56="","",IFERROR(G56*$K57,"")) ->  | H57: =IF(H56="","",IFERROR(H56*$K57,"")) ->  | I57: =IF(I56="","",IFERROR(I56*$K57,"")) ->  | J57: =IF(J56="","",IFERROR(J56*$K57,"")) ->  | K57: =VLOOKUP(A56,ORC!$D:$N,11,0) -> 
A58: 22 | B58: =VLOOKUP(A58,ORC!$D:$N,2,0) ->  | F58: % | K58: =SUM(G58:J58) -> 0
A59: =IFERROR(IF(B58<>"",100,B58),"") ->  | F59: R$ | G59: =IF(G58="","",IFERROR(G58*$K59,"")) ->  | H59: =IF(H58="","",IFERROR(H58*$K59,"")) ->  | I59: =IF(I58="","",IFERROR(I58*$K59,"")) ->  | J59: =IF(J58="","",IFERROR(J58*$K59,"")) ->  | K59: =VLOOKUP(A58,ORC!$D:$N,11,0) -> 
A60: 23 | B60: =VLOOKUP(A60,ORC!$D:$N,2,0) ->  | F60: % | K60: =SUM(G60:J60) -> 0
A61: =IFERROR(IF(B60<>"",100,B60),"") ->  | F61: R$ | G61: =IF(G60="","",IFERROR(G60*$K61,"")) ->  | H61: =IF(H60="","",IFERROR(H60*$K61,"")) ->  | I61: =IF(I60="","",IFERROR(I60*$K61,"")) ->  | J61: =IF(J60="","",IFERROR(J60*$K61,"")) ->  | K61: =VLOOKUP(A60,ORC!$D:$N,11,0) -> 
A62: 24 | B62: =VLOOKUP(A62,ORC!$D:$N,2,0) ->  | F62: % | K62: =SUM(G62:J62) -> 0
A63: =IFERROR(IF(B62<>"",100,B62),"") ->  | F63: R$ | G63: =IF(G62="","",IFERROR(G62*$K63,"")) ->  | H63: =IF(H62="","",IFERROR(H62*$K63,"")) ->  | K63: =VLOOKUP(A62,ORC!$D:$N,11,0) -> 
A64: 25 | B64: =VLOOKUP(A64,ORC!$D:$N,2,0) ->  | F64: % | K64: =SUM(G64:J64) -> 0
A65: =IFERROR(IF(B64<>"",100,B64),"") ->  | F65: R$ | G65: =IF(G64="","",IFERROR(G64*$K65,"")) ->  | H65: =IF(H64="","",IFERROR(H64*$K65,"")) ->  | K65: =VLOOKUP(A64,ORC!$D:$N,11,0) -> 
A66: 26 | B66: =VLOOKUP(A66,ORC!$D:$N,2,0) ->  | F66: % | K66: =SUM(G66:J66) -> 0
A67: =IFERROR(IF(B66<>"",100,B66),"") ->  | F67: R$ | G67: =IF(G66="","",IFERROR(G66*$K67,"")) ->  | H67: =IF(H66="","",IFERROR(H66*$K67,"")) ->  | K67: =VLOOKUP(A66,ORC!$D:$N,11,0) -> 
A68: 27 | B68: =VLOOKUP(A68,ORC!$D:$N,2,0) ->  | F68: % | K68: =SUM(G68:J68) -> 0
A69: =IFERROR(IF(B68<>"",100,B68),"") ->  | F69: R$ | G69: =IF(G68="","",IFERROR(G68*$K69,"")) ->  | H69: =IF(H68="","",IFERROR(H68*$K69,"")) ->  | K69: =VLOOKUP(A68,ORC!$D:$N,11,0) -> 
A70: 28 | B70: =VLOOKUP(A70,ORC!$D:$N,2,0) ->  | F70: % | K70: =SUM(G70:J70) -> 0
A71: =IFERROR(IF(B70<>"",100,B70),"") ->  | F71: R$ | G71: =IF(G70="","",IFERROR(G70*$K71,"")) ->  | H71: =IF(H70="","",IFERROR(H70*$K71,"")) ->  | K71: =VLOOKUP(A70,ORC!$D:$N,11,0) -> 
A72: 29 | B72: =VLOOKUP(A72,ORC!$D:$N,2,0) ->  | F72: % | K72: =SUM(G72:J72) -> 0
A73: =IFERROR(IF(B72<>"",100,B72),"") ->  | F73: R$ | G73: =IF(G72="","",IFERROR(G72*$K73,"")) ->  | H73: =IF(H72="","",IFERROR(H72*$K73,"")) ->  | K73: =VLOOKUP(A72,ORC!$D:$N,11,0) -> 
A74: 30 | B74: =VLOOKUP(A74,ORC!$D:$N,2,0) ->  | F74: % | K74: =SUM(G74:J74) -> 0
A75: =IFERROR(IF(B74<>"",100,B74),"") ->  | F75: R$ | G75: =IF(G74="","",IFERROR(G74*$K75,"")) ->  | H75: =IF(H74="","",IFERROR(H74*$K75,"")) ->  | K75: =VLOOKUP(A74,ORC!$D:$N,11,0) -> 
F77: Porcentagem | G77: =G78/$J$80 -> 0.2273547606 | H77: =H78/$J$80 -> 0.2447071973 | I77: =I78/$J$80 -> 0.254892308 | J77: =J78/$J$80 -> 0.2730457341
F78: Custo | G78: =SUMIF($A:$A,100,G:G) -> 95235.3625 | H78: =SUMIF($A:$A,100,H:H) -> 102504.0275 | I78: =SUMIF($A:$A,100,I:I) -> 106770.4115 | J78: =SUMIF($A:$A,100,J:J) -> 114374.5985
F79: Porcentagem Acumulada | G79: =G77 -> 0.2273547606 | H79: =G79+H77 -> 0.4720619579 | I79: =H79+I77 -> 0.7269542659 | J79: 1
F80: Custo Acumulado | G80: =G78 -> 95235.3625 | H80: =H78+G80 -> 197739.39 | I80: =I78+H80 -> 304509.8015 | J80: =IF(J78+I80=ORC!M334,J78+I80,"ERRO") -> 418884.4
F84: RESPONSÁVEL TÉCNICO | G84: =DADOS!D16 -> FLÁVIA CRISTINA BARBOSA
G85: =DADOS!D18 -> CREA - MG 187.842/D

Sheet CRO 5 meses (hidden)
A2: CRONOGRAMA FÍSICO-FINANCEIRO | L2: Revisão: | M2: =DADOS!D6 -> R01
L3: Data: | M3: =DADOS!D2 -> 2023-03-27
A4: Projeto: | D4: Responsável: | I4: Cliente: | L4: Bancos:
A5: =DADOS!D8 -> REFORMA DA COBERTURA DA PEM CORONEL BRITO FILHO | L5: =DADOS!D14 -> SINAPI: 02/2023 Minas Gerais SETOP: 01/2023 Minas Gerais SICRO : 10/2022 Minas Gerais SUDECAP: 12/2022 Minas Gerais
L8: BDI 1: | M8: =DADOS!D10 -> 0.2652
L9: BDI 2: | M9: =DADOS!D12 -> 0.2025
A11: =A2&" DE "&DADOS!D20&" - "&A5 -> CRONOGRAMA FÍSICO-FINANCEIRO DE PROJETO EXECUTIVO - REFORMA DA COBERTURA DA PEM CORONEL BRITO FILHO
A13: ITEM | B13: DESCRIÇÃO | F13: Unid. | G13: 30 DIAS | H13: 60 DIAS | I13: 90 DIAS | J13: 120 DIAS | K13: 150 DIAS | L13: Total por Etapa
A15: 1 | B15: =VLOOKUP(A15,ORC!$D:$N,2,0) -> CANTEIRO DE OBRA | F15: % | L15: =SUM(G15:K15) -> 0
A16: =IFERROR(IF(B15<>"",100,B15),"") -> 100 | F16: R$ | G16: =IF(G15="","",IFERROR(G15*$L16,"")) ->  | H16: =IF(H15="","",IFERROR(H15*$L16,"")) ->  | L16: =VLOOKUP(A15,ORC!$D:$N,11,0) -> 8820.09
A17: 2 | B17: =VLOOKUP(A17,ORC!$D:$N,2,0) -> SERVIÇOS PRELIMINARES | F17: % | L17: =SUM(G17:K17) -> 0
A18: =IFERROR(IF(B17<>"",100,B17),"") -> 100 | F18: R$ | G18: =IF(G17="","",IFERROR(G17*$L18,"")) ->  | H18: =IF(H17="","",IFERROR(H17*$L18,"")) ->  | I18: =IF(I17="","",IFERROR(I17*$L18,"")) ->  | J18: =IF(J17="","",IFERROR(J17*$L18,"")) ->  | K18: =IF(K17="","",IFERROR(K17*$L18,"")) ->  | L18: =VLOOKUP(A17,ORC!$D:$N,11,0) -> 4690.75
A19: 3 | B19: =VLOOKUP(A19,ORC!$D:$N,2,0) -> ADMINISTRAÇÃO DE OBRA | F19: % | L19: =SUM(G19:K19) -> 0
A20: =IFERROR(IF(B19<>"",100,B19),"") -> 100 | F20: R$ | G20: =IF(G19="","",IFERROR(G19*$L20,"")) ->  | H20: =IF(H19="","",IFERROR(H19*$L20,"")) ->  | I20: =IF(I19="","",IFERROR(I19*$L20,"")) ->  | J20: =IF(J19="","",IFERROR(J19*$L20,"")) ->  | K20: =IF(K19="","",IFERROR(K19*$L20,"")) ->  | L20: =VLOOKUP(A19,ORC!$D:$N,11,0) -> 116000.72
A21: 4 | B21: =VLOOKUP(A21,ORC!$D:$N,2,0) -> DEMOLIÇÕES E REMOÇÕES | F21: % | L21: =SUM(G21:K21) -> 0
A22: =IFERROR(IF(B21<>"",100,B21),"") -> 100 | F22: R$ | G22: =IF(G21="","",IFERROR(G21*$L22,"")) ->  | H22: =IF(H21="","",IFERROR(H21*$L22,"")) ->  | I22: =IF(I21="","",IFERROR(I21*$L22,"")) ->  | J22: =IF(J21="","",IFERROR(J21*$L22,"")) ->  | K22: =IF(K21="","",IFERROR(K21*$L22,"")) ->  | L22: =VLOOKUP(A21,ORC!$D:$N,11,0) -> 11806.86
A23: 5 | B23: =VLOOKUP(A23,ORC!$D:$N,2,0) -> SISTEMA DE COBERTURA | F23: % | L23: =SUM(G23:K23) -> 0
A24: =IFERROR(IF(B23<>"",100,B23),"") -> 100 | F24: R$ | G24: =IF(G23="","",IFERROR(G23*$L24,"")) ->  | H24: =IF(H23="","",IFERROR(H23*$L24,"")) ->  | I24: =IF(I23="","",IFERROR(I23*$L24,"")) ->  | J24: =IF(J23="","",IFERROR(J23*$L24,"")) ->  | K24: =IF(K23="","",IFERROR(K23*$L24,"")) ->  | L24: =VLOOKUP(A23,ORC!$D:$N,11,0) -> 237662.75
A25: 6 | B25: =VLOOKUP(A25,ORC!$D:$N,2,0) -> FECHAMENTO DA COBERTURA | F25: % | L25: =SUM(G25:K25) -> 0
A26: =IFERROR(IF(B25<>"",100,B25),"") -> 100 | F26: R$ | G26: =IF(G25="","",IFERROR(G25*$L26,"")) ->  | H26: =IF(H25="","",IFERROR(H25*$L26,"")) ->  | I26: =IF(I25="","",IFERROR(I25*$L26,"")) ->  | J26: =IF(J25="","",IFERROR(J25*$L26,"")) ->  | K26: =IF(K25="","",IFERROR(K25*$L26,"")) ->  | L26: =VLOOKUP(A25,ORC!$D:$N,11,0) -> 14314.25
A27: 7 | B27: =VLOOKUP(A27,ORC!$D:$N,2,0) -> DRENAGEM PLUVIAL | F27: % | L27: =SUM(G27:K27) -> 0
A28: =IFERROR(IF(B27<>"",100,B27),"") -> 100 | F28: R$ | G28: =IF(G27="","",IFERROR(G27*$L28,"")) ->  | H28: =IF(H27="","",IFERROR(H27*$L28,"")) ->  | I28: =IF(I27="","",IFERROR(I27*$L28,"")) ->  | J28: =IF(J27="","",IFERROR(J27*$L28,"")) ->  | K28: =IF(K27="","",IFERROR(K27*$L28,"")) ->  | L28: =VLOOKUP(A27,ORC!$D:$N,11,0) -> 21331.92
A29: 8 | B29: =VLOOKUP(A29,ORC!$D:$N,2,0) -> SERVIÇOS FINAIS | F29: % | L29: =SUM(G29:K29) -> 0
A30: =IFERROR(IF(B29<>"",100,B29),"") -> 100 | F30: R$ | G30: =IF(G29="","",IFERROR(G29*$L30,"")) ->  | H30: =IF(H29="","",IFERROR(H29*$L30,"")) ->  | I30: =IF(I29="","",IFERROR(I29*$L30,"")) ->  | J30: =IF(J29="","",IFERROR(J29*$L30,"")) ->  | K30: =IF(K29="","",IFERROR(K29*$L30,"")) ->  | L30: =VLOOKUP(A29,ORC!$D:$N,11,0) -> 4257.06
A32: 9 | B32: =VLOOKUP(A32,ORC!$D:$N,2,0) ->  | F32: % | L32: =SUM(G32:K32) -> 0
A33: =IFERROR(IF(B32<>"",100,B32),"") ->  | F33: R$ | G33: =IF(G32="","",IFERROR(G32*$L33,"")) ->  | H33: =IF(H32="","",IFERROR(H32*$L33,"")) ->  | I33: =IF(I32="","",IFERROR(I32*$L33,"")) ->  | J33: =IF(J32="","",IFERROR(J32*$L33,"")) ->  | K33: =IF(K32="","",IFERROR(K32*$L33,"")) ->  | L33: =VLOOKUP(A32,ORC!$D:$N,11,0) -> 
A34: 10 | B34: =VLOOKUP(A34,ORC!$D:$N,2,0) ->  | F34: % | L34: =SUM(G34:K34) -> 0
A35: =IFERROR(IF(B34<>"",100,B34),"") ->  | F35: R$ | G35: =IF(G34="","",IFERROR(G34*$L35,"")) ->  | H35: =IF(H34="","",IFERROR(H34*$L35,"")) ->  | I35: =IF(I34="","",IFERROR(I34*$L35,"")) ->  | J35: =IF(J34="","",IFERROR(J34*$L35,"")) ->  | K35: =IF(K34="","",IFERROR(K34*$L35,"")) ->  | L35: =VLOOKUP(A34,ORC!$D:$N,11,0) -> 
A36: 11 | B36: =VLOOKUP(A36,ORC!$D:$N,2,0) ->  | F36: % | L36: =SUM(G36:K36) -> 0
A37: =IFERROR(IF(B36<>"",100,B36),"") ->  | F37: R$ | G37: =IF(G36="","",IFERROR(G36*$L37,"")) ->  | H37: =IF(H36="","",IFERROR(H36*$L37,"")) ->  | I37: =IF(I36="","",IFERROR(I36*$L37,"")) ->  | J37: =IF(J36="","",IFERROR(J36*$L37,"")) ->  | K37: =IF(K36="","",IFERROR(K36*$L37,"")) ->  | L37: =VLOOKUP(A36,ORC!$D:$N,11,0) -> 
A38: 12 | B38: =VLOOKUP(A38,ORC!$D:$N,2,0) ->  | F38: % | L38: =SUM(G38:K38) -> 0
A39: =IFERROR(IF(B38<>"",100,B38),"") ->  | F39: R$ | G39: =IF(G38="","",IFERROR(G38*$L39,"")) ->  | H39: =IF(H38="","",IFERROR(H38*$L39,"")) ->  | I39: =IF(I38="","",IFERROR(I38*$L39,"")) ->  | J39: =IF(J38="","",IFERROR(J38*$L39,"")) ->  | K39: =IF(K38="","",IFERROR(K38*$L39,"")) ->  | L39: =VLOOKUP(A38,ORC!$D:$N,11,0) -> 
A40: 13 | B40: =VLOOKUP(A40,ORC!$D:$N,2,0) ->  | F40: % | L40: =SUM(G40:K40) -> 0
A41: =IFERROR(IF(B40<>"",100,B40),"") ->  | F41: R$ | G41: =IF(G40="","",IFERROR(G40*$L41,"")) ->  | H41: =IF(H40="","",IFERROR(H40*$L41,"")) ->  | I41: =IF(I40="","",IFERROR(I40*$L41,"")) ->  | J41: =IF(J40="","",IFERROR(J40*$L41,"")) ->  | K41: =IF(K40="","",IFERROR(K40*$L41,"")) ->  | L41: =VLOOKUP(A40,ORC!$D:$N,11,0) -> 
A42: 14 | B42: =VLOOKUP(A42,ORC!$D:$N,2,0) ->  | F42: % | L42: =SUM(G42:K42) -> 0
A43: =IFERROR(IF(B42<>"",100,B42),"") ->  | F43: R$ | G43: =IF(G42="","",IFERROR(G42*$L43,"")) ->  | H43: =IF(H42="","",IFERROR(H42*$L43,"")) ->  | I43: =IF(I42="","",IFERROR(I42*$L43,"")) ->  | J43: =IF(J42="","",IFERROR(J42*$L43,"")) ->  | K43: =IF(K42="","",IFERROR(K42*$L43,"")) ->  | L43: =VLOOKUP(A42,ORC!$D:$N,11,0) -> 
A44: 15 | B44: =VLOOKUP(A44,ORC!$D:$N,2,0) ->  | F44: % | L44: =SUM(G44:K44) -> 0
A45: =IFERROR(IF(B44<>"",100,B44),"") ->  | F45: R$ | G45: =IF(G44="","",IFERROR(G44*$L45,"")) ->  | H45: =IF(H44="","",IFERROR(H44*$L45,"")) ->  | I45: =IF(I44="","",IFERROR(I44*$L45,"")) ->  | J45: =IF(J44="","",IFERROR(J44*$L45,"")) ->  | K45: =IF(K44="","",IFERROR(K44*$L45,"")) ->  | L45: =VLOOKUP(A44,ORC!$D:$N,11,0) -> 
A46: 16 | B46: =VLOOKUP(A46,ORC!$D:$N,2,0) ->  | F46: % | L46: =SUM(G46:K46) -> 0
A47: =IFERROR(IF(B46<>"",100,B46),"") ->  | F47: R$ | G47: =IF(G46="","",IFERROR(G46*$L47,"")) ->  | H47: =IF(H46="","",IFERROR(H46*$L47,"")) ->  | I47: =IF(I46="","",IFERROR(I46*$L47,"")) ->  | J47: =IF(J46="","",IFERROR(J46*$L47,"")) ->  | K47: =IF(K46="","",IFERROR(K46*$L47,"")) ->  | L47: =VLOOKUP(A46,ORC!$D:$N,11,0) -> 
A48: 17 | B48: =VLOOKUP(A48,ORC!$D:$N,2,0) ->  | F48: % | L48: =SUM(G48:K48) -> 0
A49: =IFERROR(IF(B48<>"",100,B48),"") ->  | F49: R$ | G49: =IF(G48="","",IFERROR(G48*$L49,"")) ->  | H49: =IF(H48="","",IFERROR(H48*$L49,"")) ->  | I49: =IF(I48="","",IFERROR(I48*$L49,"")) ->  | J49: =IF(J48="","",IFERROR(J48*$L49,"")) ->  | K49: =IF(K48="","",IFERROR(K48*$L49,"")) ->  | L49: =VLOOKUP(A48,ORC!$D:$N,11,0) -> 
A50: 18 | B50: =VLOOKUP(A50,ORC!$D:$N,2,0) ->  | F50: % | L50: =SUM(G50:K50) -> 0
A51: =IFERROR(IF(B50<>"",100,B50),"") ->  | F51: R$ | G51: =IF(G50="","",IFERROR(G50*$L51,"")) ->  | H51: =IF(H50="","",IFERROR(H50*$L51,"")) ->  | I51: =IF(I50="","",IFERROR(I50*$L51,"")) ->  | J51: =IF(J50="","",IFERROR(J50*$L51,"")) ->  | K51: =IF(K50="","",IFERROR(K50*$L51,"")) ->  | L51: =VLOOKUP(A50,ORC!$D:$N,11,0) -> 
A52: 19 | B52: =VLOOKUP(A52,ORC!$D:$N,2,0) ->  | F52: % | L52: =SUM(G52:K52) -> 0
A53: =IFERROR(IF(B52<>"",100,B52),"") ->  | F53: R$ | G53: =IF(G52="","",IFERROR(G52*$L53,"")) ->  | H53: =IF(H52="","",IFERROR(H52*$L53,"")) ->  | I53: =IF(I52="","",IFERROR(I52*$L53,"")) ->  | J53: =IF(J52="","",IFERROR(J52*$L53,"")) ->  | K53: =IF(K52="","",IFERROR(K52*$L53,"")) ->  | L53: =VLOOKUP(A52,ORC!$D:$N,11,0) -> 
A55: 20 | B55: =VLOOKUP(A55,ORC!$D:$N,2,0) ->  | F55: % | L55: =SUM(G55:K55) -> 0
A56: =IFERROR(IF(B55<>"",100,B55),"") ->  | F56: R$ | G56: =IF(G55="","",IFERROR(G55*$L56,"")) ->  | H56: =IF(H55="","",IFERROR(H55*$L56,"")) ->  | I56: =IF(I55="","",IFERROR(I55*$L56,"")) ->  | J56: =IF(J55="","",IFERROR(J55*$L56,"")) ->  | K56: =IF(K55="","",IFERROR(K55*$L56,"")) ->  | L56: =VLOOKUP(A55,ORC!$D:$N,11,0) -> 
A57: 21 | B57: =VLOOKUP(A57,ORC!$D:$N,2,0) ->  | F57: % | L57: =SUM(G57:K57) -> 0
A58: =IFERROR(IF(B57<>"",100,B57),"") ->  | F58: R$ | G58: =IF(G57="","",IFERROR(G57*$L58,"")) ->  | H58: =IF(H57="","",IFERROR(H57*$L58,"")) ->  | I58: =IF(I57="","",IFERROR(I57*$L58,"")) ->  | J58: =IF(J57="","",IFERROR(J57*$L58,"")) ->  | K58: =IF(K57="","",IFERROR(K57*$L58,"")) ->  | L58: =VLOOKUP(A57,ORC!$D:$N,11,0) -> 
A59: 22 | B59: =VLOOKUP(A59,ORC!$D:$N,2,0) ->  | F59: % | L59: =SUM(G59:K59) -> 0
A60: =IFERROR(IF(B59<>"",100,B59),"") ->  | F60: R$ | G60: =IF(G59="","",IFERROR(G59*$L60,"")) ->  | H60: =IF(H59="","",IFERROR(H59*$L60,"")) ->  | I60: =IF(I59="","",IFERROR(I59*$L60,"")) ->  | J60: =IF(J59="","",IFERROR(J59*$L60,"")) ->  | K60: =IF(K59="","",IFERROR(K59*$L60,"")) ->  | L60: =VLOOKUP(A59,ORC!$D:$N,11,0) -> 
A61: 23 | B61: =VLOOKUP(A61,ORC!$D:$N,2,0) ->  | F61: % | L61: =SUM(G61:K61) -> 0
A62: =IFERROR(IF(B61<>"",100,B61),"") ->  | F62: R$ | G62: =IF(G61="","",IFERROR(G61*$L62,"")) ->  | H62: =IF(H61="","",IFERROR(H61*$L62,"")) ->  | I62: =IF(I61="","",IFERROR(I61*$L62,"")) ->  | J62: =IF(J61="","",IFERROR(J61*$L62,"")) ->  | K62: =IF(K61="","",IFERROR(K61*$L62,"")) ->  | L62: =VLOOKUP(A61,ORC!$D:$N,11,0) -> 
A63: 24 | B63: =VLOOKUP(A63,ORC!$D:$N,2,0) ->  | F63: % | L63: =SUM(G63:K63) -> 0
A64: =IFERROR(IF(B63<>"",100,B63),"") ->  | F64: R$ | G64: =IF(G63="","",IFERROR(G63*$L64,"")) ->  | H64: =IF(H63="","",IFERROR(H63*$L64,"")) ->  | L64: =VLOOKUP(A63,ORC!$D:$N,11,0) -> 
A65: 25 | B65: =VLOOKUP(A65,ORC!$D:$N,2,0) ->  | F65: % | L65: =SUM(G65:K65) -> 0
A66: =IFERROR(IF(B65<>"",100,B65),"") ->  | F66: R$ | G66: =IF(G65="","",IFERROR(G65*$L66,"")) ->  | H66: =IF(H65="","",IFERROR(H65*$L66,"")) ->  | L66: =VLOOKUP(A65,ORC!$D:$N,11,0) -> 
A67: 26 | B67: =VLOOKUP(A67,ORC!$D:$N,2,0) ->  | F67: % | L67: =SUM(G67:K67) -> 0
A68: =IFERROR(IF(B67<>"",100,B67),"") ->  | F68: R$ | G68: =IF(G67="","",IFERROR(G67*$L68,"")) ->  | H68: =IF(H67="","",IFERROR(H67*$L68,"")) ->  | L68: =VLOOKUP(A67,ORC!$D:$N,11,0) -> 
A69: 27 | B69: =VLOOKUP(A69,ORC!$D:$N,2,0) ->  | F69: % | L69: =SUM(G69:K69) -> 0
A70: =IFERROR(IF(B69<>"",100,B69),"") ->  | F70: R$ | G70: =IF(G69="","",IFERROR(G69*$L70,"")) ->  | H70: =IF(H69="","",IFERROR(H69*$L70,"")) ->  | L70: =VLOOKUP(A69,ORC!$D:$N,11,0) -> 
A71: 28 | B71: =VLOOKUP(A71,ORC!$D:$N,2,0) ->  | F71: % | L71: =SUM(G71:K71) -> 0
A72: =IFERROR(IF(B71<>"",100,B71),"") ->  | F72: R$ | G72: =IF(G71="","",IFERROR(G71*$L72,"")) ->  | H72: =IF(H71="","",IFERROR(H71*$L72,"")) ->  | L72: =VLOOKUP(A71,ORC!$D:$N,11,0) -> 
A73: 29 | B73: =VLOOKUP(A73,ORC!$D:$N,2,0) ->  | F73: % | L73: =SUM(G73:K73) -> 0
A74: =IFERROR(IF(B73<>"",100,B73),"") ->  | F74: R$ | G74: =IF(G73="","",IFERROR(G73*$L74,"")) ->  | H74: =IF(H73="","",IFERROR(H73*$L74,"")) ->  | L74: =VLOOKUP(A73,ORC!$D:$N,11,0) -> 
A75: 30 | B75: =VLOOKUP(A75,ORC!$D:$N,2,0) ->  | F75: % | L75: =SUM(G75:K75) -> 0
A76: =IFERROR(IF(B75<>"",100,B75),"") ->  | F76: R$ | G76: =IF(G75="","",IFERROR(G75*$L76,"")) ->  | H76: =IF(H75="","",IFERROR(H75*$L76,"")) ->  | L76: =VLOOKUP(A75,ORC!$D:$N,11,0) -> 
F78: Porcentagem | G78: =G79/$K$81 ->  | K78: =K79/$K$81 -> 
F79: Custo | G79: =SUMIF($A:$A,100,G:G) -> 0 | H79: =SUMIF($A:$A,100,H:H) -> 0 | I79: =SUMIF($A:$A,100,I:I) -> 0 | J79: =SUMIF($A:$A,100,J:J) -> 0 | K79: =SUMIF($A:$A,100,K:K) -> 0
F80: Porcentagem Acumulada | G80: =G78 ->  | H80: =G80+H78 ->  | I80: =H80+I78 -> 
F81: Custo Acumulado | G81: =G79 -> 0 | H81: =H79+G81 -> 0 | I81: =I79+H81 -> 0 | J81: 0 | K81: =IF(K79+J81=ORC!M334,K79+J81,"ERRO") -> ERRO
F85: RESPONSÁVEL TÉCNICO | G85: =DADOS!D16 -> FLÁVIA CRISTINA BARBOSA
G86: =DADOS!D18 -> CREA - MG 187.842/D
